{"text_format":"1","workbook":"xlsx","n_sheets":6,"sheets":["Solicitud","Listas","Cotización","Precios","Catálogo Localización","CSV"],"not_rendered":{"charts":0,"images":10,"macros":1,"external_links":4,"defined_names":47,"comments":0,"pivot_tables":0},"unopened":[],"bounds":{"document_bytes":16777216,"sheet_cells":100000,"rows_first":2000,"rows_last":500,"rows_between":2000,"halvings":0,"cell_chars":16384,"cell_head_chars":4096},"cells_cut":0,"cells_raw":0,"read":"whole","date_system":"1900"}

{"sheet":"Solicitud","index":0,"n_rows":48,"n_cols":19,"rows_kept":48,"cut":false,"hidden":false,"merged":[[43,2,43,4],[43,5,43,7],[44,5,44,7],[44,2,44,4],[32,1,32,12],[40,2,40,3],[35,8,35,9],[36,8,36,12],[42,1,42,7],[10,1,10,2],[26,2,26,11],[27,2,30,11],[21,2,24,11],[12,1,12,12],[20,2,20,11],[18,1,18,3],[14,1,14,3],[14,5,14,6],[18,5,18,6],[14,8,14,9],[14,10,14,11],[16,1,16,3],[16,5,16,6],[10,3,10,7],[0,1,0,12],[2,1,2,12],[4,1,4,2],[8,10,8,11],[10,8,10,9],[4,3,4,7],[4,10,4,12],[6,1,6,2],[6,3,6,7],[6,10,6,12],[4,8,4,9],[6,8,6,9],[8,8,8,9],[10,10,10,12],[8,1,8,2],[8,3,8,7]]}
[null,"Solicitud de Cotización para Servicios Financieros Tipo 4"]
[null,"Versión 2","2018-10-29"]
[null,"Información de la Entidad Compradora"]
[]
[null,"Nombre de la Entidad:",null,null,null,null,null,null,"NIT:"]
[]
[null,"Dirección de la Entidad:",null,null,null,null,null,null,"Correo de contacto:"]
[]
[null,"Municipio / Dirección:",null,null,null,null,null,null,"Teléfono de contacto:"]
[]
[null,"Fecha Creación del evento:",null,null,null,null,null,null,"Nombre funcionario Comprador:",null,null,null,null,null,null,null,null,null,"Cuenta de Ahorro Electrónica"]
[null,null,null,null,null,null,null,null,null,null,null,null,null,null,null,null,null,null,"Cuenta Tradicional"]
[null,"Solicitud de Cotización",null,null,null,null,null,null,null,null,null,null,null,null,null,null,null,null,"Deposito electrónico"]
[null,null,null,null,null,null,null,null,null,null,null,null,null,null,null,null,null,null,"Cuentas de Ahorro de Tramite Simplificado"]
[null,"Fecha estimada de inicio OC:",null,null,null,"Fecha de vencimiento OC:",null,null,"Plazo máximo de  enrolamiento:"]
[]
[null,"Frecuencia estimada de pagos al año (meses):",null,null,null,"Valor estimado a pagar en cada frecuencia:"]
[]
[null,"Valor estimado máximo a pagar a cada beneficiario:",null,null,null,"Presupuesto máximo de la entidad compradora:"]
[]
[null,null,"Plazo máximo Enrolamiento:"]
[]
[]
[]
[]
[]
[null,null,"Observaciones generales:"]
[]
[]
[]
[]
[]
[null,"Paquete de Servicios"]
[]
[null,null,null,null,null,null,null,null,"Filas a agregar o eliminar:"]
[null,null,null,"Máximo de filas:",1000000,null,null,null,1]
[null,null,null,null,null,null,null,null,"Vinculación del Beneficiario"]
[null,"Item","Código DANE","Departamento","Municipio","Número Estimado de Beneficiarios","Cantidad de Transferencias por Programa","Total cantidad estimada de transferencia","Cuenta de Ahorro Electrónica","Cuenta Tradicional","Deposito electrónico","Cuentas de Ahorro de Tramite Simplificado","Giro"]
[null,1,null,null,null,null,null,{"$f":"F39*G39","v":0}]
[]
[null,null,"Cantidad de transferencias: ",null,1,null,"Total transferencias: ",{"$f":"SUM(H27:H39)","v":0}]
[]
[null,"Tarifas adicionales para los Beneficiarios"]
[null,"No","Nombre del servicio",null,null,"Descripción"]
[null,1]
[]
[null,null,null,"Filas a agregar o eliminar tarifas:"]
[null,null,null,1]

{"sheet":"Listas","index":1,"n_rows":126,"n_cols":34,"rows_kept":126,"cut":false,"hidden":true,"merged":[]}
["DPTO","AMAZONAS","ANTIOQUIA","ARAUCA","ATLANTICO","BOGOTA","BOLIVAR","BOYACA","CALDAS","CAQUETA","CASANARE","CAUCA","CESAR","CHOCO","CORDOBA","CUNDINAMARCA","GUAINIA","GUAVIARE","HUILA","LAGUAJIRA","MAGDALENA","META","N.DESANTANDER","NARIÑO","PUTUMAYO","QUINDIO","RISARALDA","SANANDRES","SANTANDER","SUCRE","TOLIMA","VALLEDELCAUCA","VAUPES","VICHADA"]
["AMAZONAS","EL ENCANTO","ABEJORRAL","ARAUCA","BARANOA","BOGOTA, D.C.","ACHI","ALMEIDA","AGUADAS","ALBANIA","AGUAZUL","ALMAGUER","AGUACHICA","ACANDI","AYAPEL","AGUA DE DIOS","BARRANCO MINAS","CALAMAR","ACEVEDO","ALBANIA","ALGARROBO","ACACIAS","ABREGO","ALBAN","COLON","ARMENIA","APIA","PROVIDENCIA","AGUADA","BUENAVISTA","ALPUJARRA","ALCALA","CARURU","CUMARIBO"]
["ANTIOQUIA","LA CHORRERA","ABRIAQUI","ARAUQUITA","BARRANQUILLA",null,"ALTOS DEL ROSARIO","AQUITANIA","ANSERMA","BELEN DE LOS ANDAQUIES","CHAMEZA","ARGELIA","AGUSTIN CODAZZI","ALTO BAUDO","BUENAVISTA","ALBAN","CACAHUAL","EL RETORNO","AGRADO","BARRANCAS","ARACATACA","BARRANCA DE UPIA","ARBOLEDAS","ALDANA","LEGUIZAMO","BUENAVISTA","BALBOA","SAN ANDRES","ALBANIA","CAIMITO","ALVARADO","ANDALUCIA","MITU","LA PRIMAVERA"]
["ARAUCA","LA PEDRERA","ALEJANDRIA","CRAVO NORTE","CAMPO DE LA CRUZ",null,"ARENAL","ARCABUCO","ARANZAZU","CARTAGENA DEL CHAIRA","HATO COROZAL","BALBOA","ASTREA","ATRATO","CANALETE","ANAPOIMA","INIRIDA","MIRAFLORES","AIPE","DIBULLA","ARIGUANI","CABUYARO","BOCHALEMA","ANCUYA","MOCOA","CALARCA","BELEN DE UMBRIA",null,"ARATOCA","CHALAN","AMBALEMA","ANSERMANUEVO","PACOA","PUERTO CARREÑO"]
["ATLANTICO","LA VICTORIA","AMAGA","FORTUL","CANDELARIA",null,"ARJONA","BELEN","BELALCAZAR","CURILLO","LA SALINA","BOLIVAR","BECERRIL","BAGADO","CERETE","ANOLAIMA","LA GUADALUPE","SAN JOSE DEL GUAVIARE","ALGECIRAS","DISTRACCION","CERRO SAN ANTONIO","CASTILLA LA NUEVA","BUCARASICA","ARBOLEDA","ORITO","CIRCASIA","DOSQUEBRADAS",null,"BARBOSA","COLOSO","ANZOATEGUI","ARGELIA","PAPUNAUA","SANTA ROSALIA"]
["BOGOTA","LETICIA","AMALFI","PUERTO RONDON","GALAPA",null,"ARROYOHONDO","BERBEO","CHINCHINA","EL DONCELLO","MANI","BUENOS AIRES","BOSCONIA","BAHIA SOLANO","CHIMA","APULO","MAPIRIPANA",null,"ALTAMIRA","EL MOLINO","CHIBOLO","CUBARRAL","CACHIRA","BARBACOAS","PUERTO ASIS","CORDOBA","GUATICA",null,"BARICHARA","COROZAL","ARMERO","BOLIVAR","TARAIRA"]
["BOLIVAR","MIRITI - PARANA","ANDES","SARAVENA","JUAN DE ACOSTA",null,"BARRANCO DE LOBA","BETEITIVA","FILADELFIA","EL PAUJIL","MONTERREY","CAJIBIO","CHIMICHAGUA","BAJO BAUDO","CHINU","ARBELAEZ","MORICHAL",null,"BARAYA","FONSECA","CIENAGA","CUMARAL","CACOTA","BELEN","PUERTO CAICEDO","FILANDIA","LA CELIA",null,"BARRANCABERMEJA","COVEÑAS","ATACO","BUENAVENTURA","YAVARATE"]
["BOYACA","PUERTO ALEGRIA","ANGELOPOLIS","TAME","LURUACO",null,"CALAMAR","BOAVITA","LA DORADA","FLORENCIA","NUNCHIA","CALDONO","CHIRIGUANA","BOJAYA","CIENAGA DE ORO","BELTRAN","PANA PANA",null,"CAMPOALEGRE","HATONUEVO","CONCORDIA","EL CALVARIO","CHINACOTA","BUESACO","PUERTO GUZMAN","GENOVA","LA VIRGINIA",null,"BETULIA","EL ROBLE","CAJAMARCA","BUGALAGRANDE"]
["CALDAS","PUERTO ARICA","ANGOSTURA",null,"MALAMBO",null,"CANTAGALLO","BOYACA","LA MERCED","LA MONTAÑITA","OROCUE","CALOTO","CURUMANI","CARMEN DEL DARIEN","COTORRA","BITUIMA","PUERTO COLOMBIA",null,"COLOMBIA","LA JAGUA DEL PILAR","EL BANCO","EL CASTILLO","CHITAGA","CHACHAGsI","SAN FRANCISCO","LA TEBAIDA","MARSELLA",null,"BOLIVAR","GALERAS","CARMEN DE APICALA","CAICEDONIA"]
["CAQUETA","PUERTO NARIÑO","ANORI",null,"MANATI",null,"CARTAGENA","BRICEÑO","MANIZALES","MILAN","PAZ DE ARIPORO","CORINTO","EL COPEY","CERTEGUI","LA APARTADA","BOJACA","SAN FELIPE",null,"ELIAS","MAICAO","EL PIÑON","EL DORADO","CONVENCION","COLON","SAN MIGUEL","MONTENEGRO","MISTRATO",null,"BUCARAMANGA","GUARANDA","CASABIANCA","CALI"]
["CASANARE","PUERTO SANTANDER","ANZA",null,"PALMAR DE VARELA",null,"CICUCO","BUENAVISTA","MANZANARES","MORELIA","PORE","EL TAMBO","EL PASO","CONDOTO","LORICA","CABRERA",null,null,"GARZON","MANAURE","EL RETEN","FUENTE DE ORO","CUCUTA","CONSACA","SANTIAGO","PIJAO","PEREIRA",null,"CABRERA","LA UNION","CHAPARRAL","CALIMA"]
["CAUCA","TARAPACA","APARTADO",null,"PIOJO",null,"CLEMENCIA","BUSBANZA","MARMATO","PUERTO RICO","RECETOR","FLORENCIA","GAMARRA","EL CANTON DEL SAN PABLO","LOS CORDOBAS","CACHIPAY",null,null,"GIGANTE","RIOHACHA","FUNDACION","GRANADA","CUCUTILLA","CONTADERO","SIBUNDOY","QUIMBAYA","PUEBLO RICO",null,"CALIFORNIA","LOS PALMITOS","COELLO","CANDELARIA"]
["CESAR",null,"ARBOLETES",null,"POLONUEVO",null,"CORDOBA","CALDAS","MARQUETALIA","SAN JOSE DEL FRAGUA","SABANALARGA","GUACHENE","GONZALEZ","EL CARMEN DE ATRATO","MOMIL","CAJICA",null,null,"GUADALUPE","SAN JUAN DEL CESAR","GUAMAL","GUAMAL","DURANIA","CORDOBA","VALLE DEL GUAMUEZ","SALENTO","QUINCHIA",null,"CAPITANEJO","MAJAGUAL","COYAIMA","CARTAGO"]
["CHOCO",null,"ARGELIA",null,"PONEDERA",null,"EL CARMEN DE BOLIVAR","CAMPOHERMOSO","MARULANDA","SAN VICENTE DEL CAGUAN","SACAMA","GUAPI","LA GLORIA","EL LITORAL DEL SAN JUAN","MONTELIBANO","CAPARRAPI",null,null,"HOBO","URIBIA","NUEVA GRANADA","LA MACARENA","EL CARMEN","CUASPUD","VILLAGARZON",null,"SANTA ROSA DE CABAL",null,"CARCASI","MORROA","CUNDAY","DAGUA"]
["CORDOBA",null,"ARMENIA",null,"PUERTO COLOMBIA",null,"EL GUAMO","CERINZA","NEIRA","SOLANO","SAN LUIS DE PALENQUE","INZA","LA JAGUA DE IBIRICO","ISTMINA","MONTERIA","CAQUEZA",null,null,"IQUIRA","URUMITA","PEDRAZA","LEJANIAS","EL TARRA","CUMBAL",null,null,"SANTUARIO",null,"CEPITA","OVEJAS","DOLORES","EL AGUILA"]
["CUNDINAMARCA",null,"BARBOSA",null,"REPELON",null,"EL PEÑON","CHINAVITA","NORCASIA","SOLITA","TAMARA","JAMBALO","LA PAZ","JURADO","MOÑITOS","CARMEN DE CARUPA",null,null,"ISNOS","VILLANUEVA","PIJIÑO DEL CARMEN","MAPIRIPAN","EL ZULIA","CUMBITARA",null,null,null,null,"CERRITO","PALMITO","ESPINAL","EL CAIRO"]
["GUAINIA",null,"BELLO",null,"SABANAGRANDE",null,"HATILLO DE LOBA","CHIQUINQUIRA","PACORA","VALPARAISO","TAURAMENA","LA SIERRA","MANAURE","LLORO","PLANETA RICA","CHAGUANI",null,null,"LA ARGENTINA",null,"PIVIJAY","MESETAS","GRAMALOTE","EL CHARCO",null,null,null,null,"CHARALA","SAMPUES","FALAN","EL CERRITO"]
["GUAVIARE",null,"BELMIRA",null,"SABANALARGA",null,"MAGANGUE","CHIQUIZA","PALESTINA",null,"TRINIDAD","LA VEGA","PAILITAS","MEDIO ATRATO","PUEBLO NUEVO","CHIA",null,null,"LA PLATA",null,"PLATO","PUERTO CONCORDIA","HACARI","EL PEÑOL",null,null,null,null,"CHARTA","SAN BENITO ABAD","FLANDES","EL DOVIO"]
["HUILA",null,"BETANIA",null,"SANTA LUCIA",null,"MAHATES","CHISCAS","PENSILVANIA",null,"VILLANUEVA","LOPEZ","PELAYA","MEDIO BAUDO","PUERTO ESCONDIDO","CHIPAQUE",null,null,"NATAGA",null,"PUEBLOVIEJO","PUERTO GAITAN","HERRAN","EL ROSARIO",null,null,null,null,"CHIMA","SAN JUAN DE BETULIA","FRESNO","FLORIDA"]
["LA GUAJIRA",null,"BETULIA",null,"SANTO TOMAS",null,"MARGARITA","CHITA","RIOSUCIO",null,"YOPAL","MERCADERES","PUEBLO BELLO","MEDIO SAN JUAN","PUERTO LIBERTADOR","CHOACHI",null,null,"NEIVA",null,"REMOLINO","PUERTO LLERAS","LA ESPERANZA","EL TABLON DE GOMEZ",null,null,null,null,"CHIPATA","SAN LUIS DE SINCE","GUAMO","GINEBRA"]
["MAGDALENA",null,"BRICEÑO",null,"SOLEDAD",null,"MARIA LA BAJA","CHITARAQUE","RISARALDA",null,null,"MIRANDA","RIO DE ORO","NOVITA","PURISIMA","CHOCONTA",null,null,"OPORAPA",null,"SABANAS DE SAN ANGEL","PUERTO LOPEZ","LA PLAYA","EL TAMBO",null,null,null,null,"CIMITARRA","SAN MARCOS","HERVEO","GUACARI"]
["META",null,"BURITICA",null,"SUAN",null,"MOMPOS","CHIVATA","SALAMINA",null,null,"MORALES","SAN ALBERTO","NUQUI","SAHAGUN","COGUA",null,null,"PAICOL",null,"SALAMINA","PUERTO RICO","LABATECA","FRANCISCO PIZARRO",null,null,null,null,"CONCEPCION","SAN ONOFRE","HONDA","GUADALAJARA DE BUGA"]
["N. DE SANTANDER",null,"CACERES",null,"TUBARA",null,"MONTECRISTO","CHIVOR","SAMANA",null,null,"PADILLA","SAN DIEGO","QUIBDO","SAN ANDRES SOTAVENTO","COTA",null,null,"PALERMO",null,"SAN SEBASTIAN DE BUENAVISTA","RESTREPO","LOS PATIOS","FUNES",null,null,null,null,"CONFINES","SAN PEDRO","IBAGUE","JAMUNDI"]
["NARIÑO",null,"CAICEDO",null,"USIACURI",null,"MORALES","CIENEGA","SAN JOSE",null,null,"PAEZ","SAN MARTIN","RIO IRO","SAN ANTERO","CUCUNUBA",null,null,"PALESTINA",null,"SAN ZENON","SAN CARLOS DE GUAROA","LOURDES","GUACHUCAL",null,null,null,null,"CONTRATACION","SANTIAGO DE TOLU","ICONONZO","LA CUMBRE"]
["PUTUMAYO",null,"CALDAS",null,null,null,"NOROSI","COMBITA","SUPIA",null,null,"PATIA","TAMALAMEQUE","RIO QUITO","SAN BERNARDO DEL VIENTO","EL COLEGIO",null,null,"PITAL",null,"SANTA ANA","SAN JUAN DE ARAMA","MUTISCUA","GUAITARILLA",null,null,null,null,"COROMORO","SINCELEJO","LERIDA","LA UNION"]
["QUINDIO",null,"CAMPAMENTO",null,null,null,"PINILLOS","COPER","VICTORIA",null,null,"PIAMONTE","VALLEDUPAR","RIOSUCIO","SAN CARLOS","EL PEÑON",null,null,"PITALITO",null,"SANTA BARBARA DE PINTO","SAN JUANITO","OCAÑA","GUALMATAN",null,null,null,null,"CURITI","SUCRE","LIBANO","LA VICTORIA"]
["RISARALDA",null,"CAÑASGORDAS",null,null,null,"REGIDOR","CORRALES","VILLAMARIA",null,null,"PIENDAMO",null,"SAN JOSE DEL PALMAR","SAN PELAYO","EL ROSAL",null,null,"RIVERA",null,"SANTA MARTA","SAN MARTIN","PAMPLONA","ILES",null,null,null,null,"EL CARMEN DE CHUCURI","TOLU VIEJO","MARIQUITA","OBANDO"]
["SAN ANDRES",null,"CARACOLI",null,null,null,"RIO VIEJO","COVARACHIA","VITERBO",null,null,"POPAYAN",null,"SIPI","TIERRALTA","FACATATIVA",null,null,"SALADOBLANCO",null,"SITIONUEVO","URIBE","PAMPLONITA","IMUES",null,null,null,null,"EL GUACAMAYO",null,"MELGAR","PALMIRA"]
["SANTANDER",null,"CARAMANTA",null,null,null,"SAN CRISTOBAL","CUBARA",null,null,null,"PUERTO TEJADA",null,"TADO","VALENCIA","FOMEQUE",null,null,"SAN AGUSTIN",null,"TENERIFE","VILLAVICENCIO","PUERTO SANTANDER","IPIALES",null,null,null,null,"EL PEÑON",null,"MURILLO","PRADERA"]
["SUCRE",null,"CAREPA",null,null,null,"SAN ESTANISLAO","CUCAITA",null,null,null,"PURACE",null,"UNGUIA","SAN JOSE DE URE","FOSCA",null,null,"SANTA MARIA",null,"ZAPAYAN","VISTAHERMOSA","RAGONVALIA","LA CRUZ",null,null,null,null,"EL PLAYON",null,"NATAGAIMA","RESTREPO"]
["TOLIMA",null,"CAROLINA",null,null,null,"SAN FERNANDO","CUITIVA",null,null,null,"ROSAS",null,"UNION PANAMERICANA","TUCHIN","FUNZA",null,null,"SUAZA",null,"ZONA BANANERA",null,"SALAZAR","LA FLORIDA",null,null,null,null,"ENCINO",null,"ORTEGA","RIOFRIO"]
["VALLE DEL CAUCA",null,"CAUCASIA",null,null,null,"SAN JACINTO","DUITAMA",null,null,null,"SAN SEBASTIAN",null,null,null,"FUQUENE",null,null,"TARQUI",null,null,null,"SAN CALIXTO","LA LLANADA",null,null,null,null,"ENCISO",null,"PALOCABILDO","ROLDANILLO"]
["VAUPES",null,"CHIGORODO",null,null,null,"SAN JACINTO DEL CAUCA","EL COCUY",null,null,null,"SANTA ROSA",null,null,null,"FUSAGASUGA",null,null,"TELLO",null,null,null,"SAN CAYETANO","LA TOLA",null,null,null,null,"FLORIAN",null,"PIEDRAS","SAN PEDRO"]
["VICHADA",null,"CISNEROS",null,null,null,"SAN JUAN NEPOMUCENO","EL ESPINO",null,null,null,"SANTANDER DE QUILICHAO",null,null,null,"GACHALA",null,null,"TERUEL",null,null,null,"SANTIAGO","LA UNION",null,null,null,null,"FLORIDABLANCA",null,"PLANADAS","SEVILLA"]
[null,null,"CIUDAD BOLIVAR",null,null,null,"SAN MARTIN DE LOBA","FIRAVITOBA",null,null,null,"SILVIA",null,null,null,"GACHANCIPA",null,null,"TESALIA",null,null,null,"SARDINATA","LEIVA",null,null,null,null,"GALAN",null,"PRADO","TORO"]
[null,null,"COCORNA",null,null,null,"SAN PABLO","FLORESTA",null,null,null,"SOTARA",null,null,null,"GACHETA",null,null,"TIMANA",null,null,null,"SILOS","LINARES",null,null,null,null,"GAMBITA",null,"PURIFICACION","TRUJILLO"]
[null,null,"CONCEPCION",null,null,null,"SANTA CATALINA","GACHANTIVA",null,null,null,"SUAREZ",null,null,null,"GAMA",null,null,"VILLAVIEJA",null,null,null,"TEORAMA","LOS ANDES",null,null,null,null,"GIRON",null,"RIOBLANCO","TULUA"]
[null,null,"CONCORDIA",null,null,null,"SANTA ROSA","GAMEZA",null,null,null,"SUCRE",null,null,null,"GIRARDOT",null,null,"YAGUARA",null,null,null,"TIBU","MAGsI",null,null,null,null,"GsEPSA",null,"RONCESVALLES","ULLOA"]
[null,null,"COPACABANA",null,null,null,"SANTA ROSA DEL SUR","GARAGOA",null,null,null,"TIMBIO",null,null,null,"GRANADA",null,null,null,null,null,null,"TOLEDO","MALLAMA",null,null,null,null,"GUACA",null,"ROVIRA","VERSALLES"]
[null,null,"DABEIBA",null,null,null,"SIMITI","GsICAN",null,null,null,"TIMBIQUI",null,null,null,"GUACHETA",null,null,null,null,null,null,"VILLA CARO","MOSQUERA",null,null,null,null,"GUADALUPE",null,"SALDAÑA","VIJES"]
[null,null,"DON MATIAS",null,null,null,"SOPLAVIENTO","GUACAMAYAS",null,null,null,"TORIBIO",null,null,null,"GUADUAS",null,null,null,null,null,null,"VILLA DEL ROSARIO","NARIÑO",null,null,null,null,"GUAPOTA",null,"SAN ANTONIO","YOTOCO"]
[null,null,"EBEJICO",null,null,null,"TALAIGUA NUEVO","GUATEQUE",null,null,null,"TOTORO",null,null,null,"GUASCA",null,null,null,null,null,null,null,"OLAYA HERRERA",null,null,null,null,"GUAVATA",null,"SAN LUIS","YUMBO"]
[null,null,"EL BAGRE",null,null,null,"TIQUISIO","GUAYATA",null,null,null,"VILLA RICA",null,null,null,"GUATAQUI",null,null,null,null,null,null,null,"OSPINA",null,null,null,null,"HATO",null,"SANTA ISABEL","ZARZAL"]
[null,null,"EL CARMEN DE VIBORAL",null,null,null,"TURBACO","IZA",null,null,null,null,null,null,null,"GUATAVITA",null,null,null,null,null,null,null,"PASTO",null,null,null,null,"JESUS MARIA",null,"SUAREZ"]
[null,null,"EL SANTUARIO",null,null,null,"TURBANA","JENESANO",null,null,null,null,null,null,null,"GUAYABAL DE SIQUIMA",null,null,null,null,null,null,null,"POLICARPA",null,null,null,null,"JORDAN",null,"VALLE DE SAN JUAN"]
[null,null,"ENTRERRIOS",null,null,null,"VILLANUEVA","JERICO",null,null,null,null,null,null,null,"GUAYABETAL",null,null,null,null,null,null,null,"POTOSI",null,null,null,null,"LA BELLEZA",null,"VENADILLO"]
[null,null,"ENVIGADO",null,null,null,"ZAMBRANO","LA CAPILLA",null,null,null,null,null,null,null,"GUTIERREZ",null,null,null,null,null,null,null,"PROVIDENCIA",null,null,null,null,"LA PAZ",null,"VILLAHERMOSA"]
[null,null,"FREDONIA",null,null,null,null,"LA UVITA",null,null,null,null,null,null,null,"JERUSALEN",null,null,null,null,null,null,null,"PUERRES",null,null,null,null,"LANDAZURI",null,"VILLARRICA"]
[null,null,"FRONTINO",null,null,null,null,"LA VICTORIA",null,null,null,null,null,null,null,"JUNIN",null,null,null,null,null,null,null,"PUPIALES",null,null,null,null,"LEBRIJA"]
[null,null,"GIRALDO",null,null,null,null,"LABRANZAGRANDE",null,null,null,null,null,null,null,"LA CALERA",null,null,null,null,null,null,null,"RICAURTE",null,null,null,null,"LOS SANTOS"]
[null,null,"GIRARDOTA",null,null,null,null,"MACANAL",null,null,null,null,null,null,null,"LA MESA",null,null,null,null,null,null,null,"ROBERTO PAYAN",null,null,null,null,"MACARAVITA"]
[null,null,"GOMEZ PLATA",null,null,null,null,"MARIPI",null,null,null,null,null,null,null,"LA PALMA",null,null,null,null,null,null,null,"SAMANIEGO",null,null,null,null,"MALAGA"]
[null,null,"GRANADA",null,null,null,null,"MIRAFLORES",null,null,null,null,null,null,null,"LA PEÑA",null,null,null,null,null,null,null,"SAN ANDRES DE TUMACO",null,null,null,null,"MATANZA"]
[null,null,"GUADALUPE",null,null,null,null,"MONGUA",null,null,null,null,null,null,null,"LA VEGA",null,null,null,null,null,null,null,"SAN BERNARDO",null,null,null,null,"MOGOTES"]
[null,null,"GUARNE",null,null,null,null,"MONGUI",null,null,null,null,null,null,null,"LENGUAZAQUE",null,null,null,null,null,null,null,"SAN LORENZO",null,null,null,null,"MOLAGAVITA"]
[null,null,"GUATAPE",null,null,null,null,"MONIQUIRA",null,null,null,null,null,null,null,"MACHETA",null,null,null,null,null,null,null,"SAN PABLO",null,null,null,null,"OCAMONTE"]
[null,null,"HELICONIA",null,null,null,null,"MOTAVITA",null,null,null,null,null,null,null,"MADRID",null,null,null,null,null,null,null,"SAN PEDRO DE CARTAGO",null,null,null,null,"OIBA"]
[null,null,"HISPANIA",null,null,null,null,"MUZO",null,null,null,null,null,null,null,"MANTA",null,null,null,null,null,null,null,"SANDONA",null,null,null,null,"ONZAGA"]
[null,null,"ITAGUI",null,null,null,null,"NOBSA",null,null,null,null,null,null,null,"MEDINA",null,null,null,null,null,null,null,"SANTA BARBARA",null,null,null,null,"PALMAR"]
[null,null,"ITUANGO",null,null,null,null,"NUEVO COLON",null,null,null,null,null,null,null,"MOSQUERA",null,null,null,null,null,null,null,"SANTACRUZ",null,null,null,null,"PALMAS DEL SOCORRO"]
[null,null,"JARDIN",null,null,null,null,"OICATA",null,null,null,null,null,null,null,"NARIÑO",null,null,null,null,null,null,null,"SAPUYES",null,null,null,null,"PARAMO"]
[null,null,"JERICO",null,null,null,null,"OTANCHE",null,null,null,null,null,null,null,"NEMOCON",null,null,null,null,null,null,null,"TAMINANGO",null,null,null,null,"PIEDECUESTA"]
[null,null,"LA CEJA",null,null,null,null,"PACHAVITA",null,null,null,null,null,null,null,"NILO",null,null,null,null,null,null,null,"TANGUA",null,null,null,null,"PINCHOTE"]
[null,null,"LA ESTRELLA",null,null,null,null,"PAEZ",null,null,null,null,null,null,null,"NIMAIMA",null,null,null,null,null,null,null,"TUQUERRES",null,null,null,null,"PUENTE NACIONAL"]
[null,null,"LA PINTADA",null,null,null,null,"PAIPA",null,null,null,null,null,null,null,"NOCAIMA",null,null,null,null,null,null,null,"YACUANQUER",null,null,null,null,"PUERTO PARRA"]
[null,null,"LA UNION",null,null,null,null,"PAJARITO",null,null,null,null,null,null,null,"PACHO",null,null,null,null,null,null,null,null,null,null,null,null,"PUERTO WILCHES"]
[null,null,"LIBORINA",null,null,null,null,"PANQUEBA",null,null,null,null,null,null,null,"PAIME",null,null,null,null,null,null,null,null,null,null,null,null,"RIONEGRO"]
[null,null,"MACEO",null,null,null,null,"PAUNA",null,null,null,null,null,null,null,"PANDI",null,null,null,null,null,null,null,null,null,null,null,null,"SABANA DE TORRES"]
[null,null,"MARINILLA",null,null,null,null,"PAYA",null,null,null,null,null,null,null,"PARATEBUENO",null,null,null,null,null,null,null,null,null,null,null,null,"SAN ANDRES"]
[null,null,"MEDELLIN",null,null,null,null,"PAZ DE RIO",null,null,null,null,null,null,null,"PASCA",null,null,null,null,null,null,null,null,null,null,null,null,"SAN BENITO"]
[null,null,"MONTEBELLO",null,null,null,null,"PESCA",null,null,null,null,null,null,null,"PUERTO SALGAR",null,null,null,null,null,null,null,null,null,null,null,null,"SAN GIL"]
[null,null,"MURINDO",null,null,null,null,"PISBA",null,null,null,null,null,null,null,"PULI",null,null,null,null,null,null,null,null,null,null,null,null,"SAN JOAQUIN"]
[null,null,"MUTATA",null,null,null,null,"PUERTO BOYACA",null,null,null,null,null,null,null,"QUEBRADANEGRA",null,null,null,null,null,null,null,null,null,null,null,null,"SAN JOSE DE MIRANDA"]
[null,null,"NARIÑO",null,null,null,null,"QUIPAMA",null,null,null,null,null,null,null,"QUETAME",null,null,null,null,null,null,null,null,null,null,null,null,"SAN MIGUEL"]
[null,null,"NECHI",null,null,null,null,"RAMIRIQUI",null,null,null,null,null,null,null,"QUIPILE",null,null,null,null,null,null,null,null,null,null,null,null,"SAN VICENTE DE CHUCURI"]
[null,null,"NECOCLI",null,null,null,null,"RAQUIRA",null,null,null,null,null,null,null,"RICAURTE",null,null,null,null,null,null,null,null,null,null,null,null,"SANTA BARBARA"]
[null,null,"OLAYA",null,null,null,null,"RONDON",null,null,null,null,null,null,null,"SAN ANTONIO DEL TEQUENDAMA",null,null,null,null,null,null,null,null,null,null,null,null,"SANTA HELENA DEL OPON"]
[null,null,"PEÐOL",null,null,null,null,"SABOYA",null,null,null,null,null,null,null,"SAN BERNARDO",null,null,null,null,null,null,null,null,null,null,null,null,"SIMACOTA"]
[null,null,"PEQUE",null,null,null,null,"SACHICA",null,null,null,null,null,null,null,"SAN CAYETANO",null,null,null,null,null,null,null,null,null,null,null,null,"SOCORRO"]
[null,null,"PUEBLORRICO",null,null,null,null,"SAMACA",null,null,null,null,null,null,null,"SAN FRANCISCO",null,null,null,null,null,null,null,null,null,null,null,null,"SUAITA"]
[null,null,"PUERTO BERRIO",null,null,null,null,"SAN EDUARDO",null,null,null,null,null,null,null,"SAN JUAN DE RIO SECO",null,null,null,null,null,null,null,null,null,null,null,null,"SUCRE"]
[null,null,"PUERTO NARE",null,null,null,null,"SAN JOSE DE PARE",null,null,null,null,null,null,null,"SASAIMA",null,null,null,null,null,null,null,null,null,null,null,null,"SURATA"]
[null,null,"PUERTO TRIUNFO",null,null,null,null,"SAN LUIS DE GACENO",null,null,null,null,null,null,null,"SESQUILE",null,null,null,null,null,null,null,null,null,null,null,null,"TONA"]
[null,null,"REMEDIOS",null,null,null,null,"SAN MATEO",null,null,null,null,null,null,null,"SIBATE",null,null,null,null,null,null,null,null,null,null,null,null,"VALLE DE SAN JOSE"]
[null,null,"RETIRO",null,null,null,null,"SAN MIGUEL DE SEMA",null,null,null,null,null,null,null,"SILVANIA",null,null,null,null,null,null,null,null,null,null,null,null,"VELEZ"]
[null,null,"RIONEGRO",null,null,null,null,"SAN PABLO DE BORBUR",null,null,null,null,null,null,null,"SIMIJACA",null,null,null,null,null,null,null,null,null,null,null,null,"VETAS"]
[null,null,"SABANALARGA",null,null,null,null,"SANTA MARIA",null,null,null,null,null,null,null,"SOACHA",null,null,null,null,null,null,null,null,null,null,null,null,"VILLANUEVA"]
[null,null,"SABANETA",null,null,null,null,"SANTA ROSA DE VITERBO",null,null,null,null,null,null,null,"SOPO",null,null,null,null,null,null,null,null,null,null,null,null,"ZAPATOCA"]
[null,null,"SALGAR",null,null,null,null,"SANTA SOFIA",null,null,null,null,null,null,null,"SUBACHOQUE"]
[null,null,"SAN ANDRES DE CUERQUIA",null,null,null,null,"SANTANA",null,null,null,null,null,null,null,"SUESCA"]
[null,null,"SAN CARLOS",null,null,null,null,"SATIVANORTE",null,null,null,null,null,null,null,"SUPATA"]
[null,null,"SAN FRANCISCO",null,null,null,null,"SATIVASUR",null,null,null,null,null,null,null,"SUSA"]
[null,null,"SAN JERONIMO",null,null,null,null,"SIACHOQUE",null,null,null,null,null,null,null,"SUTATAUSA"]
[null,null,"SAN JOSE DE LA MONTAÑA",null,null,null,null,"SOATA",null,null,null,null,null,null,null,"TABIO"]
[null,null,"SAN JUAN DE URABA",null,null,null,null,"SOCHA",null,null,null,null,null,null,null,"TAUSA"]
[null,null,"SAN LUIS",null,null,null,null,"SOCOTA",null,null,null,null,null,null,null,"TENA"]
[null,null,"SAN PEDRO",null,null,null,null,"SOGAMOSO",null,null,null,null,null,null,null,"TENJO"]
[null,null,"SAN PEDRO DE URABA",null,null,null,null,"SOMONDOCO",null,null,null,null,null,null,null,"TIBACUY"]
[null,null,"SAN RAFAEL",null,null,null,null,"SORA",null,null,null,null,null,null,null,"TIBIRITA"]
[null,null,"SAN ROQUE",null,null,null,null,"SORACA",null,null,null,null,null,null,null,"TOCAIMA"]
[null,null,"SAN VICENTE",null,null,null,null,"SOTAQUIRA",null,null,null,null,null,null,null,"TOCANCIPA"]
[null,null,"SANTA BARBARA",null,null,null,null,"SUSACON",null,null,null,null,null,null,null,"TOPAIPI"]
[null,null,"SANTA ROSA DE OSOS",null,null,null,null,"SUTAMARCHAN",null,null,null,null,null,null,null,"UBALA"]
[null,null,"SANTAFE DE ANTIOQUIA",null,null,null,null,"SUTATENZA",null,null,null,null,null,null,null,"UBAQUE"]
[null,null,"SANTO DOMINGO",null,null,null,null,"TASCO",null,null,null,null,null,null,null,"UNE"]
[null,null,"SEGOVIA",null,null,null,null,"TENZA",null,null,null,null,null,null,null,"UTICA"]
[null,null,"SONSON",null,null,null,null,"TIBANA",null,null,null,null,null,null,null,"VENECIA"]
[null,null,"SOPETRAN",null,null,null,null,"TIBASOSA",null,null,null,null,null,null,null,"VERGARA"]
[null,null,"TAMESIS",null,null,null,null,"TINJACA",null,null,null,null,null,null,null,"VIANI"]
[null,null,"TARAZA",null,null,null,null,"TIPACOQUE",null,null,null,null,null,null,null,"VILLA DE SAN DIEGO DE UBATE"]
[null,null,"TARSO",null,null,null,null,"TOCA",null,null,null,null,null,null,null,"VILLAGOMEZ"]
[null,null,"TITIRIBI",null,null,null,null,"TOGsI",null,null,null,null,null,null,null,"VILLAPINZON"]
[null,null,"TOLEDO",null,null,null,null,"TOPAGA",null,null,null,null,null,null,null,"VILLETA"]
[null,null,"TURBO",null,null,null,null,"TOTA",null,null,null,null,null,null,null,"VIOTA"]
[null,null,"URAMITA",null,null,null,null,"TUNJA",null,null,null,null,null,null,null,"YACOPI"]
[null,null,"URRAO",null,null,null,null,"TUNUNGUA",null,null,null,null,null,null,null,"ZIPACON"]
[null,null,"VALDIVIA",null,null,null,null,"TURMEQUE",null,null,null,null,null,null,null,"ZIPAQUIRA"]
[null,null,"VALPARAISO",null,null,null,null,"TUTA"]
[null,null,"VEGACHI",null,null,null,null,"TUTAZA"]
[null,null,"VENECIA",null,null,null,null,"UMBITA"]
[null,null,"VIGIA DEL FUERTE",null,null,null,null,"VENTAQUEMADA"]
[null,null,"YALI",null,null,null,null,"VILLA DE LEYVA"]
[null,null,"YARUMAL",null,null,null,null,"VIRACACHA"]
[null,null,"YOLOMBO",null,null,null,null,"ZETAQUIRA"]
[null,null,"YONDO"]
[null,null,"ZARAGOZA"]

{"sheet":"Cotización","index":2,"n_rows":27,"n_cols":18,"rows_kept":27,"cut":false,"hidden":false,"merged":[[26,2,26,4],[26,5,26,7],[25,2,25,4],[25,5,25,7],[22,8,22,9],[21,2,21,3],[24,1,24,8],[0,1,0,12],[4,1,4,2],[4,3,4,7],[17,10,18,10],[13,1,13,3],[17,11,17,16],[17,1,18,1],[17,2,18,2],[17,3,18,3],[17,4,18,4],[17,5,18,5],[2,1,2,10],[13,5,13,6],[7,1,7,10],[17,17,18,17],[15,1,15,17],[9,1,9,3],[9,5,9,6],[11,1,11,3],[11,5,11,6],[17,6,18,6],[17,7,18,7],[17,9,18,9],[17,8,18,8]]}
[null," Cotización para Servicios Financieros Tipo 4"]
[]
[null,"Proveedor"]
[]
[null,"Nombre del Banco"]
[]
[]
[null,"Información de Cotización"]
[]
[null,"Fecha de inicio OC",null,null,null,"Fecha de vencimiento OC"]
[]
[null,"Frecuencia de pagos al año",null,null,null,"Valor estimado a pagar en cada frecuencia"]
[]
[null,"Valor estimado a pagar a cada Beneficiario",null,null,null,"Fecha de compromiso primera entrega"]
[]
[null,"Paquete de Servicios"]
[]
[null,"Item","Código DANE","Departamento","Municipio","Número Estimado de Beneficiarios","Cantidad de Transferencias por Programa","Total cantidad estimada de transferencia","Vinculación del Beneficiario","Precio por transferencia","Total","Actividad de Servicio Financiero Tipo 4",null,null,null,null,null,"Observaciones"]
[null,null,null,null,null,null,null,null,null,null,null,"4.1","4.2","4.3","4.4","4.5","4.6"]
[null,1,null,null,null,null,null,null,null,null,{"$f":"J20*H20","v":0}]
[]
[null,null,"Total ",null,1,{"$f":"SUM(F20:F20)","v":0},null,null,"Subtotal",{"$f":"SUM(J20:J20)","v":0},{"$f":"SUM(K20:K20)","v":0}]
[null,null,null,null,null,null,null,null,"IVA (19%) ",null,{"$f":"K22*0.19","v":0}]
[null,null,null,null,null,null,null,null,null,"Total ",{"$f":"+K22+K23","v":0}]
[null,"Tarifas adicionales para los Beneficiarios"]
[null,"No","Nombre del servicio",null,null,"Descripción",null,null,"Valor"]
[null,1]

{"sheet":"Precios","index":3,"n_rows":68,"n_cols":13,"rows_kept":68,"cut":false,"hidden":false,"merged":[[56,1,67,1],[60,2,63,2],[64,2,67,2],[7,1,12,1],[8,2,11,2],[13,1,18,1],[14,2,17,2],[19,1,29,1],[20,2,23,2],[24,2,29,2],[30,1,46,1],[30,2,34,2],[35,2,39,2],[40,2,43,2],[47,1,55,1],[0,1,0,11],[1,1,1,11],[5,1,6,1],[5,2,6,2],[5,3,6,3],[5,4,6,4]]}
[null,"Catálogo Instrumento de Agregación de Demanda de Servicios Financieros II"]
[null,"Precio por Actividad de Servicio Financiero y Localización"]
[]
[]
[]
[null,"Tipo de Servicio Financiero","Actividad","Localización","Nº  Actividad","Banco Bogota","Av villas","Banco Popular","Davivienda","Banco Agrario","BBVA","Occidente","Bancolombia"]
[null,null,null,null,null,"$ (Sin IVA)","$ (Sin IVA)","$ (Sin IVA)","$ (Sin IVA)","$ (Sin IVA)","$ (Sin IVA)","$ (Sin IVA)","$ (Sin IVA)"]
[null,"Tipo 1","Transferencia a cuenta del Banco que presta el Servicio Financiero Tipo 1","NA","1.1",3250,500,1950,"N/A","N/A",2000,3650,3000]
[null,null,"Transferencia a cuenta de un banco distinto al que presta el Servicio Financiero Tipo 1 ","Localización 1","1.2.1",5500,1000,3250,"N/A","N/A",2000,4500,5600]
[null,null,null,"Localización 2","1.2.2","N/A",1000,3250,"N/A","N/A",2000,4500,5600]
[null,null,null,"Localización 3","1.2.3",20900,1000,3250,"N/A","N/A",2000,9800,18900]
[null,null,null,"Localización 4 (%)","1.2.4","2.5% Minimo $20.900",2.2499999999999999E-2,"1.5% Min $12.500 - Max $125.000","N/A","N/A","Mínimo $ 4.750 Máximo 1.5% + $ 4.750","1,75% Min $18.200 - Max $169.000 ",1.9E-2]
[null,null,"Cheque de gerencia para los Servicios Financieros","NA","1.3",22000,12000,null,"N/A","N/A","N/A",16550,12300]
[null,"Tipo 2","Transferencia a cuenta del Banco que presta el Servicio Financiero Servicio Financiero Tipo 2","NA","2.1",3250,500,1950,3361,1561,2000,3650,3000]
[null,null,"Transferencia a cuenta de un banco distinto al que presta el Servicio Financiero Servicio Financiero Tipo 2  ","Localización 1","2.2.1",5500,1000,3250,"N/A",5441,2000,4500,5600]
[null,null,null,"Localización 2","2.2.2",5500,1000,3250,"N/A",5441,2000,4500,5600]
[null,null,null,"Localización 3","2.2.3",20900,1000,3250,"N/A",5441,2000,9800,18900]
[null,null,null,"Localización 4 (%)","2.2.4","2.5% Minimo $20.900",1.1299999999999999E-2,"1.5% Min $12.500 - Max $125.000","N/A",1.7000000000000001E-2,"Mínimo $ 4.750 Máximo 1.5% + $ 4.750","1,75% Min $18.200 - Max $169.000 ",1.9E-2]
[null,null,"Cheque de gerencia para los Servicios Financieros","NA","2.3",22000,12000,"N/A","N/A",19409,null,16550,12300]
[null,"Tipo 3","Transferencia a cuenta del Banco que presta el Servicio Financiero Tipo 3","NA","3.1",3250,500,2600,3361,1561,2000,3650,3000]
[null,null,"Transferencia a cuenta de un banco distinto al que presta el Servicio Financiero Tipo 3  ","Localización 1","3.2.1",5500,1000,3250,"N/A",5441,2000,4500,5600]
[null,null,null,"Localización 2","3.2.2",5500,1000,3250,"N/A",5441,2000,4500,5600]
[null,null,null,"Localización 3","3.2.3",20900,1000,3250,"N/A",5441,2000,9800,18900]
[null,null,null,"Localización 4 (%)","3.2.4","2.5% Minimo $20.900",1.1299999999999999E-2,"1.5% Min $12.500 - Max $125.000","N/A",1.7000000000000001E-2,"Mínimo $ 4.750 Máximo 1.5% + $ 4.750","1,75% Min $18.200 - Max $169.000 ",1.9E-2]
[null,null,"Comisión que remunera la operación de cambio y el giro internacional para los Servicios Financieros Tipo 3.","Estados Unidos","3.3",20,36,27,"N/A",21,25,22,"N/A"]
[null,null,null,"Estados Unidos – intragrupo","3.3",20,36,27,"N/A",21,15,22,"N/A"]
[null,null,null,"Europa ","3.3",20,36,27,"N/A",21,25,22,"N/A"]
[null,null,null,"Europa – intragrupo","3.3",20,36,27,"N/A",21,15,22,"N/A"]
[null,null,null,"Resto del mundo ","3.3",20,36,27,"N/A",21,25,22,"N/A"]
[null,null,null,"Resto del mundo – Intragrupo","3.3",20,36,27,"N/A",21,15,22,"N/A"]
[null,"Tipo 4","Entrega de efectivo a través de dos (2) o más canales para los Servicios Financieros Tipo 4","Localización 1","4.1.1",10300,"N/A","N/A",12500,11000,"N/A","N/A",18929]
[null,null,null,"Localización 2","4.1.2",10300,"N/A","N/A",17529,11400,"N/A","N/A",18929]
[null,null,null,"Localización 3","4.1.3",10300,"N/A","N/A",32715,11500,"N/A","N/A",19929]
[null,null,null,"Localización 4","4.1.4",10300,"N/A","N/A",32715,11600,"N/A","N/A",19929]
[null,null,null,"Otros municipios","4.1",10300,"N/A","N/A",32715,11736,"N/A","N/A","N/A"]
[null,null,"Entrega de efectivo a través de cajero electrónico para los Servicios Financieros Tipo 4.","Localización 1","4.2.1",3500,"N/A","N/A",12500,11000,"N/A","N/A",18929]
[null,null,null,"Localización 2","4.2.2",3500,"N/A","N/A",17529,11400,"N/A","N/A",18929]
[null,null,null,"Localización 3","4.2.3",3500,"N/A","N/A",32715,11500,"N/A","N/A","N/A"]
[null,null,null,"Localización 4","4.2.4",3500,"N/A","N/A",32715,11600,"N/A","N/A","N/A"]
[null,null,null,"Otros municipios","4.2",3500,"N/A","N/A",32715,11736,"N/A","N/A","N/A"]
[null,null,"Entrega de efectivo en sucursal del Banco para los Servicios Financieros Tipo 4.","Localización 1","4.3.1",10300,"N/A",40639,35000,11000,"N/A","N/A","N/A"]
[null,null,null,"Localización 2","4.3.2",10300,"N/A",45539,35000,11400,"N/A","N/A","N/A"]
[null,null,null,"Localización 3","4.3.3",10300,"N/A",53339,35000,11500,"N/A","N/A","N/A"]
[null,null,null,"Localización 4","4.3.4",10300,"N/A",73532,35000,11600,"N/A","N/A","N/A"]
[null,null,"Entrega de efectivo a través de corresponsal bancario en las instalaciones del corresponsal bancario para los Servicios Financieros Tipo 4.","NA","4.4","N/A","N/A","N/A",42859,11736,"N/A","N/A","N/A"]
[null,null,"Entrega directa de efectivo al Beneficiario en las cabeceras distritales y municipales fuera de las instalaciones del Banco o del corresponsal bancario para los Servicios Financieros Tipo 4.","NA","4.5","N/A","N/A","N/A",62480,25000,"N/A","N/A","N/A"]
[null,null,"Entrega directa de efectivo al Beneficiario en zona rural fuera de las instalaciones del Banco o del corresponsal bancario para los Servicios Financieros Tipo 4.","NA","4.6","N/A","N/A","N/A","N/A",27000,"N/A","N/A","N/A"]
[null,"Tipo 5","Recaudo manual a través de la red de oficinas a nivel nacional, para los Servicios Financieros Tipo 5.","NA","5.1","Si ofrece el Servicio financiero","Si ofrece el Servicio financiero","Si ofrece el Servicio financiero","N/A","Si ofrece el Servicio financiero","N/A","N/A","Si ofrece el Servicio financiero"]
[null,null,"Recaudo manual a través de la red de oficinas a nivel nacional (con Web Service), para los Servicios Financieros Tipo 5.","NA","5.2","Si ofrece el Servicio financiero","Si ofrece el Servicio financiero","Si ofrece el Servicio financiero","N/A","N/A","N/A","N/A","Si ofrece el Servicio financiero"]
[null,null,"Recaudo código de barras a través de la red de oficinas a nivel nacional, para los Servicios Financieros Tipo 5.","NA","5.3","Si ofrece el Servicio financiero","Si ofrece el Servicio financiero","Si ofrece el Servicio financiero","N/A","Si ofrece el Servicio financiero","N/A","N/A","Si ofrece el Servicio financiero"]
[null,null,"Recaudo código de barras a través de la red de oficinas a nivel nacional (con Web Service), para los Servicios Financieros Tipo 5.","NA","5.4","Si ofrece el Servicio financiero","Si ofrece el Servicio financiero","Si ofrece el Servicio financiero","N/A","N/A","N/A","N/A","Si ofrece el Servicio financiero"]
[null,null,"Recaudo código de barras a través de la red de corresponsales bancarios a nivel nacional, para los Servicios Financieros Tipo 5.","NA","5.5","Si ofrece el Servicio financiero","Si ofrece el Servicio financiero","Si ofrece el Servicio financiero","N/A","Si ofrece el Servicio financiero","N/A","N/A","Si ofrece el Servicio financiero"]
[null,null,"Recaudo débito automático desde cuenta de ahorros o cuenta corriente, para los Servicios Financieros Tipo 5.","NA","5.6","Si ofrece el Servicio financiero","Si ofrece el Servicio financiero","N/A","N/A","Si ofrece el Servicio financiero","N/A","N/A","Si ofrece el Servicio financiero"]
[null,null,"Recaudo electrónico por PSE correspondiente a montos de $0 hasta $15.000.000 para los Servicios Financieros Tipo 5.","NA","5.7","Si ofrece el Servicio financiero","Si ofrece el Servicio financiero","Si ofrece el Servicio financiero","N/A","Si ofrece el Servicio financiero","N/A","N/A","Si ofrece el Servicio financiero"]
[null,null,"Recaudo electrónico por PSE correspondiente a montos de $15.000.000 en adelante para los Servicios Financieros Tipo 5.","NA","5.8","Si ofrece el Servicio financiero","Si ofrece el Servicio financiero","Si ofrece el Servicio financiero","N/A","Si ofrece el Servicio financiero","N/A","N/A","Si ofrece el Servicio financiero"]
[null,null,"Recaudo de adquirencia con tarjetas débito y crédito para los Servicios Financieros Tipo 5.","NA","5.9","Si ofrece el Servicio financiero","Si ofrece el Servicio financiero","Si ofrece el Servicio financiero","N/A","Si ofrece el Servicio financiero","N/A","N/A","Si ofrece el Servicio financiero"]
[null,"Tipo 6","Servicio Swift MT 940 vía FILE ACT para los Servicios Financieros Tipo 6.","NA","6.1",106,"NA",100,"N/A","N/A","N/A","N/A",3.2]
[null,null,"Servicio Swift MT 940 vía FIN para los Servicios Financieros Tipo 6.","NA","6.2",106,5,100,"N/A","N/A","N/A","N/A",3.2]
[null,null,"Servicio Swift MT 942 vía FILE ACT para los Servicios Financieros Tipo 6.","NA","6.3",109,"NA",100,"N/A","N/A","N/A","N/A"]
[null,null,"Servicio Swift MT 942 vía FIN para los Servicios Financieros Tipo 6.","NA","6.4",109,"NA",100,"N/A","N/A","N/A","N/A"]
[null,null,"Servicio Swift MT 101 vía FILE ACT para los Servicios Financieros Tipo 6.  ","Localización 1","6.5.1",313392,"NA",4680,"N/A","N/A","N/A","N/A",5600]
[null,null,null,"Localización 2","6.5.2",313392,"NA",4680,"N/A","N/A","N/A","N/A",5600]
[null,null,null,"Localización 3","6.5.3",313392,"NA",4680,"N/A","N/A","N/A","N/A",18900]
[null,null,null,"Localización 4 (%)","6.5.4",313392,"NA","1.5% Min $12.500 - Max $125.000","N/A","N/A","N/A","N/A",1.9E-2]
[null,null,"Servicio Swift MT 101 vía FIN  para los Servicios Financieros Tipo 6.","Localización 1","6.6.1",313392,"NA",4680,"N/A","N/A","N/A","N/A",5600]
[null,null,null,"Localización 2","6.6.2",313392,"NA",4680,"N/A","N/A","N/A","N/A",5600]
[null,null,null,"Localización 3","6.6.3",313392,"NA",4680,"N/A","N/A","N/A","N/A",18900]
[null,null,null,"Localización 4 (%)","6.6.4",313392,"NA","1.5% Min $12.500 - Max $125.000","N/A","N/A","N/A","N/A",1.9E-2]

{"sheet":"Catálogo Localización","index":4,"n_rows":1129,"n_cols":202,"rows_kept":562,"cut":true,"hidden":false,"merged":[[3,154,3,177],[4,154,4,177],[0,1,0,4],[1,1,1,4],[3,178,3,201],[4,178,4,201],[3,80,3,104],[4,80,4,104],[3,105,3,128],[4,105,4,128],[3,129,3,153],[4,129,4,153],[4,30,4,54],[3,55,3,79],[4,55,4,79],[0,5,0,21],[3,30,3,54],[3,1,5,1],[3,2,5,2],[3,3,5,3],[3,4,5,4],[3,5,3,29],[4,5,4,29]],"bounds":{"rows_first":250,"rows_last":62,"rows_between":250,"halvings":3}}
[null,"Agregación de Demanda para la prestación de Servicios Financieros"]
[null,"Oferta de Localizaciones por Banco"]
[]
[null,"Departamento","Municipio","Código DANE del Municipio","Localización","BANCO AGRARIO",null,null,null,null,null,null,null,null,null,null,null,null,null,null,null,null,null,null,null,null,null,null,null,null,"DAVIVIENDA",null,null,null,null,null,null,null,null,null,null,null,null,null,null,null,null,null,null,null,null,null,null,null,null,"BANCOLOMBIA",null,null,null,null,null,null,null,null,null,null,null,null,null,null,null,null,null,null,null,null,null,null,null,null,"BANCO BOGOTA",null,null,null,null,null,null,null,null,null,null,null,null,null,null,null,null,null,null,null,null,null,null,null,null,"BANCO AV VILLAS",null,null,null,null,null,null,null,null,null,null,null,null,null,null,null,null,null,null,null,null,null,null,null,"BANCO POPULAR",null,null,null,null,null,null,null,null,null,null,null,null,null,null,null,null,null,null,null,null,null,null,null,null,"BANCO BBVA",null,null,null,null,null,null,null,null,null,null,null,null,null,null,null,null,null,null,null,null,null,null,null,"BANCO DE OCCIDENTE"]
[null,null,null,null,null,"Actividad de Servicio Financiero",null,null,null,null,null,null,null,null,null,null,null,null,null,null,null,null,null,null,null,null,null,null,null,null,"Actividad de Servicio Financiero",null,null,null,null,null,null,null,null,null,null,null,null,null,null,null,null,null,null,null,null,null,null,null,null,"Actividad de Servicio Financiero",null,null,null,null,null,null,null,null,null,null,null,null,null,null,null,null,null,null,null,null,null,null,null,null,"Actividad de Servicio Financiero",null,null,null,null,null,null,null,null,null,null,null,null,null,null,null,null,null,null,null,null,null,null,null,null,"Actividad de Servicio Financiero",null,null,null,null,null,null,null,null,null,null,null,null,null,null,null,null,null,null,null,null,null,null,null,"Actividad de Servicio Financiero",null,null,null,null,null,null,null,null,null,null,null,null,null,null,null,null,null,null,null,null,null,null,null,null,"Actividad de Servicio Financiero",null,null,null,null,null,null,null,null,null,null,null,null,null,null,null,null,null,null,null,null,null,null,null,"Actividad de Servicio Financiero"]
[null,null,null,null,null,"1.1","2.1","3.1","3.2","4.1","4.2","4.3","4.4","4.5","4.6","5.1","5.2","5.3","5.4","5.5"," 5.6","5.7"," 5.8","5.9","6.1","6.2","6.3","6.4","6.5","6.6","1.1","2.1","3.1","3.2","4.1","4.2","4.3","4.4","4.5","4.6","5.1","5.2","5.3","5.4","5.5"," 5.6","5.7"," 5.8",5.9,"6.1","6.2","6.3","6.4","6.5","6.6","1.1","2.1","3.1","3.2","4.1","4.2","4.3","4.4","4.5","4.6","5.1","5.2","5.3","5.4","5.5"," 5.6","5.7"," 5.8",5.9,"6.1","6.2","6.3","6.4","6.5","6.6","1.1","2.1","3.1","3.2","4.1","4.2","4.3","4.4","4.5","4.6","5.1","5.2","5.3","5.4","5.5"," 5.6","5.7"," 5.8","5.9","6.1","6.2","6.3","6.4","6.5","6.6","1.1","2.1","3.1","3.2","4.2","4.3","4.4","4.5","4.6","5.1","5.2","5.3","5.4","5.5"," 5.6","5.7"," 5.8","5.9","6.1","6.2","6.3","6.4","6.5","6.6","1.1","2.1","3.1","3.2","4.1","4.2","4.3","4.4","4.5","4.6","5.1","5.2","5.3","5.4","5.5"," 5.6","5.7"," 5.8","5.9","6.1","6.2","6.3","6.4","6.5","6.6","1.1","2.1","3.1","3.2","4.2","4.3","4.4","4.5","4.6","5.1","5.2","5.3","5.4","5.5"," 5.6","5.7"," 5.8","5.9","6.1","6.2","6.3","6.4","6.5","6.6","1.1","2.1","3.1","3.2","4.2","4.3","4.4","4.5","4.6","5.1","5.2","5.3","5.4","5.5"," 5.6","5.7"," 5.8","5.9","6.1","6.2","6.3","6.4","6.5","6.6"]
[null,"ANTIOQUIA","MEDELLIN",5001,"1","x","x","x","x","x","x","x","x","X","X","x",null,"x",null,"x","x","x","x","x",null,null,null,null,null,null,null,"X","X",null,"X","X","X","X","X",null,null,null,null,null,null,null,null,null,null,null,null,null,null,null,null,"X","X","X","X","X","X",null,null,null,null,"X","X","X","X","X","X","X","X","X",null,null,null,null,"X","X","X","X","X","X","X","X","X","X",null,null,"X","X","X","X","X","X","X","X","X",null,null,null,null,"X",null,"x","x","x","x",null,null,null,null,null,"x","x","x","x","X","x","x","x","x",null,null,null,null,null,null,"x","x","x","x",null,null,"x",null,null,null,"x","x","x","x","x",null,"x","x","x",null,null,null,null,"x","x","x","x","x","x",null,null,null,null,null,"x","x","x","x",null,null,null,null,null,null,null,null,null,null,null,"x","x","x","x"]
[null,"ANTIOQUIA","ABEJORRAL",5002,"3","x","x","x","x","x",null,"x","x","X","X","x",null,"x",null,"x","x","x","x","x",null,null,null,null,null,null,null,"X","X",null,"X","X","X","X","X",null,null,null,null,null,null,null,null,null,null,null,null,null,null,null,null," "," "," "," ","",null,null,null,null,null," "," "," "," ","X"," "," "," "," ",null,null,null,null," "," ","X","X","X","X","X","X","X","X",null,null,"X","X","X","X",null,"X","X","X","X",null,null,null,null,"X",null,null,null,null,"x",null,null,null,null,null,null,null,null,null,null,null,"x","x",null,null,null,null,null,null,null,null,null,null,"x",null,null,null,null,null,null,null,null,null,null,"x",null,"x","x","x",null,null,null,null,"x","x"]
[null,"ANTIOQUIA","ABRIAQUI",5004,"Otros","x","x","x","x","x",null,null,"x","X","X",null,null,null,null,"x","x","x","x","x",null,null,null,null,null,null,null,null,null,null,"X","",null,"X","X",null,null,null,null,null,null,null,null,null,null,null,null,null,null,null,null," "," "," "," ","",null,null,null,null,null," "," "," "," ","X"," "," "," "," ",null,null,null,null," "," ","X","X","X","X",null,"X","X",null,null,null,null,null,null,null,null,"X","X","X","X",null,null,null,null,"X",null,null,null,null,"x",null,null,null,null,null,null,null,null,null,null,null,"x","x",null,null,null,null,null,null,null,null,null,null,null,null,null,null,null,null,null,null,null,null,null,"x",null,"x","x","x"]
[null,"ANTIOQUIA","ALEJANDRIA",5021,"4","x","x","x","x","x","x","x","x","X","X","x",null,"x",null,"x","x","x","x","x",null,null,null,null,null,null,null,null,null,null,"X","",null,"X","X",null,null,null,null,null,null,null,null,null,null,null,null,null,null,null,null," "," "," "," ","",null,null,null,null,null," "," "," "," ","X"," "," "," "," ",null,null,null,null," "," ","X","X","X","X",null,"X","X",null,null,null,null,null,null,null,null,"X","X","X","X",null,null,null,null,"X",null,null,null,null,"x",null,null,null,null,null,null,null,null,null,null,null,"x","x",null,null,null,null,null,null,null,null,null,null,"x",null,null,null,null,null,null,null,null,null,null,"x",null,"x","x","x",null,null,null,null,"x","x"]
[null,"ANTIOQUIA","AMAGA",5030,"3","x","x","x","x","x","x","x","x","X","X","x",null,"x",null,"x","x","x","x","x",null,null,null,null,null,null,null,"X","X",null,"X","X","X","X","X",null,null,null,null,null,null,null,null,null,null,null,null,null,null,null,null,"X","X","X","X","X",null,null,null,null,null,"X","X","X","X","X","X","X","X","X",null,null,null,null,"X","X","X","X","X","X",null,"X","X",null,null,null,null,null,null,null,null,"X","X","X","X",null,null,null,null,"X",null,null,null,null,"x",null,null,null,null,null,null,null,null,null,"X",null,"x","x",null,null,null,null,null,null,null,null,null,null,"x",null,null,null,null,null,null,null,null,null,null,"x",null,"x","x","x",null,null,null,null,"x","x"]
[null,"ANTIOQUIA","AMALFI",5031,"Otros","x","x","x","x","x",null,null,"x","X","X",null,null,null,null,"x","x","x","x","x",null,null,null,null,null,null,null,"X","X",null,"X","X","X","X","X",null,null,null,null,null,null,null,null,null,null,null,null,null,null,null,null," "," "," "," ","",null,null,null,null,null," "," "," "," ","X"," "," "," "," ",null,null,null,null," "," ","X","X","X","X",null,"X","X",null,null,null,null,null,null,null,"X","X","X","X","X",null,null,null,null,"X",null,null,null,null,"x",null,null,null,null,null,null,null,null,null,null,null,"x","x",null,null,null,null,null,null,null,null,null,null,"x",null,null,null,null,null,null,null,null,null,null,"x",null,"x","x","x",null,null,null,null,"x","x"]
[null,"ANTIOQUIA","ANDES",5034,"3","x","x","x","x","x","x","x","x","X","X","x",null,"x",null,"x","x","x","x","x",null,null,null,null,null,null,null,"X","X",null,"X","X","X","X","X",null,null,null,null,null,null,null,null,null,null,null,null,null,null,null,null,"X","X","X","X","X",null,null,null,null,null,"X","X","X","X","X","X","X","X","X",null,null,null,null,"X","X","X","X","X","X","X","X","X","X",null,null,"X","X","X","X","X","X","X","X","X",null,null,null,null,"X",null,null,null,null,"x",null,null,null,null,null,null,null,null,null,"X",null,"x","x",null,null,null,null,null,null,null,null,null,null,"x",null,null,null,null,null,null,null,null,null,null,"x",null,"x","x","x",null,null,null,null,"x","x"]
[null,"ANTIOQUIA","ANGELOPOLIS",5036,"4","x","x","x","x","x","x","x",null,"X","X","x",null,"x",null,null,"x","x","x","x",null,null,null,null,null,null,null,null,null,null,"X","",null,"X","X",null,null,null,null,null,null,null,null,null,null,null,null,null,null,null,null," "," "," "," ","",null,null,null,null,null," "," "," "," ","X"," "," "," "," ",null,null,null,null," "," ","X","X","X","X",null,"X","X",null,null,null,null,null,null,null,null,"X","X","X","X",null,null,null,null,"X",null,null,null,null,"x",null,null,null,null,null,null,null,null,null,null,null,"x","x",null,null,null,null,null,null,null,null,null,null,"x",null,null,null,null,null,null,null,null,null,null,"x",null,"x","x","x",null,null,null,null,"x","x"]
[null,"ANTIOQUIA","ANGOSTURA",5038,"4","x","x","x","x","x","x","x","x","X","X","x",null,"x",null,"x","x","x","x","x",null,null,null,null,null,null,null,null,null,null,"X","",null,"X","X",null,null,null,null,null,null,null,null,null,null,null,null,null,null,null,null," "," "," "," ","",null,null,null,null,null," "," "," "," ","X"," "," "," "," ",null,null,null,null," "," ","X","X","X","X",null,"X","X",null,null,null,null,null,null,null,null,"X","X","X","X",null,null,null,null,"X",null,null,null,null,"x",null,null,null,null,null,null,null,null,null,null,null,"x","x",null,null,null,null,null,null,null,null,null,null,"x",null,null,null,null,null,null,null,null,null,null,"x",null,"x","x","x",null,null,null,null,"x","x"]
[null,"ANTIOQUIA","ANORI",5040,"4","x","x","x","x","x","x","x","x","X","X","x",null,"x",null,"x","x","x","x","x",null,null,null,null,null,null,null,null,null,null,"X","",null,"X","X",null,null,null,null,null,null,null,null,null,null,null,null,null,null,null,null," "," "," "," ",null,null,null,null,null,null," "," "," "," ","X"," "," "," "," ",null,null,null,null," "," ","X","X","X","X",null,"X","X",null,null,null,null,null,null,null,null,"X","X","X","X",null,null,null,null,"X",null,null,null,null,"x",null,null,null,null,null,null,null,null,null,null,null,"x","x",null,null,null,null,null,null,null,null,null,null,"x",null,null,null,null,null,null,null,null,null,null,"x",null,"x","x","x",null,null,null,null,"x","x"]
[null,"ANTIOQUIA","SANTAFE DE ANTIOQUIA",5042,"3","x","x","x","x","x","x","x","x","X","X","x",null,"x",null,"x","x","x","x","x",null,null,null,null,null,null,null,null,null,null,"X","X",null,"X","X",null,null,null,null,null,null,null,null,null,null,null,null,null,null,null,null,"X","X","X","X","X",null,null,null,null,null,"X","X","X","X","X","X","X","X","X",null,null,null,null,"X","X","X","X","X","X",null,"X","X",null,null,null,null,null,null,null,null,"X","X","X","X",null,null,null,null,"X",null,null,null,null,"x",null,null,null,null,null,null,null,null,null,"X",null,"x","x",null,null,null,null,null,null,null,null,null,null,"x",null,null,null,null,null,null,null,null,null,null,"x",null,"x","x"," ",null,null,null,null,"x","x","x","x","x","x",null,null,null,null,null,"x","x","x","x"]
[null,"ANTIOQUIA","ANZA",5044,"4","x","x","x","x","x","x","x","x","X","X","x",null,"x",null,"x","x","x","x","x",null,null,null,null,null,null,null,null,null,null,"X","",null,"X","X",null,null,null,null,null,null,null,null,null,null,null,null,null,null,null,null," "," "," "," ",null,null,null,null,null,null," "," "," "," ","X"," "," "," "," ",null,null,null,null," "," ","X","X","X","X",null,"X","X",null,null,null,null,null,null,null,null,"X","X","X","X",null,null,null,null,"X",null,null,null,null,"x",null,null,null,null,null,null,null,null,null,null,null,"x","x",null,null,null,null,null,null,null,null,null,null,"x",null,null,null,null,null,null,null,null,null,null,"x",null,"x","x","x",null,null,null,null,"x","x"]
[null,"ANTIOQUIA","APARTADO",5045,"1","x","x","x","x","x","x","x","x","X","X","x",null,"x",null,"x","x","x","x","x",null,null,null,null,null,null,null,"X","X",null,"X","X","X","X","X",null,null,null,null,null,null,null,null,null,null,null,null,null,null,null,null,"X","X","X","X","X","X",null,null,null,null,"X","X","X","X","X","X","X","X","X",null,null,null,null,"X","X","X","X","X","X","X","X","X","X",null,null,"X","X","X","X","X","X","X","X","X",null,null,null,null,"X",null,"x","x","x","x",null,null,null,null,null,"x","x","x","x","X","x","x","x","x",null,null,null,null,null,null,null,null,null,"x",null,null,null,null,null,null,null,null,null,null,"x",null,"x","x","x",null,null,null,null,"x","x","x","x","x","x",null,null,null,null,null,"x","x","x","x"]
[null,"ANTIOQUIA","ARBOLETES",5051,"3","x","x","x","x","x","x","x","x","X","X","x",null,"x",null,"x","x","x","x","x",null,null,null,null,null,null,null,null,null,null,"X","",null,"X","X",null,null,null,null,null,null,null,null,null,null,null,null,null,null,null,null," "," "," "," ","X",null,null,null,null,null," "," "," "," ","X"," "," "," "," ",null,null,null,null," "," ","X","X","X","X",null,"X","X",null,null,null,null,null,null,null,null,"X","X","X","X",null,null,null,null,"X",null,null,null,null,"x",null,null,null,null,null,null,null,null,null,null,null,"x","x",null,null,null,null,null,null,null,null,null,null,"x",null,null,null,null,null,null,null,null,null,null,"x",null,"x","x","x",null,null,null,null,"x","x"]
[null,"ANTIOQUIA","ARGELIA",5055,"3","x","x","x","x","x","x","x","x","X","X","x",null,"x",null,"x","x","x","x","x",null,null,null,null,null,null,null,null,null,null,"X","",null,"X","X",null,null,null,null,null,null,null,null,null,null,null,null,null,null,null,null," "," "," "," ","",null,null,null,null,null," "," "," "," ","X"," "," "," "," ",null,null,null,null," "," ","X","X","X","X",null,"X","X",null,null,null,null,null,null,null,null,"X","X","X","X",null,null,null,null,"X",null,null,null,null,"x",null,null,null,null,null,null,null,null,null,null,null,"x","x",null,null,null,null,null,null,null,null,null,null,"x",null,null,null,null,null,null,null,null,null,null,"x",null,"x","x","x",null,null,null,null,"x","x"]
[null,"ANTIOQUIA","ARMENIA",5059,"4","x","x","x","x","x","x","x",null,"X","X","x",null,"x",null,null,"x","x","x","x",null,null,null,null,null,null,null,null,null,null,"X","",null,"X","X",null,null,null,null,null,null,null,null,null,null,null,null,null,null,null,null," "," "," "," ",null,null,null,null,null,null," "," "," "," ","X"," "," "," "," ",null,null,null,null," "," ","X","X","X","X",null,"X","X",null,null,null,null,null,null,null,"X","X","X","X","X",null,null,null,null,"X",null,"x","x","x","x",null,null,null,null,null,"x","x","x","x","X","x","x","x","x",null,null,null,null,null,null,null,null,null,"x",null,null,null,null,null,null,null,null,null,null,"x",null,"x","x","x",null,null,null,null,"x","x"]
[null,"ANTIOQUIA","BARBOSA",5079,"Otros","x","x","x","x","x","x",null,"x","X","X",null,null,null,null,"x","x","x","x","x",null,null,null,null,null,null,null,null,null,null,"X","",null,"X","X",null,null,null,null,null,null,null,null,null,null,null,null,null,null,null,null,"X","X","X","X","X","X",null,null,null,null,"X","X","X","X","X","X","X","X","X",null,null,null,null,"X","X","X","X","X","X","X","X","X","X",null,null,"X","X","X","X",null,"X","X","X","X",null,null,null,null,"X",null,null,null,null,"x",null,null,null,null,null,null,null,null,null,"X",null,"x","x",null,null,null,null,null,null,null,null,null,null,"x",null,null,null,null,null,null,null,null,null,null,"x",null,"x","x"," ",null,null,null,null,"x","x"]
[null,"ANTIOQUIA","BELMIRA",5086,"Otros","x","x","x","x","x",null,null,"x","X","X",null,null,null,null,"x","x","x","x","x",null,null,null,null,null,null,null,null,null,null,"X","",null,"X","X",null,null,null,null,null,null,null,null,null,null,null,null,null,null,null,null," "," "," "," ","",null,null,null,null,null," "," "," "," ","X"," "," "," "," ",null,null,null,null," "," ","X","X","X","X",null,"X","X",null,null,null,null,null,null,null,null,"X","X","X","X",null,null,null,null,"X",null,null,null,null,"x",null,null,null,null,null,null,null,null,null,null,null,"x","x",null,null,null,null,null,null,null,null,null,null,null,null,null,null,null,null,null,null,null,null,null,"x",null,"x","x","x"]
[null,"ANTIOQUIA","BELLO",5088,"1","x","x","x","x","x","x","x","x","X","X","x",null,"x",null,"x","x","x","x","x",null,null,null,null,null,null,null,"X","X",null,"X","X","X","X","X",null,null,null,null,null,null,null,null,null,null,null,null,null,null,null,null,"X","X","X","X","X","X",null,null,null,null,"X","X","X","X","X","X","X","X","X",null,null,null,null,"X","X","X","X","X","X","X","X","X","X",null,null,"X","X","X","X","X","X","X","X","X",null,null,null,null,"X",null,"x","x","x","x",null,null,null,null,null,"x","x","x","x","X","x","x","x","x",null,null,null,null,null,null,"x","x","x","x",null,null,"x",null,null,null,"x","x","x","x","x",null,"x","x","x",null,null,null,null,"x","x","x","x","x","x",null,null,null,null,null,"x","x","x","x",null,null,null,null,null,null,null,null,null,null,null,"x","x","x","x"]
[null,"ANTIOQUIA","BETANIA",5091,"3","x","x","x","x","x","x","x",null,"X","X","x",null,"x",null,null,"x","x","x","x",null,null,null,null,null,null,null,null,null,null,"X","",null,"X","X",null,null,null,null,null,null,null,null,null,null,null,null,null,null,null,null,"X","X","X","X","X",null,null,null,null,null,"X","X","X","X","X","X","X","X","X",null,null,null,null,"X","X","X","X","X","X",null,"X","X",null,null,null,null,null,null,null,null,"X","X","X","X",null,null,null,null,"X",null,null,null,null,"x",null,null,null,null,null,null,null,null,null,null,null,"x","x",null,null,null,null,null,null,null,null,null,null,"x",null,null,null,null,null,null,null,null,null,null,"x",null,"x","x","x",null,null,null,null,"x","x"]
[null,"ANTIOQUIA","BETULIA",5093,"4","x","x","x","x","x",null,"x","x","X","X","x",null,"x",null,"x","x","x","x","x",null,null,null,null,null,null,null,"X","X",null,"X","X","X","X","X",null,null,null,null,null,null,null,null,null,null,null,null,null,null,null,null," "," "," "," ",null,null,null,null,null,null," "," "," "," ","X"," "," "," "," ",null,null,null,null," "," ","X","X","X","X",null,"X","X",null,null,null,null,null,null,null,null,"X","X","X","X",null,null,null,null,"X",null,null,null,null,"x",null,null,null,null,null,null,null,null,null,null,null,"x","x",null,null,null,null,null,null,null,null,null,null,"x",null,null,null,null,null,null,null,null,null,null,"x",null,"x","x"," ",null,null,null,null,"x","x"]
[null,"ANTIOQUIA","CIUDAD BOLIVAR",5101,"3","x","x","x","x","x","x","x","x","X","X","x",null,"x",null,"x","x","x","x","x",null,null,null,null,null,null,null,"X","X",null,"X","X","X","X","X",null,null,null,null,null,null,null,null,null,null,null,null,null,null,null,null,"X","X","X","X","X",null,null,null,null,null,"X","X","X","X","X","X","X","X","X",null,null,null,null,"X","X","X","X","X","X","X","X","X","X",null,null,"X","X","X","X",null,"X","X","X","X",null,null,null,null,"X",null,null,null,null,"x",null,null,null,null,null,null,null,null,null,null,null,"x","x",null,null,null,null,null,null,null,null,null,null,null,null,null,null,null,null,null,null,null,null,null,"x",null,"x","x","x"]
[null,"ANTIOQUIA","BRICEÑO",5107,"Otros","x","x","x","x","x",null,null,"x","X","X",null,null,null,null,"x","x","x","x","x",null,null,null,null,null,null,null,null,null,null,"X","",null,"X","X",null,null,null,null,null,null,null,null,null,null,null,null,null,null,null,null," "," "," "," ","",null,null,null,null,null," "," "," "," ","X"," "," "," "," ",null,null,null,null," "," ","X","X","X","X",null,"X","X",null,null,null,null,null,null,null,null,"X","X","X","X",null,null,null,null,"X",null,null,null,null,"x",null,null,null,null,null,null,null,null,null,null,null,"x","x",null,null,null,null,null,null,null,null,null,null,null,null,null,null,null,null,null,null,null,null,null,"x",null,"x","x","x"]
[null,"ANTIOQUIA","BURITICA",5113,"Otros","x","x","x","x","x",null,null,"x","X","X",null,null,null,null,"x","x","x","x","x",null,null,null,null,null,null,null,null,null,null,"X","",null,"X","X",null,null,null,null,null,null,null,null,null,null,null,null,null,null,null,null," "," "," "," ","",null,null,null,null,null," "," "," "," ","X"," "," "," "," ",null,null,null,null," "," ","X","X","X","X",null,"X","X",null,null,null,null,null,null,null,null,"X","X","X","X",null,null,null,null,"X",null,null,null,null,"x",null,null,null,null,null,null,null,null,null,null,null,"x","x",null,null,null,null,null,null,null,null,null,null,null,null,null,null,null,null,null,null,null,null,null,"x",null,"x","x","x"]
[null,"ANTIOQUIA","CACERES",5120,"Otros","x","x","x","x","x",null,null,"x","X","X",null,null,null,null,"x","x","x","x","x",null,null,null,null,null,null,null,null,null,null,"X","",null,"X","X",null,null,null,null,null,null,null,null,null,null,null,null,null,null,null,null," "," "," "," ","",null,null,null,null,null," "," "," "," ","X"," "," "," "," ",null,null,null,null," "," ","X","X","X","X",null,"X","X",null,null,null,null,null,null,null,null,"X","X","X","X",null,null,null,null,"X",null,null,null,null,"x",null,null,null,null,null,null,null,null,null,null,null,"x","x",null,null,null,null,null,null,null,null,null,null,null,null,null,null,null,null,null,null,null,null,null,"x",null,"x","x","x"]
[null,"ANTIOQUIA","CAICEDO",5125,"4","x","x","x","x","x",null,"x",null,"X","X","x",null,"x",null,null,"x","x","x","x",null,null,null,null,null,null,null,null,null,null,"X","",null,"X","X",null,null,null,null,null,null,null,null,null,null,null,null,null,null,null,null," "," "," "," ",null,null,null,null,null,null," "," "," "," ","X"," "," "," "," ",null,null,null,null," "," ","X","X","X","X",null,"X","X",null,null,null,null,null,null,null,null,"X","X","X","X",null,null,null,null,"X",null,null,null,null,"x",null,null,null,null,null,null,null,null,null,null,null,"x","x",null,null,null,null,null,null,null,null,null,null,"x",null,null,null,null,null,null,null,null,null,null,"x",null,"x","x","x",null,null,null,null,"x","x"]
[null,"ANTIOQUIA","CALDAS",5129,"2","x","x","x","x","x","x","x","x","X","X","x",null,"x",null,"x","x","x","x","x",null,null,null,null,null,null,null,"X","X",null,"X","X","X","X","X",null,null,null,null,null,null,null,null,null,null,null,null,null,null,null,null,"X","X","X","X","X","X",null,null,null,null,"X","X","X","X","X","X","X","X","X",null,null,null,null,"X","X","X","X","X","X","X","X","X","X",null,null,"X","X","X","X","X","X","X","X","X",null,null,null,null,"X",null,null,null,null,"x",null,null,null,null,null,null,null,null,null,"X",null,"x","x",null,null,null,null,null,null,null,"x","x","x","x",null,null,"x",null,null,null,"x","x","x","x","x",null,"x","x"," ",null,null,null,null,"x","x"]
[null,"ANTIOQUIA","CAMPAMENTO",5134,"4","x","x","x","x","x","x","x","x","X","X","x",null,"x",null,"x","x","x","x","x",null,null,null,null,null,null,null,null,null,null,"X","",null,"X","X",null,null,null,null,null,null,null,null,null,null,null,null,null,null,null,null," "," "," "," ",null,null,null,null,null,null," "," "," "," ","X"," "," "," "," ",null,null,null,null," "," ","X","X","X","X",null,"X","X",null,null,null,null,null,null,null,null,"X","X","X","X",null,null,null,null,"X",null,null,null,null,"x",null,null,null,null,null,null,null,null,null,null,null,"x","x",null,null,null,null,null,null,null,null,null,null,"x",null,null,null,null,null,null,null,null,null,null,"x",null,"x","x","x",null,null,null,null,"x","x"]
[null,"ANTIOQUIA","CAÑASGORDAS",5138,"4","x","x","x","x","x","x","x","x","X","X","x",null,"x",null,"x","x","x","x","x",null,null,null,null,null,null,null,null,null,null,"X","",null,"X","X",null,null,null,null,null,null,null,null,null,null,null,null,null,null,null,null," "," "," "," ",null,null,null,null,null,null," "," "," "," ","X"," "," "," "," ",null,null,null,null," "," ","X","X","X","X",null,"X","X",null,null,null,null,null,null,null,null,"X","X","X","X",null,null,null,null,"X",null,null,null,null,"x",null,null,null,null,null,null,null,null,null,null,null,"x","x",null,null,null,null,null,null,null,null,null,null,"x",null,null,null,null,null,null,null,null,null,null,"x",null,"x","x","x",null,null,null,null,"x","x"]
[null,"ANTIOQUIA","CARACOLI",5142,"4","x","x","x","x","x","x","x",null,"X","X","x",null,"x",null,null,"x","x","x","x",null,null,null,null,null,null,null,null,null,null,"X","",null,"X","X",null,null,null,null,null,null,null,null,null,null,null,null,null,null,null,null," "," "," "," ",null,null,null,null,null,null," "," "," "," ","X"," "," "," "," ",null,null,null,null," "," ","X","X","X","X",null,"X","X",null,null,null,null,null,null,null,null,"X","X","X","X",null,null,null,null,"X",null,null,null,null,"x",null,null,null,null,null,null,null,null,null,null,null,"x","x",null,null,null,null,null,null,null,null,null,null,"x",null,null,null,null,null,null,null,null,null,null,"x",null,"x","x","x",null,null,null,null,"x","x"]
[null,"ANTIOQUIA","CARAMANTA",5145,"4","x","x","x","x","x","x","x",null,"X","X","x",null,"x",null,null,"x","x","x","x",null,null,null,null,null,null,null,null,null,null,"X","",null,"X","X",null,null,null,null,null,null,null,null,null,null,null,null,null,null,null,null," "," "," "," ",null,null,null,null,null,null," "," "," "," ","X"," "," "," "," ",null,null,null,null," "," ","X","X","X","X",null,"X","X",null,null,null,null,null,null,null,null,"X","X","X","X",null,null,null,null,"X",null,null,null,null,"x",null,null,null,null,null,null,null,null,null,null,null,"x","x",null,null,null,null,null,null,null,null,null,null,"x",null,null,null,null,null,null,null,null,null,null,null,null,"x","x","x",null,null,null,null,"x","x"]
[null,"ANTIOQUIA","CAREPA",5147,"Otros","x","x","x","x","x","x",null,"x","X","X",null,null,null,null,"x","x","x","x","x",null,null,null,null,null,null,null,null,null,null,"X","X",null,"X","X",null,null,null,null,null,null,null,null,null,null,null,null,null,null,null,null,"X","X","X","X","X","X",null,null,null,null,"X","X","X","X","X","X","X","X","X",null,null,null,null,"X","X","X","X","X","X","X","X","X","X",null,null,"X","X","X","X",null,"X","X","X","X",null,null,null,null,"X",null,null,null,null,"x",null,null,null,null,null,null,null,null,null,"X",null,"x","x",null,null,null,null,null,null,null,"x","x","x","x",null,null,"x",null,null,null,"x","x","x","x","x",null,"x","x","x",null,null,null,null,"x","x"]
[null,"ANTIOQUIA","EL CARMEN DE VIBORAL",5148,"3","x","x","x","x","x","x","x","x","X","X","x",null,"x",null,"x","x","x","x","x",null,null,null,null,null,null,null,null,null,null,"X","",null,"X","X",null,null,null,null,null,null,null,null,null,null,null,null,null,null,null,null,"X","X","X","X","X",null,null,null,null,null,"X","X","X","X","X","X","X","X","X",null,null,null,null,"X","X","X","X","X","X","X","X","X","X",null,null,"X","X","X","X","X","X","X","X","X",null,null,null,null,"X",null,null,null,null,"x",null,null,null,null,null,null,null,null,null,"X",null,"x","x",null,null,null,null,null,null,null,null,null,null,null,null,null,null,null,null,null,null,null,null,null,"x",null,"x","x","x"]
[null,"ANTIOQUIA","CAROLINA",5150,"4","x","x","x","x","x","x","x","x","X","X","x",null,"x",null,"x","x","x","x","x",null,null,null,null,null,null,null,null,null,null,"X","",null,"X","X",null,null,null,null,null,null,null,null,null,null,null,null,null,null,null,null," "," "," "," ",null,null,null,null,null,null," "," "," "," ","X"," "," "," "," ",null,null,null,null," "," ","X","X","X","X",null,"X","X",null,null,null,null,null,null,null,null,"X","X","X","X",null,null,null,null,"X",null,null,null,null,"x",null,null,null,null,null,null,null,null,null,null,null,"x","x",null,null,null,null,null,null,null,null,null,null,"x",null,null,null,null,null,null,null,null,null,null,"x",null,"x","x","x",null,null,null,null,"x","x"]
[null,"ANTIOQUIA","CAUCASIA",5154,"3","x","x","x","x","x","x","x","x","X","X","x",null,"x",null,"x","x","x","x","x",null,null,null,null,null,null,null,"X","X",null,"X","X","X","X","X",null,null,null,null,null,null,null,null,null,null,null,null,null,null,null,null,"X","X","X","X","X",null,null,null,null,null,"X","X","X","X","X","X","X","X","X",null,null,null,null,"X","X","X","X","X","X","X","X","X","X",null,null,"X","X","X","X",null,"X","X","X","X",null,null,null,null,"X",null,null,null,null,"x",null,null,null,null,null,null,null,null,null,"X",null,"x","x",null,null,null,null,null,null,null,null,null,null,"x",null,null,null,null,null,null,null,null,null,null,"x",null,"x","x","x",null,null,null,null,"x","x","x","x","x","x",null,null,null,null,null,"x","x","x","x"]
[null,"ANTIOQUIA","CHIGORODO",5172,"3","x","x","x","x","x","x","x","x","X","X","x",null,"x",null,"x","x","x","x","x",null,null,null,null,null,null,null,null,null,null,"X","X",null,"X","X",null,null,null,null,null,null,null,null,null,null,null,null,null,null,null,null,"X","X","X","X","X",null,null,null,null,null,"X","X","X","X","X","X","X","X","X",null,null,null,null,"X","X","X","X","X","X","X","X","X","X",null,null,"X","X","X","X",null,"X","X","X","X",null,null,null,null,"X",null,null,null,null,"x",null,null,null,null,null,null,null,null,null,null,null,"x","x",null,null,null,null,null,null,null,"x","x","x","x",null,null,"x",null,null,null,"x","x","x","x","x",null,"x","x","x",null,null,null,null,"x","x"]
[null,"ANTIOQUIA","CISNEROS",5190,"4","x","x","x","x","x","x","x","x","X","X","x",null,"x",null,"x","x","x","x","x",null,null,null,null,null,null,null,null,null,null,"X","",null,"X","X",null,null,null,null,null,null,null,null,null,null,null,null,null,null,null,null," "," "," "," ",null,null,null,null,null,null," "," "," "," ","X"," "," "," "," ",null,null,null,null," "," ","X","X","X","X",null,"X","X",null,null,null,null,null,null,null,null,"X","X","X","X",null,null,null,null,"X",null,null,null,null,"x",null,null,null,null,null,null,null,null,null,null,null,"x","x",null,null,null,null,null,null,null,null,null,null,"x",null,null,null,null,null,null,null,null,null,null,"x",null,"x","x","x",null,null,null,null,"x","x"]
[null,"ANTIOQUIA","COCORNA",5197,"4","x","x","x","x","x","x","x","x","X","X","x",null,"x",null,"x","x","x","x","x",null,null,null,null,null,null,null,null,null,null,"X","",null,"X","X",null,null,null,null,null,null,null,null,null,null,null,null,null,null,null,null," "," "," "," ",null,null,null,null,null,null," "," "," "," ","X"," "," "," "," ",null,null,null,null," "," ","X","X","X","X",null,"X","X",null,null,null,null,null,null,null,null,"X","X","X","X",null,null,null,null,"X",null,null,null,null,"x",null,null,null,null,null,null,null,null,null,null,null,"x","x",null,null,null,null,null,null,null,null,null,null,"x",null,null,null,null,null,null,null,null,null,null,"x",null,"x","x","x",null,null,null,null,"x","x"]
[null,"ANTIOQUIA","CONCEPCION",5206,"4","x","x","x","x","x",null,"x",null,"X","X","x",null,"x",null,null,"x","x","x","x",null,null,null,null,null,null,null,null,null,null,"X","X",null,"X","X",null,null,null,null,null,null,null,null,null,null,null,null,null,null,null,null," "," "," "," ",null,null,null,null,null,null," "," "," "," ","X"," "," "," "," ",null,null,null,null," "," ","X","X","X","X",null,"X","X",null,null,null,null,null,null,null,null,"X","X","X","X",null,null,null,null,"X",null,null,null,null,"x",null,null,null,null,null,null,null,null,null,null,null,"x","x",null,null,null,null,null,null,null,null,null,null,"x",null,null,null,null,null,null,null,null,null,null,"x",null,"x","x"," ",null,null,null,null,"x","x"]
[null,"ANTIOQUIA","CONCORDIA",5209,"Otros","x","x","x","x","x",null,null,"x","X","X",null,null,null,null,"x","x","x","x","x",null,null,null,null,null,null,null,"X","X",null,"X","X","X","X","X",null,null,null,null,null,null,null,null,null,null,null,null,null,null,null,null,"X","X","X","X","X","X",null,null,null,null,"X","X","X","X","X","X","X","X","X",null,null,null,null,"X","X","X","X","X","X",null,"X","X",null,null,null,null,null,null,null,null,"X","X","X","X",null,null,null,null,"X",null,null,null,null,"x",null,null,null,null,null,null,null,null,null,null,null,"x","x",null,null,null,null,null,null,null,null,null,null,"x",null,null,null,null,null,null,null,null,null,null,"x",null,"x","x"," ",null,null,null,null,"x","x"]
[null,"ANTIOQUIA","COPACABANA",5212,"3","x","x","x","x","x","x","x",null,"X","X","x",null,"x",null,null,"x","x","x","x",null,null,null,null,null,null,null,"X","X",null,"X","X","X","X","X",null,null,null,null,null,null,null,null,null,null,null,null,null,null,null,null,"X","X","X","X","X",null,null,null,null,null,"X","X","X","X","X","X","X","X","X",null,null,null,null,"X","X","X","X","X","X","X","X","X","X",null,null,"X","X","X","X",null,"X","X","X","X",null,null,null,null,"X",null,null,null,null,"x",null,null,null,null,null,null,null,null,null,null,null,"x","x",null,null,null,null,null,null,null,null,null,null,"x",null,null,null,null,null,null,null,null,null,null,"x",null,"x","x","x",null,null,null,null,"x","x"]
[null,"ANTIOQUIA","DABEIBA",5234,"3","x","x","x","x","x","x","x","x","X","X","x",null,"x",null,"x","x","x","x","x",null,null,null,null,null,null,null,null,null,null,"X","",null,"X","X",null,null,null,null,null,null,null,null,null,null,null,null,null,null,null,null," "," "," "," ","",null,null,null,null,null," "," "," "," ","X"," "," "," "," ",null,null,null,null," "," ","X","X","X","X",null,"X","X",null,null,null,null,null,null,null,null,"X","X","X","X",null,null,null,null,"X",null,null,null,null,"x",null,null,null,null,null,null,null,null,null,null,null,"x","x",null,null,null,null,null,null,null,null,null,null,"x",null,null,null,null,null,null,null,null,null,null,"x",null,"x","x","x",null,null,null,null,"x","x"]
[null,"ANTIOQUIA","DON MATIAS",5237,"3","x","x","x","x","x","x","x","x","X","X","x",null,"x",null,"x","x","x","x","x",null,null,null,null,null,null,null,null,null,null,"X","",null,"X","X",null,null,null,null,null,null,null,null,null,null,null,null,null,null,null,null,"X","X","X","X","X",null,null,null,null,null,"X","X","X","X","X","X","X","X","X",null,null,null,null,"X","X","X","X","X","X",null,"X","X",null,null,null,null,null,null,null,null,"X","X","X","X",null,null,null,null,"X",null,null,null,null,"x",null,null,null,null,null,null,null,null,null,null,null,"x","x",null,null,null,null,null,null,null,null,null,null,"x",null,null,null,null,null,null,null,null,null,null,"x",null,"x","x","x",null,null,null,null,"x","x"]
[null,"ANTIOQUIA","EBEJICO",5240,"4","x","x","x","x","x","x","x","x","X","X","x",null,"x",null,"x","x","x","x","x",null,null,null,null,null,null,null,null,null,null,"X","",null,"X","X",null,null,null,null,null,null,null,null,null,null,null,null,null,null,null,null," "," "," "," ",null,null,null,null,null,null," "," "," "," ","X"," "," "," "," ",null,null,null,null," "," ","X","X","X","X",null,"X","X",null,null,null,null,null,null,null,null,"X","X","X","X",null,null,null,null,"X",null,null,null,null,"x",null,null,null,null,null,null,null,null,null,null,null,"x","x",null,null,null,null,null,null,null,null,null,null,"x",null,null,null,null,null,null,null,null,null,null,"x",null,"x","x","x",null,null,null,null,"x","x"]
[null,"ANTIOQUIA","EL BAGRE",5250,"3","x","x","x","x","x","x","x","x","X","X","x",null,"x",null,"x","x","x","x","x",null,null,null,null,null,null,null,null,null,null,"X","",null,"X","X",null,null,null,null,null,null,null,null,null,null,null,null,null,null,null,null,"X","X","X","X","X",null,null,null,null,null,"X","X","X","X","X","X","X","X","X",null,null,null,null,"X","X","X","X","X","X",null,"X","X",null,null,null,null,null,null,null,null,"X","X","X","X",null,null,null,null,"X",null,null,null,null,"x",null,null,null,null,null,null,null,null,null,null,null,"x","x",null,null,null,null,null,null,null,null,null,null,"x",null,null,null,null,null,null,null,null,null,null,"x",null,"x","x","x",null,null,null,null,"x","x"]
[null,"ANTIOQUIA","ENTRERRIOS",5264,"Otros","x","x","x","x","x","x",null,null,"X","X",null,null,null,null,null,"x","x","x","x",null,null,null,null,null,null,null,null,null,null,"X","",null,"X","X",null,null,null,null,null,null,null,null,null,null,null,null,null,null,null,null,"X","X","X","X","X","X",null,null,null,null,"X","X","X","X","X","X","X","X","X",null,null,null,null,"X","X","X","X","X","X",null,"X","X",null,null,null,null,null,null,null,"X","X","X","X","X",null,null,null,null,"X",null,null,null,null,"x",null,null,null,null,null,null,null,null,null,null,null,"x","x",null,null,null,null,null,null,null,null,null,null,"x",null,null,null,null,null,null,null,null,null,null,"x",null,"x","x"," ",null,null,null,null,"x","x"]
[null,"ANTIOQUIA","ENVIGADO",5266,"1","x","x","x","x","x","x","x","x","X","X","x",null,"x",null,"x","x","x","x","x",null,null,null,null,null,null,null,"X","X",null,"X","X","X","X","X",null,null,null,null,null,null,null,null,null,null,null,null,null,null,null,null,"X","X","X","X","X","X",null,null,null,null,"X","X","X","X","X","X","X","X","X",null,null,null,null,"X","X","X","X","X","X","X","X","X","X",null,null,"X","X","X","X","X","X","X","X","X",null,null,null,null,"X",null,"x","x","x","x",null,null,null,null,null,"x","x","x","x","X","x","x","x","x",null,null,null,null,null,null,"x","x","x","x",null,null,"x",null,null,null,"x","x","x","x","x",null,"x","x","x",null,null,null,null,"x","x","x","x","x","x",null,null,null,null,null,"x","x","x","x",null,null,null,null,null,null,null,null,null,null,null,"x","x","x","x"]
[null,"ANTIOQUIA","FREDONIA",5282,"Otros","x","x","x","x","x",null,null,"x","X","X",null,null,null,null,"x","x","x","x","x",null,null,null,null,null,null,null,"X","X",null,"X","X","X","X","X",null,null,null,null,null,null,null,null,null,null,null,null,null,null,null,null,"X","X","X","X","X","X",null,null,null,null,"X","X","X","X","X","X","X","X","X",null,null,null,null,"X","X","X","X","X","X",null,"X","X",null,null,null,null,null,null,null,null,"X","X","X","X",null,null,null,null,"X",null,null,null,null,"x",null,null,null,null,null,null,null,null,null,"X",null,"x","x",null,null,null,null,null,null,null,null,null,null,"x",null,null,null,null,null,null,null,null,null,null,"x",null,"x","x","x",null,null,null,null,"x","x"]
[null,"ANTIOQUIA","FRONTINO",5284,"3","x","x","x","x","x","x","x","x","X","X","x",null,"x",null,"x","x","x","x","x",null,null,null,null,null,null,null,null,null,null,"X","",null,"X","X",null,null,null,null,null,null,null,null,null,null,null,null,null,null,null,null," "," "," "," ","",null,null,null,null,null," "," "," "," ","X"," "," "," "," ",null,null,null,null," "," ","X","X","X","X","X","X","X","X",null,null,"X","X","X","X",null,"X","X","X","X",null,null,null,null,"X",null,null,null,null,"x",null,null,null,null,null,null,null,null,null,null,null,"x","x",null,null,null,null,null,null,null,null,null,null,"x",null,null,null,null,null,null,null,null,null,null,"x",null,"x","x","x",null,null,null,null,"x","x"]
[null,"ANTIOQUIA","GIRALDO",5306,"Otros","x","x","x","x",null,null,null,null,"X","X",null,null,null,null,null,"x","x","x","x",null,null,null,null,null,null,null,null,null,null,"X","",null,"X","X",null,null,null,null,null,null,null,null,null,null,null,null,null,null,null,null," "," "," "," ","",null,null,null,null,null," "," "," "," ","X"," "," "," "," ",null,null,null,null," "," ","X","X","X","X",null,"X","X",null,null,null,null,null,null,null,null,"X","X","X","X",null,null,null,null,"X",null,null,null,null,"x",null,null,null,null,null,null,null,null,null,null,null,"x","x",null,null,null,null,null,null,null,null,null,null,null,null,null,null,null,null,null,null,null,null,null,"x",null,"x","x","x"]
[null,"ANTIOQUIA","GIRARDOTA",5308,"3","x","x","x","x","x","x","x","x","X","X","x",null,"x",null,"x","x","x","x","x",null,null,null,null,null,null,null,null,null,null,"X","",null,"X","X",null,null,null,null,null,null,null,null,null,null,null,null,null,null,null,null,"X","X","X","X","X",null,null,null,null,null,"X","X","X","X","X","X","X","X","X",null,null,null,null,"X","X","X","X","X","X","X","X","X","X",null,null,"X","X","X","X","X","X","X","X","X",null,null,null,null,"X",null,null,null,null,"x",null,null,null,null,null,null,null,null,null,"X",null,"x","x",null,null,null,null,null,null,null,null,null,null,"x",null,null,null,null,null,null,null,null,null,null,"x",null,"x","x","x",null,null,null,null,"x","x"]
[null,"ANTIOQUIA","GOMEZ PLATA",5310,"4","x","x","x","x","x","x","x","x","X","X","x",null,"x",null,"x","x","x","x","x",null,null,null,null,null,null,null,null,null,null,"X","",null,"X","X",null,null,null,null,null,null,null,null,null,null,null,null,null,null,null,null," "," "," "," ",null,null,null,null,null,null," "," "," "," ","X"," "," "," "," ",null,null,null,null," "," ","X","X","X","X",null,"X","X",null,null,null,null,null,null,null,null,"X","X","X","X",null,null,null,null,"X",null,null,null,null,"x",null,null,null,null,null,null,null,null,null,null,null,"x","x",null,null,null,null,null,null,null,null,null,null,"x",null,null,null,null,null,null,null,null,null,null,"x",null,"x","x","x",null,null,null,null,"x","x"]
[null,"ANTIOQUIA","GRANADA",5313,"4","x","x","x","x","x","x","x",null,"X","X","x",null,"x",null,null,"x","x","x","x",null,null,null,null,null,null,null,null,null,null,"X","",null,"X","X",null,null,null,null,null,null,null,null,null,null,null,null,null,null,null,null," "," "," "," ",null,null,null,null,null,null," "," "," "," ","X"," "," "," "," ",null,null,null,null," "," ","X","X","X","X",null,"X","X",null,null,null,null,null,null,null,null,"X","X","X","X",null,null,null,null,"X",null,null,null,null,"x",null,null,null,null,null,null,null,null,null,null,null,"x","x",null,null,null,null,null,null,null,null,null,null,"x",null,null,null,null,null,null,null,null,null,null,"x",null,"x","x"," ",null,null,null,null,"x","x"]
[null,"ANTIOQUIA","GUADALUPE",5315,"4","x","x","x","x","x","x","x","x","X","X","x",null,"x",null,"x","x","x","x","x",null,null,null,null,null,null,null,null,null,null,"X","",null,"X","X",null,null,null,null,null,null,null,null,null,null,null,null,null,null,null,null," "," "," "," ",null,null,null,null,null,null," "," "," "," ","X"," "," "," "," ",null,null,null,null," "," ","X","X","X","X",null,"X","X",null,null,null,null,null,null,null,null,"X","X","X","X",null,null,null,null,"X",null,null,null,null,"x",null,null,null,null,null,null,null,null,null,null,null,"x","x",null,null,null,null,null,null,null,null,null,null,"x",null,null,null,null,null,null,null,null,null,null,"x",null,"x","x"," ",null,null,null,null,"x","x"]
[null,"ANTIOQUIA","GUARNE",5318,"3","x","x","x","x","x","x","x","x","X","X","x",null,"x",null,"x","x","x","x","x",null,null,null,null,null,null,null,null,null,null,"X","",null,"X","X",null,null,null,null,null,null,null,null,null,null,null,null,null,null,null,null,"X","X","X","X","X",null,null,null,null,null,"X","X","X","X","X","X","X","X","X",null,null,null,null,"X","X","X","X","X","X","X","X","X","X",null,null,"X","X","X","X","X","X","X","X","X",null,null,null,null,"X",null,null,null,null,"x",null,null,null,null,null,null,null,null,null,null,null,"x","x",null,null,null,null,null,null,null,null,null,null,"x",null,null,null,null,null,null,null,null,null,null,"x",null,"x","x","x",null,null,null,null,"x","x"]
[null,"ANTIOQUIA","GUATAPE",5321,"Otros","x","x","x","x",null,null,null,null,"X","X",null,null,null,null,null,"x","x","x","x",null,null,null,null,null,null,null,null,null,null,"X","",null,"X","X",null,null,null,null,null,null,null,null,null,null,null,null,null,null,null,null," "," "," "," ","X","X",null,null,null,null," "," "," "," ","X"," "," "," "," ",null,null,null,null," "," ","X","X","X","X",null,"X","X",null,null,null,null,null,null,null,"X","X","X","X","X",null,null,null,null,"X",null,null,null,null,"x",null,null,null,null,null,null,null,null,null,null,null,"x","x",null,null,null,null,null,null,null,null,null,null,"x",null,null,null,null,null,null,null,null,null,null,"x",null,"x","x","x",null,null,null,null,"x","x",null,null,null,null,null,null,null,null,null,null,null,null,null,null,null,null,null,null,null,null,null,null,null,null,"x","x","x","x"]
[null,"ANTIOQUIA","HELICONIA",5347,"4","x","x","x","x","x","x","x",null,"X","X","x",null,"x",null,null,"x","x","x","x",null,null,null,null,null,null,null,null,null,null,"X","",null,"X","X",null,null,null,null,null,null,null,null,null,null,null,null,null,null,null,null," "," "," "," ",null,null,null,null,null,null," "," "," "," ","X"," "," "," "," ",null,null,null,null," "," ","X","X","X","X",null,"X","X",null,null,null,null,null,null,null,null,"X","X","X","X",null,null,null,null,"X",null,null,null,null,"x",null,null,null,null,null,null,null,null,null,null,null,"x","x",null,null,null,null,null,null,null,null,null,null,"x",null,null,null,null,null,null,null,null,null,null,"x",null,"x","x","x",null,null,null,null,"x","x"]
[null,"ANTIOQUIA","HISPANIA",5353,"Otros","x","x","x","x","x",null,null,"x","X","X",null,null,null,null,"x","x","x","x","x",null,null,null,null,null,null,null,null,null,null,"X","",null,"X","X",null,null,null,null,null,null,null,null,null,null,null,null,null,null,null,null," "," "," "," ","",null,null,null,null,null," "," "," "," ","X"," "," "," "," ",null,null,null,null," "," ","X","X","X","X",null,"X","X",null,null,null,null,null,null,null,null,"X","X","X","X",null,null,null,null,"X",null,null,null,null,"x",null,null,null,null,null,null,null,null,null,null,null,"x","x",null,null,null,null,null,null,null,null,null,null,null,null,null,null,null,null,null,null,null,null,null,"x",null,"x","x","x"]
[null,"ANTIOQUIA","ITAGUI",5360,"Otros","x","x","x","x","x","x","x","x","X","X","x",null,"x",null,"x","x","x","x","x",null,null,null,null,null,null,null,"X","X",null,"X","X","X","X","X",null,null,null,null,null,null,null,null,null,null,null,null,null,null,null,null,"X","X","X","X","X","X",null,null,null,null,"X","X","X","X","X","X","X","X","X",null,null,null,null,"X","X","X","X","X","X","X","X","X","X",null,null,"X","X","X","X","X","X","X","X","X",null,null,null,null,"X",null,"x","x","x","x",null,null,null,null,null,"x","x","x","x","X","x","x","x","x",null,null,null,null,null,null,"x","x","x","x",null,null,"x",null,null,null,"x","x","x","x","x",null,"x","x","x",null,null,null,null,"x","x","x","x","x","x",null,null,null,null,null,"x","x","x","x",null,null,null,null,null,null,null,null,null,null,null,"x","x","x","x"]
[null,"ANTIOQUIA","ITUANGO",5361,"4","x","x","x","x","x","x","x","x","X","X","x",null,"x",null,"x","x","x","x","x",null,null,null,null,null,null,null,null,null,null,"X","",null,"X","X",null,null,null,null,null,null,null,null,null,null,null,null,null,null,null,null," "," "," "," ",null,null,null,null,null,null," "," "," "," ","X"," "," "," "," ",null,null,null,null," "," ","X","X","X","X",null,"X","X",null,null,null,null,null,null,null,null,"X","X","X","X",null,null,null,null,"X",null,null,null,null,"x",null,null,null,null,null,null,null,null,null,null,null,"x","x",null,null,null,null,null,null,null,null,null,null,"x",null,null,null,null,null,null,null,null,null,null,"x",null,"x","x","x",null,null,null,null,"x","x"]
[null,"ANTIOQUIA","JARDIN",5364,"3","x","x","x","x","x","x","x","x","X","X","x",null,"x",null,"x","x","x","x","x",null,null,null,null,null,null,null,"X","X",null,"X","X","X","X","X",null,null,null,null,null,null,null,null,null,null,null,null,null,null,null,null,"X","X","X","X","X",null,null,null,null,null,"X","X","X","X","X","X","X","X","X",null,null,null,null,"X","X","X","X","X","X",null,"X","X",null,null,null,null,null,null,null,null,"X","X","X","X",null,null,null,null,"X",null,null,null,null,"x",null,null,null,null,null,null,null,null,null,null,null,"x","x",null,null,null,null,null,null,null,null,null,null,"x",null,null,null,null,null,null,null,null,null,null,"x",null,"x","x","x",null,null,null,null,"x","x"]
[null,"ANTIOQUIA","JERICO",5368,"4","x","x","x","x","x","x","x",null,"X","X","x",null,"x",null,null,"x","x","x","x",null,null,null,null,null,null,null,"X","X",null,"X","X","X","X","X",null,null,null,null,null,null,null,null,null,null,null,null,null,null,null,null," "," "," "," ",null,null,null,null,null,null," "," "," "," ","X"," "," "," "," ",null,null,null,null," "," ","X","X","X","X",null,"X","X",null,null,null,null,null,null,null,null,"X","X","X","X",null,null,null,null,"X",null,null,null,null,"x",null,null,null,null,null,null,null,null,null,null,null,"x","x",null,null,null,null,null,null,null,null,null,null,"x",null,null,null,null,null,null,null,null,null,null,"x",null,"x","x"," ",null,null,null,null,"x","x"]
[null,"ANTIOQUIA","LA CEJA",5376,"2","x","x","x","x","x","x","x","x","X","X","x",null,"x",null,"x","x","x","x","x",null,null,null,null,null,null,null,"X","X",null,"X","X","X","X","X",null,null,null,null,null,null,null,null,null,null,null,null,null,null,null,null,"X","X","X","X","X","X",null,null,null,null,"X","X","X","X","X","X","X","X","X",null,null,null,null,"X","X","X","X","X","X","X","X","X","X",null,null,"X","X","X","X",null,"X","X","X","X",null,null,null,null,"X",null,"x","x","x","x",null,null,null,null,null,"x","x","x","x","X","x","x","x","x",null,null,null,null,null,null,null,null,null,"x",null,null,null,null,null,null,null,null,null,null,"x",null,"x","x","x",null,null,null,null,"x","x","x","x","x","x",null,null,null,null,null,"x","x","x","x"]
[null,"ANTIOQUIA","LA ESTRELLA",5380,"3","x","x","x","x","x","x","x","x","X","X","x",null,"x",null,"x","x","x","x","x",null,null,null,null,null,null,null,"X","X",null,"X","X","X","X","X",null,null,null,null,null,null,null,null,null,null,null,null,null,null,null,null,"X","X","X","X","X",null,null,null,null,null,"X","X","X","X","X","X","X","X","X",null,null,null,null,"X","X","X","X","X","X","X","X","X","X",null,null,"X","X","X","X","X","X","X","X","X",null,null,null,null,"X",null,null,null,null,"x",null,null,null,null,null,null,null,null,null,"X",null,"x","x",null,null,null,null,null,null,null,null,null,null,"x",null,null,null,null,null,null,null,null,null,null,"x",null,"x","x","x",null,null,null,null,"x","x"]
[null,"ANTIOQUIA","LA PINTADA",5390,"4","x","x","x","x","x","x","x",null,"X","X","x",null,"x",null,null,"x","x","x","x",null,null,null,null,null,null,null,null,null,null,"X","",null,"X","X",null,null,null,null,null,null,null,null,null,null,null,null,null,null,null,null," "," "," "," ",null,null,null,null,null,null," "," "," "," ","X"," "," "," "," ",null,null,null,null," "," ","X","X","X","X",null,"X","X",null,null,null,null,null,null,null,null,"X","X","X","X",null,null,null,null,"X",null,null,null,null,"x",null,null,null,null,null,null,null,null,null,null,null,"x","x",null,null,null,null,null,null,null,null,null,null,"x",null,null,null,null,null,null,null,null,null,null,"x",null,"x","x","x",null,null,null,null,"x","x"]
[null,"ANTIOQUIA","LA UNION",5400,"3","x","x","x","x","x","x","x","x","X","X","x",null,"x",null,"x","x","x","x","x",null,null,null,null,null,null,null,null,null,null,"X","",null,"X","X",null,null,null,null,null,null,null,null,null,null,null,null,null,null,null,null,"X","X","X","X","X",null,null,null,null,null,"X","X","X","X","X","X","X","X","X",null,null,null,null,"X","X","X","X","X","X",null,"X","X",null,null,null,null,null,null,null,null,"X","X","X","X",null,null,null,null,"X",null,null,null,null,"x",null,null,null,null,null,null,null,null,null,null,null,"x","x",null,null,null,null,null,null,null,null,null,null,"x",null,null,null,null,null,null,null,null,null,null,"x",null,"x","x"," ",null,null,null,null,"x","x"]
[null,"ANTIOQUIA","LIBORINA",5411,"4","x","x","x","x","x","x","x",null,"X","X","x",null,"x",null,null,"x","x","x","x",null,null,null,null,null,null,null,null,null,null,"X","",null,"X","X",null,null,null,null,null,null,null,null,null,null,null,null,null,null,null,null," "," "," "," ",null,null,null,null,null,null," "," "," "," ","X"," "," "," "," ",null,null,null,null," "," ","X","X","X","X","X","X","X","X",null,null,"X","X","X","X",null,"X","X","X","X",null,null,null,null,"X",null,null,null,null,"x",null,null,null,null,null,null,null,null,null,null,null,"x","x",null,null,null,null,null,null,null,null,null,null,"x",null,null,null,null,null,null,null,null,null,null,"x",null,"x","x","x",null,null,null,null,"x","x"]
[null,"ANTIOQUIA","MACEO",5425,"4","x","x","x","x","x","x","x",null,"X","X","x",null,"x",null,null,"x","x","x","x",null,null,null,null,null,null,null,null,null,null,"X","",null,"X","X",null,null,null,null,null,null,null,null,null,null,null,null,null,null,null,null," "," "," "," ",null,null,null,null,null,null," "," "," "," ","X"," "," "," "," ",null,null,null,null," "," ","X","X","X","X",null,"X","X",null,null,null,null,null,null,null,null,"X","X","X","X",null,null,null,null,"X",null,null,null,null,"x",null,null,null,null,null,null,null,null,null,null,null,"x","x",null,null,null,null,null,null,null,null,null,null,"x",null,null,null,null,null,null,null,null,null,null,"x",null,"x","x","x",null,null,null,null,"x","x"]
[null,"ANTIOQUIA","MARINILLA",5440,"3","x","x","x","x","x","x","x","x","X","X","x",null,"x",null,"x","x","x","x","x",null,null,null,null,null,null,null,null,null,null,"X","",null,"X","X",null,null,null,null,null,null,null,null,null,null,null,null,null,null,null,null,"X","X","X","X","X",null,null,null,null,null,"X","X","X","X","X","X","X","X","X",null,null,null,null,"X","X","X","X","X","X","X","X","X","X",null,null,"X","X","X","X","X","X","X","X","X",null,null,null,null,"X",null,null,null,null,"x",null,null,null,null,null,null,null,null,null,"X",null,"x","x",null,null,null,null,null,null,null,null,null,null,"x",null,null,null,null,null,null,null,null,null,null,"x",null,"x","x","x",null,null,null,null,"x","x"]
[null,"ANTIOQUIA","MONTEBELLO",5467,"4","x","x","x","x","x","x","x",null,"X","X","x",null,"x",null,null,"x","x","x","x",null,null,null,null,null,null,null,null,null,null,"X","",null,"X","X",null,null,null,null,null,null,null,null,null,null,null,null,null,null,null,null," "," "," "," ",null,null,null,null,null,null," "," "," "," ","X"," "," "," "," ",null,null,null,null," "," ","X","X","X","X",null,"X","X",null,null,null,null,null,null,null,null,"X","X","X","X",null,null,null,null,"X",null,null,null,null,"x",null,null,null,null,null,null,null,null,null,null,null,"x","x",null,null,null,null,null,null,null,null,null,null,"x",null,null,null,null,null,null,null,null,null,null,"x",null,"x","x","x",null,null,null,null,"x","x"]
[null,"ANTIOQUIA","MURINDO",5475,"Otros","x","x","x","x",null,null,null,null,"X","X",null,null,null,null,null,"x","x","x","x",null,null,null,null,null,null,null,null,null,null,"X","",null,"X","X",null,null,null,null,null,null,null,null,null,null,null,null,null,null,null,null," "," "," "," ","",null,null,null,null,null," "," "," "," ","X"," "," "," "," ",null,null,null,null," "," ","X","X","X","X",null,"X","X",null,null,null,null,null,null,null,null,"X","X","X","X",null,null,null,null,"X",null,null,null,null,"x",null,null,null,null,null,null,null,null,null,null,null,"x","x",null,null,null,null,null,null,null,null,null,null,null,null,null,null,null,null,null,null,null,null,null,null,null,"x","x"," "]
[null,"ANTIOQUIA","MUTATA",5480,"4","x","x","x","x","x","x","x","x","X","X","x",null,"x",null,"x","x","x","x","x",null,null,null,null,null,null,null,null,null,null,"X","",null,"X","X",null,null,null,null,null,null,null,null,null,null,null,null,null,null,null,null," "," "," "," ",null,null,null,null,null,null," "," "," "," ","X"," "," "," "," ",null,null,null,null," "," ","X","X","X","X",null,"X","X",null,null,null,null,null,null,null,null,"X","X","X","X",null,null,null,null,"X",null,null,null,null,"x",null,null,null,null,null,null,null,null,null,null,null,"x","x",null,null,null,null,null,null,null,null,null,null,"x",null,null,null,null,null,null,null,null,null,null,"x",null,"x","x","x",null,null,null,null,"x","x"]
[null,"ANTIOQUIA","NARIÑO",5483,"4","x","x","x","x","x","x","x","x","X","X","x",null,"x",null,"x","x","x","x","x",null,null,null,null,null,null,null,null,null,null,"X","",null,"X","X",null,null,null,null,null,null,null,null,null,null,null,null,null,null,null,null," "," "," "," ",null,null,null,null,null,null," "," "," "," ","X"," "," "," "," ",null,null,null,null," "," ","X","X","X","X",null,"X","X",null,null,null,null,null,null,null,null,"X","X","X","X",null,null,null,null,"X",null,null,null,null,"x",null,null,null,null,null,null,null,null,null,null,null,"x","x",null,null,null,null,null,null,null,null,null,null,"x",null,null,null,null,null,null,null,null,null,null,null,null,"x","x","x",null,null,null,null,"x","x"]
[null,"ANTIOQUIA","NECOCLI",5490,"3","x","x","x","x","x","x","x","x","X","X","x",null,"x",null,"x","x","x","x","x",null,null,null,null,null,null,null,null,null,null,"X","",null,"X","X",null,null,null,null,null,null,null,null,null,null,null,null,null,null,null,null,"X","X","X","X","X",null,null,null,null,null,"X","X","X","X","X","X","X","X","X",null,null,null,null,"X","X","X","X","X","X",null,"X","X",null,null,null,null,null,null,null,null,"X","X","X","X",null,null,null,null,"X",null,null,null,null,"x",null,null,null,null,null,null,null,null,null,null,null,"x","x",null,null,null,null,null,null,null,null,null,null,"x",null,null,null,null,null,null,null,null,null,null,"x",null,"x","x","x",null,null,null,null,"x","x"]
[null,"ANTIOQUIA","NECHI",5495,"3","x","x","x","x","x","x","x","x","X","X","x",null,"x",null,"x","x","x","x","x",null,null,null,null,null,null,null,null,null,null,"X","",null,"X","X",null,null,null,null,null,null,null,null,null,null,null,null,null,null,null,null," "," "," "," ","",null,null,null,null,null," "," "," "," ","X"," "," "," "," ",null,null,null,null," "," ","X","X","X","X",null,"X","X",null,null,null,null,null,null,null,null,"X","X","X","X",null,null,null,null,"X",null,null,null,null,"x",null,null,null,null,null,null,null,null,null,null,null,"x","x",null,null,null,null,null,null,null,null,null,null,"x",null,null,null,null,null,null,null,null,null,null,"x",null,"x","x","x",null,null,null,null,"x","x"]
[null,"ANTIOQUIA","OLAYA",5501,"Otros","x","x","x","x",null,null,null,null,"X","X",null,null,null,null,null,"x","x","x","x",null,null,null,null,null,null,null,null,null,null,"X","",null,"X","X",null,null,null,null,null,null,null,null,null,null,null,null,null,null,null,null," "," "," "," ","",null,null,null,null,null," "," "," "," ","X"," "," "," "," ",null,null,null,null," "," ","X","X","X","X",null,"X","X",null,null,null,null,null,null,null,null,"X","X","X","X",null,null,null,null,"X",null,null,null,null,"x",null,null,null,null,null,null,null,null,null,null,null,"x","x",null,null,null,null,null,null,null,null,null,null,null,null,null,null,null,null,null,null,null,null,null,"x",null,"x","x"," "]
[null,"ANTIOQUIA","PEÐOL",5541,"4","x","x","x","x","x","x","x","x","X","X","x",null,"x",null,"x","x","x","x","x",null,null,null,null,null,null,null,null,null,null,"X","",null,"X","X",null,null,null,null,null,null,null,null,null,null,null,null,null,null,null,null,"X","X","X","X",null,null,null,null,null,null,"X","X","X","X","X","X","X","X","X",null,null,null,null,"X","X","X","X","X","X",null,"X","X",null,null,null,null,null,null,null,null,"X","X","X","X",null,null,null,null,"X",null,null,null,null,"x",null,null,null,null,null,null,null,null,null,null,null,"x","x",null,null,null,null,null,null,null,null,null,null,null,null,null,null,null,null,null,null,null,null,null,"x",null,"x","x"," "]
[null,"ANTIOQUIA","PEQUE",5543,"4","x","x","x","x","x","x","x","x","X","X","x",null,"x",null,"x","x","x","x","x",null,null,null,null,null,null,null,null,null,null,"X","",null,"X","X",null,null,null,null,null,null,null,null,null,null,null,null,null,null,null,null," "," "," "," ",null,null,null,null,null,null," "," "," "," ","X"," "," "," "," ",null,null,null,null," "," ","X","X","X","X",null,"X","X",null,null,null,null,null,null,null,null,"X","X","X","X",null,null,null,null,"X",null,null,null,null,"x",null,null,null,null,null,null,null,null,null,null,null,"x","x",null,null,null,null,null,null,null,null,null,null,"x",null,null,null,null,null,null,null,null,null,null,"x",null,"x","x","x",null,null,null,null,"x","x"]
[null,"ANTIOQUIA","PUEBLORRICO",5576,"4","x","x","x","x","x","x","x","x","X","X","x",null,"x",null,"x","x","x","x","x",null,null,null,null,null,null,null,null,null,null,"X","",null,"X","X",null,null,null,null,null,null,null,null,null,null,null,null,null,null,null,null," "," "," "," ",null,null,null,null,null,null," "," "," "," ","X"," "," "," "," ",null,null,null,null," "," ","X","X","X","X",null,"X","X",null,null,null,null,null,null,null,null,"X","X","X","X",null,null,null,null,"X",null,null,null,null,"x",null,null,null,null,null,null,null,null,null,null,null,"x","x",null,null,null,null,null,null,null,null,null,null,"x",null,null,null,null,null,null,null,null,null,null,"x",null,"x","x"," ",null,null,null,null,"x","x"]
[null,"ANTIOQUIA","PUERTO BERRIO",5579,"3","x","x","x","x","x","x","x","x","X","X","x",null,"x",null,"x","x","x","x","x",null,null,null,null,null,null,null,"X","X",null,"X","X","X","X","X",null,null,null,null,null,null,null,null,null,null,null,null,null,null,null,null,"X","X","X","X","X",null,null,null,null,null,"X","X","X","X","X","X","X","X","X",null,null,null,null,"X","X","X","X","X","X","X","X","X","X",null,null,"X","X","X","X",null,"X","X","X","X",null,null,null,null,"X",null,null,null,null,"x",null,null,null,null,null,null,null,null,null,null,null,"x","x",null,null,null,null,null,null,null,null,null,null,"x",null,null,null,null,null,null,null,null,null,null,"x",null,"x","x","x",null,null,null,null,"x","x","x","x","x","x",null,null,null,null,null,"x","x","x","x"]
[null,"ANTIOQUIA","PUERTO NARE",5585,"3","x","x","x","x","x","x","x","x","X","X","x",null,"x",null,"x","x","x","x","x",null,null,null,null,null,null,null,null,null,null,"X","",null,"X","X",null,null,null,null,null,null,null,null,null,null,null,null,null,null,null,null," "," "," "," ","",null,null,null,null,null," "," "," "," ","X"," "," "," "," ",null,null,null,null," "," ","X","X","X","X",null,"X","X",null,null,null,null,null,null,null,null,"X","X","X","X",null,null,null,null,"X",null,null,null,null,"x",null,null,null,null,null,null,null,null,null,null,null,"x","x",null,null,null,null,null,null,null,null,null,null,null,null,null,null,null,null,null,null,null,null,null,"x",null,"x","x"," "]
[null,"ANTIOQUIA","PUERTO TRIUNFO",5591,"4","x","x","x","x","x","x","x","x","X","X","x",null,"x",null,"x","x","x","x","x",null,null,null,null,null,null,null,null,null,null,"X","",null,"X","X",null,null,null,null,null,null,null,null,null,null,null,null,null,null,null,null," "," "," "," ",null,null,null,null,null,null," "," "," "," ","X"," "," "," "," ",null,null,null,null," "," ","X","X","X","X",null,"X","X",null,null,null,null,null,null,null,null,"X","X","X","X",null,null,null,null,"X",null,null,null,null,"x",null,null,null,null,null,null,null,null,null,null,null,"x","x",null,null,null,null,null,null,null,null,null,null,"x",null,null,null,null,null,null,null,null,null,null,"x",null,"x","x","x",null,null,null,null,"x","x"]
[null,"ANTIOQUIA","REMEDIOS",5604,"4","x","x","x","x","x","x","x",null,"X","X","x",null,"x",null,null,"x","x","x","x",null,null,null,null,null,null,null,null,null,null,"X","",null,"X","X",null,null,null,null,null,null,null,null,null,null,null,null,null,null,null,null," "," "," "," ",null,null,null,null,null,null," "," "," "," ","X"," "," "," "," ",null,null,null,null," "," ","X","X","X","X",null,"X","X",null,null,null,null,null,null,null,null,"X","X","X","X",null,null,null,null,"X",null,null,null,null,"x",null,null,null,null,null,null,null,null,null,null,null,"x","x",null,null,null,null,null,null,null,null,null,null,"x",null,null,null,null,null,null,null,null,null,null,"x",null,"x","x","x",null,null,null,null,"x","x"]
[null,"ANTIOQUIA","RETIRO",5607,"3","x","x","x","x","x","x","x",null,"X","X","x",null,"x",null,null,"x","x","x","x",null,null,null,null,null,null,null,null,null,null,"X","",null,"X","X",null,null,null,null,null,null,null,null,null,null,null,null,null,null,null,null,"X","X","X","X","X",null,null,null,null,null,"X","X","X","X","X","X","X","X","X",null,null,null,null,"X","X","X","X","X","X",null,"X","X",null,null,null,null,null,null,null,"X","X","X","X","X",null,null,null,null,"X",null,null,null,null,"x",null,null,null,null,null,null,null,null,null,"X",null,"x","x",null,null,null,null,null,null,null,null,null,null,"x",null,null,null,null,null,null,null,null,null,null,"x",null,"x","x","x",null,null,null,null,"x","x"]
[null,"ANTIOQUIA","RIONEGRO",5615,"Otros","x","x","x","x","x","x","x","x","X","X","x",null,"x",null,"x","x","x","x","x",null,null,null,null,null,null,null,"X","X",null,"X","X","X","X","X",null,null,null,null,null,null,null,null,null,null,null,null,null,null,null,null,"X","X","X","X","X","X",null,null,null,null,"X","X","X","X","X","X","X","X","X",null,null,null,null,"X","X","X","X","X","X","X","X","X","X",null,null,"X","X","X","X","X","X","X","X","X",null,null,null,null,"X",null,"x","x","x","x",null,null,null,null,null,"x","x","x","x","X","x","x","x","x",null,null,null,null,null,null,"x","x","x","x",null,null,"x",null,null,null,"x","x","x","x","x",null,"x","x"," ",null,null,null,null,"x","x","x","x","x","x",null,null,null,null,null,"x","x","x","x",null,null,null,null,null,null,null,null,null,null,null,"x","x","x","x"]
[null,"ANTIOQUIA","SABANALARGA",5628,"4","x","x","x","x","x","x","x","x","X","X","x",null,"x",null,"x","x","x","x","x",null,null,null,null,null,null,null,null,null,null,"X","",null,"X","X",null,null,null,null,null,null,null,null,null,null,null,null,null,null,null,null," "," "," "," ",null,null,null,null,null,null," "," "," "," ","X"," "," "," "," ",null,null,null,null," "," ","X","X","X","X",null,"X","X",null,null,null,null,null,null,null,null,"X","X","X","X",null,null,null,null,"X",null,null,null,null,"x",null,null,null,null,null,null,null,null,null,"X",null,"x","x",null,null,null,null,null,null,null,null,null,null,"x",null,null,null,null,null,null,null,null,null,null,"x",null,"x","x","x",null,null,null,null,"x","x"]
[null,"ANTIOQUIA","SABANETA",5631,"Otros","x","x","x","x","x","x",null,"x","X","X",null,null,null,null,"x","x","x","x","x",null,null,null,null,null,null,null,"X","X",null,"X","X","X","X","X",null,null,null,null,null,null,null,null,null,null,null,null,null,null,null,null,"X","X","X","X","X","X",null,null,null,null,"X","X","X","X","X","X","X","X","X",null,null,null,null,"X","X","X","X","X","X","X","X","X","X",null,null,"X","X","X","X","X","X","X","X","X",null,null,null,null,"X",null,"x","x","x","x",null,null,null,null,null,"x","x","x","x","X","x","x","x","x",null,null,null,null,null,null,"x","x","x","x",null,null,"x",null,null,null,"x","x","x","x","x",null,"x","x","x",null,null,null,null,"x","x","x","x","x","x",null,null,null,null,null,"x","x","x","x",null,null,null,null,null,null,null,null,null,null,null,"x","x","x","x"]
[null,"ANTIOQUIA","SALGAR",5642,"Otros","x","x","x","x","x",null,null,"x","X","X",null,null,null,null,"x","x","x","x","x",null,null,null,null,null,null,null,"X","X",null,"X","X","X","X","X",null,null,null,null,null,null,null,null,null,null,null,null,null,null,null,null,"X","X","X","X","X","X",null,null,null,null,"X","X","X","X","X","X","X","X","X",null,null,null,null,"X","X","X","X","X","X",null,"X","X",null,null,null,null,null,null,null,null,"X","X","X","X",null,null,null,null,"X",null,null,null,null,"x",null,null,null,null,null,null,null,null,null,null,null,"x","x",null,null,null,null,null,null,null,null,null,null,"x",null,null,null,null,null,null,null,null,null,null,"x",null,"x","x","x",null,null,null,null,"x","x"]
[null,"ANTIOQUIA","SAN ANDRES DE CUERQUIA",5647,"4","x","x","x","x","x","x","x",null,"X","X","x",null,"x",null,null,"x","x","x","x",null,null,null,null,null,null,null,null,null,null,"X","",null,"X","X",null,null,null,null,null,null,null,null,null,null,null,null,null,null,null,null," "," "," "," ",null,null,null,null,null,null," "," "," "," ","X"," "," "," "," ",null,null,null,null," "," ","X","X","X","X",null,"X","X",null,null,null,null,null,null,null,null,"X","X","X","X",null,null,null,null,"X",null,null,null,null,"x",null,null,null,null,null,null,null,null,null,null,null,"x","x",null,null,null,null,null,null,null,null,null,null,null,null,null,null,null,null,null,null,null,null,null,"x",null,"x","x"," "]
[null,"ANTIOQUIA","SAN CARLOS",5649,"4","x","x","x","x","x","x","x","x","X","X","x",null,"x",null,"x","x","x","x","x",null,null,null,null,null,null,null,null,null,null,"X","",null,"X","X",null,null,null,null,null,null,null,null,null,null,null,null,null,null,null,null," "," "," "," ",null,null,null,null,null,null," "," "," "," ","X"," "," "," "," ",null,null,null,null," "," ","X","X","X","X",null,"X","X",null,null,null,null,null,null,null,null,"X","X","X","X",null,null,null,null,"X",null,null,null,null,"x",null,null,null,null,null,null,null,null,null,null,null,"x","x",null,null,null,null,null,null,null,null,null,null,"x",null,null,null,null,null,null,null,null,null,null,"x",null,"x","x"," ",null,null,null,null,"x","x"]
[null,"ANTIOQUIA","SAN FRANCISCO",5652,"Otros","x","x","x","x","x",null,null,"x","X","X",null,null,null,null,"x","x","x","x","x",null,null,null,null,null,null,null,null,null,null,"X","",null,"X","X",null,null,null,null,null,null,null,null,null,null,null,null,null,null,null,null," "," "," "," ","",null,null,null,null,null," "," "," "," ","X"," "," "," "," ",null,null,null,null," "," ","X","X","X","X",null,"X","X",null,null,null,null,null,null,null,null,"X","X","X","X",null,null,null,null,"X",null,null,null,null,"x",null,null,null,null,null,null,null,null,null,null,null,"x","x",null,null,null,null,null,null,null,null,null,null,"x",null,null,null,null,null,null,null,null,null,null,"x",null,"x","x"," ",null,null,null,null,"x","x"]
[null,"ANTIOQUIA","SAN JERONIMO",5656,"4","x","x","x","x","x","x","x","x","X","X","x",null,"x",null,"x","x","x","x","x",null,null,null,null,null,null,null,null,null,null,"X","",null,"X","X",null,null,null,null,null,null,null,null,null,null,null,null,null,null,null,null," "," "," "," ",null,null,null,null,null,null," "," "," "," ","X"," "," "," "," ",null,null,null,null," "," ","X","X","X","X",null,"X","X",null,null,null,null,null,null,null,null,"X","X","X","X",null,null,null,null,"X",null,null,null,null,"x",null,null,null,null,null,null,null,null,null,"X",null,"x","x",null,null,null,null,null,null,null,null,null,null,"x",null,null,null,null,null,null,null,null,null,null,"x",null,"x","x","x",null,null,null,null,"x","x"]
[null,"ANTIOQUIA","SAN JOSE DE LA MONTAÑA",5658,"4","x","x","x","x","x","x","x",null,"X","X","x",null,"x",null,null,"x","x","x","x",null,null,null,null,null,null,null,null,null,null,"X","",null,"X","X",null,null,null,null,null,null,null,null,null,null,null,null,null,null,null,null," "," "," "," ",null,null,null,null,null,null," "," "," "," ","X"," "," "," "," ",null,null,null,null," "," ","X","X","X","X",null,"X","X",null,null,null,null,null,null,null,null,"X","X","X","X",null,null,null,null,"X",null,null,null,null,"x",null,null,null,null,null,null,null,null,null,null,null,"x","x",null,null,null,null,null,null,null,null,null,null,"x",null,null,null,null,null,null,null,null,null,null,"x",null,"x","x"," ",null,null,null,null,"x","x"]
[null,"ANTIOQUIA","SAN JUAN DE URABA",5659,"Otros","x","x","x","x","x",null,null,"x","X","X",null,null,null,null,"x","x","x","x","x",null,null,null,null,null,null,null,null,null,null,"X","",null,"X","X",null,null,null,null,null,null,null,null,null,null,null,null,null,null,null,null," "," "," "," ","",null,null,null,null,null," "," "," "," ","X"," "," "," "," ",null,null,null,null," "," ","X","X","X","X",null,"X","X",null,null,null,null,null,null,null,null,"X","X","X","X",null,null,null,null,"X",null,null,null,null,"x",null,null,null,null,null,null,null,null,null,null,null,"x","x",null,null,null,null,null,null,null,null,null,null,null,null,null,null,null,null,null,null,null,null,null,"x",null,"x","x","x"]
[null,"ANTIOQUIA","SAN LUIS",5660,"4","x","x","x","x","x","x","x","x","X","X","x",null,"x",null,"x","x","x","x","x",null,null,null,null,null,null,null,null,null,null,"X","",null,"X","X",null,null,null,null,null,null,null,null,null,null,null,null,null,null,null,null," "," "," "," ",null,null,null,null,null,null," "," "," "," ","X"," "," "," "," ",null,null,null,null," "," ","X","X","X","X",null,"X","X",null,null,null,null,null,null,null,null,"X","X","X","X",null,null,null,null,"X",null,null,null,null,"x",null,null,null,null,null,null,null,null,null,null,null,"x","x",null,null,null,null,null,null,null,null,null,null,"x",null,null,null,null,null,null,null,null,null,null,"x",null,"x","x"," ",null,null,null,null,"x","x"]
[null,"ANTIOQUIA","SAN PEDRO",5664,"4","x","x","x","x","x","x","x","x","X","X","x",null,"x",null,"x","x","x","x","x",null,null,null,null,null,null,null,null,null,null,"X","",null,"X","X",null,null,null,null,null,null,null,null,null,null,null,null,null,null,null,null,"X","X","X","X",null,null,null,null,null,null,"X","X","X","X","X","X","X","X","X",null,null,null,null,"X","X","X","X","X","X","X","X","X","X",null,null,"X","X","X","X",null,"X","X","X","X",null,null,null,null,"X",null,null,null,null,"x",null,null,null,null,null,null,null,null,null,"X",null,"x","x",null,null,null,null,null,null,null,null,null,null,"x",null,null,null,null,null,null,null,null,null,null,"x",null,"x","x"," ",null,null,null,null,"x","x"]
[null,"ANTIOQUIA","SAN PEDRO DE URABA",5665,"4","x","x","x","x","x","x","x","x","X","X","x",null,"x",null,"x","x","x","x","x",null,null,null,null,null,null,null,null,null,null,"X","",null,"X","X",null,null,null,null,null,null,null,null,null,null,null,null,null,null,null,null," "," "," "," ",null,null,null,null,null,null," "," "," "," ","X"," "," "," "," ",null,null,null,null," "," ","X","X","X","X",null,"X","X",null,null,null,null,null,null,null,null,"X","X","X","X",null,null,null,null,"X",null,null,null,null,"x",null,null,null,null,null,null,null,null,null,null,null,"x","x",null,null,null,null,null,null,null,null,null,null,"x",null,null,null,null,null,null,null,null,null,null,"x",null,"x","x","x",null,null,null,null,"x","x"]
[null,"ANTIOQUIA","SAN RAFAEL",5667,"4","x","x","x","x","x","x","x",null,"X","X","x",null,"x",null,null,"x","x","x","x",null,null,null,null,null,null,null,null,null,null,"X","",null,"X","X",null,null,null,null,null,null,null,null,null,null,null,null,null,null,null,null," "," "," "," ",null,null,null,null,null,null," "," "," "," ","X"," "," "," "," ",null,null,null,null," "," ","X","X","X","X",null,"X","X",null,null,null,null,null,null,null,null,"X","X","X","X",null,null,null,null,"X",null,null,null,null,"x",null,null,null,null,null,null,null,null,null,null,null,"x","x",null,null,null,null,null,null,null,null,null,null,"x",null,null,null,null,null,null,null,null,null,null,"x",null,"x","x","x",null,null,null,null,"x","x"]
[null,"ANTIOQUIA","SAN ROQUE",5670,"4","x","x","x","x","x","x","x",null,"X","X","x",null,"x",null,null,"x","x","x","x",null,null,null,null,null,null,null,null,null,null,"X","",null,"X","X",null,null,null,null,null,null,null,null,null,null,null,null,null,null,null,null," "," "," "," ",null,null,null,null,null,null," "," "," "," ","X"," "," "," "," ",null,null,null,null," "," ","X","X","X","X",null,"X","X",null,null,null,null,null,null,null,null,"X","X","X","X",null,null,null,null,"X",null,null,null,null,"x",null,null,null,null,null,null,null,null,null,null,null,"x","x",null,null,null,null,null,null,null,null,null,null,"x",null,null,null,null,null,null,null,null,null,null,"x",null,"x","x","x",null,null,null,null,"x","x"]
[null,"ANTIOQUIA","SAN VICENTE",5674,"4","x","x","x","x","x","x","x","x","X","X","x",null,"x",null,"x","x","x","x","x",null,null,null,null,null,null,null,null,null,null,"X","",null,"X","X",null,null,null,null,null,null,null,null,null,null,null,null,null,null,null,null," "," "," "," ",null,null,null,null,null,null," "," "," "," ","X"," "," "," "," ",null,null,null,null," "," ","X","X","X","X",null,"X","X",null,null,null,null,null,null,null,null,"X","X","X","X",null,null,null,null,"X",null,null,null,null,"x",null,null,null,null,null,null,null,null,null,null,null,"x","x",null,null,null,null,null,null,null,null,null,null,"x",null,null,null,null,null,null,null,null,null,null,"x",null,"x","x"," ",null,null,null,null,"x","x"]
[null,"ANTIOQUIA","SANTA BARBARA",5679,"Otros","x","x","x","x","x",null,null,"x","X","X",null,null,null,null,"x","x","x","x","x",null,null,null,null,null,null,null,"X","X",null,"X","X","X","X","X",null,null,null,null,null,null,null,null,null,null,null,null,null,null,null,null,"X","X","X","X","X","X",null,null,null,null,"X","X","X","X","X","X","X","X","X",null,null,null,null,"X","X","X","X","X","X",null,"X","X",null,null,null,null,null,null,null,null,"X","X","X","X",null,null,null,null,"X",null,null,null,null,"x",null,null,null,null,null,null,null,null,null,null,null,"x","x",null,null,null,null,null,null,null,null,null,null,"x",null,null,null,null,null,null,null,null,null,null,"x",null,"x","x"," ",null,null,null,null,"x","x"]
[null,"ANTIOQUIA","SANTA ROSA DE OSOS",5686,"3","x","x","x","x","x","x","x","x","X","X","x",null,"x",null,"x","x","x","x","x",null,null,null,null,null,null,null,null,null,null,"X","",null,"X","X",null,null,null,null,null,null,null,null,null,null,null,null,null,null,null,null,"X","X","X","X","X",null,null,null,null,null,"X","X","X","X","X","X","X","X","X",null,null,null,null,"X","X","X","X","X","X","X","X","X","X",null,null,"X","X","X","X",null,"X","X","X","X",null,null,null,null,"X",null,null,null,null,"x",null,null,null,null,null,null,null,null,null,null,null,"x","x",null,null,null,null,null,null,null,null,null,null,"x",null,null,null,null,null,null,null,null,null,null,"x",null,"x","x","x",null,null,null,null,"x","x"]
[null,"ANTIOQUIA","SANTO DOMINGO",5690,"4","x","x","x","x","x","x","x",null,"X","X","x",null,"x",null,null,"x","x","x","x",null,null,null,null,null,null,null,null,null,null,"X","",null,"X","X",null,null,null,null,null,null,null,null,null,null,null,null,null,null,null,null," "," "," "," ",null,null,null,null,null,null," "," "," "," ","X"," "," "," "," ",null,null,null,null," "," ","X","X","X","X",null,"X","X",null,null,null,null,null,null,null,null,"X","X","X","X",null,null,null,null,"X",null,null,null,null,"x",null,null,null,null,null,null,null,null,null,null,null,"x","x",null,null,null,null,null,null,null,null,null,null,"x",null,null,null,null,null,null,null,null,null,null,"x",null,"x","x","x",null,null,null,null,"x","x"]
[null,"ANTIOQUIA","EL SANTUARIO",5697,"4","x","x","x","x","x","x","x",null,"X","X","x",null,"x",null,null,"x","x","x","x",null,null,null,null,null,null,null,"X","X",null,"X","X","X","X","X",null,null,null,null,null,null,null,null,null,null,null,null,null,null,null,null,"X","X","X","X",null,null,null,null,null,null,"X","X","X","X","X","X","X","X","X",null,null,null,null,"X","X","X","X","X","X","X","X","X","X",null,null,"X","X","X","X",null,"X","X","X","X",null,null,null,null,"X",null,null,null,null,"x",null,null,null,null,null,null,null,null,null,null,null,"x","x",null,null,null,null,null,null,null,null,null,null,"x",null,null,null,null,null,null,null,null,null,null,"x",null,"x","x"," ",null,null,null,null,"x","x"]
[null,"ANTIOQUIA","SEGOVIA",5736,"3","x","x","x","x","x","x","x","x","X","X","x",null,"x",null,"x","x","x","x","x",null,null,null,null,null,null,null,null,null,null,"X","",null,"X","X",null,null,null,null,null,null,null,null,null,null,null,null,null,null,null,null," "," "," "," ","",null,null,null,null,null," "," "," "," ","X"," "," "," "," ",null,null,null,null," "," ","X","X","X","X",null,"X","X",null,null,null,null,null,null,null,null,"X","X","X","X",null,null,null,null,"X",null,null,null,null,"x",null,null,null,null,null,null,null,null,null,null,null,"x","x",null,null,null,null,null,null,null,null,null,null,"x",null,null,null,null,null,null,null,null,null,null,"x",null,"x","x","x",null,null,null,null,"x","x"]
[null,"ANTIOQUIA","SONSON",5756,"3","x","x","x","x","x","x","x","x","X","X","x",null,"x",null,"x","x","x","x","x",null,null,null,null,null,null,null,"X","X",null,"X","X","X","X","X",null,null,null,null,null,null,null,null,null,null,null,null,null,null,null,null,"X","X","X","X","X",null,null,null,null,null,"X","X","X","X","X","X","X","X","X",null,null,null,null,"X","X","X","X","X","X",null,"X","X",null,null,null,null,null,null,null,null,"X","X","X","X",null,null,null,null,"X",null,null,null,null,"x",null,null,null,null,null,null,null,null,null,null,null,"x","x",null,null,null,null,null,null,null,null,null,null,"x",null,null,null,null,null,null,null,null,null,null,"x",null,"x","x","x",null,null,null,null,"x","x"]
[null,"ANTIOQUIA","SOPETRAN",5761,"4","x","x","x","x","x","x","x","x","X","X","x",null,"x",null,"x","x","x","x","x",null,null,null,null,null,null,null,null,null,null,"X","",null,"X","X",null,null,null,null,null,null,null,null,null,null,null,null,null,null,null,null," "," "," "," ",null,null,null,null,null,null," "," "," "," ","X"," "," "," "," ",null,null,null,null," "," ","X","X","X","X",null,"X","X",null,null,null,null,null,null,null,null,"X","X","X","X",null,null,null,null,"X",null,null,null,null,"x",null,null,null,null,null,null,null,null,null,null,null,"x","x",null,null,null,null,null,null,null,null,null,null,"x",null,null,null,null,null,null,null,null,null,null,"x",null,"x","x","x",null,null,null,null,"x","x"]
[null,"ANTIOQUIA","TAMESIS",5789,"Otros","x","x","x","x","x","x","x","x","X","X","x",null,"x",null,"x","x","x","x","x",null,null,null,null,null,null,null,"X","X",null,"X","X","X","X","X",null,null,null,null,null,null,null,null,null,null,null,null,null,null,null,null," "," "," "," ","",null,null,null,null,null," "," "," "," ","X"," "," "," "," ",null,null,null,null," "," ","X","X","X","X",null,"X","X",null,null,null,null,null,null,null,null,"X","X","X","X",null,null,null,null,"X",null,null,null,null,"x",null,null,null,null,null,null,null,null,null,null,null,"x","x",null,null,null,null,null,null,null,null,null,null,"x",null,null,null,null,null,null,null,null,null,null,"x",null,"x","x","x",null,null,null,null,"x","x"]
[null,"ANTIOQUIA","TARAZA",5790,"4","x","x","x","x","x","x","x","x","X","X","x",null,"x",null,"x","x","x","x","x",null,null,null,null,null,null,null,null,null,null,"X","",null,"X","X",null,null,null,null,null,null,null,null,null,null,null,null,null,null,null,null," "," "," "," ",null,null,null,null,null,null," "," "," "," ","X"," "," "," "," ",null,null,null,null," "," ","X","X","X","X",null,"X","X",null,null,null,null,null,null,null,null,"X","X","X","X",null,null,null,null,"X",null,null,null,null,"x",null,null,null,null,null,null,null,null,null,null,null,"x","x",null,null,null,null,null,null,null,null,null,null,"x",null,null,null,null,null,null,null,null,null,null,"x",null,"x","x","x",null,null,null,null,"x","x"]
[null,"ANTIOQUIA","TARSO",5792,"4","x","x","x","x","x","x","x","x","X","X","x",null,"x",null,"x","x","x","x","x",null,null,null,null,null,null,null,null,null,null,"X","",null,"X","X",null,null,null,null,null,null,null,null,null,null,null,null,null,null,null,null," "," "," "," ",null,null,null,null,null,null," "," "," "," ","X"," "," "," "," ",null,null,null,null," "," ","X","X","X","X",null,"X","X",null,null,null,null,null,null,null,null,"X","X","X","X",null,null,null,null,"X",null,null,null,null,"x",null,null,null,null,null,null,null,null,null,null,null,"x","x",null,null,null,null,null,null,null,null,null,null,"x",null,null,null,null,null,null,null,null,null,null,"x",null,"x","x","x",null,null,null,null,"x","x"]
[null,"ANTIOQUIA","TITIRIBI",5809,"4","x","x","x","x","x","x","x",null,"X","X","x",null,"x",null,null,"x","x","x","x",null,null,null,null,null,null,null,null,null,null,"X","",null,"X","X",null,null,null,null,null,null,null,null,null,null,null,null,null,null,null,null," "," "," "," ",null,null,null,null,null,null," "," "," "," ","X"," "," "," "," ",null,null,null,null," "," ","X","X","X","X",null,"X","X",null,null,null,null,null,null,null,null,"X","X","X","X",null,null,null,null,"X",null,null,null,null,"x",null,null,null,null,null,null,null,null,null,null,null,"x","x",null,null,null,null,null,null,null,null,null,null,"x",null,null,null,null,null,null,null,null,null,null,"x",null,"x","x","x",null,null,null,null,"x","x"]
[null,"ANTIOQUIA","TOLEDO",5819,"4","x","x","x","x","x","x","x","x","X","X","x",null,"x",null,"x","x","x","x","x",null,null,null,null,null,null,null,null,null,null,"X","",null,"X","X",null,null,null,null,null,null,null,null,null,null,null,null,null,null,null,null," "," "," "," ",null,null,null,null,null,null," "," "," "," ","X"," "," "," "," ",null,null,null,null," "," ","X","X","X","X",null,"X","X",null,null,null,null,null,null,null,null,"X","X","X","X",null,null,null,null,"X",null,null,null,null,"x",null,null,null,null,null,null,null,null,null,null,null,"x","x",null,null,null,null,null,null,null,null,null,null,"x",null,null,null,null,null,null,null,null,null,null,"x",null,"x","x"," ",null,null,null,null,"x","x"]
[null,"ANTIOQUIA","TURBO",5837,"3","x","x","x","x","x","x","x","x","X","X","x",null,"x",null,"x","x","x","x","x",null,null,null,null,null,null,null,null,null,null,"X","X",null,"X","X",null,null,null,null,null,null,null,null,null,null,null,null,null,null,null,null,"X","X","X","X","X",null,null,null,null,null,"X","X","X","X","X","X","X","X","X",null,null,null,null,"X","X","X","X","X","X","X","X","X","X",null,null,"X","X","X","X",null,"X","X","X","X",null,null,null,null,"X",null,null,null,null,"x",null,null,null,null,null,null,null,null,null,"X",null,"x","x",null,null,null,null,null,null,null,null,null,null,"x",null,null,null,null,null,null,null,null,null,null,"x",null,"x","x","x",null,null,null,null,"x","x","x","x","x","x",null,null,null,null,null,"x","x","x","x"]
[null,"ANTIOQUIA","URAMITA",5842,"Otros","x","x","x","x","x",null,null,"x","X","X",null,null,null,null,"x","x","x","x","x",null,null,null,null,null,null,null,null,null,null,"X","",null,"X","X",null,null,null,null,null,null,null,null,null,null,null,null,null,null,null,null," "," "," "," ","",null,null,null,null,null," "," "," "," ","X"," "," "," "," ",null,null,null,null," "," ","X","X","X","X",null,"X","X",null,null,null,null,null,null,null,null,"X","X","X","X",null,null,null,null,"X",null,null,null,null,"x",null,null,null,null,null,null,null,null,null,null,null,"x","x",null,null,null,null,null,null,null,null,null,null,null,null,null,null,null,null,null,null,null,null,null,"x",null,"x","x","x"]
[null,"ANTIOQUIA","URRAO",5847,"Otros","x","x","x","x","x","x","x","x","X","X","x",null,"x",null,"x","x","x","x","x",null,null,null,null,null,null,null,null,null,null,"X","",null,"X","X",null,null,null,null,null,null,null,null,null,null,null,null,null,null,null,null,"X","X","X","X","X","X",null,null,null,null,"X","X","X","X","X","X","X","X","X",null,null,null,null,"X","X","X","X","X","X",null,"X","X",null,null,null,null,null,null,null,null,"X","X","X","X",null,null,null,null,"X",null,null,null,null,"x",null,null,null,null,null,null,null,null,null,null,null,"x","x",null,null,null,null,null,null,null,null,null,null,"x",null,null,null,null,null,null,null,null,null,null,"x",null,"x","x","x",null,null,null,null,"x","x","x","x","x","x",null,null,null,null,null,"x","x","x","x"]
[null,"ANTIOQUIA","VALDIVIA",5854,"4","x","x","x","x","x","x","x","x","X","X","x",null,"x",null,"x","x","x","x","x",null,null,null,null,null,null,null,null,null,null,"X","",null,"X","X",null,null,null,null,null,null,null,null,null,null,null,null,null,null,null,null," "," "," "," ",null,null,null,null,null,null," "," "," "," ","X"," "," "," "," ",null,null,null,null," "," ","X","X","X","X",null,"X","X",null,null,null,null,null,null,null,null,"X","X","X","X",null,null,null,null,"X",null,null,null,null,"x",null,null,null,null,null,null,null,null,null,null,null,"x","x",null,null,null,null,null,null,null,null,null,null,"x",null,null,null,null,null,null,null,null,null,null,"x",null,"x","x","x",null,null,null,null,"x","x"]
[null,"ANTIOQUIA","VALPARAISO",5856,"4","x","x","x","x","x","x","x","x","X","X","x",null,"x",null,"x","x","x","x","x",null,null,null,null,null,null,null,null,null,null,"X","",null,"X","X",null,null,null,null,null,null,null,null,null,null,null,null,null,null,null,null," "," "," "," ",null,null,null,null,null,null," "," "," "," ","X"," "," "," "," ",null,null,null,null," "," ","X","X","X","X",null,"X","X",null,null,null,null,null,null,null,null,"X","X","X","X",null,null,null,null,"X",null,null,null,null,"x",null,null,null,null,null,null,null,null,null,null,null,"x","x",null,null,null,null,null,null,null,null,null,null,"x",null,null,null,null,null,null,null,null,null,null,"x",null,"x","x"," ",null,null,null,null,"x","x"]
[null,"ANTIOQUIA","VEGACHI",5858,"4","x","x","x","x","x","x","x",null,"X","X","x",null,"x",null,null,"x","x","x","x",null,null,null,null,null,null,null,null,null,null,"X","",null,"X","X",null,null,null,null,null,null,null,null,null,null,null,null,null,null,null,null," "," "," "," ",null,null,null,null,null,null," "," "," "," ","X"," "," "," "," ",null,null,null,null," "," ","X","X","X","X",null,"X","X",null,null,null,null,null,null,null,null,"X","X","X","X",null,null,null,null,"X",null,null,null,null,"x",null,null,null,null,null,null,null,null,null,null,null,"x","x",null,null,null,null,null,null,null,null,null,null,"x",null,null,null,null,null,null,null,null,null,null,"x",null,"x","x","x",null,null,null,null,"x","x"]
[null,"ANTIOQUIA","VENECIA",5861,"Otros","x","x","x","x","x",null,null,"x","X","X",null,null,null,null,"x","x","x","x","x",null,null,null,null,null,null,null,"X","X",null,"X","X","X","X","X",null,null,null,null,null,null,null,null,null,null,null,null,null,null,null,null," "," "," "," ","",null,null,null,null,null," "," "," "," ","X"," "," "," "," ",null,null,null,null," "," ","X","X","X","X",null,"X","X",null,null,null,null,null,null,null,null,"X","X","X","X",null,null,null,null,"X",null,null,null,null,"x",null,null,null,null,null,null,null,null,null,null,null,"x","x",null,null,null,null,null,null,null,null,null,null,"x",null,null,null,null,null,null,null,null,null,null,"x",null,"x","x"," ",null,null,null,null,"x","x"]
[null,"ANTIOQUIA","VIGIA DEL FUERTE",5873,"Otros","x","x","x","x","x",null,null,"x","X","X",null,null,null,null,"x","x","x","x","x",null,null,null,null,null,null,null,null,null,null,"X","",null,"X","X",null,null,null,null,null,null,null,null,null,null,null,null,null,null,null,null," "," "," "," ","",null,null,null,null,null," "," "," "," ","X"," "," "," "," ",null,null,null,null," "," ","X","X","X","X",null,"X","X",null,null,null,null,null,null,null,null,"X","X","X","X",null,null,null,null,"X",null,null,null,null,"x",null,null,null,null,null,null,null,null,null,null,null,"x","x",null,null,null,null,null,null,null,null,null,null,null,null,null,null,null,null,null,null,null,null,null,"x",null,"x","x","x"]
[null,"ANTIOQUIA","YALI",5885,"Otros","x","x","x","x",null,null,null,null,"X","X",null,null,null,null,null,"x","x","x","x",null,null,null,null,null,null,null,null,null,null,"X","",null,"X","X",null,null,null,null,null,null,null,null,null,null,null,null,null,null,null,null," "," "," "," ","",null,null,null,null,null," "," "," "," ","X"," "," "," "," ",null,null,null,null," "," ","X","X","X","X",null,"X","X",null,null,null,null,null,null,null,null,"X","X","X","X",null,null,null,null,"X",null,null,null,null,"x",null,null,null,null,null,null,null,null,null,null,null,"x","x",null,null,null,null,null,null,null,null,null,null,"x",null,null,null,null,null,null,null,null,null,null,"x",null,"x","x","x",null,null,null,null,"x","x"]
[null,"ANTIOQUIA","YARUMAL",5887,"3","x","x","x","x","x","x","x","x","X","X","x",null,"x",null,"x","x","x","x","x",null,null,null,null,null,null,null,"X","X",null,"X","X","X","X","X",null,null,null,null,null,null,null,null,null,null,null,null,null,null,null,null,"X","X","X","X","X",null,null,null,null,null,"X","X","X","X","X","X","X","X","X",null,null,null,null,"X","X","X","X","X","X","X","X","X","X",null,null,"X","X","X","X",null,"X","X","X","X",null,null,null,null,"X",null,null,null,null,"x",null,null,null,null,null,null,null,null,null,null,null,"x","x",null,null,null,null,null,null,null,null,null,null,"x",null,null,null,null,null,null,null,null,null,null,"x",null,"x","x","x",null,null,null,null,"x","x"]
[null,"ANTIOQUIA","YOLOMBO",5890,"Otros","x","x","x","x","x",null,null,"x","X","X",null,null,null,null,"x","x","x","x","x",null,null,null,null,null,null,null,null,null,null,"X","",null,"X","X",null,null,null,null,null,null,null,null,null,null,null,null,null,null,null,null," "," "," "," ","",null,null,null,null,null," "," "," "," ","X"," "," "," "," ",null,null,null,null," "," ","X","X","X","X",null,"X","X",null,null,null,null,null,null,null,null,"X","X","X","X",null,null,null,null,"X",null,null,null,null,"x",null,null,null,null,null,null,null,null,null,null,null,"x","x",null,null,null,null,null,null,null,"x","x","x","x",null,null,"x",null,null,null,"x","x","x","x","x",null,"x","x","x",null,null,null,null,"x","x"]
[null,"ANTIOQUIA","YONDO",5893,"4","x","x","x","x","x","x","x",null,"X","X","x",null,"x",null,null,"x","x","x","x",null,null,null,null,null,null,null,null,null,null,"X","",null,"X","X",null,null,null,null,null,null,null,null,null,null,null,null,null,null,null,null," "," "," "," ",null,null,null,null,null,null," "," "," "," ","X"," "," "," "," ",null,null,null,null," "," ","X","X","X","X","X","X","X","X",null,null,"X","X","X","X",null,"X","X","X","X",null,null,null,null,"X",null,null,null,null,"x",null,null,null,null,null,null,null,null,null,null,null,"x","x",null,null,null,null,null,null,null,null,null,null,"x",null,null,null,null,null,null,null,null,null,null,"x",null,"x","x","x",null,null,null,null,"x","x"]
[null,"ANTIOQUIA","ZARAGOZA",5895,"4","x","x","x","x","x","x","x","x","X","X","x",null,"x",null,"x","x","x","x","x",null,null,null,null,null,null,null,null,null,null,"X","",null,"X","X",null,null,null,null,null,null,null,null,null,null,null,null,null,null,null,null," "," "," "," ",null,null,null,null,null,null," "," "," "," ","X"," "," "," "," ",null,null,null,null," "," ","X","X","X","X",null,"X","X",null,null,null,null,null,null,null,null,"X","X","X","X",null,null,null,null,"X",null,null,null,null,"x",null,null,null,null,null,null,null,null,null,null,null,"x","x",null,null,null,null,null,null,null,null,null,null,"x",null,null,null,null,null,null,null,null,null,null,"x",null,"x","x","x",null,null,null,null,"x","x"]
[null,"ATLANTICO","BARRANQUILLA",8001,"1","x","x","x","x","x","x","x","x","X","X","x",null,"x",null,"x","x","x","x","x",null,null,null,null,null,null,null,"X","X",null,"X","X","X","X","X",null,null,null,null,null,null,null,null,null,null,null,null,null,null,null,null,"X","X","X","X","X","X",null,null,null,null,"X","X","X","X","X","X","X","X","X",null,null,null,null,"X","X","X","X","X","X","X","X","X","X",null,null,"X","X","X","X","X","X","X","X","X",null,null,null,null,"X",null,"x","x","x","x",null,null,null,null,null,"x","x","x","x","X","x","x","x","x",null,null,null,null,null,null,"x","x","x","x",null,null,"x",null,null,null,"x","x","x","x","x",null,"x","x","x",null,null,null,null,"x","x","x","x","x","x",null,null,null,null,null,"x","x","x","x",null,null,null,null,null,null,null,null,null,null,null,"x","x","x","x"]
[null,"ATLANTICO","BARANOA",8078,"3","x","x","x","x","x","x","x","x","X","X","x",null,"x",null,"x","x","x","x","x",null,null,null,null,null,null,null,null,null,null,null,"",null,"","",null,null,null,null,null,null,null,null,null,null,null,null,null,null,null,null,"X","X","X","X","X",null,null,null,null,null,"X","X","X","X","X","X","X","X","X",null,null,null,null,"X","X","X","X","X","X","X","X","X","X",null,null,"X","X","X","X",null,"X","X","X","X",null,null,null,null,"X",null,null,null,null,"x",null,null,null,null,null,null,null,null,null,"X",null,"x","x",null,null,null,null,null,null,null,null,null,null,"x",null,null,null,null,null,null,null,null,null,null,"x",null,"x","x","x",null,null,null,null,"x","x","x","x"]
[null,"ATLANTICO","CAMPO DE LA CRUZ",8137,"4","x","x","x","x","x","x","x",null,"X","X","x",null,"x",null,null,"x","x","x","x",null,null,null,null,null,null,null,null,null,null,null,"",null,"","",null,null,null,null,null,null,null,null,null,null,null,null,null,null,null,null," "," "," "," ",null,null,null,null,null,null," "," "," "," ","X"," "," "," "," ",null,null,null,null," "," ","X","X","X","X",null,"X","X",null,null,null,null,null,null,null,null,"X","X","X","X",null,null,null,null,"X",null,null,null,null,"x",null,null,null,null,null,null,null,null,null,null,null,"x","x",null,null,null,null,null,null,null,null,null,null,"x",null,null,null,null,null,null,null,null,null,null,"x",null,"x","x","x",null,null,null,null,"x","x"]
[null,"ATLANTICO","CANDELARIA",8141,"4","x","x","x","x","x",null,"x","x","X","X","x",null,"x",null,"x","x","x","x","x",null,null,null,null,null,null,null,null,null,null,null,"",null,"","",null,null,null,null,null,null,null,null,null,null,null,null,null,null,null,null," "," "," "," ",null,null,null,null,null,null," "," "," "," ","X"," "," "," "," ",null,null,null,null," "," ","X","X","X","X",null,"X","X",null,null,null,null,null,null,null,null,"X","X","X","X",null,null,null,null,"X",null,null,null,null,"x",null,null,null,null,null,null,null,null,null,null,null,"x","x",null,null,null,null,null,null,null,null,null,null,"x",null,null,null,null,null,null,null,null,null,null,"x",null,"x","x"," ",null,null,null,null,"x","x"]
[null,"ATLANTICO","GALAPA",8296,"Otros","x","x","x","x","x","x",null,"x","X","X",null,null,null,null,"x","x","x","x","x",null,null,null,null,null,null,null,null,null,null,null,null,null,"","",null,null,null,null,null,null,null,null,null,null,null,null,null,null,null,null,"X","X","X","X","X","X",null,null,null,null,"X","X","X","X","X","X","X","X","X",null,null,null,null,"X","X","X","X","X","X","X","X","X","X",null,null,"X","X","X","X","X","X","X","X","X",null,null,null,null,"X",null,null,null,null,"x",null,null,null,null,null,null,null,null,null,null,null,"x","x",null,null,null,null,null,null,null,null,null,null,"x",null,null,null,null,null,null,null,null,null,null,"x",null,"x","x","x",null,null,null,null,"x","x"]
[null,"ATLANTICO","JUAN DE ACOSTA",8372,"4","x","x","x","x","x","x","x",null,"X","X","x",null,"x",null,null,"x","x","x","x",null,null,null,null,null,null,null,null,null,null,null,"",null,"","",null,null,null,null,null,null,null,null,null,null,null,null,null,null,null,null," "," "," "," ",null,null,null,null,null,null," "," "," "," ","X"," "," "," "," ",null,null,null,null," "," ","X","X","X","X",null,"X","X",null,null,null,null,null,null,null,null,"X","X","X","X",null,null,null,null,"X",null,null,null,null,"x",null,null,null,null,null,null,null,null,null,null,null,"x","x",null,null,null,null,null,null,null,null,null,null,"x",null,null,null,null,null,null,null,null,null,null,"x",null,"x","x","x",null,null,null,null,"x","x"]
[null,"ATLANTICO","LURUACO",8421,"4","x","x","x","x","x","x","x",null,"X","X","x",null,"x",null,null,"x","x","x","x",null,null,null,null,null,null,null,null,null,null,null,"",null,"","",null,null,null,null,null,null,null,null,null,null,null,null,null,null,null,null," "," "," "," ",null,null,null,null,null,null," "," "," "," ","X"," "," "," "," ",null,null,null,null," "," ","X","X","X","X",null,"X","X",null,null,null,null,null,null,null,null,"X","X","X","X",null,null,null,null,"X",null,null,null,null,"x",null,null,null,null,null,null,null,null,null,null,null,"x","x",null,null,null,null,null,null,null,null,null,null,"x",null,null,null,null,null,null,null,null,null,null,"x",null,"x","x","x",null,null,null,null,"x","x"]
[null,"ATLANTICO","MALAMBO",8433,"Otros","x","x","x","x","x","x",null,"x","X","X",null,null,null,null,"x","x","x","x","x",null,null,null,null,null,null,null,null,null,null,null,null,null,"","",null,null,null,null,null,null,null,null,null,null,null,null,null,null,null,null,"X","X","X","X","X","X",null,null,null,null,"X","X","X","X","X","X","X","X","X",null,null,null,null,"X","X","X","X","X","X","X","X","X","X",null,null,"X","X","X","X","X","X","X","X","X",null,null,null,null,"X",null,null,null,null,"x",null,null,null,null,null,null,null,null,null,null,null,"x","x",null,null,null,null,null,null,null,null,null,null,"x",null,null,null,null,null,null,null,null,null,null,"x",null,"x","x","x",null,null,null,null,"x","x","x","x"]
[null,"ATLANTICO","MANATI",8436,"4","x","x","x","x","x","x","x","x","X","X","x",null,"x",null,"x","x","x","x","x",null,null,null,null,null,null,null,null,null,null,null,"",null,"","",null,null,null,null,null,null,null,null,null,null,null,null,null,null,null,null," "," "," "," ",null,null,null,null,null,null," "," "," "," ","X"," "," "," "," ",null,null,null,null," "," ","X","X","X","X",null,"X","X",null,null,null,null,null,null,null,null,"X","X","X","X",null,null,null,null,"X",null,null,null,null,"x",null,null,null,null,null,null,null,null,null,null,null,"x","x",null,null,null,null,null,null,null,null,null,null,"x",null,null,null,null,null,null,null,null,null,null,"x",null,"x","x","x",null,null,null,null,"x","x"]
[null,"ATLANTICO","PALMAR DE VARELA",8520,"Otros","x","x","x","x","x","x",null,"x","X","X",null,null,null,null,"x","x","x","x","x",null,null,null,null,null,null,null,null,null,null,null,"",null,"","",null,null,null,null,null,null,null,null,null,null,null,null,null,null,null,null," "," "," "," ","",null,null,null,null,null," "," "," "," ","X"," "," "," "," ",null,null,null,null," "," ","X","X","X","X",null,"X","X",null,null,null,null,null,null,null,null,"X","X","X","X",null,null,null,null,"X",null,null,null,null,"x",null,null,null,null,null,null,null,null,null,null,null,"x","x",null,null,null,null,null,null,null,null,null,null,null,null,null,null,null,null,null,null,null,null,null,"x",null,"x","x","x"]
[null,"ATLANTICO","PIOJO",8549,"Otros","x","x","x","x","x",null,null,"x","X","X",null,null,null,null,"x","x","x","x","x",null,null,null,null,null,null,null,null,null,null,null,"",null,"","",null,null,null,null,null,null,null,null,null,null,null,null,null,null,null,null," "," "," "," ","",null,null,null,null,null," "," "," "," ","X"," "," "," "," ",null,null,null,null," "," ","X","X","X","X",null,"X","X",null,null,null,null,null,null,null,null,"X","X","X","X",null,null,null,null,"X",null,null,null,null,"x",null,null,null,null,null,null,null,null,null,null,null,"x","x",null,null,null,null,null,null,null,null,null,null,null,null,null,null,null,null,null,null,null,null,null,"x",null,"x","x"," "]
[null,"ATLANTICO","POLONUEVO",8558,"Otros","x","x","x","x",null,null,null,null,"X","X",null,null,null,null,null,"x","x","x","x",null,null,null,null,null,null,null,null,null,null,null,"",null,"","",null,null,null,null,null,null,null,null,null,null,null,null,null,null,null,null," "," "," "," ","",null,null,null,null,null," "," "," "," ","X"," "," "," "," ",null,null,null,null," "," ","X","X","X","X",null,"X","X",null,null,null,null,null,null,null,null,"X","X","X","X",null,null,null,null,"X",null,null,null,null,"x",null,null,null,null,null,null,null,null,null,null,null,"x","x",null,null,null,null,null,null,null,null,null,null,null,null,null,null,null,null,null,null,null,null,null,"x",null,"x","x","x"]
[null,"ATLANTICO","PONEDERA",8560,"Otros","x","x","x","x","x",null,null,"x","X","X",null,null,null,null,"x","x","x","x","x",null,null,null,null,null,null,null,null,null,null,null,"",null,"","",null,null,null,null,null,null,null,null,null,null,null,null,null,null,null,null," "," "," "," ","",null,null,null,null,null," "," "," "," ","X"," "," "," "," ",null,null,null,null," "," ","X","X","X","X",null,"X","X",null,null,null,null,null,null,null,null,"X","X","X","X",null,null,null,null,"X",null,null,null,null,"x",null,null,null,null,null,null,null,null,null,null,null,"x","x",null,null,null,null,null,null,null,null,null,null,null,null,null,null,null,null,null,null,null,null,null,"x",null,"x","x","x"]
[null,"ATLANTICO","PUERTO COLOMBIA",8573,"4","x","x","x","x","x","x","x",null,"X","X","x",null,"x",null,null,"x","x","x","x",null,null,null,null,null,null,null,"X","X",null,null,null,"X","","",null,null,null,null,null,null,null,null,null,null,null,null,null,null,null,null,"X","X","X","X",null,null,null,null,null,null,"X","X","X","X","X","X","X","X","X",null,null,null,null,"X","X","X","X","X","X","X","X","X","X",null,null,"X","X","X","X",null,"X","X","X","X",null,null,null,null,"X",null,null,null,null,"x",null,null,null,null,null,null,null,null,null,null,null,"x","x",null,null,null,null,null,null,null,null,null,null,"x",null,null,null,null,null,null,null,null,null,null,"x",null,"x","x","x",null,null,null,null,"x","x"]
[null,"ATLANTICO","REPELON",8606,"4","x","x","x","x","x","x","x","x","X","X","x",null,"x",null,"x","x","x","x","x",null,null,null,null,null,null,null,null,null,null,null,"",null,"","",null,null,null,null,null,null,null,null,null,null,null,null,null,null,null,null," "," "," "," ",null,null,null,null,null,null," "," "," "," ","X"," "," "," "," ",null,null,null,null," "," ","X","X","X","X",null,"X","X",null,null,null,null,null,null,null,null,"X","X","X","X",null,null,null,null,"X",null,null,null,null,"x",null,null,null,null,null,null,null,null,null,null,null,"x","x",null,null,null,null,null,null,null,null,null,null,"x",null,null,null,null,null,null,null,null,null,null,"x",null,"x","x","x",null,null,null,null,"x","x"]
[null,"ATLANTICO","SABANAGRANDE",8634,"Otros","x","x","x","x","x","x",null,"x","X","X",null,null,null,null,"x","x","x","x","x",null,null,null,null,null,null,null,null,null,null,null,null,null,"","",null,null,null,null,null,null,null,null,null,null,null,null,null,null,null,null," "," "," "," ","X","X",null,null,null,null," "," "," "," ","X"," "," "," "," ",null,null,null,null," "," ","X","X","X","X",null,"X","X",null,null,null,null,null,null,null,null,"X","X","X","X",null,null,null,null,"X",null,null,null,null,"x",null,null,null,null,null,null,null,null,null,null,null,"x","x",null,null,null,null,null,null,null,null,null,null,null,null,null,null,null,null,null,null,null,null,null,"x",null,"x","x","x",null,null,null,null,null,null,"x","x"]
[null,"ATLANTICO","SABANALARGA",8638,"Otros","x","x","x","x","x","x","x","x","X","X","x",null,"x",null,"x","x","x","x","x",null,null,null,null,null,null,null,null,null,null,"X","X",null,"X","X",null,null,null,null,null,null,null,null,null,null,null,null,null,null,null,null,"X","X","X","X","X","X",null,null,null,null,"X","X","X","X","X","X","X","X","X",null,null,null,null,"X","X","X","X","X","X",null,"X","X",null,null,null,null,null,null,null,null,"X","X","X","X",null,null,null,null,"X",null,null,null,null,"x",null,null,null,null,null,null,null,null,null,"X",null,"x","x",null,null,null,null,null,null,null,null,null,null,"x",null,null,null,null,null,null,null,null,null,null,"x",null,"x","x","x",null,null,null,null,"x","x","x","x","x","x",null,null,null,null,null,"x","x","x","x"]
[null,"ATLANTICO","SANTA LUCIA",8675,"Otros","x","x","x","x",null,null,null,null,"X","X",null,null,null,null,null,"x","x","x","x",null,null,null,null,null,null,null,null,null,null,null,"",null,"","",null,null,null,null,null,null,null,null,null,null,null,null,null,null,null,null," "," "," "," ","",null,null,null,null,null," "," "," "," ","X"," "," "," "," ",null,null,null,null," "," ","X","X","X","X",null,"X","X",null,null,null,null,null,null,null,null,"X","X","X","X",null,null,null,null,"X",null,null,null,null,"x",null,null,null,null,null,null,null,null,null,null,null,"x","x",null,null,null,null,null,null,null,null,null,null,null,null,null,null,null,null,null,null,null,null,null,"x",null,"x","x","x"]
[null,"ATLANTICO","SANTO TOMAS",8685,"4","x","x","x","x","x","x","x",null,"X","X","x",null,"x",null,null,"x","x","x","x",null,null,null,null,null,null,null,null,null,null,null,"",null,"","",null,null,null,null,null,null,null,null,null,null,null,null,null,null,null,null," "," "," "," ",null,null,null,null,null,null," "," "," "," ","X"," "," "," "," ",null,null,null,null," "," ","X","X","X","X",null,"X","X",null,null,null,null,null,null,null,null,"X","X","X","X",null,null,null,null,"X",null,null,null,null,"x",null,null,null,null,null,null,null,null,null,"X",null,"x","x",null,null,null,null,null,null,null,null,null,null,"x",null,null,null,null,null,null,null,null,null,null,"x",null,"x","x","x",null,null,null,null,"x","x","x","x"]
[null,"ATLANTICO","SOLEDAD",8758,"Otros","x","x","x","x","x","x",null,"x","X","X",null,null,null,null,"x","x","x","x","x",null,null,null,null,null,null,null,"X","X",null,"X","X","X","X","X",null,null,null,null,null,null,null,null,null,null,null,null,null,null,null,null,"X","X","X","X","X","X",null,null,null,null,"X","X","X","X","X","X","X","X","X",null,null,null,null,"X","X","X","X","X","X","X","X","X","X",null,null,"X","X","X","X","X","X","X","X","X",null,null,null,null,"X",null,"x","x","x","x",null,null,null,null,null,"x","x","x","x","X","x","x","x","x",null,null,null,null,null,null,"x","x","x","x",null,null,"x",null,null,null,"x","x","x","x","x",null,"x","x","x",null,null,null,null,"x","x","x","x","x","x",null,null,null,null,null,"x","x","x","x",null,null,null,null,null,null,null,null,null,null,null,"x","x","x","x"]
[null,"ATLANTICO","SUAN",8770,"Otros","x","x","x","x","x",null,null,"x","X","X",null,null,null,null,"x","x","x","x","x",null,null,null,null,null,null,null,null,null,null,null,"",null,"","",null,null,null,null,null,null,null,null,null,null,null,null,null,null,null,null," "," "," "," ","",null,null,null,null,null," "," "," "," ","X"," "," "," "," ",null,null,null,null," "," ","X","X","X","X",null,"X","X",null,null,null,null,null,null,null,null,"X","X","X","X",null,null,null,null,"X",null,null,null,null,"x",null,null,null,null,null,null,null,null,null,null,null,"x","x",null,null,null,null,null,null,null,null,null,null,null,null,null,null,null,null,null,null,null,null,null,"x",null,"x","x","x"]
[null,"ATLANTICO","TUBARA",8832,"Otros","x","x","x","x",null,null,null,null,"X","X",null,null,null,null,null,"x","x","x","x",null,null,null,null,null,null,null,null,null,null,null,"",null,"","",null,null,null,null,null,null,null,null,null,null,null,null,null,null,null,null," "," "," "," ","",null,null,null,null,null," "," "," "," "," "," "," "," "," ",null,null,null,null," "," ","X","X","X","X",null,"X","X",null,null,null,null,null,null,null,null,"X","X","X","X",null,null,null,null,"X",null,null,null,null,"x",null,null,null,null,null,null,null,null,null,null,null,"x","x",null,null,null,null,null,null,null,null,null,null,null,null,null,null,null,null,null,null,null,null,null,"x",null,"x","x","x"]
[null,"ATLANTICO","USIACURI",8849,"Otros","x","x","x","x","x",null,null,"x","X","X",null,null,null,null,"x","x","x","x","x",null,null,null,null,null,null,null,null,null,null,null,"",null,"","",null,null,null,null,null,null,null,null,null,null,null,null,null,null,null,null," "," "," "," ","",null,null,null,null,null," "," "," "," ","X"," "," "," "," ",null,null,null,null," "," ","X","X","X","X",null,"X","X",null,null,null,null,null,null,null,null,"X","X","X","X",null,null,null,null,"X",null,null,null,null,"x",null,null,null,null,null,null,null,null,null,null,null,"x","x",null,null,null,null,null,null,null,null,null,null,null,null,null,null,null,null,null,null,null,null,null,"x",null,"x","x"," "]
[null,"BOGOTA","BOGOTA, D.C.",11001,"1","x","x","x","x","x","x","x","x","X","X","x",null,"x",null,"x","x","x","x","x",null,null,null,null,null,null,null,"X","X",null,"X","X","X","X","X",null,null,null,null,null,null,null,null,null,null,null,null,null,null,null,null,"X","X","X","X","X","X",null,null,null,null,"X","X","X","X","X","X","X","X","X",null,null,null,null,"X","X","X","X","X","X","X","X","X","X",null,null,"X","X","X","X","X","X","X","X","X",null,null,null,null,"X",null,"x","x","x","x",null,null,null,null,null,"x","x","x","x","X","x","x","x","x",null,null,null,null,null,null,"x","x","x",null,null,null,"x",null,null,null,"x","x","x","x","x",null,"x","x"," ",null,null,null,null,null,null,"x","x","x","x",null,null,null,null,null,"x","x","x","x",null,null,null,null,null,null,null,null,null,null,null,"x","x","x","x"]
[null,"BOLIVAR","CARTAGENA",13001,"1","x","x","x","x","x","x","x","x","X","X","x",null,"x",null,"x","x","x","x","x",null,null,null,null,null,null,null,"X","X",null,"X","X","X","X","X",null,null,null,null,null,null,null,null,null,null,null,null,null,null,null,null,"X","X","X","X","X","X",null,null,null,null,"X","X","X","X","X","X","X","X","X",null,null,null,null,"X","X","X","X","X","X","X","X","X","X",null,null,"X","X","X","X","X","X","X","X","X",null,null,null,null,"X",null,"x","x","x","x",null,null,null,null,null,"x","x","x","x","X","x","x","x","x",null,null,null,null,null,null,"x","x","x","x",null,null,"x",null,null,null,"x","x","x","x","x",null,"x","x","x",null,null,null,null,"x","x","x","x","x","x",null,null,null,null,null,"x","x","x","x",null,null,null,null,null,null,null,null,null,null,null,"x","x","x","x"]
[null,"BOLIVAR","ACHI",13006,"4","x","x","x","x","x","x","x","x","X","X","x",null,"x",null,"x","x","x","x","x",null,null,null,null,null,null,null,null,null,null,null,"",null,"","",null,null,null,null,null,null,null,null,null,null,null,null,null,null,null,null," "," "," "," ",null,null,null,null,null,null," "," "," "," ","X"," "," "," "," ",null,null,null,null," "," ","X","X","X","X",null,"X","X",null,null,null,null,null,null,null,null,"X","X","X","X",null,null,null,null,"X",null,null,null,null,"x",null,null,null,null,null,null,null,null,null,null,null,"x","x",null,null,null,null,null,null,null,null,null,null,"x",null,null,null,null,null,null,null,null,null,null,"x",null,"x","x","x",null,null,null,null,"x","x"]
[null,"BOLIVAR","ALTOS DEL ROSARIO",13030,"Otros","x","x","x","x","x",null,null,"x","X","X",null,null,null,null,"x","x","x","x","x",null,null,null,null,null,null,null,null,null,null,null,"",null,"","",null,null,null,null,null,null,null,null,null,null,null,null,null,null,null,null," "," "," "," ","",null,null,null,null,null," "," "," "," ","X"," "," "," "," ",null,null,null,null," "," ","X","X","X","X",null,"X","X",null,null,null,null,null,null,null,null,"X","X","X","X",null,null,null,null,"X",null,null,null,null,"x",null,null,null,null,null,null,null,null,null,null,null,"x","x",null,null,null,null,null,null,null,null,null,null,null,null,null,null,null,null,null,null,null,null,null,"x",null,"x","x","x"]
[null,"BOLIVAR","ARENAL",13042,"Otros","x","x","x","x","x",null,null,"x","X","X",null,null,null,null,"x","x","x","x","x",null,null,null,null,null,null,null,null,null,null,null,"",null,"","",null,null,null,null,null,null,null,null,null,null,null,null,null,null,null,null," "," "," "," ","",null,null,null,null,null," "," "," "," ","X"," "," "," "," ",null,null,null,null," "," ","X","X","X","X",null,"X","X",null,null,null,null,null,null,null,null,"X","X","X","X",null,null,null,null,"X",null,null,null,null,"x",null,null,null,null,null,null,null,null,null,null,null,"x","x",null,null,null,null,null,null,null,null,null,null,null,null,null,null,null,null,null,null,null,null,null,"x",null,"x","x","x"]
[null,"BOLIVAR","ARJONA",13052,"3","x","x","x","x","x","x","x","x","X","X","x",null,"x",null,"x","x","x","x","x",null,null,null,null,null,null,null,null,null,null,"X","X",null,"X","X",null,null,null,null,null,null,null,null,null,null,null,null,null,null,null,null,"X","X","X","X","X",null,null,null,null,null,"X","X","X","X","X","X","X","X","X",null,null,null,null,"X","X","X","X","X","X",null,"X","X",null,null,null,null,null,null,null,null,"X","X","X","X",null,null,null,null,"X",null,null,null,null,"x",null,null,null,null,null,null,null,null,null,null,null,"x","x",null,null,null,null,null,null,null,null,null,null,"x",null,null,null,null,null,null,null,null,null,null,"x",null,"x","x","x",null,null,null,null,"x","x"]
[null,"BOLIVAR","ARROYOHONDO",13062,"Otros","x","x","x","x","x",null,null,"x","X","X",null,null,null,null,"x","x","x","x","x",null,null,null,null,null,null,null,null,null,null,null,"",null,"","",null,null,null,null,null,null,null,null,null,null,null,null,null,null,null,null," "," "," "," ","",null,null,null,null,null," "," "," "," "," "," "," "," "," ",null,null,null,null," "," ","X","X","X","X",null,"X","X",null,null,null,null,null,null,null,null,"X","X","X","X",null,null,null,null,"X",null,null,null,null,"x",null,null,null,null,null,null,null,null,null,null,null,"x","x",null,null,null,null,null,null,null,null,null,null,null,null,null,null,null,null,null,null,null,null,null,"x",null,"x","x"," "]
[null,"BOLIVAR","BARRANCO DE LOBA",13074,"Otros","x","x","x","x","x",null,null,"x","X","X",null,null,null,null,"x","x","x","x","x",null,null,null,null,null,null,null,null,null,null,null,"",null,"","",null,null,null,null,null,null,null,null,null,null,null,null,null,null,null,null," "," "," "," ","",null,null,null,null,null," "," "," "," ","X"," "," "," "," ",null,null,null,null," "," ","X","X","X","X",null,"X","X",null,null,null,null,null,null,null,null,"X","X","X","X",null,null,null,null,"X",null,null,null,null,"x",null,null,null,null,null,null,null,null,null,null,null,"x","x",null,null,null,null,null,null,null,null,null,null,null,null,null,null,null,null,null,null,null,null,null,"x",null,"x","x","x"]
[null,"BOLIVAR","CALAMAR",13140,"4","x","x","x","x","x","x","x","x","X","X","x",null,"x",null,"x","x","x","x","x",null,null,null,null,null,null,null,null,null,null,null,null,null,"","",null,null,null,null,null,null,null,null,null,null,null,null,null,null,null,null," "," "," "," ",null,null,null,null,null,null," "," "," "," ","X"," "," "," "," ",null,null,null,null," "," ","X","X","X","X",null,"X","X",null,null,null,null,null,null,null,null,"X","X","X","X",null,null,null,null,"X",null,null,null,null,"x",null,null,null,null,null,null,null,null,null,null,null,"x","x",null,null,null,null,null,null,null,null,null,null,"x",null,null,null,null,null,null,null,null,null,null,"x",null,"x","x","x",null,null,null,null,"x","x"]
[null,"BOLIVAR","CANTAGALLO",13160,"Otros","x","x","x","x","x",null,null,"x","X","X",null,null,null,null,"x","x","x","x","x",null,null,null,null,null,null,null,null,null,null,null,"",null,"","",null,null,null,null,null,null,null,null,null,null,null,null,null,null,null,null," "," "," "," ","",null,null,null,null,null," "," "," "," ","X"," "," "," "," ",null,null,null,null," "," ","X","X","X","X","X","X","X","X",null,null,"X","X","X","X",null,"X","X","X","X",null,null,null,null,"X",null,null,null,null,"x",null,null,null,null,null,null,null,null,null,null,null,"x","x",null,null,null,null,null,null,null,null,null,null,null,null,null,null,null,null,null,null,null,null,null,"x",null,"x","x","x"]
[null,"BOLIVAR","CICUCO",13188,"Otros","x","x","x","x","x",null,null,"x","X","X",null,null,null,null,"x","x","x","x","x",null,null,null,null,null,null,null,null,null,null,null,"",null,"","",null,null,null,null,null,null,null,null,null,null,null,null,null,null,null,null," "," "," "," ","",null,null,null,null,null," "," "," "," ","X"," "," "," "," ",null,null,null,null," "," ","X","X","X","X",null,"X","X",null,null,null,null,null,null,null,null,"X","X","X","X",null,null,null,null,"X",null,null,null,null,"x",null,null,null,null,null,null,null,null,null,null,null,"x","x",null,null,null,null,null,null,null,null,null,null,null,null,null,null,null,null,null,null,null,null,null,"x",null,"x","x","x"]
[null,"BOLIVAR","CORDOBA",13212,"Otros","x","x","x","x","x",null,null,"x","X","X",null,null,null,null,"x","x","x","x","x",null,null,null,null,null,null,null,null,null,null,null,"",null,"","",null,null,null,null,null,null,null,null,null,null,null,null,null,null,null,null," "," "," "," ","",null,null,null,null,null," "," "," "," ","X"," "," "," "," ",null,null,null,null," "," ","X","X","X","X",null,"X","X",null,null,null,null,null,null,null,null,"X","X","X","X",null,null,null,null,"X",null,null,null,null,"x",null,null,null,null,null,null,null,null,null,null,null,"x","x",null,null,null,null,null,null,null,null,null,null,"x",null,null,null,null,null,null,null,null,null,null,"x",null,"x","x"," ",null,null,null,null,"x","x"]
[null,"BOLIVAR","CLEMENCIA",13222,"Otros","x","x","x","x","x",null,null,"x","X","X",null,null,null,null,"x","x","x","x","x",null,null,null,null,null,null,null,null,null,null,null,"",null,"","",null,null,null,null,null,null,null,null,null,null,null,null,null,null,null,null," "," "," "," ","",null,null,null,null,null," "," "," "," ","X"," "," "," "," ",null,null,null,null," "," ","X","X","X","X",null,"X","X",null,null,null,null,null,null,null,null,"X","X","X","X",null,null,null,null,"X",null,null,null,null,"x",null,null,null,null,null,null,null,null,null,null,null,"x","x",null,null,null,null,null,null,null,null,null,null,null,null,null,null,null,null,null,null,null,null,null,"x",null,"x","x","x"]
[null,"BOLIVAR","EL CARMEN DE BOLIVAR",13244,"Otros","x","x","x","x","x","x",null,"x","X","X",null,null,null,null,"x","x","x","x","x",null,null,null,null,null,null,null,"X","X",null,"X","X","X","X","X",null,null,null,null,null,null,null,null,null,null,null,null,null,null,null,null," "," "," "," ","X","X",null,null,null,null," "," "," "," ","X"," "," "," "," ",null,null,null,null," "," ","X","X","X","X","X","X","X","X",null,null,"X","X","X","X",null,"X","X","X","X",null,null,null,null,"X",null,null,null,null,"x",null,null,null,null,null,null,null,null,null,null,null,"x","x",null,null,null,null,null,null,null,null,null,null,"x",null,null,null,null,null,null,null,null,null,null,"x",null,"x","x","x",null,null,null,null,"x","x","x","x",null,null,null,null,null,null,null,null,null,null,null,"x"]
[null,"BOLIVAR","EL GUAMO",13248,"Otros","x","x","x","x",null,null,null,null,"X","X",null,null,null,null,null,"x","x","x","x",null,null,null,null,null,null,null,null,null,null,null,"",null,"","",null,null,null,null,null,null,null,null,null,null,null,null,null,null,null,null," "," "," "," ","",null,null,null,null,null," "," "," "," "," "," "," "," "," ",null,null,null,null," "," ","X","X","X","X",null,"X","X",null,null,null,null,null,null,null,null,"X","X","X","X",null,null,null,null,"X",null,null,null,null,"x",null,null,null,null,null,null,null,null,null,null,null,"x","x",null,null,null,null,null,null,null,null,null,null,null,null,null,null,null,null,null,null,null,null,null,"x",null,"x","x"," "]
[null,"BOLIVAR","EL PEÑON",13268,"Otros","x","x","x","x","x",null,null,"x","X","X",null,null,null,null,"x","x","x","x","x",null,null,null,null,null,null,null,null,null,null,null,"",null,"","",null,null,null,null,null,null,null,null,null,null,null,null,null,null,null,null," "," "," "," ","",null,null,null,null,null," "," "," "," ","X"," "," "," "," ",null,null,null,null," "," ","X","X","X","X",null,"X","X",null,null,null,null,null,null,null,null,"X","X","X","X",null,null,null,null,"X",null,null,null,null,"x",null,null,null,null,null,null,null,null,null,null,null,"x","x",null,null,null,null,null,null,null,null,null,null,null,null,null,null,null,null,null,null,null,null,null,"x",null,"x","x"," "]
[null,"BOLIVAR","HATILLO DE LOBA",13300,"Otros","x","x","x","x","x",null,null,"x","X","X",null,null,null,null,"x","x","x","x","x",null,null,null,null,null,null,null,null,null,null,null,"",null,"","",null,null,null,null,null,null,null,null,null,null,null,null,null,null,null,null," "," "," "," ","",null,null,null,null,null," "," "," "," "," "," "," "," "," ",null,null,null,null," "," ","X","X","X","X",null,"X","X",null,null,null,null,null,null,null,null,"X","X","X","X",null,null,null,null,"X",null,null,null,null,"x",null,null,null,null,null,null,null,null,null,null,null,"x","x",null,null,null,null,null,null,null,null,null,null,null,null,null,null,null,null,null,null,null,null,null,"x",null,"x","x"," "]
[null,"BOLIVAR","MAGANGUE",13430,"3","x","x","x","x","x","x","x","x","X","X","x",null,"x",null,"x","x","x","x","x",null,null,null,null,null,null,null,"X","X",null,"X","X","X","X","X",null,null,null,null,null,null,null,null,null,null,null,null,null,null,null,null,"X","X","X","X","X",null,null,null,null,null,"X","X","X","X","X","X","X","X","X",null,null,null,null,"X","X","X","X","X","X","X","X","X","X",null,null,"X","X","X","X","X","X","X","X","X",null,null,null,null,"X",null,null,null,null,"x",null,null,null,null,null,null,null,null,null,"X",null,"x","x",null,null,null,null,null,null,null,null,null,null,"x",null,null,null,null,null,null,null,null,null,null,"x",null,"x","x","x",null,null,null,null,"x","x","x","x","x","x",null,null,null,null,null,"x","x","x","x","x"]
[null,"BOLIVAR","MAHATES",13433,"Otros","x","x","x","x","x",null,null,"x","X","X",null,null,null,null,"x","x","x","x","x",null,null,null,null,null,null,null,null,null,null,null,null,null,"","",null,null,null,null,null,null,null,null,null,null,null,null,null,null,null,null," "," "," "," ","",null,null,null,null,null," "," "," "," ","X"," "," "," "," ",null,null,null,null," "," ","X","X","X","X",null,"X","X",null,null,null,null,null,null,null,null,"X","X","X","X",null,null,null,null,"X",null,null,null,null,"x",null,null,null,null,null,null,null,null,null,null,null,"x","x",null,null,null,null,null,null,null,null,null,null,null,null,null,null,null,null,null,null,null,null,null,"x",null,"x","x","x"]
[null,"BOLIVAR","MARGARITA",13440,"Otros","x","x","x","x","x",null,null,"x","X","X",null,null,null,null,"x","x","x","x","x",null,null,null,null,null,null,null,null,null,null,null,"",null,"","",null,null,null,null,null,null,null,null,null,null,null,null,null,null,null,null," "," "," "," ","",null,null,null,null,null," "," "," "," "," "," "," "," "," ",null,null,null,null," "," ","X","X","X","X",null,"X","X",null,null,null,null,null,null,null,null,"X","X","X","X",null,null,null,null,"X",null,null,null,null,"x",null,null,null,null,null,null,null,null,null,null,null,"x","x",null,null,null,null,null,null,null,null,null,null,null,null,null,null,null,null,null,null,null,null,null,"x",null,"x","x"," "]
[null,"BOLIVAR","MARIA LA BAJA",13442,"4","x","x","x","x","x","x","x","x","X","X","x",null,"x",null,"x","x","x","x","x",null,null,null,null,null,null,null,null,null,null,null,"",null,"","",null,null,null,null,null,null,null,null,null,null,null,null,null,null,null,null," "," "," "," ",null,null,null,null,null,null," "," "," "," ","X"," "," "," "," ",null,null,null,null," "," ","X","X","X","X",null,"X","X",null,null,null,null,null,null,null,null,"X","X","X","X",null,null,null,null,"X",null,null,null,null,"x",null,null,null,null,null,null,null,null,null,null,null,"x","x",null,null,null,null,null,null,null,null,null,null,"x",null,null,null,null,null,null,null,null,null,null,"x",null,"x","x","x",null,null,null,null,"x","x"]
[null,"BOLIVAR","MONTECRISTO",13458,"Otros","x","x","x","x","x",null,null,"x","X","X",null,null,null,null,"x","x","x","x","x",null,null,null,null,null,null,null,null,null,null,null,"",null,"","",null,null,null,null,null,null,null,null,null,null,null,null,null,null,null,null," "," "," "," ","",null,null,null,null,null," "," "," "," ","X"," "," "," "," ",null,null,null,null," "," ","X","X","X","X",null,"X","X",null,null,null,null,null,null,null,null,"X","X","X","X",null,null,null,null,"X",null,null,null,null,"x",null,null,null,null,null,null,null,null,null,null,null,"x","x",null,null,null,null,null,null,null,null,null,null,null,null,null,null,null,null,null,null,null,null,null,"x",null,"x","x","x"]
[null,"BOLIVAR","MOMPOS",13468,"3","x","x","x","x","x","x","x","x","X","X","x",null,"x",null,"x","x","x","x","x",null,null,null,null,null,null,null,null,null,null,"X","",null,"X","X",null,null,null,null,null,null,null,null,null,null,null,null,null,null,null,null,"X","X","X","X","X",null,null,null,null,null,"X","X","X","X","X","X","X","X","X",null,null,null,null,"X","X","X","X","X","X",null,"X","X",null,null,null,null,null,null,null,null,"X","X","X","X",null,null,null,null,"X",null,null,null,null,"x",null,null,null,null,null,null,null,null,null,null,null,"x","x",null,null,null,null,null,null,null,"x","x","x","x",null,null,"x",null,null,null,"x","x","x","x","x",null,"x","x","x",null,null,null,null,"x","x","x","x","x","x",null,null,null,null,null,"x","x","x","x"]
[null,"BOLIVAR","NOROSI",13490,"Otros","x","x","x","x",null,null,null,null,"X","X",null,null,null,null,null,"x","x","x","x",null,null,null,null,null,null,null,null,null,null,null,"",null,"","",null,null,null,null,null,null,null,null,null,null,null,null,null,null,null,null," "," "," "," ","",null,null,null,null,null," "," "," "," ","X"," "," "," "," ",null,null,null,null," "," ","X","X","X","X",null,"X","X",null,null,null,null,null,null,null,null,"X","X","X","X",null,null,null,null,"X",null,null,null,null,"x",null,null,null,null,null,null,null,null,null,null,null,"x","x",null,null,null,null,null,null,null,null,null,null,null,null,null,null,null,null,null,null,null,null,null,null,null,"x","x"," "]
[null,"BOLIVAR","MORALES",13473,"4","x","x","x","x","x","x","x","x","X","X","x",null,"x",null,"x","x","x","x","x",null,null,null,null,null,null,null,null,null,null,null,"",null,"","",null,null,null,null,null,null,null,null,null,null,null,null,null,null,null,null," "," "," "," ",null,null,null,null,null,null," "," "," "," ","X"," "," "," "," ",null,null,null,null," "," ","X","X","X","X",null,"X","X",null,null,null,null,null,null,null,null,"X","X","X","X",null,null,null,null,"X",null,null,null,null,"x",null,null,null,null,null,null,null,null,null,null,null,"x","x",null,null,null,null,null,null,null,null,null,null,"x",null,null,null,null,null,null,null,null,null,null,"x",null,"x","x","x",null,null,null,null,"x","x"]
[null,"BOLIVAR","PINILLOS",13549,"4","x","x","x","x","x","x","x","x","X","X","x",null,"x",null,"x","x","x","x","x",null,null,null,null,null,null,null,null,null,null,null,"",null,"","",null,null,null,null,null,null,null,null,null,null,null,null,null,null,null,null," "," "," "," ",null,null,null,null,null,null," "," "," "," ","X"," "," "," "," ",null,null,null,null," "," ","X","X","X","X",null,"X","X",null,null,null,null,null,null,null,null,"X","X","X","X",null,null,null,null,"X",null,null,null,null,"x",null,null,null,null,null,null,null,null,null,null,null,"x","x",null,null,null,null,null,null,null,null,null,null,"x",null,null,null,null,null,null,null,null,null,null,"x",null,"x","x"," ",null,null,null,null,"x","x"]
[null,"BOLIVAR","REGIDOR",13580,"Otros","x","x","x","x",null,null,null,null,"X","X",null,null,null,null,null,"x","x","x","x",null,null,null,null,null,null,null,null,null,null,null,"",null,"","",null,null,null,null,null,null,null,null,null,null,null,null,null,null,null,null," "," "," "," ","",null,null,null,null,null," "," "," "," ","X"," "," "," "," ",null,null,null,null," "," ","X","X","X","X",null,"X","X",null,null,null,null,null,null,null,null,"X","X","X","X",null,null,null,null,"X",null,null,null,null,"x",null,null,null,null,null,null,null,null,null,null,null,"x","x",null,null,null,null,null,null,null,null,null,null,null,null,null,null,null,null,null,null,null,null,null,"x",null,"x","x"," "]
[null,"BOLIVAR","RIO VIEJO",13600,"Otros","x","x","x","x",null,null,null,null,"X","X",null,null,null,null,null,"x","x","x","x",null,null,null,null,null,null,null,null,null,null,null,"",null,"","",null,null,null,null,null,null,null,null,null,null,null,null,null,null,null,null," "," "," "," ","",null,null,null,null,null," "," "," "," ","X"," "," "," "," ",null,null,null,null," "," ","X","X","X","X",null,"X","X",null,null,null,null,null,null,null,null,"X","X","X","X",null,null,null,null,"X",null,null,null,null,"x",null,null,null,null,null,null,null,null,null,null,null,"x","x",null,null,null,null,null,null,null,null,null,null,null,null,null,null,null,null,null,null,null,null,null,"x",null,"x","x"," "]
[null,"BOLIVAR","SAN CRISTOBAL",13620,"Otros","x","x","x","x",null,null,null,null,"X","X",null,null,null,null,null,"x","x","x","x",null,null,null,null,null,null,null,null,null,null,null,"",null,"","",null,null,null,null,null,null,null,null,null,null,null,null,null,null,null,null," "," "," "," ","",null,null,null,null,null," "," "," "," ","X"," "," "," "," ",null,null,null,null," "," ","X","X","X","X",null,"X","X",null,null,null,null,null,null,null,null,"X","X","X","X",null,null,null,null,"X",null,null,null,null,"x",null,null,null,null,null,null,null,null,null,null,null,"x","x",null,null,null,null,null,null,null,null,null,null,"x",null,null,null,null,null,null,null,null,null,null,"x",null,"x","x"," ",null,null,null,null,"x","x"]
[null,"BOLIVAR","SAN ESTANISLAO",13647,"4","x","x","x","x","x","x","x",null,"X","X","x",null,"x",null,null,"x","x","x","x",null,null,null,null,null,null,null,null,null,null,null,"",null,"","",null,null,null,null,null,null,null,null,null,null,null,null,null,null,null,null," "," "," "," ",null,null,null,null,null,null," "," "," "," ","X"," "," "," "," ",null,null,null,null," "," ","X","X","X","X",null,"X","X",null,null,null,null,null,null,null,null,"X","X","X","X",null,null,null,null,"X",null,null,null,null,"x",null,null,null,null,null,null,null,null,null,null,null,"x","x",null,null,null,null,null,null,null,null,null,null,"x",null,null,null,null,null,null,null,null,null,null,"x",null,"x","x"," ",null,null,null,null,"x","x"]
[null,"BOLIVAR","SAN FERNANDO",13650,"Otros","x","x","x","x","x",null,null,"x","X","X",null,null,null,null,"x","x","x","x","x",null,null,null,null,null,null,null,null,null,null,null,"",null,"","",null,null,null,null,null,null,null,null,null,null,null,null,null,null,null,null," "," "," "," ","",null,null,null,null,null," "," "," "," ","X"," "," "," "," ",null,null,null,null," "," ","X","X","X","X",null,"X","X",null,null,null,null,null,null,null,null,"X","X","X","X",null,null,null,null,"X",null,null,null,null,"x",null,null,null,null,null,null,null,null,null,null,null,"x","x",null,null,null,null,null,null,null,null,null,null,null,null,null,null,null,null,null,null,null,null,null,"x",null,"x","x"," "]
[null,"BOLIVAR","SAN JACINTO",13654,"4","x","x","x","x","x","x","x","x","X","X","x",null,"x",null,"x","x","x","x","x",null,null,null,null,null,null,null,null,null,null,null,null,null,"","",null,null,null,null,null,null,null,null,null,null,null,null,null,null,null,null," "," "," "," ",null,null,null,null,null,null," "," "," "," ","X"," "," "," "," ",null,null,null,null," "," ","X","X","X","X",null,"X","X",null,null,null,null,null,null,null,null,"X","X","X","X",null,null,null,null,"X",null,null,null,null,"x",null,null,null,null,null,null,null,null,null,null,null,"x","x",null,null,null,null,null,null,null,null,null,null,"x",null,null,null,null,null,null,null,null,null,null,"x",null,"x","x","x",null,null,null,null,"x","x",null,null,null,null,null,null,null,null,null,null,null,null,null,"x"]
[null,"BOLIVAR","SAN JACINTO DEL CAUCA",13655,"Otros","x","x","x","x","x",null,null,"x","X","X",null,null,null,null,"x","x","x","x","x",null,null,null,null,null,null,null,null,null,null,null,"",null,"","",null,null,null,null,null,null,null,null,null,null,null,null,null,null,null,null," "," "," "," ","",null,null,null,null,null," "," "," "," ","X"," "," "," "," ",null,null,null,null," "," ","X","X","X","X",null,"X","X",null,null,null,null,null,null,null,null,"X","X","X","X",null,null,null,null,"X",null,null,null,null,"x",null,null,null,null,null,null,null,null,null,null,null,"x","x",null,null,null,null,null,null,null,null,null,null,null,null,null,null,null,null,null,null,null,null,null,"x",null,"x","x","x"]
[null,"BOLIVAR","SAN JUAN NEPOMUCENO",13657,"4","x","x","x","x","x","x","x",null,"X","X","x",null,"x",null,null,"x","x","x","x",null,null,null,null,null,null,null,null,null,null,null,null,null,"","",null,null,null,null,null,null,null,null,null,null,null,null,null,null,null,null," "," "," "," ",null,null,null,null,null,null," "," "," "," ","X"," "," "," "," ",null,null,null,null," "," ","X","X","X","X",null,"X","X",null,null,null,null,null,null,null,null,"X","X","X","X",null,null,null,null,"X",null,null,null,null,"x",null,null,null,null,null,null,null,null,null,null,null,"x","x",null,null,null,null,null,null,null,null,null,null,"x",null,null,null,null,null,null,null,null,null,null,"x",null,"x","x","x",null,null,null,null,"x","x",null,null,null,null,null,null,null,null,null,null,null,null,null,"x"]
[null,"BOLIVAR","SAN MARTIN DE LOBA",13667,"Otros","x","x","x","x","x",null,null,"x","X","X",null,null,null,null,"x","x","x","x","x",null,null,null,null,null,null,null,null,null,null,null,"",null,"","",null,null,null,null,null,null,null,null,null,null,null,null,null,null,null,null," "," "," "," ","",null,null,null,null,null," "," "," "," ","X"," "," "," "," ",null,null,null,null," "," ","X","X","X","X",null,"X","X",null,null,null,null,null,null,null,null,"X","X","X","X",null,null,null,null,"X",null,null,null,null,"x",null,null,null,null,null,null,null,null,null,null,null,"x","x",null,null,null,null,null,null,null,null,null,null,"x",null,null,null,null,null,null,null,null,null,null,"x",null,"x","x","x",null,null,null,null,"x","x"]
[null,"BOLIVAR","SAN PABLO",13670,"4","x","x","x","x","x","x","x","x","X","X","x",null,"x",null,"x","x","x","x","x",null,null,null,null,null,null,null,null,null,null,null,"",null,"","",null,null,null,null,null,null,null,null,null,null,null,null,null,null,null,null," "," "," "," ",null,null,null,null,null,null," "," "," "," ","X"," "," "," "," ",null,null,null,null," "," ","X","X","X","X",null,"X","X",null,null,null,null,null,null,null,null,"X","X","X","X",null,null,null,null,"X",null,null,null,null,"x",null,null,null,null,null,null,null,null,null,null,null,"x","x",null,null,null,null,null,null,null,null,null,null,"x",null,null,null,null,null,null,null,null,null,null,"x",null,"x","x"," ",null,null,null,null,"x","x"]
[null,"BOLIVAR","SANTA CATALINA",13673,"4","x","x","x","x","x","x","x",null,"X","X","x",null,"x",null,null,"x","x","x","x",null,null,null,null,null,null,null,null,null,null,null,"",null,"","",null,null,null,null,null,null,null,null,null,null,null,null,null,null,null,null," "," "," "," ",null,null,null,null,null,null," "," "," "," "," "," "," "," "," ",null,null,null,null," "," ","X","X","X","X",null,"X","X",null,null,null,null,null,null,null,null,"X","X","X","X",null,null,null,null,"X",null,null,null,null,"x",null,null,null,null,null,null,null,null,null,null,null,"x","x",null,null,null,null,null,null,null,null,null,null,"x",null,null,null,null,null,null,null,null,null,null,"x",null,"x","x","x",null,null,null,null,"x","x"]
[null,"BOLIVAR","SANTA ROSA",13683,"Otros","x","x","x","x","x",null,null,"x","X","X",null,null,null,null,"x","x","x","x","x",null,null,null,null,null,null,null,null,null,null,null,"",null,"","",null,null,null,null,null,null,null,null,null,null,null,null,null,null,null,null," "," "," "," ","",null,null,null,null,null," "," "," "," ","X"," "," "," "," ",null,null,null,null," "," ","X","X","X","X",null,"X","X",null,null,null,null,null,null,null,null,"X","X","X","X",null,null,null,null,"X",null,null,null,null,"x",null,null,null,null,null,null,null,null,null,null,null,"x","x",null,null,null,null,null,null,null,null,null,null,null,null,null,null,null,null,null,null,null,null,null,"x",null,"x","x","x"]
[null,"BOLIVAR","SANTA ROSA DEL SUR",13688,"4","x","x","x","x","x","x","x","x","X","X","x",null,"x",null,"x","x","x","x","x",null,null,null,null,null,null,null,null,null,null,null,"",null,"","",null,null,null,null,null,null,null,null,null,null,null,null,null,null,null,null," "," "," "," ",null,null,null,null,null,null," "," "," "," ","X"," "," "," "," ",null,null,null,null," "," ","X","X","X","X",null,"X","X",null,null,null,null,null,null,null,null,"X","X","X","X",null,null,null,null,"X",null,null,null,null,"x",null,null,null,null,null,null,null,null,null,null,null,"x","x",null,null,null,null,null,null,null,null,null,null,"x",null,null,null,null,null,null,null,null,null,null,"x",null,"x","x","x",null,null,null,null,"x","x"]
[null,"BOLIVAR","SIMITI",13744,"4","x","x","x","x","x","x","x","x","X","X","x",null,"x",null,"x","x","x","x","x",null,null,null,null,null,null,null,null,null,null,null,"",null,"","",null,null,null,null,null,null,null,null,null,null,null,null,null,null,null,null," "," "," "," ",null,null,null,null,null,null," "," "," "," ","X"," "," "," "," ",null,null,null,null," "," ","X","X","X","X",null,"X","X",null,null,null,null,null,null,null,null,"X","X","X","X",null,null,null,null,"X",null,null,null,null,"x",null,null,null,null,null,null,null,null,null,null,null,"x","x",null,null,null,null,null,null,null,null,null,null,"x",null,null,null,null,null,null,null,null,null,null,"x",null,"x","x","x",null,null,null,null,"x","x"]
[null,"BOLIVAR","SOPLAVIENTO",13760,"Otros","x","x","x","x",null,null,null,null,"X","X",null,null,null,null,null,"x","x","x","x",null,null,null,null,null,null,null,null,null,null,null,"",null,"","",null,null,null,null,null,null,null,null,null,null,null,null,null,null,null,null," "," "," "," ","",null,null,null,null,null," "," "," "," ","X"," "," "," "," ",null,null,null,null," "," ","X","X","X","X",null,"X","X",null,null,null,null,null,null,null,null,"X","X","X","X",null,null,null,null,"X",null,null,null,null,"x",null,null,null,null,null,null,null,null,null,null,null,"x","x",null,null,null,null,null,null,null,null,null,null,null,null,null,null,null,null,null,null,null,null,null,"x",null,"x","x"," "]
[null,"BOLIVAR","TALAIGUA NUEVO",13780,"Otros","x","x","x","x",null,null,null,null,"X","X",null,null,null,null,null,"x","x","x","x",null,null,null,null,null,null,null,null,null,null,null,"",null,"","",null,null,null,null,null,null,null,null,null,null,null,null,null,null,null,null," "," "," "," ","",null,null,null,null,null," "," "," "," ","X"," "," "," "," ",null,null,null,null," "," ","X","X","X","X",null,"X","X",null,null,null,null,null,null,null,null,"X","X","X","X",null,null,null,null,"X",null,null,null,null,"x",null,null,null,null,null,null,null,null,null,null,null,"x","x",null,null,null,null,null,null,null,null,null,null,null,null,null,null,null,null,null,null,null,null,null,"x",null,"x","x","x"]
[null,"BOLIVAR","TIQUISIO",13810,"Otros","x","x","x","x","x",null,null,"x","X","X",null,null,null,null,"x","x","x","x","x",null,null,null,null,null,null,null,null,null,null,null,"",null,"","",null,null,null,null,null,null,null,null,null,null,null,null,null,null,null,null," "," "," "," ","",null,null,null,null,null," "," "," "," ","X"," "," "," "," ",null,null,null,null," "," ","X","X","X","X",null,"X","X",null,null,null,null,null,null,null,null,"X","X","X","X",null,null,null,null,"X",null,null,null,null,"x",null,null,null,null,null,null,null,null,null,null,null,"x","x",null,null,null,null,null,null,null,null,null,null,null,null,null,null,null,null,null,null,null,null,null,"x",null,"x","x","x"]
[null,"BOLIVAR","TURBACO",13836,"Otros","x","x","x","x","x","x",null,"x","X","X",null,null,null,null,"x","x","x","x","x",null,null,null,null,null,null,null,"X","X",null,"X","X","X","X","X",null,null,null,null,null,null,null,null,null,null,null,null,null,null,null,null," "," "," "," ","X","X",null,null,null,null," "," "," "," ","X"," "," "," "," ",null,null,null,null," "," ","X","X","X","X",null,"X","X",null,null,null,null,null,null,null,"X","X","X","X","X",null,null,null,null,"X",null,"x","x","x","x",null,null,null,null,null,"x","x","x","x",null,"x","x","x","x",null,null,null,null,null,null,null,null,null,"x",null,null,null,null,null,null,null,null,null,null,"x",null,"x","x","x",null,null,null,null,"x","x"]
[null,"BOLIVAR","TURBANA",13838,"Otros","x","x","x","x","x",null,null,"x","X","X",null,null,null,null,"x","x","x","x","x",null,null,null,null,null,null,null,null,null,null,null,"",null,"","",null,null,null,null,null,null,null,null,null,null,null,null,null,null,null,null," "," "," "," ","",null,null,null,null,null," "," "," "," ","X"," "," "," "," ",null,null,null,null," "," ","X","X","X","X",null,"X","X",null,null,null,null,null,null,null,null,"X","X","X","X",null,null,null,null,"X",null,null,null,null,"x",null,null,null,null,null,null,null,null,null,null,null,"x","x",null,null,null,null,null,null,null,null,null,null,null,null,null,null,null,null,null,null,null,null,null,"x",null,"x","x","x"]
[null,"BOLIVAR","VILLANUEVA",13873,"Otros","x","x","x","x",null,null,null,null,"X","X",null,null,null,null,null,"x","x","x","x",null,null,null,null,null,null,null,null,null,null,null,"",null,"","",null,null,null,null,null,null,null,null,null,null,null,null,null,null,null,null," "," "," "," ","",null,null,null,null,null," "," "," "," ","X"," "," "," "," ",null,null,null,null," "," ","X","X","X","X",null,"X","X",null,null,null,null,null,null,null,null,"X","X","X","X",null,null,null,null,"X",null,null,null,null,"x",null,null,null,null,null,null,null,null,null,null,null,"x","x",null,null,null,null,null,null,null,null,null,null,"x",null,null,null,null,null,null,null,null,null,null,"x",null,"x","x"," ",null,null,null,null,"x","x"]
[null,"BOLIVAR","ZAMBRANO",13894,"Otros","x","x","x","x","x",null,null,"x","X","X",null,null,null,null,"x","x","x","x","x",null,null,null,null,null,null,null,null,null,null,null,"",null,"","",null,null,null,null,null,null,null,null,null,null,null,null,null,null,null,null," "," "," "," ","",null,null,null,null,null," "," "," "," ","X"," "," "," "," ",null,null,null,null," "," ","X","X","X","X",null,"X","X",null,null,null,null,null,null,null,null,"X","X","X","X",null,null,null,null,"X",null,null,null,null,"x",null,null,null,null,null,null,null,null,null,null,null,"x","x",null,null,null,null,null,null,null,null,null,null,"x",null,null,null,null,null,null,null,null,null,null,"x",null,"x","x","x",null,null,null,null,"x","x"]
[null,"BOYACA","TUNJA",15001,"1","x","x","x","x","x","x","x","x","X","X","x",null,"x",null,"x","x","x","x","x",null,null,null,null,null,null,null,"X","X",null,"X","X","X","X","X",null,null,null,null,null,null,null,null,null,null,null,null,null,null,null,null,"X","X","X","X","X","X",null,null,null,null,"X","X","X","X","X","X","X","X","X",null,null,null,null,"X","X","X","X","X","X","X","X","X","X",null,null,"X","X","X","X",null,"X","X","X","X",null,null,null,null,"X",null,"x","x","x","x",null,null,null,null,null,"x","x","x","x","X","x","x","x","x",null,null,null,null,null,null,"x","x","x","x",null,null,"x",null,null,null,"x","x","x","x","x",null,"x","x","x",null,null,null,null,"x","x","x","x","x","x",null,null,null,null,null,"x","x","x","x",null,null,null,null,null,null,null,null,null,null,null,"x","x","x","x"]
[null,"BOYACA","ALMEIDA",15022,"Otros","x","x","x","x","x",null,null,"x","X","X",null,null,null,null,"x","x","x","x","x",null,null,null,null,null,null,null,null,null,null,null,"",null,"","",null,null,null,null,null,null,null,null,null,null,null,null,null,null,null,null," "," "," "," ","",null,null,null,null,null," "," "," "," ","X"," "," "," "," ",null,null,null,null," "," ","X","X","X","X",null,"X","X",null,null,null,null,null,null,null,null,"X","X","X","X",null,null,null,null,"X",null,null,null,null,"x",null,null,null,null,null,null,null,null,null,null,null,"x","x",null,null,null,null,null,null,null,null,null,null,null,null,null,null,null,null,null,null,null,null,null,"x",null,"x","x"," "]
[null,"BOYACA","AQUITANIA",15047,"4","x","x","x","x","x","x","x","x","X","X","x",null,"x",null,"x","x","x","x","x",null,null,null,null,null,null,null,null,null,null,null,"",null,"","",null,null,null,null,null,null,null,null,null,null,null,null,null,null,null,null," "," "," "," ",null,null,null,null,null,null," "," "," "," ","X"," "," "," "," ",null,null,null,null," "," ","X","X","X","X",null,"X","X",null,null,null,null,null,null,null,null,"X","X","X","X",null,null,null,null,"X",null,null,null,null,"x",null,null,null,null,null,null,null,null,null,null,null,"x","x",null,null,null,null,null,null,null,null,null,null,"x",null,null,null,null,null,null,null,null,null,null,"x",null,"x","x","x",null,null,null,null,"x","x"]
[null,"BOYACA","ARCABUCO",15051,"4","x","x","x","x","x","x","x","x","X","X","x",null,"x",null,"x","x","x","x","x",null,null,null,null,null,null,null,null,null,null,null,"",null,"","",null,null,null,null,null,null,null,null,null,null,null,null,null,null,null,null," "," "," "," ",null,null,null,null,null,null," "," "," "," ","X"," "," "," "," ",null,null,null,null," "," ","X","X","X","X",null,"X","X",null,null,null,null,null,null,null,null,"X","X","X","X",null,null,null,null,"X",null,null,null,null,"x",null,null,null,null,null,null,null,null,null,null,null,"x","x",null,null,null,null,null,null,null,null,null,null,"x",null,null,null,null,null,null,null,null,null,null,"x",null,"x","x","x",null,null,null,null,"x","x"]
[null,"BOYACA","BELEN",15087,"4","x","x","x","x","x","x","x","x","X","X","x",null,"x",null,"x","x","x","x","x",null,null,null,null,null,null,null,null,null,null,null,"",null,"","",null,null,null,null,null,null,null,null,null,null,null,null,null,null,null,null," "," "," "," ",null,null,null,null,null,null," "," "," "," ","X"," "," "," "," ",null,null,null,null," "," ","X","X","X","X",null,"X","X",null,null,null,null,null,null,null,"X","X","X","X","X",null,null,null,null,"X",null,null,null,null,"x",null,null,null,null,null,null,null,null,null,null,null,"x","x",null,null,null,null,null,null,null,null,null,null,"x",null,null,null,null,null,null,null,null,null,null,"x",null,"x","x"," ",null,null,null,null,"x","x"]
[null,"BOYACA","BERBEO",15090,"Otros","x","x","x","x","x",null,null,"x","X","X",null,null,null,null,"x","x","x","x","x",null,null,null,null,null,null,null,null,null,null,null,"",null,"","",null,null,null,null,null,null,null,null,null,null,null,null,null,null,null,null," "," "," "," ","",null,null,null,null,null," "," "," "," "," "," "," "," "," ",null,null,null,null," "," ","X","X","X","X",null,"X","X",null,null,null,null,null,null,null,null,"X","X","X","X",null,null,null,null,"X",null,null,null,null,"x",null,null,null,null,null,null,null,null,null,null,null,"x","x",null,null,null,null,null,null,null,null,null,null,null,null,null,null,null,null,null,null,null,null,null,"x",null,"x","x","x"]
[null,"BOYACA","BETEITIVA",15092,"Otros","x","x","x","x","x",null,null,"x","X","X",null,null,null,null,"x","x","x","x","x",null,null,null,null,null,null,null,null,null,null,null,"",null,"","",null,null,null,null,null,null,null,null,null,null,null,null,null,null,null,null," "," "," "," ","",null,null,null,null,null," "," "," "," "," "," "," "," "," ",null,null,null,null," "," ","X","X","X","X",null,"X","X",null,null,null,null,null,null,null,null,"X","X","X","X",null,null,null,null,"X",null,null,null,null,"x",null,null,null,null,null,null,null,null,null,null,null,"x","x",null,null,null,null,null,null,null,null,null,null,null,null,null,null,null,null,null,null,null,null,null,"x",null,"x","x"," "]
[null,"BOYACA","BOAVITA",15097,"4","x","x","x","x","x","x","x","x","X","X","x",null,"x",null,"x","x","x","x","x",null,null,null,null,null,null,null,null,null,null,null,"",null,"","",null,null,null,null,null,null,null,null,null,null,null,null,null,null,null,null," "," "," "," ",null,null,null,null,null,null," "," "," "," ","X"," "," "," "," ",null,null,null,null," "," ","X","X","X","X",null,"X","X",null,null,null,null,null,null,null,null,"X","X","X","X",null,null,null,null,"X",null,null,null,null,"x",null,null,null,null,null,null,null,null,null,null,null,"x","x",null,null,null,null,null,null,null,null,null,null,"x",null,null,null,null,null,null,null,null,null,null,"x",null,"x","x","x",null,null,null,null,"x","x"]
[null,"BOYACA","BOYACA",15104,"Otros","x","x","x","x","x",null,null,"x","X","X",null,null,null,null,"x","x","x","x","x",null,null,null,null,null,null,null,null,null,null,null,"",null,"","",null,null,null,null,null,null,null,null,null,null,null,null,null,null,null,null," "," "," "," ","",null,null,null,null,null," "," "," "," "," "," "," "," "," ",null,null,null,null," "," ","X","X","X","X",null,null,"X",null,null,null,null,null,null,null,null,"X","X","X","X",null,null,null,null,"X",null,null,null,null,"x",null,null,null,null,null,null,null,null,null,null,null,"x","x",null,null,null,null,null,null,null,null,null,null,null,null,null,null,null,null,null,null,null,null,null,"x",null,"x","x"," "]
[null,"BOYACA","BRICEÑO",15106,"Otros","x","x","x","x","x",null,null,"x","X","X",null,null,null,null,"x","x","x","x","x",null,null,null,null,null,null,null,null,null,null,null,"",null,"","",null,null,null,null,null,null,null,null,null,null,null,null,null,null,null,null," "," "," "," ","",null,null,null,null,null," "," "," "," ","X"," "," "," "," ",null,null,null,null," "," ","X","X","X","X",null,null,"X",null,null,null,null,null,null,null,null,"X","X","X","X",null,null,null,null,"X",null,null,null,null,"x",null,null,null,null,null,null,null,null,null,null,null,"x","x",null,null,null,null,null,null,null,null,null,null,null,null,null,null,null,null,null,null,null,null,null,"x",null,"x","x","x"]
[null,"BOYACA","BUENAVISTA",15109,"Otros","x","x","x","x","x",null,null,"x","X","X",null,null,null,null,"x","x","x","x","x",null,null,null,null,null,null,null,null,null,null,null,"",null,"","",null,null,null,null,null,null,null,null,null,null,null,null,null,null,null,null," "," "," "," ","",null,null,null,null,null," "," "," "," ","X"," "," "," "," ",null,null,null,null," "," ","X","X","X","X",null,null,"X",null,null,null,null,null,null,null,null,"X","X","X","X",null,null,null,null,"X",null,null,null,null,"x",null,null,null,null,null,null,null,null,null,null,null,"x","x",null,null,null,null,null,null,null,null,null,null,"x",null,null,null,null,null,null,null,null,null,null,"x",null,"x","x","x",null,null,null,null,"x","x"]
[null,"BOYACA","BUSBANZA",15114,"Otros","x","x","x","x","x",null,null,"x","X","X",null,null,null,null,"x","x","x","x","x",null,null,null,null,null,null,null,null,null,null,null,"",null,"","",null,null,null,null,null,null,null,null,null,null,null,null,null,null,null,null," "," "," "," ","",null,null,null,null,null," "," "," "," "," "," "," "," "," ",null,null,null,null," "," ","X","X","X","X",null,null,null,null,null,null,null,null,null,null,null,"X","X","X","X",null,null,null,null,"X",null,null,null,null,"x",null,null,null,null,null,null,null,null,null,null,null,"x","x",null,null,null,null,null,null,null,null,null,null,null,null,null,null,null,null,null,null,null,null,null,null,null,"x","x"," "]
[null,"BOYACA","CALDAS",15131,"Otros","x","x","x","x",null,null,null,null,"X","X",null,null,null,null,null,"x","x","x","x",null,null,null,null,null,null,null,null,null,null,null,"",null,"","",null,null,null,null,null,null,null,null,null,null,null,null,null,null,null,null," "," "," "," ","",null,null,null,null,null," "," "," "," "," "," "," "," "," ",null,null,null,null," "," ","X","X","X","X",null,null,null,null,null,null,null,null,null,null,null,"X","X","X","X",null,null,null,null,"X",null,null,null,null,"x",null,null,null,null,null,null,null,null,null,"X",null,"x","x",null,null,null,null,null,null,null,null,null,null,"x",null,null,null,null,null,null,null,null,null,null,"x",null,"x","x"," ",null,null,null,null,"x","x"]
[null,"BOYACA","CAMPOHERMOSO",15135,"4","x","x","x","x","x",null,"x","x","X","X","x",null,"x",null,"x","x","x","x","x",null,null,null,null,null,null,null,null,null,null,null,"",null,"","",null,null,null,null,null,null,null,null,null,null,null,null,null,null,null,null," "," "," "," ",null,null,null,null,null,null," "," "," "," ","X"," "," "," "," ",null,null,null,null," "," ","X","X","X","X",null,null,null,null,null,null,null,null,null,null,null,"X","X","X","X",null,null,null,null,"X",null,null,null,null,"x",null,null,null,null,null,null,null,null,null,null,null,"x","x",null,null,null,null,null,null,null,null,null,null,"x",null,null,null,null,null,null,null,null,null,null,"x",null,"x","x","x",null,null,null,null,"x","x"]
[null,"BOYACA","CERINZA",15162,"Otros","x","x","x","x","x",null,null,"x","X","X",null,null,null,null,"x","x","x","x","x",null,null,null,null,null,null,null,null,null,null,null,"",null,"","",null,null,null,null,null,null,null,null,null,null,null,null,null,null,null,null," "," "," "," ","",null,null,null,null,null," "," "," "," ","X"," "," "," "," ",null,null,null,null," "," ","X","X","X","X",null,null,null,null,null,null,null,null,null,null,null,"X","X","X","X",null,null,null,null,"X",null,null,null,null,"x",null,null,null,null,null,null,null,null,null,null,null,"x","x",null,null,null,null,null,null,null,null,null,null,null,null,null,null,null,null,null,null,null,null,null,"x",null,"x","x","x"]
[null,"BOYACA","CHINAVITA",15172,"4","x","x","x","x","x","x","x","x","X","X","x",null,"x",null,"x","x","x","x","x",null,null,null,null,null,null,null,null,null,null,null,"",null,"","",null,null,null,null,null,null,null,null,null,null,null,null,null,null,null,null," "," "," "," ",null,null,null,null,null,null," "," "," "," ","X"," "," "," "," ",null,null,null,null," "," ","X","X","X","X",null,null,null,null,null,null,null,null,null,null,null,"X","X","X","X",null,null,null,null,"X",null,null,null,null,"x",null,null,null,null,null,null,null,null,null,null,null,"x","x",null,null,null,null,null,null,null,null,null,null,"x",null,null,null,null,null,null,null,null,null,null,"x",null,"x","x","x",null,null,null,null,"x","x"]
[null,"BOYACA","CHIQUINQUIRA",15176,"3","x","x","x","x","x","x","x","x","X","X","x",null,"x",null,"x","x","x","x","x",null,null,null,null,null,null,null,"X","X",null,"X","X","X","X","X",null,null,null,null,null,null,null,null,null,null,null,null,null,null,null,null,"X","X","X","X","X",null,null,null,null,null,"X","X","X","X","X","X","X","X","X",null,null,null,null,"X","X","X","X","X","X","X",null,null,"X",null,null,"X","X","X","X",null,"X","X","X","X",null,null,null,null,"X",null,"x","x","x","x",null,null,null,null,null,"x","x","x","x",null,"x","x","x","x",null,null,null,null,null,null,null,null,null,"x",null,null,null,null,null,null,null,null,null,null,"x",null,"x","x","x",null,null,null,null,"x","x","x","x","x","x",null,null,null,null,null,"x","x","x","x"]
[null,"BOYACA","CHISCAS",15180,"4","x","x","x","x","x",null,"x",null,"X","X","x",null,"x",null,null,"x","x","x","x",null,null,null,null,null,null,null,null,null,null,null,"",null,"","",null,null,null,null,null,null,null,null,null,null,null,null,null,null,null,null," "," "," "," ",null,null,null,null,null,null," "," "," "," "," "," "," "," "," ",null,null,null,null," "," ","X","X","X","X",null,null,null,null,null,null,null,null,null,null,null,"X","X","X","X",null,null,null,null,"X",null,null,null,null,"x",null,null,null,null,null,null,null,null,null,null,null,"x","x",null,null,null,null,null,null,null,null,null,null,"x",null,null,null,null,null,null,null,null,null,null,"x",null,"x","x","x",null,null,null,null,"x","x"]
[null,"BOYACA","CHITA",15183,"4","x","x","x","x","x","x","x",null,"X","X","x",null,"x",null,null,"x","x","x","x",null,null,null,null,null,null,null,null,null,null,null,"",null,"","",null,null,null,null,null,null,null,null,null,null,null,null,null,null,null,null," "," "," "," ",null,null,null,null,null,null," "," "," "," ","X"," "," "," "," ",null,null,null,null," "," ","X","X","X","X",null,null,null,null,null,null,null,null,null,null,null,"X","X","X","X",null,null,null,null,"X",null,null,null,null,"x",null,null,null,null,null,null,null,null,null,null,null,"x","x",null,null,null,null,null,null,null,null,null,null,"x",null,null,null,null,null,null,null,null,null,null,"x",null,"x","x","x",null,null,null,null,"x","x"]
[null,"BOYACA","CHITARAQUE",15185,"4","x","x","x","x","x","x","x","x","X","X","x",null,"x",null,"x","x","x","x","x",null,null,null,null,null,null,null,null,null,null,null,"",null,"","",null,null,null,null,null,null,null,null,null,null,null,null,null,null,null,null," "," "," "," ",null,null,null,null,null,null," "," "," "," ","X"," "," "," "," ",null,null,null,null," "," ","X","X","X","X",null,null,null,null,null,null,null,null,null,null,null,"X","X","X","X",null,null,null,null,"X",null,null,null,null,"x",null,null,null,null,null,null,null,null,null,null,null,"x","x",null,null,null,null,null,null,null,null,null,null,"x",null,null,null,null,null,null,null,null,null,null,"x",null,"x","x","x",null,null,null,null,"x","x"]
[null,"BOYACA","CHIVATA",15187,"Otros","x","x","x","x","x",null,null,"x","X","X",null,null,null,null,"x","x","x","x","x",null,null,null,null,null,null,null,null,null,null,null,"",null,"","",null,null,null,null,null,null,null,null,null,null,null,null,null,null,null,null," "," "," "," ","",null,null,null,null,null," "," "," "," ","X"," "," "," "," ",null,null,null,null," "," ","X","X","X","X",null,null,null,null,null,null,null,null,null,null,null,"X","X","X","X",null,null,null,null,"X",null,null,null,null,"x",null,null,null,null,null,null,null,null,null,null,null,"x","x",null,null,null,null,null,null,null,null,null,null,null,null,null,null,null,null,null,null,null,null,null,"x",null,"x","x"," "]
[null,"BOYACA","CIENEGA",15189,"Otros","x","x","x","x","x",null,null,"x","X","X",null,null,null,null,"x","x","x","x","x",null,null,null,null,null,null,null,null,null,null,null,"",null,"","",null,null,null,null,null,null,null,null,null,null,null,null,null,null,null,null," "," "," "," ","",null,null,null,null,null," "," "," "," ","X"," "," "," "," ",null,null,null,null," "," ","X","X","X","X",null,null,null,null,null,null,null,null,null,null,null,"X","X","X","X",null,null,null,null,"X",null,null,null,null,"x",null,null,null,null,null,null,null,null,null,null,null,"x","x",null,null,null,null,null,null,null,null,null,null,null,null,null,null,null,null,null,null,null,null,null,"x",null,"x","x"," "]
[null,"BOYACA","COMBITA",15204,"Otros","x","x","x","x","x",null,null,"x","X","X",null,null,null,null,"x","x","x","x","x",null,null,null,null,null,null,null,null,null,null,null,"",null,"","",null,null,null,null,null,null,null,null,null,null,null,null,null,null,null,null," "," "," "," ","",null,null,null,null,null," "," "," "," ","X"," "," "," "," ",null,null,null,null," "," ","X","X","X","X",null,null,null,null,null,null,null,null,null,null,null,"X","X","X","X",null,null,null,null,"X",null,null,null,null,"x",null,null,null,null,null,null,null,null,null,null,null,"x","x",null,null,null,null,null,null,null,null,null,null,null,null,null,null,null,null,null,null,null,null,null,"x",null,"x","x","x"]
[null,"BOYACA","COPER",15212,"Otros","x","x","x","x","x",null,null,"x","X","X",null,null,null,null,"x","x","x","x","x",null,null,null,null,null,null,null,null,null,null,null,"",null,"","",null,null,null,null,null,null,null,null,null,null,null,null,null,null,null,null," "," "," "," ","",null,null,null,null,null," "," "," "," ","X"," "," "," "," ",null,null,null,null," "," ","X","X","X","X",null,null,null,null,null,null,null,null,null,null,null,"X","X","X","X",null,null,null,null,"X",null,null,null,null,"x",null,null,null,null,null,null,null,null,null,null,null,"x","x",null,null,null,null,null,null,null,null,null,null,null,null,null,null,null,null,null,null,null,null,null,"x",null,"x","x"," "]
[null,"BOYACA","CORRALES",15215,"Otros","x","x","x","x","x",null,null,"x","X","X",null,null,null,null,"x","x","x","x","x",null,null,null,null,null,null,null,null,null,null,null,"",null,"","",null,null,null,null,null,null,null,null,null,null,null,null,null,null,null,null," "," "," "," ","",null,null,null,null,null," "," "," "," ","X"," "," "," "," ",null,null,null,null," "," ","X","X","X","X",null,null,null,null,null,null,null,null,null,null,null,"X","X","X","X",null,null,null,null,"X",null,null,null,null,"x",null,null,null,null,null,null,null,null,null,null,null,"x","x",null,null,null,null,null,null,null,null,null,null,null,null,null,null,null,null,null,null,null,null,null,"x",null,"x","x"," "]
[null,"BOYACA","COVARACHIA",15218,"4","x","x","x","x","x",null,"x",null,"X","X","x",null,"x",null,null,"x","x","x","x",null,null,null,null,null,null,null,null,null,null,null,"",null,"","",null,null,null,null,null,null,null,null,null,null,null,null,null,null,null,null," "," "," "," ",null,null,null,null,null,null," "," "," "," "," "," "," "," "," ",null,null,null,null," "," ","X","X","X","X",null,null,null,null,null,null,null,null,null,null,null,"X","X","X","X",null,null,null,null,"X",null,null,null,null,"x",null,null,null,null,null,null,null,null,null,null,null,"x","x",null,null,null,null,null,null,null,null,null,null,"x",null,null,null,null,null,null,null,null,null,null,"x",null,"x","x"," ",null,null,null,null,"x","x"]
[null,"BOYACA","CUBARA",15223,"4","x","x","x","x","x","x","x",null,"X","X","x",null,"x",null,null,"x","x","x","x",null,null,null,null,null,null,null,null,null,null,null,"",null,"","",null,null,null,null,null,null,null,null,null,null,null,null,null,null,null,null," "," "," "," ",null,null,null,null,null,null," "," "," "," "," "," "," "," "," ",null,null,null,null," "," ","X","X","X","X",null,null,null,null,null,null,null,null,null,null,null,"X","X","X","X",null,null,null,null,"X",null,null,null,null,"x",null,null,null,null,null,null,null,null,null,null,null,"x","x",null,null,null,null,null,null,null,null,null,null,"x",null,null,null,null,null,null,null,null,null,null,"x",null,"x","x","x",null,null,null,null,"x","x"]
[null,"BOYACA","CUCAITA",15224,"Otros","x","x","x","x","x",null,null,"x","X","X",null,null,null,null,"x","x","x","x","x",null,null,null,null,null,null,null,null,null,null,null,"",null,"","",null,null,null,null,null,null,null,null,null,null,null,null,null,null,null,null," "," "," "," ","",null,null,null,null,null," "," "," "," ","X"," "," "," "," ",null,null,null,null," "," ","X","X","X","X",null,null,null,null,null,null,null,null,null,null,null,"X","X","X","X",null,null,null,null,"X",null,null,null,null,"x",null,null,null,null,null,null,null,null,null,null,null,"x","x",null,null,null,null,null,null,null,null,null,null,null,null,null,null,null,null,null,null,null,null,null,"x",null,"x","x","x"]
[null,"BOYACA","CUITIVA",15226,"Otros","x","x","x","x","x",null,null,"x","X","X",null,null,null,null,"x","x","x","x","x",null,null,null,null,null,null,null,null,null,null,null,"",null,"","",null,null,null,null,null,null,null,null,null,null,null,null,null,null,null,null," "," "," "," ","",null,null,null,null,null," "," "," "," ","X"," "," "," "," ",null,null,null,null," "," ","X","X","X","X",null,null,null,null,null,null,null,null,null,null,null,"X","X","X","X",null,null,null,null,"X",null,null,null,null,"x",null,null,null,null,null,null,null,null,null,null,null,"x","x",null,null,null,null,null,null,null,null,null,null,null,null,null,null,null,null,null,null,null,null,null,null,null,"x","x","x"]
[null,"BOYACA","CHIQUIZA",15232,"Otros","x","x","x","x","x",null,null,"x","X","X",null,null,null,null,"x","x","x","x","x",null,null,null,null,null,null,null,null,null,null,null,"",null,"","",null,null,null,null,null,null,null,null,null,null,null,null,null,null,null,null," "," "," "," ","",null,null,null,null,null," "," "," "," "," "," "," "," "," ",null,null,null,null," "," ","X","X","X","X",null,null,null,null,null,null,null,null,null,null,null,"X","X","X","X",null,null,null,null,"X",null,null,null,null,"x",null,null,null,null,null,null,null,null,null,null,null,"x","x",null,null,null,null,null,null,null,null,null,null,null,null,null,null,null,null,null,null,null,null,null,"x",null,"x","x"," "]
[null,"BOYACA","CHIVOR",15236,"4","x","x","x","x","x",null,"x",null,"X","X","x",null,"x",null,null,"x","x","x","x",null,null,null,null,null,null,null,null,null,null,null,"",null,"","",null,null,null,null,null,null,null,null,null,null,null,null,null,null,null,null," "," "," "," ",null,null,null,null,null,null," "," "," "," "," "," "," "," "," ",null,null,null,null," "," ","X","X","X","X",null,null,null,null,null,null,null,null,null,null,null,"X","X","X","X",null,null,null,null,"X",null,null,null,null,"x",null,null,null,null,null,null,null,null,null,null,null,"x","x",null,null,null,null,null,null,null,null,null,null,"x",null,null,null,null,null,null,null,null,null,null,"x",null,"x","x"," ",null,null,null,null,"x","x"]
[null,"BOYACA","DUITAMA",15238,"1","x","x","x","x","x","x","x","x","X","X","x",null,"x",null,"x","x","x","x","x",null,null,null,null,null,null,null,"X","X",null,"X","X","X","X","X",null,null,null,null,null,null,null,null,null,null,null,null,null,null,null,null,"X","X","X","X","X","X",null,null,null,null,"X","X","X","X","X","X","X","X","X",null,null,null,null,"X","X","X","X","X","X","X",null,null,"X",null,null,"X","X","X","X","X","X","X","X","X",null,null,null,null,"X",null,"x","x","x","x",null,null,null,null,null,"x","x","x","x","X","x","x","x","x",null,null,null,null,null,null,"x","x","x","x",null,null,"x",null,null,null,"x","x","x","x","x",null,"x","x","x",null,null,null,null,"x","x","x","x","x","x",null,null,null,null,null,"x","x","x","x",null,null,null,null,null,null,null,null,null,null,null,"x","x","x","x"]
[null,"BOYACA","EL COCUY",15244,"4","x","x","x","x","x","x","x","x","X","X","x",null,"x",null,"x","x","x","x","x",null,null,null,null,null,null,null,null,null,null,null,"",null,"","",null,null,null,null,null,null,null,null,null,null,null,null,null,null,null,null," "," "," "," ",null,null,null,null,null,null," "," "," "," ","X"," "," "," "," ",null,null,null,null," "," ","X","X","X","X",null,null,null,null,null,null,null,null,null,null,null,"X","X","X","X",null,null,null,null,"X",null,null,null,null,"x",null,null,null,null,null,null,null,null,null,null,null,"x","x",null,null,null,null,null,null,null,null,null,null,"x",null,null,null,null,null,null,null,null,null,null,"x",null,"x","x","x",null,null,null,null,"x","x"]
[null,"BOYACA","EL ESPINO",15248,"4","x","x","x","x","x",null,"x",null,"X","X","x",null,"x",null,null,"x","x","x","x",null,null,null,null,null,null,null,null,null,null,null,"",null,"","",null,null,null,null,null,null,null,null,null,null,null,null,null,null,null,null," "," "," "," ",null,null,null,null,null,null," "," "," "," ","X"," "," "," "," ",null,null,null,null," "," ","X","X","X","X",null,null,null,null,null,null,null,null,null,null,null,"X","X","X","X",null,null,null,null,"X",null,null,null,null,"x",null,null,null,null,null,null,null,null,null,null,null,"x","x",null,null,null,null,null,null,null,null,null,null,"x",null,null,null,null,null,null,null,null,null,null,"x",null,"x","x","x",null,null,null,null,"x","x"]
[null,"BOYACA","FIRAVITOBA",15272,"Otros","x","x","x","x","x",null,null,"x","X","X",null,null,null,null,"x","x","x","x","x",null,null,null,null,null,null,null,null,null,null,null,"",null,"","",null,null,null,null,null,null,null,null,null,null,null,null,null,null,null,null," "," "," "," ","",null,null,null,null,null," "," "," "," ","X"," "," "," "," ",null,null,null,null," "," ","X","X","X","X",null,null,null,null,null,null,null,null,null,null,null,"X","X","X","X",null,null,null,null,"X",null,null,null,null,"x",null,null,null,null,null,null,null,null,null,null,null,"x","x",null,null,null,null,null,null,null,null,null,null,null,null,null,null,null,null,null,null,null,null,null,"x",null,"x","x"," "]
[null,"BOYACA","FLORESTA",15276,"Otros","x","x","x","x","x",null,null,"x","X","X",null,null,null,null,"x","x","x","x","x",null,null,null,null,null,null,null,null,null,null,null,"",null,"","",null,null,null,null,null,null,null,null,null,null,null,null,null,null,null,null," "," "," "," ","",null,null,null,null,null," "," "," "," ","X"," "," "," "," ",null,null,null,null," "," ","X","X","X","X",null,null,null,null,null,null,null,null,null,null,null,"X","X","X","X",null,null,null,null,"X",null,null,null,null,"x",null,null,null,null,null,null,null,null,null,null,null,"x","x",null,null,null,null,null,null,null,null,null,null,null,null,null,null,null,null,null,null,null,null,null,"x",null,"x","x","x"]
[null,"BOYACA","GACHANTIVA",15293,"4","x","x","x","x","x",null,"x","x","X","X","x",null,"x",null,"x","x","x","x","x",null,null,null,null,null,null,null,null,null,null,null,"",null,"","",null,null,null,null,null,null,null,null,null,null,null,null,null,null,null,null," "," "," "," ",null,null,null,null,null,null," "," "," "," ","X"," "," "," "," ",null,null,null,null," "," ","X","X","X","X",null,null,null,null,null,null,null,null,null,null,null,"X","X","X","X",null,null,null,null,"X",null,null,null,null,"x",null,null,null,null,null,null,null,null,null,null,null,"x","x",null,null,null,null,null,null,null,null,null,null,"x",null,null,null,null,null,null,null,null,null,null,"x",null,"x","x","x",null,null,null,null,"x","x"]
[null,"BOYACA","GAMEZA",15296,"4","x","x","x","x","x","x","x",null,"X","X","x",null,"x",null,null,"x","x","x","x",null,null,null,null,null,null,null,null,null,null,null,"",null,"","",null,null,null,null,null,null,null,null,null,null,null,null,null,null,null,null," "," "," "," ",null,null,null,null,null,null," "," "," "," ","X"," "," "," "," ",null,null,null,null," "," ","X","X","X","X",null,null,null,null,null,null,null,null,null,null,null,"X","X","X","X",null,null,null,null,"X",null,null,null,null,"x",null,null,null,null,null,null,null,null,null,null,null,"x","x",null,null,null,null,null,null,null,null,null,null,"x",null,null,null,null,null,null,null,null,null,null,"x",null,"x","x"," ",null,null,null,null,"x","x"]
[null,"BOYACA","GARAGOA",15299,"2","x","x","x","x","x","x","x","x","X","X","x",null,"x",null,"x","x","x","x","x",null,null,null,null,null,null,null,null,null,null,"X","",null,"X","X",null,null,null,null,null,null,null,null,null,null,null,null,null,null,null,null,"X","X","X","X","X","X",null,null,null,null,"X","X","X","X","X","X","X","X","X",null,null,null,null,"X","X","X","X","X","X","X",null,null,"X",null,null,"X","X","X","X",null,"X","X","X","X",null,null,null,null,"X",null,null,null,null,"x",null,null,null,null,null,null,null,null,null,null,null,"x","x",null,null,null,null,null,null,null,null,null,null,"x",null,null,null,null,null,null,null,null,null,null,"x",null,"x","x","x",null,null,null,null,"x","x"]
[null,"BOYACA","GUACAMAYAS",15317,"Otros","x","x","x","x","x",null,null,"x","X","X",null,null,null,null,"x","x","x","x","x",null,null,null,null,null,null,null,null,null,null,null,"",null,"","",null,null,null,null,null,null,null,null,null,null,null,null,null,null,null,null," "," "," "," ","",null,null,null,null,null," "," "," "," "," "," "," "," "," ",null,null,null,null," "," ","X","X","X","X",null,null,null,null,null,null,null,null,null,null,null,"X","X","X","X",null,null,null,null,"X",null,null,null,null,"x",null,null,null,null,null,null,null,null,null,null,null,"x","x",null,null,null,null,null,null,null,null,null,null,"x",null,null,null,null,null,null,null,null,null,null,"x",null,"x","x","x",null,null,null,null,"x","x"]
[null,"BOYACA","GUATEQUE",15322,"3","x","x","x","x","x","x","x","x","X","X","x",null,"x",null,"x","x","x","x","x",null,null,null,null,null,null,null,null,null,null,"X","",null,"X","X",null,null,null,null,null,null,null,null,null,null,null,null,null,null,null,null," "," "," "," ","",null,null,null,null,null," "," "," "," ","X"," "," "," "," ",null,null,null,null," "," ","X","X","X","X","X",null,null,"X",null,null,"X","X","X","X",null,"X","X","X","X",null,null,null,null,"X",null,null,null,null,"x",null,null,null,null,null,null,null,null,null,null,null,"x","x",null,null,null,null,null,null,null,null,null,null,"x",null,null,null,null,null,null,null,null,null,null,"x",null,"x","x","x",null,null,null,null,"x","x"]
[null,"BOYACA","GUAYATA",15325,"4","x","x","x","x","x",null,"x",null,"X","X","x",null,"x",null,null,"x","x","x","x",null,null,null,null,null,null,null,null,null,null,null,"",null,"","",null,null,null,null,null,null,null,null,null,null,null,null,null,null,null,null," "," "," "," ",null,null,null,null,null,null," "," "," "," ","X"," "," "," "," ",null,null,null,null," "," ","X","X","X","X",null,null,null,null,null,null,null,null,null,null,null,"X","X","X","X",null,null,null,null,"X",null,null,null,null,"x",null,null,null,null,null,null,null,null,null,null,null,"x","x",null,null,null,null,null,null,null,null,null,null,"x",null,null,null,null,null,null,null,null,null,null,"x",null,"x","x","x",null,null,null,null,"x","x"]
[null,"BOYACA","GsICAN",15332,"4","x","x","x","x","x","x","x",null,"X","X","x",null,"x",null,null,"x","x","x","x",null,null,null,null,null,null,null,null,null,null,null,"",null,"","",null,null,null,null,null,null,null,null,null,null,null,null,null,null,null,null," "," "," "," ",null,null,null,null,null,null," "," "," "," ","X"," "," "," "," ",null,null,null,null," "," ","X","X","X","X",null,null,null,null,null,null,null,null,null,null,null,"X","X","X","X",null,null,null,null,"X",null,null,null,null,"x",null,null,null,null,null,null,null,null,null,null,null,"x","x",null,null,null,null,null,null,null,null,null,null,null,null,null,null,null,null,null,null,null,null,null,"x",null,"x","x"," "]
[null,"BOYACA","IZA",15362,"Otros","x","x","x","x","x",null,null,"x","X","X",null,null,null,null,"x","x","x","x","x",null,null,null,null,null,null,null,null,null,null,null,"",null,"","",null,null,null,null,null,null,null,null,null,null,null,null,null,null,null,null," "," "," "," ","",null,null,null,null,null," "," "," "," ","X"," "," "," "," ",null,null,null,null," "," ","X","X","X","X",null,null,null,null,null,null,null,null,null,null,null,"X","X","X","X",null,null,null,null,"X",null,null,null,null,"x",null,null,null,null,null,null,null,null,null,null,null,"x","x",null,null,null,null,null,null,null,null,null,null,null,null,null,null,null,null,null,null,null,null,null,"x",null,"x","x","x"]
[null,"BOYACA","JENESANO",15367,"4","x","x","x","x","x","x","x","x","X","X","x",null,"x",null,"x","x","x","x","x",null,null,null,null,null,null,null,null,null,null,null,"",null,"","",null,null,null,null,null,null,null,null,null,null,null,null,null,null,null,null," "," "," "," ",null,null,null,null,null,null," "," "," "," ","X"," "," "," "," ",null,null,null,null," "," ","X","X","X","X",null,null,null,null,null,null,null,null,null,null,null,"X","X","X","X",null,null,null,null,"X",null,null,null,null,"x",null,null,null,null,null,null,null,null,null,null,null,"x","x",null,null,null,null,null,null,null,null,null,null,"x",null,null,null,null,null,null,null,null,null,null,"x",null,"x","x","x",null,null,null,null,"x","x"]
[null,"BOYACA","JERICO",15368,"Otros","x","x","x","x",null,null,null,null,"X","X",null,null,null,null,null,"x","x","x","x",null,null,null,null,null,null,null,null,null,null,null,"",null,"","",null,null,null,null,null,null,null,null,null,null,null,null,null,null,null,null," "," "," "," ","",null,null,null,null,null," "," "," "," ","X"," "," "," "," ",null,null,null,null," "," ","X","X","X","X",null,null,null,null,null,null,null,null,null,null,null,"X","X","X","X",null,null,null,null,"X",null,null,null,null,"x",null,null,null,null,null,null,null,null,null,null,null,"x","x",null,null,null,null,null,null,null,null,null,null,"x",null,null,null,null,null,null,null,null,null,null,"x",null,"x","x"," ",null,null,null,null,"x","x"]
[null,"BOYACA","LABRANZAGRANDE",15377,"4","x","x","x","x","x","x","x","x","X","X","x",null,"x",null,"x","x","x","x","x",null,null,null,null,null,null,null,null,null,null,null,"",null,"","",null,null,null,null,null,null,null,null,null,null,null,null,null,null,null,null," "," "," "," ",null,null,null,null,null,null," "," "," "," ","X"," "," "," "," ",null,null,null,null," "," ","X","X","X","X",null,null,null,null,null,null,null,null,null,null,null,"X","X","X","X",null,null,null,null,"X",null,null,null,null,"x",null,null,null,null,null,null,null,null,null,null,null,"x","x",null,null,null,null,null,null,null,null,null,null,"x",null,null,null,null,null,null,null,null,null,null,"x",null,"x","x","x",null,null,null,null,"x","x"]
[null,"BOYACA","LA CAPILLA",15380,"Otros","x","x","x","x","x",null,null,"x","X","X",null,null,null,null,"x","x","x","x","x",null,null,null,null,null,null,null,null,null,null,null,"",null,"","",null,null,null,null,null,null,null,null,null,null,null,null,null,null,null,null," "," "," "," ","",null,null,null,null,null," "," "," "," ","X"," "," "," "," ",null,null,null,null," "," ","X","X","X","X",null,null,null,null,null,null,null,null,null,null,null,"X","X","X","X",null,null,null,null,"X",null,null,null,null,"x",null,null,null,null,null,null,null,null,null,null,null,"x","x",null,null,null,null,null,null,null,null,null,null,null,null,null,null,null,null,null,null,null,null,null,"x",null,"x","x","x"]
[null,"BOYACA","LA VICTORIA",15401,"Otros","x","x","x","x","x",null,null,"x","X","X",null,null,null,null,"x","x","x","x","x",null,null,null,null,null,null,null,null,null,null,null,"",null,"","",null,null,null,null,null,null,null,null,null,null,null,null,null,null,null,null," "," "," "," ","",null,null,null,null,null," "," "," "," ","X"," "," "," "," ",null,null,null,null," "," ","X","X","X","X",null,null,null,null,null,null,null,null,null,null,null,"X","X","X","X",null,null,null,null,"X",null,null,null,null,"x",null,null,null,null,null,null,null,null,null,null,null,"x","x",null,null,null,null,null,null,null,null,null,null,"x",null,null,null,null,null,null,null,null,null,null,"x",null,"x","x"," ",null,null,null,null,"x","x"]
[null,"BOYACA","LA UVITA",15403,"4","x","x","x","x","x",null,"x",null,"X","X","x",null,"x",null,null,"x","x","x","x",null,null,null,null,null,null,null,null,null,null,null,"",null,"","",null,null,null,null,null,null,null,null,null,null,null,null,null,null,null,null," "," "," "," ",null,null,null,null,null,null," "," "," "," ","X"," "," "," "," ",null,null,null,null," "," ","X","X","X","X",null,null,null,null,null,null,null,null,null,null,null,"X","X","X","X",null,null,null,null,"X",null,null,null,null,"x",null,null,null,null,null,null,null,null,null,null,null,"x","x",null,null,null,null,null,null,null,null,null,null,"x",null,null,null,null,null,null,null,null,null,null,"x",null,"x","x","x",null,null,null,null,"x","x"]
[null,"BOYACA","MIRAFLORES",15455,"4","x","x","x","x","x","x","x","x","X","X","x",null,"x",null,"x","x","x","x","x",null,null,null,null,null,null,null,"X","X",null,"X","X","X","X","X",null,null,null,null,null,null,null,null,null,null,null,null,null,null,null,null," "," "," "," ",null,null,null,null,null,null," "," "," "," ","X"," "," "," "," ",null,null,null,null," "," ","X","X","X","X",null,null,null,null,null,null,null,null,null,null,null,"X","X","X","X",null,null,null,null,"X",null,null,null,null,"x",null,null,null,null,null,null,null,null,null,null,null,"x","x",null,null,null,null,null,null,null,null,null,null,"x",null,null,null,null,null,null,null,null,null,null,"x",null,"x","x"," ",null,null,null,null,"x","x"]
[null,"BOYACA","MONIQUIRA",15469,"3","x","x","x","x","x","x","x","x","X","X","x",null,"x",null,"x","x","x","x","x",null,null,null,null,null,null,null,"X","X",null,null,null,"X","","",null,null,null,null,null,null,null,null,null,null,null,null,null,null,null,null," "," "," "," ","",null,null,null,null,null," "," "," "," ","X"," "," "," "," ",null,null,null,null," "," ","X","X","X","X","X",null,null,"X",null,null,"X","X","X","X",null,"X","X","X","X",null,null,null,null,"X",null,null,null,null,"x",null,null,null,null,null,null,null,null,null,null,null,"x","x",null,null,null,null,null,null,null,null,null,null,"x",null,null,null,null,null,null,null,null,null,null,"x",null,"x","x","x",null,null,null,null,"x","x"]
[null,"BOYACA","MUZO",15480,"4","x","x","x","x","x","x","x","x","X","X","x",null,"x",null,"x","x","x","x","x",null,null,null,null,null,null,null,null,null,null,null,"",null,"","",null,null,null,null,null,null,null,null,null,null,null,null,null,null,null,null," "," "," "," ",null,null,null,null,null,null," "," "," "," ","X"," "," "," "," ",null,null,null,null," "," ","X","X","X","X",null,null,null,null,null,null,null,null,null,null,null,"X","X","X","X",null,null,null,null,"X",null,null,null,null,"x",null,null,null,null,null,null,null,null,null,null,null,"x","x",null,null,null,null,null,null,null,null,null,null,"x",null,null,null,null,null,null,null,null,null,null,"x",null,"x","x","x",null,null,null,null,"x","x"]
[null,"BOYACA","PAEZ",15514,"4","x","x","x","x","x","x","x","x","X","X","x",null,"x",null,"x","x","x","x","x",null,null,null,null,null,null,null,null,null,null,null,"",null,"","",null,null,null,null,null,null,null,null,null,null,null,null,null,null,null,null," "," "," "," ",null,null,null,null,null,null," "," "," "," ","X"," "," "," "," ",null,null,null,null," "," ","X","X","X","X",null,null,null,null,null,null,null,null,null,null,null,"X","X","X","X",null,null,null,null,"X",null,null,null,null,"x",null,null,null,null,null,null,null,null,null,null,null,"x","x",null,null,null,null,null,null,null,null,null,null,"x",null,null,null,null,null,null,null,null,null,null,"x",null,"x","x"," ",null,null,null,null,"x","x"]
[null,"BOYACA","PANQUEBA",15522,"Otros","x","x","x","x","x",null,null,"x","X","X",null,null,null,null,"x","x","x","x","x",null,null,null,null,null,null,null,null,null,null,null,"",null,"","",null,null,null,null,null,null,null,null,null,null,null,null,null,null,null,null," "," "," "," ","",null,null,null,null,null," "," "," "," ","X"," "," "," "," ",null,null,null,null," "," ","X","X","X","X",null,null,null,null,null,null,null,null,null,null,null,"X","X","X","X",null,null,null,null,"X",null,null,null,null,"x",null,null,null,null,null,null,null,null,null,null,null,"x","x",null,null,null,null,null,null,null,null,null,null,null,null,null,null,null,null,null,null,null,null,null,"x",null,"x","x"," "]
[null,"BOYACA","PAUNA",15531,"4","x","x","x","x","x","x","x","x","X","X","x",null,"x",null,"x","x","x","x","x",null,null,null,null,null,null,null,null,null,null,null,"",null,"","",null,null,null,null,null,null,null,null,null,null,null,null,null,null,null,null," "," "," "," ",null,null,null,null,null,null," "," "," "," ","X"," "," "," "," ",null,null,null,null," "," ","X","X","X","X",null,null,null,null,null,null,null,null,null,null,null,"X","X","X","X",null,null,null,null,"X",null,null,null,null,"x",null,null,null,null,null,null,null,null,null,null,null,"x","x",null,null,null,null,null,null,null,null,null,null,"x",null,null,null,null,null,null,null,null,null,null,"x",null,"x","x","x",null,null,null,null,"x","x"]
[null,"BOYACA","PESCA",15542,"4","x","x","x","x","x","x","x","x","X","X","x",null,"x",null,"x","x","x","x","x",null,null,null,null,null,null,null,null,null,null,null,"",null,"","",null,null,null,null,null,null,null,null,null,null,null,null,null,null,null,null," "," "," "," ",null,null,null,null,null,null," "," "," "," ","X"," "," "," "," ",null,null,null,null," "," ","X","X","X","X",null,null,null,null,null,null,null,null,null,null,null,"X","X","X","X",null,null,null,null,"X",null,null,null,null,"x",null,null,null,null,null,null,null,null,null,null,null,"x","x",null,null,null,null,null,null,null,null,null,null,"x",null,null,null,null,null,null,null,null,null,null,"x",null,"x","x","x",null,null,null,null,"x","x"]
[null,"BOYACA","RAQUIRA",15600,"Otros","x","x","x","x","x",null,null,"x","X","X",null,null,null,null,"x","x","x","x","x",null,null,null,null,null,null,null,null,null,null,null,"",null,"","",null,null,null,null,null,null,null,null,null,null,null,null,null,null,null,null," "," "," "," ","X","X",null,null,null,null," "," "," "," ","X"," "," "," "," ",null,null,null,null," "," ","X","X","X","X",null,null,null,null,null,null,null,null,null,null,null,"X","X","X","X",null,null,null,null,"X",null,null,null,null,"x",null,null,null,null,null,null,null,null,null,null,null,"x","x",null,null,null,null,null,null,null,null,null,null,null,null,null,null,null,null,null,null,null,null,null,"x",null,"x","x","x"]
[null,"BOYACA","SACHICA",15638,"Otros","x","x","x","x","x",null,null,"x","X","X",null,null,null,null,"x","x","x","x","x",null,null,null,null,null,null,null,null,null,null,null,"",null,"","",null,null,null,null,null,null,null,null,null,null,null,null,null,null,null,null," "," "," "," ","",null,null,null,null,null," "," "," "," ","X"," "," "," "," ",null,null,null,null," "," ","X","X","X","X",null,null,null,null,null,null,null,null,null,null,null,"X","X","X","X",null,null,null,null,"X",null,null,null,null,"x",null,null,null,null,null,null,null,null,null,null,null,"x","x",null,null,null,null,null,null,null,null,null,null,null,null,null,null,null,null,null,null,null,null,null,"x",null,"x","x","x"]
[null,"BOYACA","SAN JOSE DE PARE",15664,"4","x","x","x","x","x","x","x","x","X","X","x",null,"x",null,"x","x","x","x","x",null,null,null,null,null,null,null,null,null,null,null,"",null,"","",null,null,null,null,null,null,null,null,null,null,null,null,null,null,null,null," "," "," "," ",null,null,null,null,null,null," "," "," "," ","X"," "," "," "," ",null,null,null,null," "," ","X","X","X","X",null,null,null,null,null,null,null,null,null,null,null,"X","X","X","X",null,null,null,null,"X",null,null,null,null,"x",null,null,null,null,null,null,null,null,null,null,null,"x","x",null,null,null,null,null,null,null,null,null,null,"x",null,null,null,null,null,null,null,null,null,null,"x",null,"x","x"," ",null,null,null,null,"x","x"]
[null,"BOYACA","SAN MATEO",15673,"4","x","x","x","x","x",null,"x",null,"X","X","x",null,"x",null,null,"x","x","x","x",null,null,null,null,null,null,null,null,null,null,null,"",null,"","",null,null,null,null,null,null,null,null,null,null,null,null,null,null,null,null," "," "," "," ",null,null,null,null,null,null," "," "," "," ","X"," "," "," "," ",null,null,null,null," "," ","X","X","X","X",null,null,null,null,null,null,null,null,null,null,null,"X","X","X","X",null,null,null,null,"X",null,null,null,null,"x",null,null,null,null,null,null,null,null,null,null,null,"x","x",null,null,null,null,null,null,null,null,null,null,"x",null,null,null,null,null,null,null,null,null,null,"x",null,"x","x","x",null,null,null,null,"x","x"]
[null,"BOYACA","SANTA SOFIA",15696,"4","x","x","x","x","x",null,"x","x","X","X","x",null,"x",null,"x","x","x","x","x",null,null,null,null,null,null,null,null,null,null,null,"",null,"","",null,null,null,null,null,null,null,null,null,null,null,null,null,null,null,null," "," "," "," ",null,null,null,null,null,null," "," "," "," ","X"," "," "," "," ",null,null,null,null," "," ","X","X","X","X",null,null,null,null,null,null,null,null,null,null,null,"X","X","X","X",null,null,null,null,"X",null,null,null,null,"x",null,null,null,null,null,null,null,null,null,null,null,"x","x",null,null,null,null,null,null,null,null,null,null,"x",null,null,null,null,null,null,null,null,null,null,"x",null,"x","x","x",null,null,null,null,"x","x"]
[null,"BOYACA","SIACHOQUE",15740,"Otros","x","x","x","x","x",null,null,"x","X","X",null,null,null,null,"x","x","x","x","x",null,null,null,null,null,null,null,null,null,null,null,"",null,"","",null,null,null,null,null,null,null,null,null,null,null,null,null,null,null,null," "," "," "," ","",null,null,null,null,null," "," "," "," ","X"," "," "," "," ",null,null,null,null," "," ","X","X","X","X",null,null,null,null,null,null,null,null,null,null,null,"X","X","X","X",null,null,null,null,"X",null,null,null,null,"x",null,null,null,null,null,null,null,null,null,null,null,"x","x",null,null,null,null,null,null,null,null,null,null,null,null,null,null,null,null,null,null,null,null,null,"x",null,"x","x","x"]
[null,"BOYACA","SOGAMOSO",15759,"1","x","x","x","x","x","x","x","x","X","X","x",null,"x",null,"x","x","x","x","x",null,null,null,null,null,null,null,"X","X",null,"X","X","X","X","X",null,null,null,null,null,null,null,null,null,null,null,null,null,null,null,null,"X","X","X","X","X","X",null,null,null,null,"X","X","X","X","X","X","X","X","X",null,null,null,null,"X","X","X","X","X","X","X",null,null,"X",null,null,"X","X","X","X",null,"X","X","X","X",null,null,null,null,"X",null,"x","x","x","x",null,null,null,null,null,"x","x","x","x","X","x","x","x","x",null,null,null,null,null,null,"x","x","x","x",null,null,"x",null,null,null,"x","x","x","x","x",null,"x","x","x",null,null,null,null,"x","x","x","x","x","x",null,null,null,null,null,"x","x","x","x",null,null,null,null,null,null,null,null,null,null,null,"x","x","x","x"]
[null,"BOYACA","SOMONDOCO",15761,"4","x","x","x","x","x",null,"x",null,"X","X","x",null,"x",null,null,"x","x","x","x",null,null,null,null,null,null,null,null,null,null,null,"",null,"","",null,null,null,null,null,null,null,null,null,null,null,null,null,null,null,null," "," "," "," ",null,null,null,null,null,null," "," "," "," ","X"," "," "," "," ",null,null,null,null," "," ","X","X","X","X",null,null,null,null,null,null,null,null,null,null,null,"X","X","X","X",null,null,null,null,"X",null,null,null,null,"x",null,null,null,null,null,null,null,null,null,null,null,"x","x",null,null,null,null,null,null,null,null,null,null,"x",null,null,null,null,null,null,null,null,null,null,"x",null,"x","x","x",null,null,null,null,"x","x"]
[null,"BOYACA","SUSACON",15774,"4","x","x","x","x","x",null,"x",null,"X","X","x",null,"x",null,null,"x","x","x","x",null,null,null,null,null,null,null,null,null,null,null,"",null,"","",null,null,null,null,null,null,null,null,null,null,null,null,null,null,null,null," "," "," "," ",null,null,null,null,null,null," "," "," "," "," "," "," "," "," ",null,null,null,null," "," ","X","X","X","X",null,null,null,null,null,null,null,null,null,null,null,"X","X","X","X",null,null,null,null,"X",null,null,null,null,"x",null,null,null,null,null,null,null,null,null,null,null,"x","x",null,null,null,null,null,null,null,null,null,null,"x",null,null,null,null,null,null,null,null,null,null,"x",null,"x","x"," ",null,null,null,null,"x","x"]
[null,"BOYACA","TASCO",15790,"Otros","x","x","x","x","x",null,null,"x","X","X",null,null,null,null,"x","x","x","x","x",null,null,null,null,null,null,null,null,null,null,null,"",null,"","",null,null,null,null,null,null,null,null,null,null,null,null,null,null,null,null," "," "," "," ","",null,null,null,null,null," "," "," "," ","X"," "," "," "," ",null,null,null,null," "," ","X","X","X","X",null,null,null,null,null,null,null,null,null,null,null,"X","X","X","X",null,null,null,null,"X",null,null,null,null,"x",null,null,null,null,null,null,null,null,null,null,null,"x","x",null,null,null,null,null,null,null,null,null,null,null,null,null,null,null,null,null,null,null,null,null,"x",null,"x","x","x"]
[null,"BOYACA","TIPACOQUE",15810,"4","x","x","x","x","x",null,"x",null,"X","X","x",null,"x",null,null,"x","x","x","x",null,null,null,null,null,null,null,null,null,null,null,"",null,"","",null,null,null,null,null,null,null,null,null,null,null,null,null,null,null,null," "," "," "," ",null,null,null,null,null,null," "," "," "," "," "," "," "," "," ",null,null,null,null," "," ","X","X","X","X",null,null,null,null,null,null,null,null,null,null,null,"X","X","X","X",null,null,null,null,"X",null,null,null,null,"x",null,null,null,null,null,null,null,null,null,null,null,"x","x",null,null,null,null,null,null,null,null,null,null,"x",null,null,null,null,null,null,null,null,null,null,null,null,"x","x","x",null,null,null,null,"x","x"]
[null,"BOYACA","TOPAGA",15820,"Otros","x","x","x","x","x",null,null,"x","X","X",null,null,null,null,"x","x","x","x","x",null,null,null,null,null,null,null,null,null,null,null,"",null,"","",null,null,null,null,null,null,null,null,null,null,null,null,null,null,null,null," "," "," "," ","",null,null,null,null,null," "," "," "," ","X"," "," "," "," ",null,null,null,null," "," ","X","X","X","X",null,null,null,null,null,null,null,null,null,null,null,"X","X","X","X",null,null,null,null,"X",null,null,null,null,"x",null,null,null,null,null,null,null,null,null,null,null,"x","x",null,null,null,null,null,null,null,null,null,null,null,null,null,null,null,null,null,null,null,null,null,"x",null,"x","x"," "]
[null,"BOYACA","TURMEQUE",15835,"4","x","x","x","x","x","x","x","x","X","X","x",null,"x",null,"x","x","x","x","x",null,null,null,null,null,null,null,null,null,null,null,"",null,"","",null,null,null,null,null,null,null,null,null,null,null,null,null,null,null,null," "," "," "," ",null,null,null,null,null,null," "," "," "," ","X"," "," "," "," ",null,null,null,null," "," ","X","X","X","X",null,null,null,null,null,null,null,null,null,null,null,"X","X","X","X",null,null,null,null,"X",null,null,null,null,"x",null,null,null,null,null,null,null,null,null,null,null,"x","x",null,null,null,null,null,null,null,null,null,null,"x",null,null,null,null,null,null,null,null,null,null,"x",null,"x","x","x",null,null,null,null,"x","x"]
[null,"BOYACA","TUTA",15837,"4","x","x","x","x","x","x","x","x","X","X","x",null,"x",null,"x","x","x","x","x",null,null,null,null,null,null,null,null,null,null,null,"",null,"","",null,null,null,null,null,null,null,null,null,null,null,null,null,null,null,null," "," "," "," ",null,null,null,null,null,null," "," "," "," ","X"," "," "," "," ",null,null,null,null," "," ","X","X","X","X",null,null,null,null,null,null,null,null,null,null,null,"X","X","X","X",null,null,null,null,"X",null,null,null,null,"x",null,null,null,null,null,null,null,null,null,null,null,"x","x",null,null,null,null,null,null,null,null,null,null,"x",null,null,null,null,null,null,null,null,null,null,"x",null,"x","x","x",null,null,null,null,"x","x"]
[null,"CALDAS","MANIZALES",17001,"1","x","x","x","x","x","x","x","x","X","X","x",null,"x",null,"x","x","x","x","x",null,null,null,null,null,null,null,"X","X",null,"X","X","X","X","X",null,null,null,null,null,null,null,null,null,null,null,null,null,null,null,null,"X","X","X","X","X","X",null,null,null,null,"X","X","X","X","X","X","X","X","X",null,null,null,null,"X","X","X","X","X","X","X",null,null,"X",null,null,"X","X","X","X","X","X","X","X","X",null,null,null,null,"X",null,"x","x","x","x",null,null,null,null,null,"x","x","x","x","X","x","x","x","x",null,null,null,null,null,null,"x","x","x","x",null,null,"x",null,null,null,"x","x","x","x","x",null,"x","x","x",null,null,null,null,"x","x","x","x","x","x",null,null,null,null,null,"x","x","x","x",null,null,null,null,null,null,null,null,null,null,null,"x","x","x","x"]
[null,"CALDAS","AGUADAS",17013,"3","x","x","x","x","x","x","x",null,"X","X","x",null,"x",null,null,"x","x","x","x",null,null,null,null,null,null,null,"X","X",null,"X","X","X","X","X",null,null,null,null,null,null,null,null,null,null,null,null,null,null,null,null,"X","X","X","X","X",null,null,null,null,null,"X","X","X","X","X","X","X","X","X",null,null,null,null,"X","X","X","X","X","X",null,null,null,null,null,null,null,null,null,null,null,"X","X","X","X",null,null,null,null,"X",null,null,null,null,"x",null,null,null,null,null,null,null,null,null,null,null,"x","x",null,null,null,null,null,null,null,null,null,null,"x",null,null,null,null,null,null,null,null,null,null,"x",null,"x","x"," ",null,null,null,null,"x","x"]
[null,"CALDAS","CHINCHINA",17174,"Otros","x","x","x","x","x","x",null,"x","X","X",null,null,null,null,"x","x","x","x","x",null,null,null,null,null,null,null,"X","X",null,"X","X","X","X","X",null,null,null,null,null,null,null,null,null,null,null,null,null,null,null,null,"X","X","X","X","X","X",null,null,null,null,"X","X","X","X","X","X","X","X","X",null,null,null,null,"X","X","X","X","X","X",null,null,null,null,null,null,null,null,null,null,"X","X","X","X","X",null,null,null,null,"X",null,null,null,null,"x",null,null,null,null,null,null,null,null,null,"X",null,"x","x",null,null,null,null,null,null,null,null,null,null,"x",null,null,null,null,null,null,null,null,null,null,"x",null,"x","x","x",null,null,null,null,"x","x"]
[null,"CALDAS","LA MERCED",17388,"4","x","x","x","x","x","x","x","x","X","X","x",null,"x",null,"x","x","x","x","x",null,null,null,null,null,null,null,null,null,null,null,"",null,"","",null,null,null,null,null,null,null,null,null,null,null,null,null,null,null,null," "," "," "," ",null,null,null,null,null,null," "," "," "," ","X"," "," "," "," ",null,null,null,null," "," ","X","X","X","X",null,null,null,null,null,null,null,null,null,null,null,"X","X","X","X",null,null,null,null,"X",null,null,null,null,"x",null,null,null,null,null,null,null,null,null,null,null,"x","x",null,null,null,null,null,null,null,null,null,null,"x",null,null,null,null,null,null,null,null,null,null,"x",null,"x","x","x",null,null,null,null,"x","x"]
[null,"CALDAS","NEIRA",17486,"3","x","x","x","x","x","x","x",null,"X","X","x",null,"x",null,null,"x","x","x","x",null,null,null,null,null,null,null,"X","X",null,null,null,"X","","",null,null,null,null,null,null,null,null,null,null,null,null,null,null,null,null," "," "," "," ","X",null,null,null,null,null," "," "," "," ","X"," "," "," "," ",null,null,null,null," "," ","X","X","X","X",null,null,null,null,null,null,null,null,null,null,"X","X","X","X","X",null,null,null,null,"X",null,null,null,null,"x",null,null,null,null,null,null,null,null,null,null,null,"x","x",null,null,null,null,null,null,null,null,null,null,"x",null,null,null,null,null,null,null,null,null,null,"x",null,"x","x","x",null,null,null,null,"x","x"]
[null,"CALDAS","PALESTINA",17524,"4","x","x","x","x","x","x","x",null,"X","X","x",null,"x",null,null,"x","x","x","x",null,null,null,null,null,null,null,"X","X",null,"X","X","X","X","X",null,null,null,null,null,null,null,null,null,null,null,null,null,null,null,null," "," "," "," ",null,null,null,null,null,null," "," "," "," ","X"," "," "," "," ",null,null,null,null," "," ","X","X","X","X",null,null,null,null,null,null,null,null,null,null,null,"X","X","X","X",null,null,null,null,"X",null,null,null,null,"x",null,null,null,null,null,null,null,null,null,null,null,"x","x",null,null,null,null,null,null,null,null,null,null,"x",null,null,null,null,null,null,null,null,null,null,"x",null,"x","x"," ",null,null,null,null,"x","x"]
[null,"CALDAS","RISARALDA",17616,"4","x","x","x","x","x","x","x","x","X","X","x",null,"x",null,"x","x","x","x","x",null,null,null,null,null,null,null,null,null,null,null,"",null,"","",null,null,null,null,null,null,null,null,null,null,null,null,null,null,null,null," "," "," "," ",null,null,null,null,null,null," "," "," "," ","X"," "," "," "," ",null,null,null,null," "," ","X","X","X","X",null,null,null,null,null,null,null,null,null,null,null,"X","X","X","X",null,null,null,null,"X",null,null,null,null,"x",null,null,null,null,null,null,null,null,null,null,null,"x","x",null,null,null,null,null,null,null,null,null,null,"x",null,null,null,null,null,null,null,null,null,null,"x",null,"x","x"," ",null,null,null,null,"x","x"]
[null,"CALDAS","SAN JOSE",17665,"4","x","x","x","x","x","x","x","x","X","X","x",null,"x",null,"x","x","x","x","x",null,null,null,null,null,null,null,null,null,null,null,"",null,"","",null,null,null,null,null,null,null,null,null,null,null,null,null,null,null,null," "," "," "," ",null,null,null,null,null,null," "," "," "," ","X"," "," "," "," ",null,null,null,null," "," ","X","X","X","X",null,null,null,null,null,null,null,null,null,null,null,"X","X","X","X",null,null,null,null,"X",null,null,null,null,"x",null,null,null,null,null,null,null,null,null,null,null,"x","x",null,null,null,null,null,null,null,null,null,null,"x",null,null,null,null,null,null,null,null,null,null,"x",null,"x","x"," ",null,null,null,null,"x","x"]
[null,"CALDAS","VICTORIA",17867,"4","x","x","x","x","x","x","x",null,"X","X","x",null,"x",null,null,"x","x","x","x",null,null,null,null,null,null,null,null,null,null,null,"",null,"","",null,null,null,null,null,null,null,null,null,null,null,null,null,null,null,null," "," "," "," ",null,null,null,null,null,null," "," "," "," ","X"," "," "," "," ",null,null,null,null," "," ","X","X","X","X",null,null,null,null,null,null,null,null,null,null,null,"X","X","X","X",null,null,null,null,"X",null,null,null,null,"x",null,null,null,null,null,null,null,null,null,null,null,"x","x",null,null,null,null,null,null,null,null,null,null,"x",null,null,null,null,null,null,null,null,null,null,"x",null,"x","x"," ",null,null,null,null,"x","x"]
[null,"CAQUETA","FLORENCIA",18001,"1","x","x","x","x","x","x","x","x","X","X","x",null,"x",null,"x","x","x","x","x",null,null,null,null,null,null,null,"X","X",null,"X","X","X","X","X",null,null,null,null,null,null,null,null,null,null,null,null,null,null,null,null,"X","X","X","X","X","X",null,null,null,null,"X","X","X","X","X","X","X","X","X",null,null,null,null,"X","X","X","X","X","X","X",null,null,"X",null,null,"X","X","X","X",null,"X","X","X","X",null,null,null,null,"X",null,"x","x","x","x",null,null,null,null,null,"x","x","x","x","X","x","x","x","x",null,null,null,null,null,null,"x","x","x","x",null,null,"x",null,null,null,"x","x","x","x","x",null,"x","x","x",null,null,null,null,"x","x","x","x","x","x",null,null,null,null,null,"x","x","x","x",null,null,null,null,null,null,null,null,null,null,null,"x","x","x","x"]
[null,"CAQUETA","CURILLO",18205,"Otros","x","x","x","x","x","x","x","x","X","X","x",null,"x",null,"x","x","x","x","x",null,null,null,null,null,null,null,null,null,null,null,"",null,"","",null,null,null,null,null,null,null,null,null,null,null,null,null,null,null,null," "," "," "," ","",null,null,null,null,null," "," "," "," ","X"," "," "," "," ",null,null,null,null," "," ","X","X","X","X",null,null,null,null,null,null,null,null,null,null,null,"X","X","X","X",null,null,null,null,"X",null,null,null,null,"x",null,null,null,null,null,null,null,null,null,null,null,"x","x",null,null,null,null,null,null,null,null,null,null,null,null,null,null,null,null,null,null,null,null,null,"x",null,"x","x","x"]
[null,"CAQUETA","MILAN",18460,"4","x","x","x","x","x","x","x","x","X","X","x",null,"x",null,"x","x","x","x","x",null,null,null,null,null,null,null,null,null,null,null,"",null,"","",null,null,null,null,null,null,null,null,null,null,null,null,null,null,null,null," "," "," "," ",null,null,null,null,null,null," "," "," "," "," "," "," "," "," ",null,null,null,null," "," ","X","X","X","X",null,null,null,null,null,null,null,null,null,null,null,"X","X","X","X",null,null,null,null,"X",null,null,null,null,"x",null,null,null,null,null,null,null,null,null,null,null,"x","x",null,null,null,null,null,null,null,null,null,null,"x",null,null,null,null,null,null,null,null,null,null,"x",null,"x","x","x",null,null,null,null,"x","x"]
[null,"CAQUETA","SAN JOSE DEL FRAGUA",18610,"Otros","x","x","x","x","x",null,null,"x","X","X",null,null,null,null,"x","x","x","x","x",null,null,null,null,null,null,null,null,null,null,null,"",null,"","",null,null,null,null,null,null,null,null,null,null,null,null,null,null,null,null," "," "," "," ","",null,null,null,null,null," "," "," "," ","X"," "," "," "," ",null,null,null,null," "," ","X","X","X","X",null,null,null,null,null,null,null,null,null,null,null,"X","X","X","X",null,null,null,null,"X",null,null,null,null,"x",null,null,null,null,null,null,null,null,null,null,null,"x","x",null,null,null,null,null,null,null,null,null,null,null,null,null,null,null,null,null,null,null,null,null,"x",null,"x","x"," "]
[null,"CAQUETA","VALPARAISO",18860,"4","x","x","x","x","x","x","x",null,"X","X","x",null,"x",null,null,"x","x","x","x",null,null,null,null,null,null,null,null,null,null,null,"",null,"","",null,null,null,null,null,null,null,null,null,null,null,null,null,null,null,null," "," "," "," ",null,null,null,null,null,null," "," "," "," ","X"," "," "," "," ",null,null,null,null," "," ","X","X","X","X",null,null,null,null,null,null,null,null,null,null,null,"X","X","X","X",null,null,null,null,"X",null,null,null,null,"x",null,null,null,null,null,null,null,null,null,null,null,"x","x",null,null,null,null,null,null,null,null,null,null,"x",null,null,null,null,null,null,null,null,null,null,"x",null,"x","x"," ",null,null,null,null,"x","x"]
[null,"CAUCA","ARGELIA",19050,"4","x","x","x","x","x","x","x","x","X","X","x",null,"x",null,"x","x","x","x","x",null,null,null,null,null,null,null,null,null,null,null,"",null,"","",null,null,null,null,null,null,null,null,null,null,null,null,null,null,null,null," "," "," "," ",null,null,null,null,null,null," "," "," "," ","X"," "," "," "," ",null,null,null,null," "," ","X","X","X","X",null,null,null,null,null,null,null,null,null,null,null,"X","X","X","X",null,null,null,null,"X",null,null,null,null,"x",null,null,null,null,null,null,null,null,null,null,null,"x","x",null,null,null,null,null,null,null,null,null,null,"x",null,null,null,null,null,null,null,null,null,null,"x",null,"x","x","x",null,null,null,null,"x","x"]
[null,"CAUCA","BUENOS AIRES",19110,"4","x","x","x","x","x","x","x","x","X","X","x",null,"x",null,"x","x","x","x","x",null,null,null,null,null,null,null,null,null,null,null,"",null,"","",null,null,null,null,null,null,null,null,null,null,null,null,null,null,null,null," "," "," "," ",null,null,null,null,null,null," "," "," "," ","X"," "," "," "," ",null,null,null,null," "," ","X","X","X","X",null,null,null,null,null,null,null,null,null,null,null,"X","X","X","X",null,null,null,null,"X",null,null,null,null,"x",null,null,null,null,null,null,null,null,null,null,null,"x","x",null,null,null,null,null,null,null,null,null,null,"x",null,null,null,null,null,null,null,null,null,null,"x",null,"x","x","x",null,null,null,null,"x","x"]
[null,"CAUCA","CALDONO",19137,"4","x","x","x","x","x","x","x",null,"X","X","x",null,"x",null,null,"x","x","x","x",null,null,null,null,null,null,null,null,null,null,null,"",null,"","",null,null,null,null,null,null,null,null,null,null,null,null,null,null,null,null," "," "," "," ",null,null,null,null,null,null," "," "," "," ","X"," "," "," "," ",null,null,null,null," "," ","X","X","X","X",null,null,null,null,null,null,null,null,null,null,null,"X","X","X","X",null,null,null,null,"X",null,null,null,null,"x",null,null,null,null,null,null,null,null,null,null,null,"x","x",null,null,null,null,null,null,null,null,null,null,"x",null,null,null,null,null,null,null,null,null,null,"x",null,"x","x","x",null,null,null,null,"x","x"]
[null,"CAUCA","EL TAMBO",19256,"4","x","x","x","x","x","x","x","x","X","X","x",null,"x",null,"x","x","x","x","x",null,null,null,null,null,null,null,null,null,null,null,"",null,"","",null,null,null,null,null,null,null,null,null,null,null,null,null,null,null,null," "," "," "," ",null,null,null,null,null,null," "," "," "," ","X"," "," "," "," ",null,null,null,null," "," ","X","X","X","X",null,null,null,null,null,null,null,null,null,null,null,"X","X","X","X",null,null,null,null,"X",null,null,null,null,"x",null,null,null,null,null,null,null,null,null,null,null,"x","x",null,null,null,null,null,null,null,null,null,null,"x",null,null,null,null,null,null,null,null,null,null,"x",null,"x","x"," ",null,null,null,null,"x","x"]
[null,"CAUCA","INZA",19355,"4","x","x","x","x","x","x","x","x","X","X","x",null,"x",null,"x","x","x","x","x",null,null,null,null,null,null,null,null,null,null,null,"",null,"","",null,null,null,null,null,null,null,null,null,null,null,null,null,null,null,null," "," "," "," ",null,null,null,null,null,null," "," "," "," ","X"," "," "," "," ",null,null,null,null," "," ","X","X","X","X",null,null,null,null,null,null,null,null,null,null,null,"X","X","X","X",null,null,null,null,"X",null,null,null,null,"x",null,null,null,null,null,null,null,null,null,null,null,"x","x",null,null,null,null,null,null,null,null,null,null,"x",null,null,null,null,null,null,null,null,null,null,"x",null,"x","x","x",null,null,null,null,"x","x"]
[null,"CAUCA","LOPEZ",19418,"4","x","x","x","x","x",null,"x",null,"X","X","x",null,"x",null,null,"x","x","x","x",null,null,null,null,null,null,null,null,null,null,null,"",null,"","",null,null,null,null,null,null,null,null,null,null,null,null,null,null,null,null," "," "," "," ",null,null,null,null,null,null," "," "," "," "," "," "," "," "," ",null,null,null,null," "," ","X","X","X","X",null,null,null,null,null,null,null,null,null,null,null,"X","X","X","X",null,null,null,null,"X",null,null,null,null,"x",null,null,null,null,null,null,null,null,null,null,null,"x","x",null,null,null,null,null,null,null,null,null,null,"x",null,null,null,null,null,null,null,null,null,null,null,null,"x","x"," ",null,null,null,null,"x","x"]
[null,"CAUCA","PADILLA",19513,"4","x","x","x","x","x","x","x",null,"X","X","x",null,"x",null,null,"x","x","x","x",null,null,null,null,null,null,null,null,null,null,null,"",null,"","",null,null,null,null,null,null,null,null,null,null,null,null,null,null,null,null," "," "," "," ",null,null,null,null,null,null," "," "," "," ","X"," "," "," "," ",null,null,null,null," "," ","X","X","X","X",null,null,null,null,null,null,null,null,null,null,null,"X","X","X","X",null,null,null,null,"X",null,null,null,null,"x",null,null,null,null,null,null,null,null,null,null,null,"x","x",null,null,null,null,null,null,null,null,null,null,"x",null,null,null,null,null,null,null,null,null,null,"x",null,"x","x","x",null,null,null,null,"x","x"]
[null,"CAUCA","PIAMONTE",19533,"Otros","x","x","x","x","x",null,null,"x","X","X",null,null,null,null,"x","x","x","x","x",null,null,null,null,null,null,null,null,null,null,null,"",null,"","",null,null,null,null,null,null,null,null,null,null,null,null,null,null,null,null," "," "," "," ","",null,null,null,null,null," "," "," "," ","X"," "," "," "," ",null,null,null,null," "," ","X","X","X","X",null,null,null,null,null,null,null,null,null,null,null,"X","X","X","X",null,null,null,null,"X",null,null,null,null,"x",null,null,null,null,null,null,null,null,null,null,null,"x","x",null,null,null,null,null,null,null,null,null,null,null,null,null,null,null,null,null,null,null,null,null,"x",null,"x","x"," "]
[null,"CAUCA","PUERTO TEJADA",19573,"3","x","x","x","x","x","x","x","x","X","X","x",null,"x",null,"x","x","x","x","x",null,null,null,null,null,null,null,null,null,null,null,"",null,"","",null,null,null,null,null,null,null,null,null,null,null,null,null,null,null,null," "," "," "," ","",null,null,null,null,null," "," "," "," ","X"," "," "," "," ",null,null,null,null," "," ","X","X","X","X",null,null,null,null,null,null,null,null,null,null,null,"X","X","X","X",null,null,null,null,"X",null,null,null,null,"x",null,null,null,null,null,null,null,null,null,null,null,"x","x",null,null,null,null,null,null,null,null,null,null,"x",null,null,null,null,null,null,null,null,null,null,"x",null,"x","x","x",null,null,null,null,"x","x",null,null,null,null,null,null,null,null,null,null,null,null,null,null,null,null,null,null,null,null,null,null,null,null,"x","x","x","x"]
[null,"CAUCA","SAN SEBASTIAN",19693,"4","x","x","x","x","x","x","x",null,"X","X","x",null,"x",null,null,"x","x","x","x",null,null,null,null,null,null,null,null,null,null,null,"",null,"","",null,null,null,null,null,null,null,null,null,null,null,null,null,null,null,null," "," "," "," ",null,null,null,null,null,null," "," "," "," "," "," "," "," "," ",null,null,null,null," "," ","X","X","X","X",null,null,null,null,null,null,null,null,null,null,null,"X","X","X","X",null,null,null,null,"X",null,null,null,null,"x",null,null,null,null,null,null,null,null,null,null,null,"x","x",null,null,null,null,null,null,null,null,null,null,"x",null,null,null,null,null,null,null,null,null,null,"x",null,"x","x"," ",null,null,null,null,"x","x"]
[null,"CAUCA","SILVIA",19743,"4","x","x","x","x","x","x","x",null,"X","X","x",null,"x",null,null,"x","x","x","x",null,null,null,null,null,null,null,null,null,null,null,"",null,"","",null,null,null,null,null,null,null,null,null,null,null,null,null,null,null,null," "," "," "," ",null,null,null,null,null,null," "," "," "," ","X"," "," "," "," ",null,null,null,null," "," ","X","X","X","X",null,null,null,null,null,null,null,null,null,null,null,"X","X","X","X",null,null,null,null,"X",null,null,null,null,"x",null,null,null,null,null,null,null,null,null,null,null,"x","x",null,null,null,null,null,null,null,null,null,null,"x",null,null,null,null,null,null,null,null,null,null,"x",null,"x","x","x",null,null,null,null,"x","x"]
[null,"CAUCA","SUCRE",19785,"Otros","x","x","x","x","x",null,null,"x","X","X",null,null,null,null,"x","x","x","x","x",null,null,null,null,null,null,null,null,null,null,null,"",null,"","",null,null,null,null,null,null,null,null,null,null,null,null,null,null,null,null," "," "," "," ","",null,null,null,null,null," "," "," "," "," "," "," "," "," ",null,null,null,null," "," ","X","X","X","X",null,null,null,null,null,null,null,null,null,null,null,"X","X","X","X",null,null,null,null,"X",null,null,null,null,"x",null,null,null,null,null,null,null,null,null,null,null,"x","x",null,null,null,null,null,null,null,null,null,null,"x",null,null,null,null,null,null,null,null,null,null,"x",null,"x","x"," ",null,null,null,null,"x","x"]
[null,"CAUCA","TOTORO",19824,"4","x","x","x","x","x","x","x","x","X","X","x",null,"x",null,"x","x","x","x","x",null,null,null,null,null,null,null,null,null,null,null,"",null,"","",null,null,null,null,null,null,null,null,null,null,null,null,null,null,null,null," "," "," "," ",null,null,null,null,null,null," "," "," "," ","X"," "," "," "," ",null,null,null,null," "," ","X","X","X","X",null,null,null,null,null,null,null,null,null,null,null,"X","X","X","X",null,null,null,null,"X",null,null,null,null,"x",null,null,null,null,null,null,null,null,null,null,null,"x","x",null,null,null,null,null,null,null,null,null,null,"x",null,null,null,null,null,null,null,null,null,null,"x",null,"x","x"," ",null,null,null,null,"x","x"]
[null,"CESAR","AGUSTIN CODAZZI",20013,"3","x","x","x","x","x","x","x","x","X","X","x",null,"x",null,"x","x","x","x","x",null,null,null,null,null,null,null,"X","X",null,"X","X","X","X","X",null,null,null,null,null,null,null,null,null,null,null,null,null,null,null,null," "," "," "," ","",null,null,null,null,null," "," "," "," ","X"," "," "," "," ",null,null,null,null," "," ","X","X","X","X",null,null,null,null,null,null,null,null,null,null,null,"X","X","X","X",null,null,null,null,"X",null,null,null,null,"x",null,null,null,null,null,null,null,null,null,null,null,"x","x",null,null,null,null,null,null,null,null,null,null,"x",null,null,null,null,null,null,null,null,null,null,"x",null,"x","x","x",null,null,null,null,"x","x"]
[null,"CESAR","CHIMICHAGUA",20175,"4","x","x","x","x","x","x","x","x","X","X","x",null,"x",null,"x","x","x","x","x",null,null,null,null,null,null,null,null,null,null,null,"",null,"","",null,null,null,null,null,null,null,null,null,null,null,null,null,null,null,null," "," "," "," ",null,null,null,null,null,null," "," "," "," ","X"," "," "," "," ",null,null,null,null," "," ","X","X","X","X",null,null,null,null,null,null,null,null,null,null,null,"X","X","X","X",null,null,null,null,"X",null,null,null,null,"x",null,null,null,null,null,null,null,null,null,null,null,"x","x",null,null,null,null,null,null,null,null,null,null,"x",null,null,null,null,null,null,null,null,null,null,"x",null,"x","x","x",null,null,null,null,"x","x"]
[null,"CESAR","EL COPEY",20238,"4","x","x","x","x","x","x","x","x","X","X","x",null,"x",null,"x","x","x","x","x",null,null,null,null,null,null,null,null,null,null,null,"",null,"","",null,null,null,null,null,null,null,null,null,null,null,null,null,null,null,null," "," "," "," ",null,null,null,null,null,null," "," "," "," ","X"," "," "," "," ",null,null,null,null," "," ","X","X","X","X",null,null,null,null,null,null,null,null,null,null,null,"X","X","X","X",null,null,null,null,"X",null,null,null,null,"x",null,null,null,null,null,null,null,null,null,null,null,"x","x",null,null,null,null,null,null,null,null,null,null,"x",null,null,null,null,null,null,null,null,null,null,"x",null,"x","x","x",null,null,null,null,"x","x"]
[null,"CESAR","GAMARRA",20295,"Otros","x","x","x","x","x",null,null,"x","X","X",null,null,null,null,"x","x","x","x","x",null,null,null,null,null,null,null,"X","X",null,null,null,"X","","",null,null,null,null,null,null,null,null,null,null,null,null,null,null,null,null," "," "," "," ","",null,null,null,null,null," "," "," "," "," "," "," "," "," ",null,null,null,null," "," ","X","X","X","X",null,null,null,null,null,null,null,null,null,null,null,"X","X","X","X",null,null,null,null,"X",null,null,null,null,"x",null,null,null,null,null,null,null,null,null,null,null,"x","x",null,null,null,null,null,null,null,null,null,null,"x",null,null,null,null,null,null,null,null,null,null,"x",null,"x","x"," ",null,null,null,null,"x","x"]
[null,"CESAR","LA JAGUA DE IBIRICO",20400,"3","x","x","x","x","x","x","x",null,"X","X","x",null,"x",null,null,"x","x","x","x",null,null,null,null,null,null,null,null,null,null,null,"",null,"","",null,null,null,null,null,null,null,null,null,null,null,null,null,null,null,null," "," "," "," ","",null,null,null,null,null," "," "," "," ","X"," "," "," "," ",null,null,null,null," "," ","X","X","X","X","X",null,null,"X",null,null,"X","X","X","X",null,"X","X","X","X",null,null,null,null,"X",null,null,null,null,"x",null,null,null,null,null,null,null,null,null,null,null,"x","x",null,null,null,null,null,null,null,null,null,null,"x",null,null,null,null,null,null,null,null,null,null,"x",null,"x","x","x",null,null,null,null,"x","x"]
[null,"CESAR","PELAYA",20550,"4","x","x","x","x","x","x","x",null,"X","X","x",null,"x",null,null,"x","x","x","x",null,null,null,null,null,null,null,null,null,null,null,"",null,"","",null,null,null,null,null,null,null,null,null,null,null,null,null,null,null,null," "," "," "," ",null,null,null,null,null,null," "," "," "," ","X"," "," "," "," ",null,null,null,null," "," ","X","X","X","X",null,null,null,null,null,null,null,null,null,null,null,"X","X","X","X",null,null,null,null,"X",null,null,null,null,"x",null,null,null,null,null,null,null,null,null,null,null,"x","x",null,null,null,null,null,null,null,null,null,null,"x",null,null,null,null,null,null,null,null,null,null,"x",null,"x","x","x",null,null,null,null,"x","x"]
[null,"CESAR","LA PAZ",20621,"4","x","x","x","x","x","x","x","x","X","X","x",null,"x",null,"x","x","x","x","x",null,null,null,null,null,null,null,null,null,null,null,null,null,"","",null,null,null,null,null,null,null,null,null,null,null,null,null,null,null,null," "," "," "," ",null,null,null,null,null,null," "," "," "," ","X"," "," "," "," ",null,null,null,null," "," ","X","X","X","X",null,null,null,null,null,null,null,null,null,null,null,"X","X","X","X",null,null,null,null,"X",null,null,null,null,"x",null,null,null,null,null,null,null,null,null,null,null,"x","x",null,null,null,null,null,null,null,null,null,null,"x",null,null,null,null,null,null,null,null,null,null,"x",null,"x","x"," ",null,null,null,null,"x","x"]
[null,"CORDOBA","MONTERIA",23001,"1","x","x","x","x","x","x","x","x","X","X","x",null,"x",null,"x","x","x","x","x",null,null,null,null,null,null,null,"X","X",null,"X","X","X","X","X",null,null,null,null,null,null,null,null,null,null,null,null,null,null,null,null,"X","X","X","X","X","X",null,null,null,null,"X","X","X","X","X","X","X","X","X",null,null,null,null,"X","X","X","X","X","X","X",null,null,"X",null,null,"X","X","X","X","X","X","X","X","X",null,null,null,null,"X",null,"x","x","x","x",null,null,null,null,null,"x","x","x","x","X","x","x","x","x",null,null,null,null,null,null,"x","x","x","x",null,null,"x",null,null,null,"x","x","x","x","x",null,"x","x","x",null,null,null,null,"x","x","x","x","x","x",null,null,null,null,null,"x","x","x","x",null,null,null,null,null,null,null,null,null,null,null,"x","x","x","x"]
[null,"CORDOBA","CANALETE",23090,"4","x","x","x","x","x","x","x","x","X","X","x",null,"x",null,"x","x","x","x","x",null,null,null,null,null,null,null,null,null,null,null,"",null,"","",null,null,null,null,null,null,null,null,null,null,null,null,null,null,null,null," "," "," "," ",null,null,null,null,null,null," "," "," "," ","X"," "," "," "," ",null,null,null,null," "," ","X","X","X","X",null,null,null,null,null,null,null,null,null,null,null,"X","X","X","X",null,null,null,null,"X",null,null,null,null,"x",null,null,null,null,null,null,null,null,null,null,null,"x","x",null,null,null,null,null,null,null,null,null,null,"x",null,null,null,null,null,null,null,null,null,null,"x",null,"x","x","x",null,null,null,null,"x","x"]
[null,"CORDOBA","CIENAGA DE ORO",23189,"3","x","x","x","x","x","x","x","x","X","X","x",null,"x",null,"x","x","x","x","x",null,null,null,null,null,null,null,null,null,null,null,"",null,"","",null,null,null,null,null,null,null,null,null,null,null,null,null,null,null,null,"X","X","X","X","X",null,null,null,null,null,"X","X","X","X","X","X","X","X","X",null,null,null,null,"X","X","X","X","X","X",null,null,null,null,null,null,null,null,null,null,null,"X","X","X","X",null,null,null,null,"X",null,null,null,null,"x",null,null,null,null,null,null,null,null,null,null,null,"x","x",null,null,null,null,null,null,null,null,null,null,"x",null,null,null,null,null,null,null,null,null,null,"x",null,"x","x","x",null,null,null,null,"x","x","x","x",null,null,null,null,null,null,null,null,null,null,null,"x"]
[null,"CORDOBA","COTORRA",23300,"Otros","x","x","x","x","x",null,null,"x","X","X",null,null,null,null,"x","x","x","x","x",null,null,null,null,null,null,null,null,null,null,null,"",null,"","",null,null,null,null,null,null,null,null,null,null,null,null,null,null,null,null," "," "," "," ","",null,null,null,null,null," "," "," "," ","X"," "," "," "," ",null,null,null,null," "," ","X","X","X","X",null,null,null,null,null,null,null,null,null,null,null,"X","X","X","X",null,null,null,null,"X",null,null,null,null,"x",null,null,null,null,null,null,null,null,null,null,null,"x","x",null,null,null,null,null,null,null,null,null,null,null,null,null,null,null,null,null,null,null,null,null,"x",null,"x","x","x"]
[null,"CORDOBA","MOÑITOS",23500,"3","x","x","x","x","x","x","x","x","X","X","x",null,"x",null,"x","x","x","x","x",null,null,null,null,null,null,null,null,null,null,null,"",null,"","",null,null,null,null,null,null,null,null,null,null,null,null,null,null,null,null," "," "," "," ","",null,null,null,null,null," "," "," "," ","X"," "," "," "," ",null,null,null,null," "," ","X","X","X","X",null,null,null,null,null,null,null,null,null,null,null,"X","X","X","X",null,null,null,null,"X",null,null,null,null,"x",null,null,null,null,null,null,null,null,null,null,null,"x","x",null,null,null,null,null,null,null,null,null,null,"x",null,null,null,null,null,null,null,null,null,null,"x",null,"x","x","x",null,null,null,null,"x","x"]
[null,"CORDOBA","PLANETA RICA",23555,"2","x","x","x","x","x","x","x","x","X","X","x",null,"x",null,"x","x","x","x","x",null,null,null,null,null,null,null,null,null,null,"X","",null,"X","X",null,null,null,null,null,null,null,null,null,null,null,null,null,null,null,null,"X","X","X","X","X","X",null,null,null,null,"X","X","X","X","X","X","X","X","X",null,null,null,null,"X","X","X","X","X","X","X",null,null,"X",null,null,"X","X","X","X",null,"X","X","X","X",null,null,null,null,"X",null,null,null,null,"x",null,null,null,null,null,null,null,null,null,"X",null,"x","x",null,null,null,null,null,null,null,null,null,null,"x",null,null,null,null,null,null,null,null,null,null,"x",null,"x","x","x",null,null,null,null,"x","x","x","x","x","x",null,null,null,null,null,"x","x","x","x","x"]
[null,"CORDOBA","PUERTO LIBERTADOR",23580,"3","x","x","x","x","x","x","x",null,"X","X","x",null,"x",null,null,"x","x","x","x",null,null,null,null,null,null,null,null,null,null,null,"",null,"","",null,null,null,null,null,null,null,null,null,null,null,null,null,null,null,null," "," "," "," ","",null,null,null,null,null," "," "," "," ","X"," "," "," "," ",null,null,null,null," "," ","X","X","X","X",null,null,null,null,null,null,null,null,null,null,null,"X","X","X","X",null,null,null,null,"X",null,null,null,null,"x",null,null,null,null,null,null,null,null,null,null,null,"x","x",null,null,null,null,null,null,null,null,null,null,"x",null,null,null,null,null,null,null,null,null,null,"x",null,"x","x","x",null,null,null,null,"x","x",null,null,null,null,null,null,null,null,null,null,null,null,null,"x"]
[null,"CORDOBA","SAN ANDRES SOTAVENTO",23670,"3","x","x","x","x","x","x","x","x","X","X","x",null,"x",null,"x","x","x","x","x",null,null,null,null,null,null,null,null,null,null,null,"",null,"","",null,null,null,null,null,null,null,null,null,null,null,null,null,null,null,null," "," "," "," ","",null,null,null,null,null," "," "," "," ","X"," "," "," "," ",null,null,null,null," "," ","X","X","X","X",null,null,null,null,null,null,null,null,null,null,null,"X","X","X","X",null,null,null,null,"X",null,null,null,null,"x",null,null,null,null,null,null,null,null,null,null,null,"x","x",null,null,null,null,null,null,null,null,null,null,"x",null,null,null,null,null,null,null,null,null,null,"x",null,"x","x"," ",null,null,null,null,"x","x","x","x"]
[null,"CORDOBA","TIERRALTA",23807,"3","x","x","x","x","x","x","x","x","X","X","x",null,"x",null,"x","x","x","x","x",null,null,null,null,null,null,null,null,null,null,null,"",null,"","",null,null,null,null,null,null,null,null,null,null,null,null,null,null,null,null," "," "," "," ","",null,null,null,null,null," "," "," "," ","X"," "," "," "," ",null,null,null,null," "," ","X","X","X","X",null,null,null,null,null,null,null,null,null,null,null,"X","X","X","X",null,null,null,null,"X",null,null,null,null,"x",null,null,null,null,null,null,null,null,null,null,null,"x","x",null,null,null,null,null,null,null,"x","x","x","x",null,null,"x",null,null,null,null,null,null,null,"x",null,"x","x","x",null,null,null,null,"x","x"]
[null,"CORDOBA","TUCHIN",23815,"Otros","x","x","x","x","x",null,null,"x","X","X",null,null,null,null,"x","x","x","x","x",null,null,null,null,null,null,null,null,null,null,null,"",null,"","",null,null,null,null,null,null,null,null,null,null,null,null,null,null,null,null," "," "," "," ","",null,null,null,null,null," "," "," "," ","X"," "," "," "," ",null,null,null,null," "," ","X","X","X","X",null,null,null,null,null,null,null,null,null,null,null,"X","X","X","X",null,null,null,null,"X",null,null,null,null,"x",null,null,null,null,null,null,null,null,null,null,null,"x","x",null,null,null,null,null,null,null,null,null,null,null,null,null,null,null,null,null,null,null,null,null,"x",null,"x","x","x"]
[null,"CUNDINAMARCA","ANOLAIMA",25040,"3","x","x","x","x","x","x","x","x","X","X","x",null,"x",null,"x","x","x","x","x",null,null,null,null,null,null,null,null,null,null,"X","",null,"X","X",null,null,null,null,null,null,null,null,null,null,null,null,null,null,null,null," "," "," "," ","",null,null,null,null,null," "," "," "," ","X"," "," "," "," ",null,null,null,null," "," ","X","X","X","X",null,null,null,null,null,null,null,null,null,null,null,"X","X","X","X",null,null,null,null,"X",null,null,null,null,"x",null,null,null,null,null,null,null,null,null,null,null,"x","x",null,null,null,null,null,null,null,null,null,null,"x",null,null,null,null,null,null,null,null,null,null,"x",null,"x","x","x",null,null,null,null,"x","x"]
[null,"CUNDINAMARCA","ARBELAEZ",25053,"3","x","x","x","x","x","x","x","x","X","X","x",null,"x",null,"x","x","x","x","x",null,null,null,null,null,null,null,null,null,null,"X","",null,"X","X",null,null,null,null,null,null,null,null,null,null,null,null,null,null,null,null," "," "," "," ","",null,null,null,null,null," "," "," "," ","X"," "," "," "," ",null,null,null,null," "," ","X","X","X","X",null,null,null,null,null,null,null,null,null,null,"X","X","X","X","X",null,null,null,null,"X",null,null,null,null,"x",null,null,null,null,null,null,null,null,null,null,null,"x","x",null,null,null,null,null,null,null,null,null,null,"x",null,null,null,null,null,null,null,null,null,null,"x",null,"x","x","x",null,null,null,null,"x","x"]
[null,"CUNDINAMARCA","CAJICA",25126,"Otros","x","x","x","x","x","x",null,"x","X","X",null,null,null,null,"x","x","x","x","x",null,null,null,null,null,null,null,"X","X",null,"X","X","X","X","X",null,null,null,null,null,null,null,null,null,null,null,null,null,null,null,null,"X","X","X","X","X","X",null,null,null,null,"X","X","X","X","X","X","X","X","X",null,null,null,null,"X","X","X","X","X","X",null,null,null,null,null,null,null,null,null,null,"X","X","X","X","X",null,null,null,null,"X",null,"x","x","x","x",null,null,null,null,null,"x","x","x","x","X","x","x","x","x",null,null,null,null,null,null,null,null,null,"x",null,null,null,null,null,null,"x","x","x","x","x",null,"x","x","x",null,null,null,null,"x","x","x","x","x","x",null,null,null,null,null,"x","x","x","x"]
[null,"CUNDINAMARCA","CAPARRAPI",25148,"4","x","x","x","x","x","x","x","x","X","X","x",null,"x",null,"x","x","x","x","x",null,null,null,null,null,null,null,null,null,null,"X","",null,"X","X",null,null,null,null,null,null,null,null,null,null,null,null,null,null,null,null," "," "," "," ",null,null,null,null,null,null," "," "," "," ","X"," "," "," "," ",null,null,null,null," "," ","X","X","X","X",null,null,null,null,null,null,null,null,null,null,null,"X","X","X","X",null,null,null,null,"X",null,null,null,null,"x",null,null,null,null,null,null,null,null,null,null,null,"x","x",null,null,null,null,null,null,null,null,null,null,"x",null,null,null,null,null,null,null,null,null,null,"x",null,"x","x","x",null,null,null,null,"x","x"]
[null,"CUNDINAMARCA","CHOACHI",25181,"3","x","x","x","x","x","x","x",null,"X","X","x",null,"x",null,null,"x","x","x","x",null,null,null,null,null,null,null,null,null,null,"X","",null,"X","X",null,null,null,null,null,null,null,null,null,null,null,null,null,null,null,null," "," "," "," ","",null,null,null,null,null," "," "," "," ","X"," "," "," "," ",null,null,null,null," "," ","X","X","X","X",null,null,null,null,null,null,null,null,null,null,null,"X","X","X","X",null,null,null,null,"X",null,null,null,null,"x",null,null,null,null,null,null,null,null,null,null,null,"x","x",null,null,null,null,null,null,null,"x","x","x","x",null,null,"x",null,null,null,"x","x","x","x","x",null,"x","x","x",null,null,null,null,"x","x"]
[null,"CUNDINAMARCA","COGUA",25200,"Otros","x","x","x","x","x",null,null,"x","X","X",null,null,null,null,"x","x","x","x","x",null,null,null,null,null,null,null,null,null,null,"X","X",null,"X","X",null,null,null,null,null,null,null,null,null,null,null,null,null,null,null,null," "," "," "," ","",null,null,null,null,null," "," "," "," ","X"," "," "," "," ",null,null,null,null," "," ","X","X","X","X",null,null,null,null,null,null,null,null,null,null,null,"X","X","X","X",null,null,null,null,"X",null,null,null,null,"x",null,null,null,null,null,null,null,null,null,null,null,"x","x",null,null,null,null,null,null,null,"x","x","x",null,null,null,"x",null,null,null,"x","x","x","x","x",null,"x","x","x"]
[null,"CUNDINAMARCA","EL COLEGIO",25245,"3","x","x","x","x","x","x","x","x","X","X","x",null,"x",null,"x","x","x","x","x",null,null,null,null,null,null,null,"X","X",null,"X","X","X","X","X",null,null,null,null,null,null,null,null,null,null,null,null,null,null,null,null," "," "," "," ","",null,null,null,null,null," "," "," "," ","X"," "," "," "," ",null,null,null,null," "," ","X","X","X","X",null,null,null,null,null,null,null,null,null,null,"X","X","X","X","X",null,null,null,null,"X",null,null,null,null,"x",null,null,null,null,null,null,null,null,null,null,null,"x","x",null,null,null,null,null,null,null,null,null,null,"x",null,null,null,null,null,null,null,null,null,null,"x",null,"x","x","x",null,null,null,null,"x","x"]
[null,"CUNDINAMARCA","FACATATIVA",25269,"1","x","x","x","x","x","x","x","x","X","X","x",null,"x",null,"x","x","x","x","x",null,null,null,null,null,null,null,"X","X",null,"X","X","X","X","X",null,null,null,null,null,null,null,null,null,null,null,null,null,null,null,null,"X","X","X","X","X","X",null,null,null,null,"X","X","X","X","X","X","X","X","X",null,null,null,null,"X","X","X","X","X","X",null,null,null,null,null,null,null,null,null,null,"X","X","X","X","X",null,null,null,null,"X",null,"x","x","x","x",null,null,null,null,null,"x","x","x","x","X","x","x","x","x",null,null,null,null,null,null,"x","x","x","x",null,null,"x",null,null,null,"x","x","x","x","x",null,"x","x","x",null,null,null,null,"x","x","x","x","x","x",null,null,null,null,null,"x","x","x","x",null,null,null,null,null,null,null,null,null,null,null,"x","x","x","x"]
[null,"CUNDINAMARCA","FUSAGASUGA",25290,"1","x","x","x","x","x","x","x","x","X","X","x",null,"x",null,"x","x","x","x","x",null,null,null,null,null,null,null,"X","X",null,"X","X","X","X","X",null,null,null,null,null,null,null,null,null,null,null,null,null,null,null,null,"X","X","X","X","X","X",null,null,null,null,"X","X","X","X","X","X","X","X","X",null,null,null,null,"X","X","X","X","X","X",null,null,null,null,null,null,null,null,null,null,"X","X","X","X","X",null,null,null,null,"X",null,"x","x","x","x",null,null,null,null,null,"x","x","x","x","X","x","x","x","x",null,null,null,null,null,null,"x","x","x","x",null,null,"x",null,null,null,"x","x","x","x","x",null,"x","x","x",null,null,null,null,"x","x","x","x","x","x",null,null,null,null,null,"x","x","x","x"]
[null,"CUNDINAMARCA","GACHETA",25297,"2","x","x","x","x","x","x","x",null,"X","X","x",null,"x",null,null,"x","x","x","x",null,null,null,null,null,null,null,null,null,null,"X","",null,"X","X",null,null,null,null,null,null,null,null,null,null,null,null,null,null,null,null," "," "," "," ","",null,null,null,null,null," "," "," "," ","X"," "," "," "," ",null,null,null,null," "," ","X","X","X","X",null,null,null,null,null,null,null,null,null,null,null,"X","X","X","X",null,null,null,null,"X",null,null,null,null,"x",null,null,null,null,null,null,null,null,null,null,null,"x","x",null,null,null,null,null,null,null,null,null,null,"x",null,null,null,null,null,null,null,null,null,null,"x",null,"x","x","x",null,null,null,null,"x","x"]
[null,"CUNDINAMARCA","GAMA",25299,"Otros","x","x","x","x","x",null,null,"x","X","X",null,null,null,null,"x","x","x","x","x",null,null,null,null,null,null,null,null,null,null,"X","",null,"X","X",null,null,null,null,null,null,null,null,null,null,null,null,null,null,null,null," "," "," "," ","",null,null,null,null,null," "," "," "," ","X"," "," "," "," ",null,null,null,null," "," ","X","X","X","X",null,null,null,null,null,null,null,null,null,null,null,"X","X","X","X",null,null,null,null,"X",null,null,null,null,"x",null,null,null,null,null,null,null,null,null,null,null,"x","x",null,null,null,null,null,null,null,null,null,null,null,null,null,null,null,null,null,null,null,null,null,null,null,"x","x","x"]
[null,"CUNDINAMARCA","GUACHETA",25317,"Otros","x","x","x","x","x",null,null,"x","X","X",null,null,null,null,"x","x","x","x","x",null,null,null,null,null,null,null,null,null,null,"X","",null,"X","X",null,null,null,null,null,null,null,null,null,null,null,null,null,null,null,null,"X","X","X","X","X","X",null,null,null,null,"X","X","X","X","X","X","X","X","X",null,null,null,null,"X","X","X","X","X","X",null,null,null,null,null,null,null,null,null,null,null,"X","X","X","X",null,null,null,null,"X",null,null,null,null,"x",null,null,null,null,null,null,null,null,null,null,null,"x","x",null,null,null,null,null,null,null,null,null,null,"x",null,null,null,null,null,null,null,null,null,null,"x",null,"x","x","x",null,null,null,null,"x","x"]
[null,"CUNDINAMARCA","GUAYABETAL",25335,"Otros","x","x","x","x","x",null,null,"x","X","X",null,null,null,null,"x","x","x","x","x",null,null,null,null,null,null,null,null,null,null,"X","",null,"X","X",null,null,null,null,null,null,null,null,null,null,null,null,null,null,null,null," "," "," "," ","",null,null,null,null,null," "," "," "," ","X"," "," "," "," ",null,null,null,null," "," ","X","X","X","X",null,null,null,null,null,null,null,null,null,null,null,"X","X","X","X",null,null,null,null,"X",null,null,null,null,"x",null,null,null,null,null,null,null,null,null,null,null,"x","x",null,null,null,null,null,null,null,null,null,null,null,null,null,null,null,null,null,null,null,null,null,"x",null,"x","x","x"]
[null,"CUNDINAMARCA","JERUSALEN",25368,"Otros","x","x","x","x","x",null,null,"x","X","X",null,null,null,null,"x","x","x","x","x",null,null,null,null,null,null,null,null,null,null,"X","",null,"X","X",null,null,null,null,null,null,null,null,null,null,null,null,null,null,null,null," "," "," "," ","",null,null,null,null,null," "," "," "," ","X"," "," "," "," ",null,null,null,null," "," ","X","X","X","X",null,null,null,null,null,null,null,null,null,null,null,"X","X","X","X",null,null,null,null,"X",null,null,null,null,"x",null,null,null,null,null,null,null,null,null,null,null,"x","x",null,null,null,null,null,null,null,null,null,null,null,null,null,null,null,null,null,null,null,null,null,"x",null,"x","x","x"]
[null,"CUNDINAMARCA","LA MESA",25386,"2","x","x","x","x","x","x","x","x","X","X","x",null,"x",null,"x","x","x","x","x",null,null,null,null,null,null,null,"X","X",null,"X","X","X","X","X",null,null,null,null,null,null,null,null,null,null,null,null,null,null,null,null,"X","X","X","X","X","X",null,null,null,null,"X","X","X","X","X","X","X","X","X",null,null,null,null,"X","X","X","X","X","X",null,null,null,null,null,null,null,null,null,null,null,"X","X","X","X",null,null,null,null,"X",null,null,null,null,"x",null,null,null,null,null,null,null,null,null,null,null,"x","x",null,null,null,null,null,null,null,null,null,null,"x",null,null,null,null,null,null,null,null,null,null,"x",null,"x","x","x",null,null,null,null,"x","x"]
[null,"CUNDINAMARCA","LA VEGA",25402,"4","x","x","x","x","x","x","x","x","X","X","x",null,"x",null,"x","x","x","x","x",null,null,null,null,null,null,null,null,null,null,"X","X",null,"X","X",null,null,null,null,null,null,null,null,null,null,null,null,null,null,null,null,"X","X","X","X",null,null,null,null,null,null,"X","X","X","X","X","X","X","X","X",null,null,null,null,"X","X","X","X","X","X",null,null,null,null,null,null,null,null,null,null,null,"X","X","X","X",null,null,null,null,"X",null,null,null,null,"x",null,null,null,null,null,null,null,null,null,null,null,"x","x",null,null,null,null,null,null,null,null,null,null,"x",null,null,null,null,null,null,null,null,null,null,"x",null,"x","x","x",null,null,null,null,"x","x","x","x"]
[null,"CUNDINAMARCA","MEDINA",25438,"4","x","x","x","x","x","x","x","x","X","X","x",null,"x",null,"x","x","x","x","x",null,null,null,null,null,null,null,null,null,null,"X","",null,"X","X",null,null,null,null,null,null,null,null,null,null,null,null,null,null,null,null," "," "," "," ",null,null,null,null,null,null," "," "," "," ","X"," "," "," "," ",null,null,null,null," "," ","X","X","X","X",null,null,null,null,null,null,null,null,null,null,null,"X","X","X","X",null,null,null,null,"X",null,null,null,null,"x",null,null,null,null,null,null,null,null,null,null,null,"x","x",null,null,null,null,null,null,null,null,null,null,"x",null,null,null,null,null,null,null,null,null,null,"x",null,"x","x","x",null,null,null,null,"x","x"]
[null,"CUNDINAMARCA","NEMOCON",25486,"Otros","x","x","x","x","x",null,null,"x","X","X",null,null,null,null,"x","x","x","x","x",null,null,null,null,null,null,null,null,null,null,"X","",null,"X","X",null,null,null,null,null,null,null,null,null,null,null,null,null,null,null,null,"X","X","X","X","X","X",null,null,null,null,"X","X","X","X","X","X","X","X","X",null,null,null,null,"X","X","X","X","X","X",null,null,null,null,null,null,null,null,null,null,null,"X","X","X","X",null,null,null,null,"X",null,null,null,null,"x",null,null,null,null,null,null,null,null,null,null,null,"x","x",null,null,null,null,null,null,null,null,null,null,"x",null,null,null,null,null,null,null,null,null,null,"x",null,"x","x","x",null,null,null,null,"x","x"]
[null,"CUNDINAMARCA","NILO",25488,"Otros","x","x","x","x","x",null,null,"x","X","X",null,null,null,null,"x","x","x","x","x",null,null,null,null,null,null,null,null,null,null,"X","",null,"X","X",null,null,null,null,null,null,null,null,null,null,null,null,null,null,null,null," "," "," "," ","",null,null,null,null,null," "," "," "," ","X"," "," "," "," ",null,null,null,null," "," ","X","X","X","X","X",null,null,"X",null,null,"X","X","X","X",null,"X","X","X","X",null,null,null,null,"X",null,null,null,null,"x",null,null,null,null,null,null,null,null,null,null,null,"x","x",null,null,null,null,null,null,null,null,null,null,"x",null,null,null,null,null,null,null,null,null,null,"x",null,"x","x","x",null,null,null,null,"x","x","x","x"]
[null,"CUNDINAMARCA","PAIME",25518,"4","x","x","x","x","x","x","x",null,"X","X","x",null,"x",null,null,"x","x","x","x",null,null,null,null,null,null,null,null,null,null,"X","",null,"X","X",null,null,null,null,null,null,null,null,null,null,null,null,null,null,null,null," "," "," "," ",null,null,null,null,null,null," "," "," "," "," "," "," "," "," ",null,null,null,null," "," ","X","X","X","X",null,null,null,null,null,null,null,null,null,null,null,"X","X","X","X",null,null,null,null,"X",null,null,null,null,"x",null,null,null,null,null,null,null,null,null,null,null,"x","x",null,null,null,null,null,null,null,null,null,null,"x",null,null,null,null,null,null,null,null,null,null,"x",null,"x","x","x",null,null,null,null,"x","x"]
[null,"CUNDINAMARCA","PARATEBUENO",25530,"4","x","x","x","x","x","x","x",null,"X","X","x",null,"x",null,null,"x","x","x","x",null,null,null,null,null,null,null,null,null,null,"X","",null,"X","X",null,null,null,null,null,null,null,null,null,null,null,null,null,null,null,null," "," "," "," ",null,null,null,null,null,null," "," "," "," ","X"," "," "," "," ",null,null,null,null," "," ","X","X","X","X",null,null,null,null,null,null,null,null,null,null,null,"X","X","X","X",null,null,null,null,"X",null,null,null,null,"x",null,null,null,null,null,null,null,null,null,null,null,"x","x",null,null,null,null,null,null,null,null,null,null,"x",null,null,null,null,null,null,null,null,null,null,"x",null,"x","x","x",null,null,null,null,"x","x"]
[null,"CUNDINAMARCA","QUEBRADANEGRA",25592,"Otros","x","x","x","x","x",null,null,"x","X","X",null,null,null,null,"x","x","x","x","x",null,null,null,null,null,null,null,null,null,null,"X","",null,"X","X",null,null,null,null,null,null,null,null,null,null,null,null,null,null,null,null," "," "," "," ","",null,null,null,null,null," "," "," "," ","X"," "," "," "," ",null,null,null,null," "," ","X","X","X","X",null,null,null,null,null,null,null,null,null,null,null,"X","X","X","X",null,null,null,null,"X",null,null,null,null,"x",null,null,null,null,null,null,null,null,null,null,null,"x","x",null,null,null,null,null,null,null,null,null,null,null,null,null,null,null,null,null,null,null,null,null,"x",null,"x","x","x"]
[null,"CUNDINAMARCA","APULO",25599,"4","x","x","x","x","x","x","x","x","X","X","x",null,"x",null,"x","x","x","x","x",null,null,null,null,null,null,null,null,null,null,"X","",null,"X","X",null,null,null,null,null,null,null,null,null,null,null,null,null,null,null,null," "," "," "," ",null,null,null,null,null,null," "," "," "," ","X"," "," "," "," ",null,null,null,null," "," ","X","X","X","X",null,null,null,null,null,null,null,null,null,null,null,"X","X","X","X",null,null,null,null,"X",null,null,null,null,"x",null,null,null,null,null,null,null,null,null,null,null,"x","x",null,null,null,null,null,null,null,null,null,null,"x",null,null,null,null,null,null,null,null,null,null,"x",null,"x","x"," ",null,null,null,null,"x","x"]
[null,"CUNDINAMARCA","SAN CAYETANO",25653,"4","x","x","x","x","x","x","x","x","X","X","x",null,"x",null,"x","x","x","x","x",null,null,null,null,null,null,null,null,null,null,"X","",null,"X","X",null,null,null,null,null,null,null,null,null,null,null,null,null,null,null,null," "," "," "," ",null,null,null,null,null,null," "," "," "," ","X"," "," "," "," ",null,null,null,null," "," ","X","X","X","X",null,null,null,null,null,null,null,null,null,null,null,"X","X","X","X",null,null,null,null,"X",null,null,null,null,"x",null,null,null,null,null,null,null,null,null,null,null,"x","x",null,null,null,null,null,null,null,null,null,null,"x",null,null,null,null,null,null,null,null,null,null,"x",null,"x","x"," ",null,null,null,null,"x","x"]
[null,"CUNDINAMARCA","SESQUILE",25736,"Otros","x","x","x","x","x",null,null,"x","X","X",null,null,null,null,"x","x","x","x","x",null,null,null,null,null,null,null,null,null,null,"X","",null,"X","X",null,null,null,null,null,null,null,null,null,null,null,null,null,null,null,null,"X","X","X","X","X","X",null,null,null,null,"X","X","X","X","X","X","X","X","X",null,null,null,null,"X","X","X","X","X","X",null,null,null,null,null,null,null,null,null,null,null,"X","X","X","X",null,null,null,null,"X",null,null,null,null,"x",null,null,null,null,null,null,null,null,null,null,null,"x","x",null,null,null,null,null,null,null,null,null,null,"x",null,null,null,null,null,null,null,null,null,null,"x",null,"x","x","x",null,null,null,null,"x","x"]
[null,"CUNDINAMARCA","SIMIJACA",25745,"3","x","x","x","x","x","x","x","x","X","X","x",null,"x",null,"x","x","x","x","x",null,null,null,null,null,null,null,null,null,null,"X","",null,"X","X",null,null,null,null,null,null,null,null,null,null,null,null,null,null,null,null,"X","X","X","X","X",null,null,null,null,null,"X","X","X","X","X","X","X","X","X",null,null,null,null,"X","X","X","X","X","X",null,null,null,null,null,null,null,null,null,null,null,"X","X","X","X",null,null,null,null,"X",null,null,null,null,"x",null,null,null,null,null,null,null,null,null,null,null,"x","x",null,null,null,null,null,null,null,null,null,null,"x",null,null,null,null,null,null,null,null,null,null,"x",null,"x","x","x",null,null,null,null,"x","x"]
[null,"CUNDINAMARCA","SOACHA",25754,"Otros","x","x","x","x","x","x",null,"x","X","X",null,null,null,null,"x","x","x","x","x",null,null,null,null,null,null,null,"X","X",null,"X","X","X","X","X",null,null,null,null,null,null,null,null,null,null,null,null,null,null,null,null,"X","X","X","X","X","X",null,null,null,null,"X","X","X","X","X","X","X","X","X",null,null,null,null,"X","X","X","X","X","X","X",null,null,"X",null,null,"X","X","X","X","X","X","X","X","X",null,null,null,null,"X",null,"x","x","x","x",null,null,null,null,null,"x","x","x","x","X","x","x","x","x",null,null,null,null,null,null,"x","x","x","x",null,null,"x",null,null,null,null,null,null,null,"x",null,"x","x","x",null,null,null,null,"x","x","x","x","x","x",null,null,null,null,null,"x","x","x","x"]
[null,"CUNDINAMARCA","SUSA",25779,"4","x","x","x","x","x","x","x",null,"X","X","x",null,"x",null,null,"x","x","x","x",null,null,null,null,null,null,null,null,null,null,"X","",null,"X","X",null,null,null,null,null,null,null,null,null,null,null,null,null,null,null,null," "," "," "," ",null,null,null,null,null,null," "," "," "," ","X"," "," "," "," ",null,null,null,null," "," ","X","X","X","X",null,null,null,null,null,null,null,null,null,null,null,"X","X","X","X",null,null,null,null,"X",null,null,null,null,"x",null,null,null,null,null,null,null,null,null,null,null,"x","x",null,null,null,null,null,null,null,null,null,null,"x",null,null,null,null,null,null,null,null,null,null,"x",null,"x","x","x",null,null,null,null,"x","x"]
[null,"CUNDINAMARCA","TABIO",25785,"Otros","x","x","x","x","x",null,null,"x","X","X",null,null,null,null,"x","x","x","x","x",null,null,null,null,null,null,null,null,null,null,"X","X",null,"X","X",null,null,null,null,null,null,null,null,null,null,null,null,null,null,null,null,"X","X","X","X","X","X",null,null,null,null,"X","X","X","X","X","X","X","X","X",null,null,null,null,"X","X","X","X","X","X",null,null,null,null,null,null,null,null,null,null,null,"X","X","X","X",null,null,null,null,"X",null,null,null,null,"x",null,null,null,null,null,null,null,null,null,null,null,"x","x",null,null,null,null,null,null,null,null,null,null,"x",null,null,null,null,null,null,null,null,null,null,"x",null,"x","x","x",null,null,null,null,"x","x"]
[null,"CUNDINAMARCA","TIBACUY",25805,"Otros","x","x","x","x","x",null,null,"x","X","X",null,null,null,null,"x","x","x","x","x",null,null,null,null,null,null,null,null,null,null,"X","",null,"X","X",null,null,null,null,null,null,null,null,null,null,null,null,null,null,null,null," "," "," "," ","",null,null,null,null,null," "," "," "," ","X"," "," "," "," ",null,null,null,null," "," ","X","X","X","X",null,null,null,null,null,null,null,null,null,null,null,"X","X","X","X",null,null,null,null,"X",null,null,null,null,"x",null,null,null,null,null,null,null,null,null,null,null,"x","x",null,null,null,null,null,null,null,null,null,null,null,null,null,null,null,null,null,null,null,null,null,"x",null,"x","x","x"]
[null,"CUNDINAMARCA","TOCANCIPA",25817,"Otros","x","x","x","x","x","x",null,"x","X","X",null,null,null,null,"x","x","x","x","x",null,null,null,null,null,null,null,"X","X",null,"X","X","X","X","X",null,null,null,null,null,null,null,null,null,null,null,null,null,null,null,null,"X","X","X","X","X","X",null,null,null,null,"X","X","X","X","X","X","X","X","X",null,null,null,null,"X","X","X","X","X","X",null,null,null,null,null,null,null,null,null,null,"X","X","X","X","X",null,null,null,null,"X",null,"x","x","x","x",null,null,null,null,null,"x","x","x","x","X","x","x","x","x",null,null,null,null,null,null,null,null,null,"x",null,null,null,null,null,null,null,null,null,null,"x",null,"x","x","x",null,null,null,null,"x","x","x","x","x","x",null,null,null,null,null,"x","x","x","x"]
[null,"CUNDINAMARCA","VILLA DE SAN DIEGO DE UBATE",25843,"1","x","x","x","x","x","x","x","x","X","X","x",null,"x",null,"x","x","x","x","x",null,null,null,null,null,null,null,"X","X",null,"X","X","X","X","X",null,null,null,null,null,null,null,null,null,null,null,null,null,null,null,null,"X","X","X","X","X","X",null,null,null,null,"X","X","X","X","X","X","X","X","X",null,null,null,null,"X","X","X","X","X","X",null,null,null,null,null,null,null,null,null,null,null,"X","X","X","X",null,null,null,null,"X",null,"x","x","x","x",null,null,null,null,null,"x","x","x","x",null,"x","x","x","x",null,null,null,null,null,null,null,null,null,null,null,null,null,null,null,null,null,null,null,null,"x",null,"x","x"," ",null,null,null,null,null,null,"x","x","x","x",null,null,null,null,null,"x","x","x","x"]
[null,"CUNDINAMARCA","VIANI",25867,"Otros","x","x","x","x",null,null,null,null,"X","X",null,null,null,null,null,"x","x","x","x",null,null,null,null,null,null,null,"X","X",null,"X","X","X","X","X",null,null,null,null,null,null,null,null,null,null,null,null,null,null,null,null," "," "," "," ","",null,null,null,null,null," "," "," "," ","X"," "," "," "," ",null,null,null,null," "," ","X","X","X","X",null,null,null,null,null,null,null,null,null,null,null,"X","X","X","X",null,null,null,null,"X",null,null,null,null,"x",null,null,null,null,null,null,null,null,null,null,null,"x","x",null,null,null,null,null,null,null,null,null,null,"x",null,null,null,null,null,null,null,null,null,null,"x",null,"x","x","x",null,null,null,null,"x","x"]
[null,"CUNDINAMARCA","VILLETA",25875,"Otros","x","x","x","x","x","x",null,"x","X","X",null,null,null,null,"x","x","x","x","x",null,null,null,null,null,null,null,"X","X",null,"X","X","X","X","X",null,null,null,null,null,null,null,null,null,null,null,null,null,null,null,null,"X","X","X","X","X","X",null,null,null,null,"X","X","X","X","X","X","X","X","X",null,null,null,null,"X","X","X","X","X","X",null,null,null,null,null,null,null,null,null,null,null,"X","X","X","X",null,null,null,null,"X",null,null,null,null,"x",null,null,null,null,null,null,null,null,null,null,null,"x","x",null,null,null,null,null,null,null,null,null,null,"x",null,null,null,null,null,null,null,null,null,null,"x",null,"x","x","x",null,null,null,null,"x","x","x","x","x","x",null,null,null,null,null,"x","x","x","x"]
[null,"CUNDINAMARCA","YACOPI",25885,"4","x","x","x","x","x","x","x",null,"X","X","x",null,"x",null,null,"x","x","x","x",null,null,null,null,null,null,null,null,null,null,"X","",null,"X","X",null,null,null,null,null,null,null,null,null,null,null,null,null,null,null,null," "," "," "," ",null,null,null,null,null,null," "," "," "," ","X"," "," "," "," ",null,null,null,null," "," ","X","X","X","X",null,null,null,null,null,null,null,null,null,null,null,"X","X","X","X",null,null,null,null,"X",null,null,null,null,"x",null,null,null,null,null,null,null,null,null,null,null,"x","x",null,null,null,null,null,null,null,null,null,null,"x",null,null,null,null,null,null,null,null,null,null,"x",null,"x","x"," ",null,null,null,null,"x","x"]
[null,"CHOCO","QUIBDO",27001,"1","x","x","x","x","x","x","x","x","X","X","x",null,"x",null,"x","x","x","x","x",null,null,null,null,null,null,null,null,null,null,"X","X",null,"X","X",null,null,null,null,null,null,null,null,null,null,null,null,null,null,null,null,"X","X","X","X","X","X",null,null,null,null,"X","X","X","X","X","X","X","X","X",null,null,null,null,"X","X","X","X","X","X","X",null,null,"X",null,null,"X","X","X","X",null,"X","X","X","X",null,null,null,null,"X",null,"x","x","x","x",null,null,null,null,null,"x","x","x","x",null,"x","x","x","x",null,null,null,null,null,null,"x","x","x","x",null,null,"x",null,null,null,"x","x","x","x","x",null,"x","x","x",null,null,null,null,"x","x","x","x","x","x",null,null,null,null,null,"x","x","x","x"]
[null,"CHOCO","ATRATO",27050,"Otros","x","x","x","x",null,null,null,null,"X","X",null,null,null,null,null,"x","x","x","x",null,null,null,null,null,null,null,null,null,null,null,"",null,"","",null,null,null,null,null,null,null,null,null,null,null,null,null,null,null,null," "," "," "," ","",null,null,null,null,null," "," "," "," "," "," "," "," "," ",null,null,null,null," "," ","X","X","X","X",null,null,null,null,null,null,null,null,null,null,null,"X","X","X","X",null,null,null,null,"X",null,null,null,null,"x",null,null,null,null,null,null,null,null,null,null,null,"x","x",null,null,null,null,null,null,null,null,null,null,null,null,null,null,null,null,null,null,null,null,null,null,null,"x","x"," "]
[null,"CHOCO","BOJAYA",27099,"Otros","x","x","x","x","x",null,null,"x","X","X",null,null,null,null,"x","x","x","x","x",null,null,null,null,null,null,null,null,null,null,null,"",null,"","",null,null,null,null,null,null,null,null,null,null,null,null,null,null,null,null," "," "," "," ","",null,null,null,null,null," "," "," "," "," "," "," "," "," ",null,null,null,null," "," ","X","X","X","X",null,null,null,null,null,null,null,null,null,null,null,"X","X","X","X",null,null,null,null,"X",null,null,null,null,"x",null,null,null,null,null,null,null,null,null,null,null,"x","x",null,null,null,null,null,null,null,null,null,null,null,null,null,null,null,null,null,null,null,null,null,"x",null,"x","x"," "]
[null,"CHOCO","CERTEGUI",27160,"Otros","x","x","x","x","x",null,null,"x","X","X",null,null,null,null,"x","x","x","x","x",null,null,null,null,null,null,null,null,null,null,null,"",null,"","",null,null,null,null,null,null,null,null,null,null,null,null,null,null,null,null," "," "," "," ","",null,null,null,null,null," "," "," "," "," "," "," "," "," ",null,null,null,null," "," ","X","X","X","X",null,null,null,null,null,null,null,null,null,null,null,"X","X","X","X",null,null,null,null,"X",null,null,null,null,"x",null,null,null,null,null,null,null,null,null,null,null,"x","x",null,null,null,null,null,null,null,null,null,null,null,null,null,null,null,null,null,null,null,null,null,"x",null,"x","x"," "]
[null,"CHOCO","JURADO",27372,"Otros","x","x","x","x","x",null,null,"x","X","X",null,null,null,null,"x","x","x","x","x",null,null,null,null,null,null,null,null,null,null,null,"",null,"","",null,null,null,null,null,null,null,null,null,null,null,null,null,null,null,null," "," "," "," ","",null,null,null,null,null," "," "," "," "," "," "," "," "," ",null,null,null,null," "," ","X","X","X","X",null,null,null,null,null,null,null,null,null,null,null,"X","X","X","X",null,null,null,null,"X",null,null,null,null,"x",null,null,null,null,null,null,null,null,null,null,null,"x","x",null,null,null,null,null,null,null,null,null,null,"x",null,null,null,null,null,null,null,null,null,null,"x",null,"x","x"," ",null,null,null,null,"x","x"]
[null,"CHOCO","MEDIO BAUDO",27430,"Otros","x","x","x","x","x",null,null,"x","X","X",null,null,null,null,"x","x","x","x","x",null,null,null,null,null,null,null,null,null,null,null,"",null,"","",null,null,null,null,null,null,null,null,null,null,null,null,null,null,null,null," "," "," "," ","",null,null,null,null,null," "," "," "," "," "," "," "," "," ",null,null,null,null," "," ","X","X","X","X",null,null,null,null,null,null,null,null,null,null,null,"X","X","X","X",null,null,null,null,"X",null,null,null,null,"x",null,null,null,null,null,null,null,null,null,null,null,"x","x",null,null,null,null,null,null,null,null,null,null,null,null,null,null,null,null,null,null,null,null,null,"x",null,"x","x"," "]
[null,"CHOCO","NUQUI",27495,"Otros","x","x","x","x","x",null,null,"x","X","X",null,null,null,null,"x","x","x","x","x",null,null,null,null,null,null,null,null,null,null,null,"",null,"","",null,null,null,null,null,null,null,null,null,null,null,null,null,null,null,null," "," "," "," ","",null,null,null,null,null," "," "," "," ","X"," "," "," "," ",null,null,null,null," "," ","X","X","X","X",null,null,null,null,null,null,null,null,null,null,null,"X","X","X","X",null,null,null,null,"X",null,null,null,null,"x",null,null,null,null,null,null,null,null,null,null,null,"x","x",null,null,null,null,null,null,null,null,null,null,null,null,null,null,null,null,null,null,null,null,null,"x",null,"x","x","x"]
[null,"CHOCO","RIO QUITO",27600,"Otros","x","x","x","x","x",null,null,"x","X","X",null,null,null,null,"x","x","x","x","x",null,null,null,null,null,null,null,null,null,null,null,"",null,"","",null,null,null,null,null,null,null,null,null,null,null,null,null,null,null,null," "," "," "," ","",null,null,null,null,null," "," "," "," "," "," "," "," "," ",null,null,null,null," "," ","X","X","X","X",null,null,null,null,null,null,null,null,null,null,null,"X","X","X","X",null,null,null,null,"X",null,null,null,null,"x",null,null,null,null,null,null,null,null,null,null,null,"x","x",null,null,null,null,null,null,null,null,null,null,null,null,null,null,null,null,null,null,null,null,null,"x",null,"x","x","x"]
[null,"CHOCO","SIPI",27745,"Otros","x","x","x","x",null,null,null,null,"X","X",null,null,null,null,null,"x","x","x","x",null,null,null,null,null,null,null,null,null,null,null,"",null,"","",null,null,null,null,null,null,null,null,null,null,null,null,null,null,null,null," "," "," "," ","",null,null,null,null,null," "," "," "," "," "," "," "," "," ",null,null,null,null," "," ","X","X","X","X",null,null,null,null,null,null,null,null,null,null,null,"X","X","X","X",null,null,null,null,"X",null,null,null,null,"x",null,null,null,null,null,null,null,null,null,null,null,"x","x",null,null,null,null,null,null,null,null,null,null,null,null,null,null,null,null,null,null,null,null,null,null,null,"x","x"," "]
[null,"HUILA","NEIVA",41001,"1","x","x","x","x","x","x","x","x","X","X","x",null,"x",null,"x","x","x","x","x",null,null,null,null,null,null,null,"X","X",null,"X","X","X","X","X",null,null,null,null,null,null,null,null,null,null,null,null,null,null,null,null,"X","X","X","X","X","X",null,null,null,null,"X","X","X","X","X","X","X","X","X",null,null,null,null,"X","X","X","X","X","X","X",null,null,"X",null,null,"X","X","X","X","X","X","X","X","X",null,null,null,null,"X",null,"x","x","x","x",null,null,null,null,null,"x","x","x","x","X","x","x","x","x",null,null,null,null,null,null,"x","x","x","x",null,null,"x",null,null,null,"x","x","x","x","x",null,"x","x","x",null,null,null,null,"x","x","x","x","x","x",null,null,null,null,null,"x","x","x","x",null,null,null,null,null,null,null,null,null,null,null,"x","x","x","x"]
[null,"HUILA","AGRADO",41013,"4","x","x","x","x","x","x","x","x","X","X","x",null,"x",null,"x","x","x","x","x",null,null,null,null,null,null,null,null,null,null,"X","",null,"X","X",null,null,null,null,null,null,null,null,null,null,null,null,null,null,null,null," "," "," "," ",null,null,null,null,null,null," "," "," "," ","X"," "," "," "," ",null,null,null,null," "," ","X","X","X","X",null,null,null,null,null,null,null,null,null,null,null,"X","X","X","X",null,null,null,null,"X",null,null,null,null,"x",null,null,null,null,null,null,null,null,null,null,null,"x","x",null,null,null,null,null,null,null,null,null,null,"x",null,null,null,null,null,null,null,null,null,null,"x",null,"x","x","x",null,null,null,null,"x","x"]
[null,"HUILA","CAMPOALEGRE",41132,"4","x","x","x","x","x","x","x","x","X","X","x",null,"x",null,"x","x","x","x","x",null,null,null,null,null,null,null,null,null,null,"X","",null,"X","X",null,null,null,null,null,null,null,null,null,null,null,null,null,null,null,null,"X","X","X","X",null,null,null,null,null,null,"X","X","X","X","X","X","X","X","X",null,null,null,null,"X","X","X","X","X","X",null,null,null,null,null,null,null,null,null,null,"X","X","X","X","X",null,null,null,null,"X",null,null,null,null,"x",null,null,null,null,null,null,null,null,null,"X",null,"x","x",null,null,null,null,null,null,null,null,null,null,"x",null,null,null,null,null,null,null,null,null,null,"x",null,"x","x","x",null,null,null,null,"x","x"]
[null,"HUILA","GIGANTE",41306,"3","x","x","x","x","x","x","x","x","X","X","x",null,"x",null,"x","x","x","x","x",null,null,null,null,null,null,null,null,null,null,"X","",null,"X","X",null,null,null,null,null,null,null,null,null,null,null,null,null,null,null,null,"X","X","X","X","X",null,null,null,null,null,"X","X","X","X","X","X","X","X","X",null,null,null,null,"X","X","X","X","X","X","X",null,null,"X",null,null,"X","X","X","X",null,"X","X","X","X",null,null,null,null,"X",null,null,null,null,"x",null,null,null,null,null,null,null,null,null,null,null,"x","x",null,null,null,null,null,null,null,null,null,null,"x",null,null,null,null,null,null,null,null,null,null,"x",null,"x","x","x",null,null,null,null,"x","x"]
[null,"HUILA","IQUIRA",41357,"4","x","x","x","x","x","x","x","x","X","X","x",null,"x",null,"x","x","x","x","x",null,null,null,null,null,null,null,null,null,null,"X","",null,"X","X",null,null,null,null,null,null,null,null,null,null,null,null,null,null,null,null," "," "," "," ",null,null,null,null,null,null," "," "," "," ","X"," "," "," "," ",null,null,null,null," "," ","X","X","X","X",null,null,null,null,null,null,null,null,null,null,null,"X","X","X","X",null,null,null,null,"X",null,null,null,null,"x",null,null,null,null,null,null,null,null,null,null,null,"x","x",null,null,null,null,null,null,null,null,null,null,"x",null,null,null,null,null,null,null,null,null,null,"x",null,"x","x","x",null,null,null,null,"x","x"]
[null,"HUILA","ISNOS",41359,"4","x","x","x","x","x","x","x","x","X","X","x",null,"x",null,"x","x","x","x","x",null,null,null,null,null,null,null,null,null,null,"X","",null,"X","X",null,null,null,null,null,null,null,null,null,null,null,null,null,null,null,null," "," "," "," ",null,null,null,null,null,null," "," "," "," ","X"," "," "," "," ",null,null,null,null," "," ","X","X","X","X",null,null,null,null,null,null,null,null,null,null,null,"X","X","X","X",null,null,null,null,"X",null,null,null,null,"x",null,null,null,null,null,null,null,null,null,null,null,"x","x",null,null,null,null,null,null,null,null,null,null,"x",null,null,null,null,null,null,null,null,null,null,"x",null,"x","x","x",null,null,null,null,"x","x"]
[null,"HUILA","OPORAPA",41503,"4","x","x","x","x","x","x","x","x","X","X","x",null,"x",null,"x","x","x","x","x",null,null,null,null,null,null,null,null,null,null,"X","",null,"X","X",null,null,null,null,null,null,null,null,null,null,null,null,null,null,null,null," "," "," "," ",null,null,null,null,null,null," "," "," "," ","X"," "," "," "," ",null,null,null,null," "," ","X","X","X","X",null,null,null,null,null,null,null,null,null,null,null,"X","X","X","X",null,null,null,null,"X",null,null,null,null,"x",null,null,null,null,null,null,null,null,null,null,null,"x","x",null,null,null,null,null,null,null,null,null,null,"x",null,null,null,null,null,null,null,null,null,null,"x",null,"x","x","x",null,null,null,null,"x","x"]
[null,"HUILA","PALESTINA",41530,"4","x","x","x","x","x","x","x","x","X","X","x",null,"x",null,"x","x","x","x","x",null,null,null,null,null,null,null,null,null,null,"X","",null,"X","X",null,null,null,null,null,null,null,null,null,null,null,null,null,null,null,null," "," "," "," ",null,null,null,null,null,null," "," "," "," ","X"," "," "," "," ",null,null,null,null," "," ","X","X","X","X",null,null,null,null,null,null,null,null,null,null,null,"X","X","X","X",null,null,null,null,"X",null,null,null,null,"x",null,null,null,null,null,null,null,null,null,null,null,"x","x",null,null,null,null,null,null,null,null,null,null,"x",null,null,null,null,null,null,null,null,null,null,"x",null,"x","x"," ",null,null,null,null,"x","x"]
[null,"HUILA","SALADOBLANCO",41660,"4","x","x","x","x","x","x","x","x","X","X","x",null,"x",null,"x","x","x","x","x",null,null,null,null,null,null,null,null,null,null,"X","",null,"X","X",null,null,null,null,null,null,null,null,null,null,null,null,null,null,null,null," "," "," "," ",null,null,null,null,null,null," "," "," "," ","X"," "," "," "," ",null,null,null,null," "," ","X","X","X","X",null,null,null,null,null,null,null,null,null,null,null,"X","X","X","X",null,null,null,null,"X",null,null,null,null,"x",null,null,null,null,null,null,null,null,null,null,null,"x","x",null,null,null,null,null,null,null,null,null,null,"x",null,null,null,null,null,null,null,null,null,null,"x",null,"x","x"," ",null,null,null,null,"x","x"]
[null,"HUILA","SANTA MARIA",41676,"4","x","x","x","x","x","x","x","x","X","X","x",null,"x",null,"x","x","x","x","x",null,null,null,null,null,null,null,null,null,null,"X","",null,"X","X",null,null,null,null,null,null,null,null,null,null,null,null,null,null,null,null," "," "," "," ",null,null,null,null,null,null," "," "," "," ","X"," "," "," "," ",null,null,null,null," "," ","X","X","X","X",null,null,null,null,null,null,null,null,null,null,null,"X","X","X","X",null,null,null,null,"X",null,null,null,null,"x",null,null,null,null,null,null,null,null,null,null,null,"x","x",null,null,null,null,null,null,null,null,null,null,"x",null,null,null,null,null,null,null,null,null,null,"x",null,"x","x"," ",null,null,null,null,"x","x"]
[null,"HUILA","TERUEL",41801,"4","x","x","x","x","x","x","x","x","X","X","x",null,"x",null,"x","x","x","x","x",null,null,null,null,null,null,null,null,null,null,"X","",null,"X","X",null,null,null,null,null,null,null,null,null,null,null,null,null,null,null,null," "," "," "," ",null,null,null,null,null,null," "," "," "," ","X"," "," "," "," ",null,null,null,null," "," ","X","X","X","X",null,null,null,null,null,null,null,null,null,null,null,"X","X","X","X",null,null,null,null,"X",null,null,null,null,"x",null,null,null,null,null,null,null,null,null,null,null,"x","x",null,null,null,null,null,null,null,null,null,null,"x",null,null,null,null,null,null,null,null,null,null,"x",null,"x","x","x",null,null,null,null,"x","x"]
[null,"LA GUAJIRA","RIOHACHA",44001,"1","x","x","x","x","x","x","x","x","X","X","x",null,"x",null,"x","x","x","x","x",null,null,null,null,null,null,null,"X","X",null,"X","X","X","X","X",null,null,null,null,null,null,null,null,null,null,null,null,null,null,null,null,"X","X","X","X","X","X",null,null,null,null,"X","X","X","X","X","X","X","X","X",null,null,null,null,"X","X","X","X","X","X","X",null,null,"X",null,null,"X","X","X","X",null,"X","X","X","X",null,null,null,null,"X",null,"x","x","x","x",null,null,null,null,null,"x","x","x","x","X","x","x","x","x",null,null,null,null,null,null,"x","x","x","x",null,null,"x",null,null,null,"x","x","x","x","x",null,"x","x","x",null,null,null,null,"x","x","x","x","x","x",null,null,null,null,null,"x","x","x","x",null,null,null,null,null,null,null,null,null,null,null,"x","x","x","x"]
[null,"LA GUAJIRA","DIBULLA",44090,"Otros","x","x","x","x","x",null,null,"x","X","X",null,null,null,null,"x","x","x","x","x",null,null,null,null,null,null,null,null,null,null,null,"",null,"","",null,null,null,null,null,null,null,null,null,null,null,null,null,null,null,null,"X","X","X","X","X","X",null,null,null,null,"X","X","X","X","X","X","X","X","X",null,null,null,null,"X","X","X","X","X","X",null,null,null,null,null,null,null,null,null,null,null,"X","X","X","X",null,null,null,null,"X",null,null,null,null,"x",null,null,null,null,null,null,null,null,null,null,null,"x","x",null,null,null,null,null,null,null,null,null,null,"x",null,null,null,null,null,null,null,null,null,null,"x",null,"x","x","x",null,null,null,null,"x","x"]
[null,"LA GUAJIRA","DISTRACCION",44098,"Otros","x","x","x","x","x",null,null,"x","X","X",null,null,null,null,"x","x","x","x","x",null,null,null,null,null,null,null,null,null,null,null,"",null,"","",null,null,null,null,null,null,null,null,null,null,null,null,null,null,null,null," "," "," "," ","",null,null,null,null,null," "," "," "," ","X"," "," "," "," ",null,null,null,null," "," ","X","X","X","X",null,null,null,null,null,null,null,null,null,null,null,"X","X","X","X",null,null,null,null,"X",null,null,null,null,"x",null,null,null,null,null,null,null,null,null,null,null,"x","x",null,null,null,null,null,null,null,null,null,null,null,null,null,null,null,null,null,null,null,null,null,"x",null,"x","x","x"]
[null,"LA GUAJIRA","LA JAGUA DEL PILAR",44420,"Otros","x","x","x","x","x",null,null,"x","X","X",null,null,null,null,"x","x","x","x","x",null,null,null,null,null,null,null,null,null,null,null,"",null,"","",null,null,null,null,null,null,null,null,null,null,null,null,null,null,null,null," "," "," "," ","",null,null,null,null,null," "," "," "," "," "," "," "," "," ",null,null,null,null," "," ","X","X","X","X",null,null,null,null,null,null,null,null,null,null,null,"X","X","X","X",null,null,null,null,"X",null,null,null,null,"x",null,null,null,null,null,null,null,null,null,null,null,"x","x",null,null,null,null,null,null,null,null,null,null,null,null,null,null,null,null,null,null,null,null,null,"x",null,"x","x"," "]
[null,"LA GUAJIRA","SAN JUAN DEL CESAR",44650,"3","x","x","x","x","x","x","x","x","X","X","x",null,"x",null,"x","x","x","x","x",null,null,null,null,null,null,null,"X","X",null,null,null,"X","","",null,null,null,null,null,null,null,null,null,null,null,null,null,null,null,null," "," "," "," ","X",null,null,null,null,null," "," "," "," ","X"," "," "," "," ",null,null,null,null," "," ","X","X","X","X",null,null,null,null,null,null,null,null,null,null,null,"X","X","X","X",null,null,null,null,"X",null,null,null,null,"x",null,null,null,null,null,null,null,null,null,null,null,"x","x",null,null,null,null,null,null,null,null,null,null,"x",null,null,null,null,null,null,null,null,null,null,"x",null,"x","x"," ",null,null,null,null,"x","x"]
[null,"MAGDALENA","ARACATACA",47053,"4","x","x","x","x","x","x","x",null,"X","X","x",null,"x",null,null,"x","x","x","x",null,null,null,null,null,null,null,null,null,null,null,null,null,"","",null,null,null,null,null,null,null,null,null,null,null,null,null,null,null,null," "," "," "," ",null,null,null,null,null,null," "," "," "," ","X"," "," "," "," ",null,null,null,null," "," ","X","X","X","X",null,null,null,null,null,null,null,null,null,null,null,"X","X","X","X",null,null,null,null,"X",null,null,null,null,"x",null,null,null,null,null,null,null,null,null,null,null,"x","x",null,null,null,null,null,null,null,null,null,null,"x",null,null,null,null,null,null,null,null,null,null,"x",null,"x","x","x",null,null,null,null,"x","x","x","x"]
[null,"MAGDALENA","CERRO SAN ANTONIO",47161,"4","x","x","x","x","x","x","x","x","X","X","x",null,"x",null,"x","x","x","x","x",null,null,null,null,null,null,null,null,null,null,null,"",null,"","",null,null,null,null,null,null,null,null,null,null,null,null,null,null,null,null," "," "," "," ",null,null,null,null,null,null," "," "," "," ","X"," "," "," "," ",null,null,null,null," "," ","X","X","X","X",null,null,null,null,null,null,null,null,null,null,null,"X","X","X","X",null,null,null,null,"X",null,null,null,null,"x",null,null,null,null,null,null,null,null,null,null,null,"x","x",null,null,null,null,null,null,null,null,null,null,"x",null,null,null,null,null,null,null,null,null,null,"x",null,"x","x"," ",null,null,null,null,"x","x"]
[null,"MAGDALENA","CONCORDIA",47205,"Otros","x","x","x","x","x",null,null,"x","X","X",null,null,null,null,"x","x","x","x","x",null,null,null,null,null,null,null,null,null,null,null,"",null,"","",null,null,null,null,null,null,null,null,null,null,null,null,null,null,null,null," "," "," "," ","",null,null,null,null,null," "," "," "," "," "," "," "," "," ",null,null,null,null," "," ","X","X","X","X",null,null,null,null,null,null,null,null,null,null,null,"X","X","X","X",null,null,null,null,"X",null,null,null,null,"x",null,null,null,null,null,null,null,null,null,null,null,"x","x",null,null,null,null,null,null,null,null,null,null,"x",null,null,null,null,null,null,null,null,null,null,"x",null,"x","x"," ",null,null,null,null,"x","x"]
[null,"MAGDALENA","FUNDACION",47288,"Otros","x","x","x","x","x","x",null,"x","X","X",null,null,null,null,"x","x","x","x","x",null,null,null,null,null,null,null,"X","X",null,"X","X","X","X","X",null,null,null,null,null,null,null,null,null,null,null,null,null,null,null,null," "," "," "," ","X","X",null,null,null,null," "," "," "," ","X"," "," "," "," ",null,null,null,null," "," ","X","X","X","X",null,null,null,null,null,null,null,null,null,null,null,"X","X","X","X",null,null,null,null,"X",null,null,null,null,"x",null,null,null,null,null,null,null,null,null,null,null,"x","x",null,null,null,null,null,null,null,null,null,null,"x",null,null,null,null,null,null,null,null,null,null,"x",null,"x","x","x",null,null,null,null,"x","x","x","x","x","x",null,null,null,null,null,"x","x","x","x"]
[null,"MAGDALENA","PIJIÑO DEL CARMEN",47545,"Otros","x","x","x","x","x",null,null,"x","X","X",null,null,null,null,"x","x","x","x","x",null,null,null,null,null,null,null,null,null,null,null,"",null,"","",null,null,null,null,null,null,null,null,null,null,null,null,null,null,null,null," "," "," "," ","",null,null,null,null,null," "," "," "," "," "," "," "," "," ",null,null,null,null," "," ","X","X","X","X",null,null,null,null,null,null,null,null,null,null,null,"X","X","X","X",null,null,null,null,"X",null,null,null,null,"x",null,null,null,null,null,null,null,null,null,null,null,"x","x",null,null,null,null,null,null,null,null,null,null,null,null,null,null,null,null,null,null,null,null,null,"x",null,"x","x","x"]
[null,"MAGDALENA","PIVIJAY",47551,"3","x","x","x","x","x","x","x","x","X","X","x",null,"x",null,"x","x","x","x","x",null,null,null,null,null,null,null,null,null,null,null,"",null,"","",null,null,null,null,null,null,null,null,null,null,null,null,null,null,null,null," "," "," "," ","",null,null,null,null,null," "," "," "," ","X"," "," "," "," ",null,null,null,null," "," ","X","X","X","X",null,null,null,null,null,null,null,null,null,null,null,"X","X","X","X",null,null,null,null,"X",null,null,null,null,"x",null,null,null,null,null,null,null,null,null,null,null,"x","x",null,null,null,null,null,null,null,null,null,null,"x",null,null,null,null,null,null,null,null,null,null,"x",null,"x","x","x",null,null,null,null,"x","x"]
[null,"MAGDALENA","REMOLINO",47605,"Otros","x","x","x","x","x",null,null,"x","X","X",null,null,null,null,"x","x","x","x","x",null,null,null,null,null,null,null,null,null,null,null,"",null,"","",null,null,null,null,null,null,null,null,null,null,null,null,null,null,null,null," "," "," "," ","",null,null,null,null,null," "," "," "," "," "," "," "," "," ",null,null,null,null," "," ","X","X","X","X",null,null,null,null,null,null,null,null,null,null,null,"X","X","X","X",null,null,null,null,"X",null,null,null,null,"x",null,null,null,null,null,null,null,null,null,null,null,"x","x",null,null,null,null,null,null,null,null,null,null,null,null,null,null,null,null,null,null,null,null,null,"x",null,"x","x","x"]
[null,"MAGDALENA","SAN SEBASTIAN DE BUENAVISTA",47692,"4","x","x","x","x","x","x","x","x","X","X","x",null,"x",null,"x","x","x","x","x",null,null,null,null,null,null,null,null,null,null,null,"",null,"","",null,null,null,null,null,null,null,null,null,null,null,null,null,null,null,null," "," "," "," ",null,null,null,null,null,null," "," "," "," ","X"," "," "," "," ",null,null,null,null," "," ","X","X","X","X",null,null,null,null,null,null,null,null,null,null,null,"X","X","X","X",null,null,null,null,"X",null,null,null,null,"x",null,null,null,null,null,null,null,null,null,null,null,"x","x",null,null,null,null,null,null,null,null,null,null,"x",null,null,null,null,null,null,null,null,null,null,"x",null,"x","x"," ",null,null,null,null,"x","x"]
[null,"MAGDALENA","ZAPAYAN",47960,"Otros","x","x","x","x",null,null,null,null,"X","X",null,null,null,null,null,"x","x","x","x",null,null,null,null,null,null,null,null,null,null,null,"",null,"","",null,null,null,null,null,null,null,null,null,null,null,null,null,null,null,null," "," "," "," ","",null,null,null,null,null," "," "," "," "," "," "," "," "," ",null,null,null,null," "," ","X","X","X","X",null,null,null,null,null,null,null,null,null,null,null,"X","X","X","X",null,null,null,null,"X",null,null,null,null,"x",null,null,null,null,null,null,null,null,null,null,null,"x","x",null,null,null,null,null,null,null,null,null,null,null,null,null,null,null,null,null,null,null,null,null,"x",null,"x","x"," "]
[null,"META","VILLAVICENCIO",50001,"1","x","x","x","x","x","x","x","x","X","X","x",null,"x",null,"x","x","x","x","x",null,null,null,null,null,null,null,"X","X",null,"X","X","X","X","X",null,null,null,null,null,null,null,null,null,null,null,null,null,null,null,null,"X","X","X","X","X","X",null,null,null,null,"X","X","X","X","X","X","X","X","X",null,null,null,null,"X","X","X","X","X","X","X",null,null,"X",null,null,"X","X","X","X","X","X","X","X","X",null,null,null,null,"X",null,"x","x","x","x",null,null,null,null,null,"x","x","x","x","X","x","x","x","x",null,null,null,null,null,null,"x","x","x","x",null,null,"x",null,null,null,"x","x","x","x","x",null,"x","x","x",null,null,null,null,"x","x","x","x","x","x",null,null,null,null,null,"x","x","x","x",null,null,null,null,null,null,null,null,null,null,null,"x","x","x","x"]
[null,"META","CABUYARO",50124,"3","x","x","x","x","x","x","x",null,"X","X","x",null,"x",null,null,"x","x","x","x",null,null,null,null,null,null,null,null,null,null,null,"",null,"","",null,null,null,null,null,null,null,null,null,null,null,null,null,null,null,null," "," "," "," ","",null,null,null,null,null," "," "," "," ","X"," "," "," "," ",null,null,null,null," "," ","X","X","X","X","X",null,null,"X",null,null,"X","X","X","X",null,"X","X","X","X",null,null,null,null,"X",null,null,null,null,"x",null,null,null,null,null,null,null,null,null,null,null,"x","x",null,null,null,null,null,null,null,null,null,null,"x",null,null,null,null,null,null,null,null,null,null,"x",null,"x","x","x",null,null,null,null,"x","x"]
[null,"META","EL CALVARIO",50245,"Otros","x","x","x","x","x",null,null,"x","X","X",null,null,null,null,"x","x","x","x","x",null,null,null,null,null,null,null,null,null,null,null,"",null,"","",null,null,null,null,null,null,null,null,null,null,null,null,null,null,null,null," "," "," "," ","",null,null,null,null,null," "," "," "," ","X"," "," "," "," ",null,null,null,null," "," ","X","X","X","X",null,null,null,null,null,null,null,null,null,null,null,"X","X","X","X",null,null,null,null,"X",null,null,null,null,"x",null,null,null,null,null,null,null,null,null,null,null,"x","x",null,null,null,null,null,null,null,null,null,null,"x",null,null,null,null,null,null,null,null,null,null,"x",null,"x","x"," ",null,null,null,null,"x","x"]
[null,"META","GRANADA",50313,"2","x","x","x","x","x","x","x","x","X","X","x",null,"x",null,"x","x","x","x","x",null,null,null,null,null,null,null,"X","X",null,"X","X","X","X","X",null,null,null,null,null,null,null,null,null,null,null,null,null,null,null,null,"X","X","X","X","X","X",null,null,null,null,"X","X","X","X","X","X","X","X","X",null,null,null,null,"X","X","X","X","X","X",null,null,null,null,null,null,null,null,null,null,null,"X","X","X","X",null,null,null,null,"X",null,null,null,null,"x",null,null,null,null,null,null,null,null,null,null,null,"x","x",null,null,null,null,null,null,null,"x","x","x","x",null,null,"x",null,null,null,"x","x","x","x","x",null,"x","x"," ",null,null,null,null,"x","x","x","x","x","x",null,null,null,null,null,"x","x","x","x"]
[null,"META","GUAMAL",50318,"4","x","x","x","x","x","x","x","x","X","X","x",null,"x",null,"x","x","x","x","x",null,null,null,null,null,null,null,null,null,null,"X","",null,"X","X",null,null,null,null,null,null,null,null,null,null,null,null,null,null,null,null," "," "," "," ",null,null,null,null,null,null," "," "," "," ","X"," "," "," "," ",null,null,null,null," "," ","X","X","X","X",null,null,null,null,null,null,null,null,null,null,null,"X","X","X","X",null,null,null,null,"X",null,null,null,null,"x",null,null,null,null,null,null,null,null,null,null,null,"x","x",null,null,null,null,null,null,null,null,null,null,"x",null,null,null,null,null,null,null,null,null,null,"x",null,"x","x"," ",null,null,null,null,"x","x"]
[null,"META","LA MACARENA",50350,"4","x","x","x","x","x","x","x","x","X","X","x",null,"x",null,"x","x","x","x","x",null,null,null,null,null,null,null,null,null,null,null,"",null,"","",null,null,null,null,null,null,null,null,null,null,null,null,null,null,null,null," "," "," "," ",null,null,null,null,null,null," "," "," "," ","X"," "," "," "," ",null,null,null,null," "," ","X","X","X","X",null,null,null,null,null,null,null,null,null,null,null,"X","X","X","X",null,null,null,null,"X",null,null,null,null,"x",null,null,null,null,null,null,null,null,null,null,null,"x","x",null,null,null,null,null,null,null,null,null,null,"x",null,null,null,null,null,null,null,null,null,null,"x",null,"x","x","x",null,null,null,null,"x","x"]
[null,"META","PUERTO LOPEZ",50573,"3","x","x","x","x","x","x","x",null,"X","X","x",null,"x",null,null,"x","x","x","x",null,null,null,null,null,null,null,null,null,null,"X","",null,"X","X",null,null,null,null,null,null,null,null,null,null,null,null,null,null,null,null,"X","X","X","X","X",null,null,null,null,null,"X","X","X","X","X","X","X","X","X",null,null,null,null,"X","X","X","X","X","X",null,null,null,null,null,null,null,null,null,null,null,"X","X","X","X",null,null,null,null,"X",null,null,null,null,"x",null,null,null,null,null,null,null,null,null,null,null,"x","x",null,null,null,null,null,null,null,null,null,null,"x",null,null,null,null,null,null,null,null,null,null,"x",null,"x","x","x",null,null,null,null,"x","x","x","x","x","x",null,null,null,null,null,"x","x","x","x"]
[null,"META","RESTREPO",50606,"4","x","x","x","x","x","x","x","x","X","X","x",null,"x",null,"x","x","x","x","x",null,null,null,null,null,null,null,null,null,null,"X","X",null,"X","X",null,null,null,null,null,null,null,null,null,null,null,null,null,null,null,null," "," "," "," ",null,null,null,null,null,null," "," "," "," ","X"," "," "," "," ",null,null,null,null," "," ","X","X","X","X",null,null,null,null,null,null,null,null,null,null,"X","X","X","X","X",null,null,null,null,"X",null,null,null,null,"x",null,null,null,null,null,null,null,null,null,null,null,"x","x",null,null,null,null,null,null,null,null,null,null,"x",null,null,null,null,null,null,null,null,null,null,"x",null,"x","x"," ",null,null,null,null,"x","x"]
[null,"META","SAN JUANITO",50686,"4","x","x","x","x","x","x","x",null,"X","X","x",null,"x",null,null,"x","x","x","x",null,null,null,null,null,null,null,null,null,null,null,"",null,"","",null,null,null,null,null,null,null,null,null,null,null,null,null,null,null,null," "," "," "," ",null,null,null,null,null,null," "," "," "," ","X"," "," "," "," ",null,null,null,null," "," ","X","X","X","X",null,null,null,null,null,null,null,null,null,null,null,"X","X","X","X",null,null,null,null,"X",null,null,null,null,"x",null,null,null,null,null,null,null,null,null,null,null,"x","x",null,null,null,null,null,null,null,null,null,null,"x",null,null,null,null,null,null,null,null,null,null,"x",null,"x","x","x",null,null,null,null,"x","x"]
[null,"NARIÑO","ALBAN",52019,"4","x","x","x","x","x","x","x","x","X","X","x",null,"x",null,"x","x","x","x","x",null,null,null,null,null,null,null,null,null,null,null,"",null,"","",null,null,null,null,null,null,null,null,null,null,null,null,null,null,null,null," "," "," "," ",null,null,null,null,null,null," "," "," "," ","X"," "," "," "," ",null,null,null,null," "," ","X","X","X","X",null,null,null,null,null,null,null,null,null,null,null,"X","X","X","X",null,null,null,null,"X",null,null,null,null,"x",null,null,null,null,null,null,null,null,null,null,null,"x","x",null,null,null,null,null,null,null,null,null,null,"x",null,null,null,null,null,null,null,null,null,null,"x",null,"x","x"," ",null,null,null,null,"x","x"]
[null,"NARIÑO","ARBOLEDA",52051,"4","x","x","x","x","x","x","x","x","X","X","x",null,"x",null,"x","x","x","x","x",null,null,null,null,null,null,null,null,null,null,null,"",null,"","",null,null,null,null,null,null,null,null,null,null,null,null,null,null,null,null," "," "," "," ",null,null,null,null,null,null," "," "," "," "," "," "," "," "," ",null,null,null,null," "," ","X","X","X","X",null,null,null,null,null,null,null,null,null,null,null,"X","X","X","X",null,null,null,null,"X",null,null,null,null,"x",null,null,null,null,null,null,null,null,null,null,null,"x","x",null,null,null,null,null,null,null,null,null,null,"x",null,null,null,null,null,null,null,null,null,null,"x",null,"x","x"," ",null,null,null,null,"x","x"]
[null,"NARIÑO","COLON",52203,"Otros","x","x","x","x","x",null,null,"x","X","X",null,null,null,null,"x","x","x","x","x",null,null,null,null,null,null,null,null,null,null,null,"",null,"","",null,null,null,null,null,null,null,null,null,null,null,null,null,null,null,null," "," "," "," ","",null,null,null,null,null," "," "," "," ","X"," "," "," "," ",null,null,null,null," "," ","X","X","X","X",null,null,null,null,null,null,null,null,null,null,null,"X","X","X","X",null,null,null,null,"X",null,null,null,null,"x",null,null,null,null,null,null,null,null,null,null,null,"x","x",null,null,null,null,null,null,null,null,null,null,null,null,null,null,null,null,null,null,null,null,null,"x",null,"x","x"," "]
[null,"NARIÑO","CONSACA",52207,"4","x","x","x","x","x","x","x",null,"X","X","x",null,"x",null,null,"x","x","x","x",null,null,null,null,null,null,null,null,null,null,null,"",null,"","",null,null,null,null,null,null,null,null,null,null,null,null,null,null,null,null," "," "," "," ",null,null,null,null,null,null," "," "," "," ","X"," "," "," "," ",null,null,null,null," "," ","X","X","X","X",null,null,null,null,null,null,null,null,null,null,null,"X","X","X","X",null,null,null,null,"X",null,null,null,null,"x",null,null,null,null,null,null,null,null,null,null,null,"x","x",null,null,null,null,null,null,null,null,null,null,"x",null,null,null,null,null,null,null,null,null,null,"x",null,"x","x","x",null,null,null,null,"x","x"]
[null,"NARIÑO","CUASPUD",52224,"Otros","x","x","x","x","x",null,null,"x","X","X",null,null,null,null,"x","x","x","x","x",null,null,null,null,null,null,null,null,null,null,null,"",null,"","",null,null,null,null,null,null,null,null,null,null,null,null,null,null,null,null," "," "," "," ","",null,null,null,null,null," "," "," "," "," "," "," "," "," ",null,null,null,null," "," ","X","X","X","X",null,null,null,null,null,null,null,null,null,null,null,"X","X","X","X",null,null,null,null,"X",null,null,null,null,"x",null,null,null,null,null,null,null,null,null,null,null,"x","x",null,null,null,null,null,null,null,null,null,null,null,null,null,null,null,null,null,null,null,null,null,null,null,"x","x"," "]
[null,"NARIÑO","EL PEÑOL",52254,"Otros","x","x","x","x","x",null,null,"x","X","X",null,null,null,null,"x","x","x","x","x",null,null,null,null,null,null,null,null,null,null,null,"",null,"","",null,null,null,null,null,null,null,null,null,null,null,null,null,null,null,null," "," "," "," ","",null,null,null,null,null," "," "," "," ","X"," "," "," "," ",null,null,null,null," "," ","X","X","X","X",null,null,null,null,null,null,null,null,null,null,null,"X","X","X","X",null,null,null,null,"X",null,null,null,null,"x",null,null,null,null,null,null,null,null,null,null,null,"x","x",null,null,null,null,null,null,null,null,null,null,null,null,null,null,null,null,null,null,null,null,null,"x",null,"x","x","x"]
[null,"NARIÑO","EL TAMBO",52260,"4","x","x","x","x","x","x","x","x","X","X","x",null,"x",null,"x","x","x","x","x",null,null,null,null,null,null,null,null,null,null,null,"",null,"","",null,null,null,null,null,null,null,null,null,null,null,null,null,null,null,null," "," "," "," ",null,null,null,null,null,null," "," "," "," ","X"," "," "," "," ",null,null,null,null," "," ","X","X","X","X",null,null,null,null,null,null,null,null,null,null,null,"X","X","X","X",null,null,null,null,"X",null,null,null,null,"x",null,null,null,null,null,null,null,null,null,null,null,"x","x",null,null,null,null,null,null,null,null,null,null,"x",null,null,null,null,null,null,null,null,null,null,"x",null,"x","x"," ",null,null,null,null,"x","x"]
[null,"NARIÑO","GUAITARILLA",52320,"4","x","x","x","x","x","x","x","x","X","X","x",null,"x",null,"x","x","x","x","x",null,null,null,null,null,null,null,null,null,null,null,"",null,"","",null,null,null,null,null,null,null,null,null,null,null,null,null,null,null,null," "," "," "," ",null,null,null,null,null,null," "," "," "," ","X"," "," "," "," ",null,null,null,null," "," ","X","X","X","X",null,null,null,null,null,null,null,null,null,null,null,"X","X","X","X",null,null,null,null,"X",null,null,null,null,"x",null,null,null,null,null,null,null,null,null,null,null,"x","x",null,null,null,null,null,null,null,null,null,null,"x",null,null,null,null,null,null,null,null,null,null,"x",null,"x","x","x",null,null,null,null,"x","x"]
[null,"NARIÑO","IMUES",52354,"Otros","x","x","x","x","x",null,null,"x","X","X",null,null,null,null,"x","x","x","x","x",null,null,null,null,null,null,null,null,null,null,null,"",null,"","",null,null,null,null,null,null,null,null,null,null,null,null,null,null,null,null," "," "," "," ","",null,null,null,null,null," "," "," "," "," "," "," "," "," ",null,null,null,null," "," ","X","X","X","X",null,null,null,null,null,null,null,null,null,null,null,"X","X","X","X",null,null,null,null,"X",null,null,null,null,"x",null,null,null,null,null,null,null,null,null,null,null,"x","x",null,null,null,null,null,null,null,null,null,null,null,null,null,null,null,null,null,null,null,null,null,"x",null,"x","x"," "]
[null,"NARIÑO","LA TOLA",52390,"Otros","x","x","x","x","x",null,null,"x","X","X",null,null,null,null,"x","x","x","x","x",null,null,null,null,null,null,null,null,null,null,null,"",null,"","",null,null,null,null,null,null,null,null,null,null,null,null,null,null,null,null," "," "," "," ","",null,null,null,null,null," "," "," "," "," "," "," "," "," ",null,null,null,null," "," ","X","X","X","X",null,null,null,null,null,null,null,null,null,null,null,"X","X","X","X",null,null,null,null,"X",null,null,null,null,"x",null,null,null,null,null,null,null,null,null,null,null,"x","x",null,null,null,null,null,null,null,null,null,null,null,null,null,null,null,null,null,null,null,null,null,null,null,"x","x","x"]
[null,"NARIÑO","LINARES",52411,"4","x","x","x","x","x","x","x","x","X","X","x",null,"x",null,"x","x","x","x","x",null,null,null,null,null,null,null,null,null,null,null,"",null,"","",null,null,null,null,null,null,null,null,null,null,null,null,null,null,null,null," "," "," "," ",null,null,null,null,null,null," "," "," "," ","X"," "," "," "," ",null,null,null,null," "," ","X","X","X","X",null,null,null,null,null,null,null,null,null,null,null,"X","X","X","X",null,null,null,null,"X",null,null,null,null,"x",null,null,null,null,null,null,null,null,null,null,null,"x","x",null,null,null,null,null,null,null,null,null,null,"x",null,null,null,null,null,null,null,null,null,null,"x",null,"x","x","x",null,null,null,null,"x","x"]
[null,"NARIÑO","LOS ANDES",52418,"4","x","x","x","x","x","x","x","x","X","X","x",null,"x",null,"x","x","x","x","x",null,null,null,null,null,null,null,null,null,null,null,"",null,"","",null,null,null,null,null,null,null,null,null,null,null,null,null,null,null,null," "," "," "," ",null,null,null,null,null,null," "," "," "," ","X"," "," "," "," ",null,null,null,null," "," ","X","X","X","X",null,null,null,null,null,null,null,null,null,null,null,"X","X","X","X",null,null,null,null,"X",null,null,null,null,"x",null,null,null,null,null,null,null,null,null,null,null,"x","x",null,null,null,null,null,null,null,null,null,null,"x",null,null,null,null,null,null,null,null,null,null,"x",null,"x","x","x",null,null,null,null,"x","x"]
[null,"NARIÑO","NARIÑO",52480,"Otros","x","x","x","x","x",null,null,"x","X","X",null,null,null,null,"x","x","x","x","x",null,null,null,null,null,null,null,null,null,null,null,"",null,"","",null,null,null,null,null,null,null,null,null,null,null,null,null,null,null,null," "," "," "," ","",null,null,null,null,null," "," "," "," ","X"," "," "," "," ",null,null,null,null," "," ","X","X","X","X",null,null,null,null,null,null,null,null,null,null,null,"X","X","X","X",null,null,null,null,"X",null,null,null,null,"x",null,null,null,null,null,null,null,null,null,null,null,"x","x",null,null,null,null,null,null,null,null,null,null,"x",null,null,null,null,null,null,null,null,null,null,null,null,"x","x","x",null,null,null,null,"x","x"]
[null,"NARIÑO","FRANCISCO PIZARRO",52520,"Otros","x","x","x","x","x",null,null,"x","X","X",null,null,null,null,"x","x","x","x","x",null,null,null,null,null,null,null,null,null,null,null,"",null,"","",null,null,null,null,null,null,null,null,null,null,null,null,null,null,null,null," "," "," "," ","",null,null,null,null,null," "," "," "," ","X"," "," "," "," ",null,null,null,null," "," ","X","X","X","X",null,null,null,null,null,null,null,null,null,null,null,"X","X","X","X",null,null,null,null,"X",null,null,null,null,"x",null,null,null,null,null,null,null,null,null,null,null,"x","x",null,null,null,null,null,null,null,null,null,null,null,null,null,null,null,null,null,null,null,null,null,null,null,"x","x"," "]
[null,"NARIÑO","PUERRES",52573,"4","x","x","x","x","x","x","x",null,"X","X","x",null,"x",null,null,"x","x","x","x",null,null,null,null,null,null,null,null,null,null,null,"",null,"","",null,null,null,null,null,null,null,null,null,null,null,null,null,null,null,null," "," "," "," ",null,null,null,null,null,null," "," "," "," ","X"," "," "," "," ",null,null,null,null," "," ","X","X","X","X",null,null,null,null,null,null,null,null,null,null,null,"X","X","X","X",null,null,null,null,"X",null,null,null,null,"x",null,null,null,null,null,null,null,null,null,null,null,"x","x",null,null,null,null,null,null,null,null,null,null,"x",null,null,null,null,null,null,null,null,null,null,"x",null,"x","x","x",null,null,null,null,"x","x"]
[null,"NARIÑO","ROBERTO PAYAN",52621,"Otros","x","x","x","x","x",null,null,"x","X","X",null,null,null,null,"x","x","x","x","x",null,null,null,null,null,null,null,null,null,null,null,"",null,"","",null,null,null,null,null,null,null,null,null,null,null,null,null,null,null,null," "," "," "," ","",null,null,null,null,null," "," "," "," "," "," "," "," "," ",null,null,null,null," "," ","X","X","X","X",null,null,null,null,null,null,null,null,null,null,null,"X","X","X","X",null,null,null,null,"X",null,null,null,null,"x",null,null,null,null,null,null,null,null,null,null,null,"x","x",null,null,null,null,null,null,null,null,null,null,null,null,null,null,null,null,null,null,null,null,null,null,null,"x","x"," "]
[null,"NARIÑO","SAN BERNARDO",52685,"Otros","x","x","x","x","x",null,null,"x","X","X",null,null,null,null,"x","x","x","x","x",null,null,null,null,null,null,null,null,null,null,null,"",null,"","",null,null,null,null,null,null,null,null,null,null,null,null,null,null,null,null," "," "," "," ","",null,null,null,null,null," "," "," "," ","X"," "," "," "," ",null,null,null,null," "," ","X","X","X","X",null,null,null,null,null,null,null,null,null,null,null,"X","X","X","X",null,null,null,null,"X",null,null,null,null,"x",null,null,null,null,null,null,null,null,null,null,null,"x","x",null,null,null,null,null,null,null,null,null,null,"x",null,null,null,null,null,null,null,null,null,null,"x",null,"x","x","x",null,null,null,null,"x","x"]
[null,"NARIÑO","SANTACRUZ",52699,"Otros","x","x","x","x","x",null,null,"x","X","X",null,null,null,null,"x","x","x","x","x",null,null,null,null,null,null,null,null,null,null,null,"",null,"","",null,null,null,null,null,null,null,null,null,null,null,null,null,null,null,null," "," "," "," ","",null,null,null,null,null," "," "," "," ","X"," "," "," "," ",null,null,null,null," "," ","X","X","X","X",null,null,null,null,null,null,null,null,null,null,null,"X","X","X","X",null,null,null,null,"X",null,null,null,null,"x",null,null,null,null,null,null,null,null,null,null,null,"x","x",null,null,null,null,null,null,null,null,null,null,null,null,null,null,null,null,null,null,null,null,null,"x",null,"x","x","x"]
[null,"NARIÑO","TANGUA",52788,"Otros","x","x","x","x","x",null,null,"x","X","X",null,null,null,null,"x","x","x","x","x",null,null,null,null,null,null,null,null,null,null,null,"",null,"","",null,null,null,null,null,null,null,null,null,null,null,null,null,null,null,null," "," "," "," ","",null,null,null,null,null," "," "," "," ","X"," "," "," "," ",null,null,null,null," "," ","X","X","X","X",null,null,null,null,null,null,null,null,null,null,null,"X","X","X","X",null,null,null,null,"X",null,null,null,null,"x",null,null,null,null,null,null,null,null,null,null,null,"x","x",null,null,null,null,null,null,null,null,null,null,null,null,null,null,null,null,null,null,null,null,null,"x",null,"x","x","x"]
[null,"NARIÑO","SAN ANDRES DE TUMACO",52835,"3","x","x","x","x","x","x","x","x","X","X","x",null,"x",null,"x","x","x","x","x",null,null,null,null,null,null,null,"X","X",null,"X","X","X","X","X",null,null,null,null,null,null,null,null,null,null,null,null,null,null,null,null,"X","X","X","X","X",null,null,null,null,null,"X","X","X","X","X","X","X","X","X",null,null,null,null,"X","X","X","X","X","X",null,null,null,null,null,null,null,null,null,null,null,"X","X","X","X",null,null,null,null,"X",null,null,null,null,"x",null,null,null,null,null,null,null,null,null,null,null,"x","x",null,null,null,null,null,null,null,"x","x","x",null,null,null,"x",null,null,null,"x","x","x","x","x",null,"x","x","x"]
[null,"N. DE SANTANDER","ABREGO",54003,"3","x","x","x","x","x","x","x",null,"X","X","x",null,"x",null,null,"x","x","x","x",null,null,null,null,null,null,null,null,null,null,"X","",null,"X","X",null,null,null,null,null,null,null,null,null,null,null,null,null,null,null,null,"X","X","X","X","X",null,null,null,null,null,"X","X","X","X","X","X","X","X","X",null,null,null,null,"X","X","X","X","X","X",null,null,null,null,null,null,null,null,null,null,null,"X","X","X","X",null,null,null,null,"X",null,null,null,null,"x",null,null,null,null,null,null,null,null,null,null,null,"x","x",null,null,null,null,null,null,null,null,null,null,"x",null,null,null,null,null,null,null,null,null,null,"x",null,"x","x","x",null,null,null,null,"x","x"]
[null,"N. DE SANTANDER","CACOTA",54125,"4","x","x","x","x","x","x","x",null,"X","X","x",null,"x",null,null,"x","x","x","x",null,null,null,null,null,null,null,null,null,null,null,"",null,"","",null,null,null,null,null,null,null,null,null,null,null,null,null,null,null,null," "," "," "," ",null,null,null,null,null,null," "," "," "," "," "," "," "," "," ",null,null,null,null," "," ","X","X","X","X",null,null,null,null,null,null,null,null,null,null,null,"X","X","X","X",null,null,null,null,"X",null,null,null,null,"x",null,null,null,null,null,null,null,null,null,null,null,"x","x",null,null,null,null,null,null,null,null,null,null,"x",null,null,null,null,null,null,null,null,null,null,"x",null,"x","x"," ",null,null,null,null,"x","x"]
[null,"N. DE SANTANDER","CHITAGA",54174,"4","x","x","x","x","x","x","x","x","X","X","x",null,"x",null,"x","x","x","x","x",null,null,null,null,null,null,null,null,null,null,null,"",null,"","",null,null,null,null,null,null,null,null,null,null,null,null,null,null,null,null," "," "," "," ",null,null,null,null,null,null," "," "," "," ","X"," "," "," "," ",null,null,null,null," "," ","X","X","X","X",null,null,null,null,null,null,null,null,null,null,null,"X","X","X","X",null,null,null,null,"X",null,null,null,null,"x",null,null,null,null,null,null,null,null,null,null,null,"x","x",null,null,null,null,null,null,null,null,null,null,"x",null,null,null,null,null,null,null,null,null,null,"x",null,"x","x","x",null,null,null,null,"x","x"]
[null,"N. DE SANTANDER","CUCUTILLA",54223,"4","x","x","x","x","x","x","x","x","X","X","x",null,"x",null,"x","x","x","x","x",null,null,null,null,null,null,null,null,null,null,null,"",null,"","",null,null,null,null,null,null,null,null,null,null,null,null,null,null,null,null," "," "," "," ",null,null,null,null,null,null," "," "," "," ","X"," "," "," "," ",null,null,null,null," "," ","X","X","X","X",null,null,null,null,null,null,null,null,null,null,null,"X","X","X","X",null,null,null,null,"X",null,null,null,null,"x",null,null,null,null,null,null,null,null,null,null,null,"x","x",null,null,null,null,null,null,null,null,null,null,"x",null,null,null,null,null,null,null,null,null,null,"x",null,"x","x","x",null,null,null,null,"x","x"]
[null,"N. DE SANTANDER","HACARI",54344,"4","x","x","x","x","x",null,"x","x","X","X","x",null,"x",null,"x","x","x","x","x",null,null,null,null,null,null,null,null,null,null,null,"",null,"","",null,null,null,null,null,null,null,null,null,null,null,null,null,null,null,null," "," "," "," ",null,null,null,null,null,null," "," "," "," ","X"," "," "," "," ",null,null,null,null," "," ","X","X","X","X",null,null,null,null,null,null,null,null,null,null,null,"X","X","X","X",null,null,null,null,"X",null,null,null,null,"x",null,null,null,null,null,null,null,null,null,null,null,"x","x",null,null,null,null,null,null,null,null,null,null,"x",null,null,null,null,null,null,null,null,null,null,"x",null,"x","x"," ",null,null,null,null,"x","x"]
[null,"N. DE SANTANDER","LA ESPERANZA",54385,"Otros","x","x","x","x","x",null,null,"x","X","X",null,null,null,null,"x","x","x","x","x",null,null,null,null,null,null,null,null,null,null,null,"",null,"","",null,null,null,null,null,null,null,null,null,null,null,null,null,null,null,null," "," "," "," ","",null,null,null,null,null," "," "," "," "," "," "," "," "," ",null,null,null,null," "," ","X","X","X","X",null,null,null,null,null,null,null,null,null,null,null,"X","X","X","X",null,null,null,null,"X",null,null,null,null,"x",null,null,null,null,null,null,null,null,null,null,null,"x","x",null,null,null,null,null,null,null,null,null,null,null,null,null,null,null,null,null,null,null,null,null,"x",null,"x","x","x"]
[null,"N. DE SANTANDER","LOURDES",54418,"4","x","x","x","x","x","x","x",null,"X","X","x",null,"x",null,null,"x","x","x","x",null,null,null,null,null,null,null,null,null,null,null,"",null,"","",null,null,null,null,null,null,null,null,null,null,null,null,null,null,null,null," "," "," "," ",null,null,null,null,null,null," "," "," "," ","X"," "," "," "," ",null,null,null,null," "," ","X","X","X","X",null,null,null,null,null,null,null,null,null,null,null,"X","X","X","X",null,null,null,null,"X",null,null,null,null,"x",null,null,null,null,null,null,null,null,null,null,null,"x","x",null,null,null,null,null,null,null,null,null,null,"x",null,null,null,null,null,null,null,null,null,null,"x",null,"x","x","x",null,null,null,null,"x","x"]
[null,"N. DE SANTANDER","MUTISCUA",54480,"4","x","x","x","x","x","x","x",null,"X","X","x",null,"x",null,null,"x","x","x","x",null,null,null,null,null,null,null,null,null,null,null,"",null,"","",null,null,null,null,null,null,null,null,null,null,null,null,null,null,null,null," "," "," "," ",null,null,null,null,null,null," "," "," "," "," "," "," "," "," ",null,null,null,null," "," ","X","X","X","X",null,null,null,null,null,null,null,null,null,null,null,"X","X","X","X",null,null,null,null,"X",null,null,null,null,"x",null,null,null,null,null,null,null,null,null,null,null,"x","x",null,null,null,null,null,null,null,null,null,null,"x",null,null,null,null,null,null,null,null,null,null,"x",null,"x","x","x",null,null,null,null,"x","x"]
[null,"N. DE SANTANDER","PUERTO SANTANDER",54553,"Otros","x","x","x","x",null,null,null,null,"X","X",null,null,null,null,null,"x","x","x","x",null,null,null,null,null,null,null,null,null,null,null,"",null,"","",null,null,null,null,null,null,null,null,null,null,null,null,null,null,null,null," "," "," "," ","",null,null,null,null,null," "," "," "," ","X"," "," "," "," ",null,null,null,null," "," ","X","X","X","X",null,null,null,null,null,null,null,null,null,null,null,"X","X","X","X",null,null,null,null,"X",null,null,null,null,"x",null,null,null,null,null,null,null,null,null,null,null,"x","x",null,null,null,null,null,null,null,null,null,null,null,null,null,null,null,null,null,null,null,null,null,"x",null,"x","x"," "]
[null,"N. DE SANTANDER","SAN CAYETANO",54673,"Otros","x","x","x","x","x",null,null,"x","X","X",null,null,null,null,"x","x","x","x","x",null,null,null,null,null,null,null,null,null,null,null,"",null,"","",null,null,null,null,null,null,null,null,null,null,null,null,null,null,null,null," "," "," "," ","X","X",null,null,null,null," "," "," "," ","X"," "," "," "," ",null,null,null,null," "," ","X","X","X","X",null,null,null,null,null,null,null,null,null,null,null,"X","X","X","X",null,null,null,null,"X",null,null,null,null,"x",null,null,null,null,null,null,null,null,null,null,null,"x","x",null,null,null,null,null,null,null,null,null,null,"x",null,null,null,null,null,null,null,null,null,null,"x",null,"x","x"," ",null,null,null,null,"x","x"]
[null,"N. DE SANTANDER","SILOS",54743,"4","x","x","x","x","x","x","x","x","X","X","x",null,"x",null,"x","x","x","x","x",null,null,null,null,null,null,null,null,null,null,null,"",null,"","",null,null,null,null,null,null,null,null,null,null,null,null,null,null,null,null," "," "," "," ",null,null,null,null,null,null," "," "," "," ","X"," "," "," "," ",null,null,null,null," "," ","X","X","X","X",null,null,null,null,null,null,null,null,null,null,null,"X","X","X","X",null,null,null,null,"X",null,null,null,null,"x",null,null,null,null,null,null,null,null,null,null,null,"x","x",null,null,null,null,null,null,null,null,null,null,"x",null,null,null,null,null,null,null,null,null,null,"x",null,"x","x","x",null,null,null,null,"x","x"]
[null,"N. DE SANTANDER","TIBU",54810,"4","x","x","x","x","x","x","x","x","X","X","x",null,"x",null,"x","x","x","x","x",null,null,null,null,null,null,null,null,null,null,null,"",null,"","",null,null,null,null,null,null,null,null,null,null,null,null,null,null,null,null," "," "," "," ",null,null,null,null,null,null," "," "," "," ","X"," "," "," "," ",null,null,null,null," "," ","X","X","X","X",null,null,null,null,null,null,null,null,null,null,null,"X","X","X","X",null,null,null,null,"X",null,null,null,null,"x",null,null,null,null,null,null,null,null,null,null,null,"x","x",null,null,null,null,null,null,null,null,null,null,"x",null,null,null,null,null,null,null,null,null,null,"x",null,"x","x","x",null,null,null,null,"x","x"]
[null,"QUINDIO","CALARCA",63130,"2","x","x","x","x","x","x","x","x","X","X","x",null,"x",null,"x","x","x","x","x",null,null,null,null,null,null,null,"X","X",null,"X","X","X","X","X",null,null,null,null,null,null,null,null,null,null,null,null,null,null,null,null,"X","X","X","X","X","X",null,null,null,null,"X","X","X","X","X","X","X","X","X",null,null,null,null,"X","X","X","X","X","X",null,null,null,null,null,null,null,null,null,null,null,"X","X","X","X",null,null,null,null,"X",null,null,null,null,"x",null,null,null,null,null,null,null,null,null,"X",null,"x","x",null,null,null,null,null,null,null,null,null,null,"x",null,null,null,null,null,null,null,null,null,null,"x",null,"x","x","x",null,null,null,null,"x","x","x","x","x","x",null,null,null,null,null,"x","x","x","x","x"]
[null,"QUINDIO","FILANDIA",63272,"4","x","x","x","x","x","x","x","x","X","X","x",null,"x",null,"x","x","x","x","x",null,null,null,null,null,null,null,null,null,null,"X","X",null,"X","X",null,null,null,null,null,null,null,null,null,null,null,null,null,null,null,null," "," "," "," ",null,null,null,null,null,null," "," "," "," ","X"," "," "," "," ",null,null,null,null," "," ","X","X","X","X",null,null,null,null,null,null,null,null,null,null,null,"X","X","X","X",null,null,null,null,"X",null,null,null,null,"x",null,null,null,null,null,null,null,null,null,null,null,"x","x",null,null,null,null,null,null,null,null,null,null,"x",null,null,null,null,null,null,null,null,null,null,"x",null,"x","x","x",null,null,null,null,"x","x",null,null,null,null,null,null,null,null,null,null,null,null,null,"x"]
[null,"QUINDIO","MONTENEGRO",63470,"Otros","x","x","x","x","x","x",null,null,"X","X",null,null,null,null,null,"x","x","x","x",null,null,null,null,null,null,null,"X","X",null,"X","X","X","X","X",null,null,null,null,null,null,null,null,null,null,null,null,null,null,null,null,"X","X","X","X","X","X",null,null,null,null,"X","X","X","X","X","X","X","X","X",null,null,null,null,"X","X","X","X","X","X",null,null,null,null,null,null,null,null,null,null,null,"X","X","X","X",null,null,null,null,"X",null,null,null,null,"x",null,null,null,null,null,null,null,null,null,null,null,"x","x",null,null,null,null,null,null,null,null,null,null,"x",null,null,null,null,null,null,null,null,null,null,"x",null,"x","x","x",null,null,null,null,"x","x",null,null,null,null,null,null,null,null,null,null,null,null,null,"x"]
[null,"QUINDIO","PIJAO",63548,"4","x","x","x","x","x","x","x",null,"X","X","x",null,"x",null,null,"x","x","x","x",null,null,null,null,null,null,null,null,null,null,"X","",null,"X","X",null,null,null,null,null,null,null,null,null,null,null,null,null,null,null,null," "," "," "," ",null,null,null,null,null,null," "," "," "," ","X"," "," "," "," ",null,null,null,null," "," ","X","X","X","X",null,null,null,null,null,null,null,null,null,null,null,"X","X","X","X",null,null,null,null,"X",null,null,null,null,"x",null,null,null,null,null,null,null,null,null,null,null,"x","x",null,null,null,null,null,null,null,null,null,null,"x",null,null,null,null,null,null,null,null,null,null,"x",null,"x","x","x",null,null,null,null,"x","x",null,null,null,null,null,null,null,null,null,null,null,null,null,"x"]
[null,"RISARALDA","APIA",66045,"3","x","x","x","x","x","x","x","x","X","X","x",null,"x",null,"x","x","x","x","x",null,null,null,null,null,null,null,"X","X",null,"X","X","X","X","X",null,null,null,null,null,null,null,null,null,null,null,null,null,null,null,null," "," "," "," ","",null,null,null,null,null," "," "," "," ","X"," "," "," "," ",null,null,null,null," "," ","X","X","X","X",null,null,null,null,null,null,null,null,null,null,null,"X","X","X","X",null,null,null,null,"X",null,null,null,null,"x",null,null,null,null,null,null,null,null,null,null,null,"x","x",null,null,null,null,null,null,null,null,null,null,"x",null,null,null,null,null,null,null,null,null,null,"x",null,"x","x","x",null,null,null,null,"x","x"]
[null,"RISARALDA","GUATICA",66318,"4","x","x","x","x","x","x","x",null,"X","X","x",null,"x",null,null,"x","x","x","x",null,null,null,null,null,null,null,null,null,null,"X","",null,"X","X",null,null,null,null,null,null,null,null,null,null,null,null,null,null,null,null," "," "," "," ",null,null,null,null,null,null," "," "," "," ","X"," "," "," "," ",null,null,null,null," "," ","X","X","X","X",null,null,null,null,null,null,null,null,null,null,null,"X","X","X","X",null,null,null,null,"X",null,null,null,null,"x",null,null,null,null,null,null,null,null,null,null,null,"x","x",null,null,null,null,null,null,null,null,null,null,"x",null,null,null,null,null,null,null,null,null,null,"x",null,"x","x","x",null,null,null,null,"x","x"]
[null,"RISARALDA","PUEBLO RICO",66572,"4","x","x","x","x","x","x","x",null,"X","X","x",null,"x",null,null,"x","x","x","x",null,null,null,null,null,null,null,null,null,null,"X","",null,"X","X",null,null,null,null,null,null,null,null,null,null,null,null,null,null,null,null," "," "," "," ",null,null,null,null,null,null," "," "," "," ","X"," "," "," "," ",null,null,null,null," "," ","X","X","X","X",null,null,null,null,null,null,null,null,null,null,null,"X","X","X","X",null,null,null,null,"X",null,null,null,null,"x",null,null,null,null,null,null,null,null,null,null,null,"x","x",null,null,null,null,null,null,null,null,null,null,"x",null,null,null,null,null,null,null,null,null,null,"x",null,"x","x"," ",null,null,null,null,"x","x"]
[null,"RISARALDA","SANTA ROSA DE CABAL",66682,"3","x","x","x","x","x","x","x",null,"X","X","x",null,"x",null,null,"x","x","x","x",null,null,null,null,null,null,null,"X","X",null,"X","X","X","X","X",null,null,null,null,null,null,null,null,null,null,null,null,null,null,null,null,"X","X","X","X","X",null,null,null,null,null,"X","X","X","X","X","X","X","X","X",null,null,null,null,"X","X","X","X","X","X",null,null,null,null,null,null,null,null,null,null,null,"X","X","X","X",null,null,null,null,"X",null,null,null,null,"x",null,null,null,null,null,null,null,null,null,"X",null,"x","x",null,null,null,null,null,null,null,null,null,null,"x",null,null,null,null,null,null,null,null,null,null,"x",null,"x","x","x",null,null,null,null,"x","x","x","x","x","x",null,null,null,null,null,"x","x","x","x"]
[null,"SANTANDER","ALBANIA",68020,"Otros","x","x","x","x","x",null,null,"x","X","X",null,null,null,null,"x","x","x","x","x",null,null,null,null,null,null,null,null,null,null,null,"",null,"","",null,null,null,null,null,null,null,null,null,null,null,null,null,null,null,null," "," "," "," ","",null,null,null,null,null," "," "," "," ","X"," "," "," "," ",null,null,null,null," "," ","X","X","X","X",null,null,null,null,null,null,null,null,null,null,null,"X","X","X","X",null,null,null,null,"X",null,null,null,null,"x",null,null,null,null,null,null,null,null,null,"X",null,"x","x",null,null,null,null,null,null,null,null,null,null,"x",null,null,null,null,null,null,null,null,null,null,"x",null,"x","x"," ",null,null,null,null,"x","x"]
[null,"SANTANDER","BARICHARA",68079,"4","x","x","x","x","x","x","x","x","X","X","x",null,"x",null,"x","x","x","x","x",null,null,null,null,null,null,null,null,null,null,null,"",null,"","",null,null,null,null,null,null,null,null,null,null,null,null,null,null,null,null," "," "," "," ",null,null,null,null,null,null," "," "," "," ","X"," "," "," "," ",null,null,null,null," "," ","X","X","X","X",null,null,null,null,null,null,null,null,null,null,null,"X","X","X","X",null,null,null,null,"X",null,null,null,null,"x",null,null,null,null,null,null,null,null,null,null,null,"x","x",null,null,null,null,null,null,null,null,null,null,"x",null,null,null,null,null,null,null,null,null,null,"x",null,"x","x"," ",null,null,null,null,"x","x"]
[null,"SANTANDER","CABRERA",68121,"Otros","x","x","x","x","x",null,null,"x","X","X",null,null,null,null,"x","x","x","x","x",null,null,null,null,null,null,null,null,null,null,null,"",null,"","",null,null,null,null,null,null,null,null,null,null,null,null,null,null,null,null," "," "," "," ","",null,null,null,null,null," "," "," "," "," "," "," "," "," ",null,null,null,null," "," ","X","X","X","X",null,null,null,null,null,null,null,null,null,null,null,"X","X","X","X",null,null,null,null,"X",null,null,null,null,"x",null,null,null,null,null,null,null,null,null,null,null,"x","x",null,null,null,null,null,null,null,null,null,null,"x",null,null,null,null,null,null,null,null,null,null,"x",null,"x","x"," ",null,null,null,null,"x","x"]
[null,"SANTANDER","CALIFORNIA",68132,"Otros","x","x","x","x","x",null,null,"x","X","X",null,null,null,null,"x","x","x","x","x",null,null,null,null,null,null,null,null,null,null,null,"",null,"","",null,null,null,null,null,null,null,null,null,null,null,null,null,null,null,null," "," "," "," ","",null,null,null,null,null," "," "," "," ","X"," "," "," "," ",null,null,null,null," "," ","X","X","X","X",null,null,null,null,null,null,null,null,null,null,null,"X","X","X","X",null,null,null,null,"X",null,null,null,null,"x",null,null,null,null,null,null,null,null,null,null,null,"x","x",null,null,null,null,null,null,null,null,null,null,null,null,null,null,null,null,null,null,null,null,null,"x",null,"x","x"," "]
[null,"SANTANDER","CEPITA",68160,"Otros","x","x","x","x",null,null,null,null,"X","X",null,null,null,null,null,"x","x","x","x",null,null,null,null,null,null,null,null,null,null,null,"",null,"","",null,null,null,null,null,null,null,null,null,null,null,null,null,null,null,null," "," "," "," ","",null,null,null,null,null," "," "," "," "," "," "," "," "," ",null,null,null,null," "," ","X","X","X","X",null,null,null,null,null,null,null,null,null,null,null,"X","X","X","X",null,null,null,null,"X",null,null,null,null,"x",null,null,null,null,null,null,null,null,null,null,null,"x","x",null,null,null,null,null,null,null,null,null,null,null,null,null,null,null,null,null,null,null,null,null,"x",null,"x","x"," "]
[null,"SANTANDER","CHIMA",68176,"4","x","x","x","x","x","x","x","x","X","X","x",null,"x",null,"x","x","x","x","x",null,null,null,null,null,null,null,null,null,null,null,"",null,"","",null,null,null,null,null,null,null,null,null,null,null,null,null,null,null,null," "," "," "," ",null,null,null,null,null,null," "," "," "," "," "," "," "," "," ",null,null,null,null," "," ","X","X","X","X",null,null,null,null,null,null,null,null,null,null,null,"X","X","X","X",null,null,null,null,"X",null,null,null,null,"x",null,null,null,null,null,null,null,null,null,null,null,"x","x",null,null,null,null,null,null,null,null,null,null,"x",null,null,null,null,null,null,null,null,null,null,"x",null,"x","x"," ",null,null,null,null,"x","x"]
[null,"SANTANDER","CONTRATACION",68211,"4","x","x","x","x","x","x","x",null,"X","X","x",null,"x",null,null,"x","x","x","x",null,null,null,null,null,null,null,null,null,null,null,"",null,"","",null,null,null,null,null,null,null,null,null,null,null,null,null,null,null,null," "," "," "," ",null,null,null,null,null,null," "," "," "," ","X"," "," "," "," ",null,null,null,null," "," ","X","X","X","X",null,null,null,null,null,null,null,null,null,null,null,"X","X","X","X",null,null,null,null,"X",null,null,null,null,"x",null,null,null,null,null,null,null,null,null,null,null,"x","x",null,null,null,null,null,null,null,null,null,null,"x",null,null,null,null,null,null,null,null,null,null,"x",null,"x","x","x",null,null,null,null,"x","x"]
[null,"SANTANDER","CURITI",68229,"4","x","x","x","x","x","x","x","x","X","X","x",null,"x",null,"x","x","x","x","x",null,null,null,null,null,null,null,null,null,null,null,"",null,"","",null,null,null,null,null,null,null,null,null,null,null,null,null,null,null,null," "," "," "," ",null,null,null,null,null,null," "," "," "," ","X"," "," "," "," ",null,null,null,null," "," ","X","X","X","X",null,null,null,null,null,null,null,null,null,null,null,"X","X","X","X",null,null,null,null,"X",null,null,null,null,"x",null,null,null,null,null,null,null,null,null,null,null,"x","x",null,null,null,null,null,null,null,null,null,null,"x",null,null,null,null,null,null,null,null,null,null,"x",null,"x","x","x",null,null,null,null,"x","x"]
[null,"SANTANDER","EL PLAYON",68255,"Otros","x","x","x","x","x","x",null,"x","X","X",null,null,null,null,"x","x","x","x","x",null,null,null,null,null,null,null,null,null,null,null,"",null,"","",null,null,null,null,null,null,null,null,null,null,null,null,null,null,null,null," "," "," "," ","",null,null,null,null,null," "," "," "," ","X"," "," "," "," ",null,null,null,null," "," ","X","X","X","X",null,null,null,null,null,null,null,null,null,null,null,"X","X","X","X",null,null,null,null,"X",null,null,null,null,"x",null,null,null,null,null,null,null,null,null,null,null,"x","x",null,null,null,null,null,null,null,null,null,null,null,null,null,null,null,null,null,null,null,null,null,"x",null,"x","x","x"]
[null,"SANTANDER","FLORIAN",68271,"4","x","x","x","x","x",null,"x","x","X","X","x",null,"x",null,"x","x","x","x","x",null,null,null,null,null,null,null,null,null,null,null,"",null,"","",null,null,null,null,null,null,null,null,null,null,null,null,null,null,null,null," "," "," "," ",null,null,null,null,null,null," "," "," "," ","X"," "," "," "," ",null,null,null,null," "," ","X","X","X","X",null,null,null,null,null,null,null,null,null,null,null,"X","X","X","X",null,null,null,null,"X",null,null,null,null,"x",null,null,null,null,null,null,null,null,null,null,null,"x","x",null,null,null,null,null,null,null,null,null,null,"x",null,null,null,null,null,null,null,null,null,null,"x",null,"x","x","x",null,null,null,null,"x","x"]
[null,"SANTANDER","GIRON",68307,"1","x","x","x","x","x","x","x","x","X","X","x",null,"x",null,"x","x","x","x","x",null,null,null,null,null,null,null,"X","X",null,"X","X","X","X","X",null,null,null,null,null,null,null,null,null,null,null,null,null,null,null,null,"X","X","X","X","X","X",null,null,null,null,"X","X","X","X","X","X","X","X","X",null,null,null,null,"X","X","X","X","X","X",null,null,null,null,null,null,null,null,null,null,"X","X","X","X","X",null,null,null,null,"X",null,null,null,null,"x",null,null,null,null,null,null,null,null,null,null,null,"x","x",null,null,null,null,null,null,null,"x","x","x","x",null,null,"x",null,null,null,"x","x","x","x","x",null,"x","x","x",null,null,null,null,"x","x",null,null,null,null,null,null,null,null,null,null,null,null,null,null,null,null,null,null,null,null,null,null,null,null,"x","x","x","x"]
[null,"SANTANDER","GUACA",68318,"4","x","x","x","x","x",null,"x",null,"X","X","x",null,"x",null,null,"x","x","x","x",null,null,null,null,null,null,null,null,null,null,null,"",null,"","",null,null,null,null,null,null,null,null,null,null,null,null,null,null,null,null," "," "," "," ",null,null,null,null,null,null," "," "," "," ","X"," "," "," "," ",null,null,null,null," "," ","X","X","X","X",null,null,null,null,null,null,null,null,null,null,null,"X","X","X","X",null,null,null,null,"X",null,null,null,null,"x",null,null,null,null,null,null,null,null,null,null,null,"x","x",null,null,null,null,null,null,null,null,null,null,"x",null,null,null,null,null,null,null,null,null,null,"x",null,"x","x","x",null,null,null,null,"x","x"]
[null,"SANTANDER","GUAVATA",68324,"4","x","x","x","x","x","x","x",null,"X","X","x",null,"x",null,null,"x","x","x","x",null,null,null,null,null,null,null,null,null,null,null,"",null,"","",null,null,null,null,null,null,null,null,null,null,null,null,null,null,null,null," "," "," "," ",null,null,null,null,null,null," "," "," "," ","X"," "," "," "," ",null,null,null,null," "," ","X","X","X","X",null,null,null,null,null,null,null,null,null,null,null,"X","X","X","X",null,null,null,null,"X",null,null,null,null,"x",null,null,null,null,null,null,null,null,null,null,null,"x","x",null,null,null,null,null,null,null,null,null,null,"x",null,null,null,null,null,null,null,null,null,null,"x",null,"x","x","x",null,null,null,null,"x","x"]
[null,"SANTANDER","LA BELLEZA",68377,"4","x","x","x","x","x","x","x","x","X","X","x",null,"x",null,"x","x","x","x","x",null,null,null,null,null,null,null,null,null,null,null,"",null,"","",null,null,null,null,null,null,null,null,null,null,null,null,null,null,null,null," "," "," "," ",null,null,null,null,null,null," "," "," "," ","X"," "," "," "," ",null,null,null,null," "," ","X","X","X","X",null,null,null,null,null,null,null,null,null,null,null,"X","X","X","X",null,null,null,null,"X",null,null,null,null,"x",null,null,null,null,null,null,null,null,null,null,null,"x","x",null,null,null,null,null,null,null,null,null,null,"x",null,null,null,null,null,null,null,null,null,null,"x",null,"x","x","x",null,null,null,null,"x","x"]
[null,"SANTANDER","LEBRIJA",68406,"3","x","x","x","x","x","x","x","x","X","X","x",null,"x",null,"x","x","x","x","x",null,null,null,null,null,null,null,null,null,null,"X","",null,"X","X",null,null,null,null,null,null,null,null,null,null,null,null,null,null,null,null,"X","X","X","X","X",null,null,null,null,null,"X","X","X","X","X","X","X","X","X",null,null,null,null,"X","X","X","X","X","X",null,null,null,null,null,null,null,null,null,null,null,"X","X","X","X",null,null,null,null,"X",null,null,null,null,"x",null,null,null,null,null,null,null,null,null,null,null,"x","x",null,null,null,null,null,null,null,null,null,null,"x",null,null,null,null,null,null,null,null,null,null,"x",null,"x","x","x",null,null,null,null,"x","x"]
[null,"SANTANDER","MATANZA",68444,"4","x","x","x","x","x","x","x","x","X","X","x",null,"x",null,"x","x","x","x","x",null,null,null,null,null,null,null,null,null,null,null,"",null,"","",null,null,null,null,null,null,null,null,null,null,null,null,null,null,null,null," "," "," "," ",null,null,null,null,null,null," "," "," "," ","X"," "," "," "," ",null,null,null,null," "," ","X","X","X","X",null,null,null,null,null,null,null,null,null,null,null,"X","X","X","X",null,null,null,null,"X",null,null,null,null,"x",null,null,null,null,null,null,null,null,null,null,null,"x","x",null,null,null,null,null,null,null,null,null,null,"x",null,null,null,null,null,null,null,null,null,null,"x",null,"x","x","x",null,null,null,null,"x","x"]
[null,"SANTANDER","OCAMONTE",68498,"Otros","x","x","x","x","x",null,null,"x","X","X",null,null,null,null,"x","x","x","x","x",null,null,null,null,null,null,null,null,null,null,null,"",null,"","",null,null,null,null,null,null,null,null,null,null,null,null,null,null,null,null," "," "," "," ","",null,null,null,null,null," "," "," "," ","X"," "," "," "," ",null,null,null,null," "," ","X","X","X","X",null,null,null,null,null,null,null,null,null,null,null,"X","X","X","X",null,null,null,null,"X",null,null,null,null,"x",null,null,null,null,null,null,null,null,null,null,null,"x","x",null,null,null,null,null,null,null,null,null,null,null,null,null,null,null,null,null,null,null,null,null,"x",null,"x","x","x"]
[null,"SANTANDER","PALMAR",68522,"Otros","x","x","x","x","x",null,null,"x","X","X",null,null,null,null,"x","x","x","x","x",null,null,null,null,null,null,null,null,null,null,null,"",null,"","",null,null,null,null,null,null,null,null,null,null,null,null,null,null,null,null," "," "," "," ","",null,null,null,null,null," "," "," "," ","X"," "," "," "," ",null,null,null,null," "," ","X","X","X","X",null,null,null,null,null,null,null,null,null,null,null,"X","X","X","X",null,null,null,null,"X",null,null,null,null,"x",null,null,null,null,null,null,null,null,null,null,null,"x","x",null,null,null,null,null,null,null,null,null,null,null,null,null,null,null,null,null,null,null,null,null,"x",null,"x","x","x"]
[null,"SANTANDER","PARAMO",68533,"Otros","x","x","x","x","x",null,null,"x","X","X",null,null,null,null,"x","x","x","x","x",null,null,null,null,null,null,null,null,null,null,null,"",null,"","",null,null,null,null,null,null,null,null,null,null,null,null,null,null,null,null," "," "," "," ","",null,null,null,null,null," "," "," "," ","X"," "," "," "," ",null,null,null,null," "," ","X","X","X","X",null,null,null,null,null,null,null,null,null,null,null,"X","X","X","X",null,null,null,null,"X",null,null,null,null,"x",null,null,null,null,null,null,null,null,null,null,null,"x","x",null,null,null,null,null,null,null,null,null,null,null,null,null,null,null,null,null,null,null,null,null,"x",null,"x","x","x"]
[null,"SANTANDER","PUENTE NACIONAL",68572,"Otros","x","x","x","x","x","x",null,"x","X","X",null,null,null,null,"x","x","x","x","x",null,null,null,null,null,null,null,null,null,null,null,"",null,"","",null,null,null,null,null,null,null,null,null,null,null,null,null,null,null,null," "," "," "," ","",null,null,null,null,null," "," "," "," ","X"," "," "," "," ",null,null,null,null," "," ","X","X","X","X",null,null,null,null,null,null,null,null,null,null,null,"X","X","X","X",null,null,null,null,"X",null,null,null,null,"x",null,null,null,null,null,null,null,null,null,null,null,"x","x",null,null,null,null,null,null,null,"x","x","x","x",null,null,"x",null,null,null,"x","x","x","x","x",null,"x","x","x",null,null,null,null,"x","x"]
[null,"SANTANDER","RIONEGRO",68615,"4","x","x","x","x","x","x","x","x","X","X","x",null,"x",null,"x","x","x","x","x",null,null,null,null,null,null,null,"X","X",null,"X","X","X","X","X",null,null,null,null,null,null,null,null,null,null,null,null,null,null,null,null," "," "," "," ",null,null,null,null,null,null," "," "," "," ","X"," "," "," "," ",null,null,null,null," "," ","X","X","X","X",null,null,null,null,null,null,null,null,null,null,null,"X","X","X","X",null,null,null,null,"X",null,"x","x","x","x",null,null,null,null,null,"x","x","x","x","X","x","x","x","x",null,null,null,null,null,null,null,null,null,"x",null,null,null,null,null,null,null,null,null,null,"x",null,"x","x"," ",null,null,null,null,"x","x"]
[null,"SANTANDER","SAN JOAQUIN",68682,"Otros","x","x","x","x","x",null,null,"x","X","X",null,null,null,null,"x","x","x","x","x",null,null,null,null,null,null,null,null,null,null,null,"",null,"","",null,null,null,null,null,null,null,null,null,null,null,null,null,null,null,null," "," "," "," ","",null,null,null,null,null," "," "," "," "," "," "," "," "," ",null,null,null,null," "," ","X","X","X","X",null,null,null,null,null,null,null,null,null,null,null,"X","X","X","X",null,null,null,null,"X",null,null,null,null,"x",null,null,null,null,null,null,null,null,null,null,null,"x","x",null,null,null,null,null,null,null,null,null,null,null,null,null,null,null,null,null,null,null,null,null,"x",null,"x","x"," "]
[null,"SANTANDER","SAN VICENTE DE CHUCURI",68689,"3","x","x","x","x","x","x","x","x","X","X","x",null,"x",null,"x","x","x","x","x",null,null,null,null,null,null,null,"X","X",null,"X","X","X","X","X",null,null,null,null,null,null,null,null,null,null,null,null,null,null,null,null," "," "," "," ","",null,null,null,null,null," "," "," "," ","X"," "," "," "," ",null,null,null,null," "," ","X","X","X","X",null,null,null,null,null,null,null,null,null,null,null,"X","X","X","X",null,null,null,null,"X",null,null,null,null,"x",null,null,null,null,null,null,null,null,null,null,null,"x","x",null,null,null,null,null,null,null,null,null,null,"x",null,null,null,null,null,null,null,null,null,null,"x",null,"x","x","x",null,null,null,null,"x","x"]
[null,"SANTANDER","SOCORRO",68755,"3","x","x","x","x","x","x","x","x","X","X","x",null,"x",null,"x","x","x","x","x",null,null,null,null,null,null,null,"X","X",null,"X","X","X","X","X",null,null,null,null,null,null,null,null,null,null,null,null,null,null,null,null,"X","X","X","X","X",null,null,null,null,null,"X","X","X","X","X","X","X","X","X",null,null,null,null,"X","X","X","X","X","X",null,null,null,null,null,null,null,null,null,null,null,"X","X","X","X",null,null,null,null,"X",null,null,null,null,"x",null,null,null,null,null,null,null,null,null,null,null,"x","x",null,null,null,null,null,null,null,"x","x","x","x",null,null,"x",null,null,null,"x","x","x","x","x",null,"x","x","x",null,null,null,null,"x","x","x","x","x","x",null,null,null,null,null,"x","x","x","x"]
[null,"SANTANDER","SUCRE",68773,"4","x","x","x","x","x",null,"x",null,"X","X","x",null,"x",null,null,"x","x","x","x",null,null,null,null,null,null,null,null,null,null,null,"",null,"","",null,null,null,null,null,null,null,null,null,null,null,null,null,null,null,null," "," "," "," ",null,null,null,null,null,null," "," "," "," ","X"," "," "," "," ",null,null,null,null," "," ","X","X","X","X",null,null,null,null,null,null,null,null,null,null,null,"X","X","X","X",null,null,null,null,"X",null,null,null,null,"x",null,null,null,null,null,null,null,null,null,null,null,"x","x",null,null,null,null,null,null,null,null,null,null,"x",null,null,null,null,null,null,null,null,null,null,"x",null,"x","x"," ",null,null,null,null,"x","x"]
[null,"SANTANDER","VETAS",68867,"4","x","x","x","x","x","x","x",null,"X","X","x",null,"x",null,null,"x","x","x","x",null,null,null,null,null,null,null,null,null,null,null,"",null,"","",null,null,null,null,null,null,null,null,null,null,null,null,null,null,null,null," "," "," "," ",null,null,null,null,null,null," "," "," "," ","X"," "," "," "," ",null,null,null,null," "," ","X","X","X","X",null,null,null,null,null,null,null,null,null,null,null,"X","X","X","X",null,null,null,null,"X",null,null,null,null,"x",null,null,null,null,null,null,null,null,null,null,null,"x","x",null,null,null,null,null,null,null,null,null,null,"x",null,null,null,null,null,null,null,null,null,null,"x",null,"x","x","x",null,null,null,null,"x","x"]
[null,"SANTANDER","VILLANUEVA",68872,"4","x","x","x","x","x","x","x","x","X","X","x",null,"x",null,"x","x","x","x","x",null,null,null,null,null,null,null,null,null,null,null,"",null,"","",null,null,null,null,null,null,null,null,null,null,null,null,null,null,null,null," "," "," "," ",null,null,null,null,null,null," "," "," "," ","X"," "," "," "," ",null,null,null,null," "," ","X","X","X","X",null,null,null,null,null,null,null,null,null,null,null,"X","X","X","X",null,null,null,null,"X",null,null,null,null,"x",null,null,null,null,null,null,null,null,null,null,null,"x","x",null,null,null,null,null,null,null,null,null,null,"x",null,null,null,null,null,null,null,null,null,null,"x",null,"x","x"," ",null,null,null,null,"x","x"]
[null,"SUCRE","BUENAVISTA",70110,"4","x","x","x","x","x",null,"x","x","X","X","x",null,"x",null,"x","x","x","x","x",null,null,null,null,null,null,null,null,null,null,null,"",null,"","",null,null,null,null,null,null,null,null,null,null,null,null,null,null,null,null," "," "," "," ",null,null,null,null,null,null," "," "," "," ","X"," "," "," "," ",null,null,null,null," "," ","X","X","X","X",null,null,null,null,null,null,null,null,null,null,null,"X","X","X","X",null,null,null,null,"X",null,null,null,null,"x",null,null,null,null,null,null,null,null,null,null,null,"x","x",null,null,null,null,null,null,null,null,null,null,"x",null,null,null,null,null,null,null,null,null,null,"x",null,"x","x","x",null,null,null,null,"x","x",null,null,null,null,null,null,null,null,null,null,null,null,null,"x"]
[null,"SUCRE","COVEÑAS",70221,"Otros","x","x","x","x","x",null,null,"x","X","X",null,null,null,null,"x","x","x","x","x",null,null,null,null,null,null,null,null,null,null,"X","",null,"X","X",null,null,null,null,null,null,null,null,null,null,null,null,null,null,null,null,"X","X","X","X","X","X",null,null,null,null,"X","X","X","X","X","X","X","X","X",null,null,null,null,"X","X","X","X","X","X",null,null,null,null,null,null,null,null,null,null,null,"X","X","X","X",null,null,null,null,"X",null,null,null,null,"x",null,null,null,null,null,null,null,null,null,"X",null,"x","x",null,null,null,null,null,null,null,null,null,null,null,null,null,null,null,null,null,null,null,null,null,"x",null,"x","x","x",null,null,null,null,null,null,"x","x"]
[null,"SUCRE","GUARANDA",70265,"4","x","x","x","x","x","x","x","x","X","X","x",null,"x",null,"x","x","x","x","x",null,null,null,null,null,null,null,null,null,null,null,"",null,"","",null,null,null,null,null,null,null,null,null,null,null,null,null,null,null,null," "," "," "," ",null,null,null,null,null,null," "," "," "," ","X"," "," "," "," ",null,null,null,null," "," ","X","X","X","X",null,null,null,null,null,null,null,null,null,null,null,"X","X","X","X",null,null,null,null,"X",null,null,null,null,"x",null,null,null,null,null,null,null,null,null,null,null,"x","x",null,null,null,null,null,null,null,null,null,null,"x",null,null,null,null,null,null,null,null,null,null,"x",null,"x","x","x",null,null,null,null,"x","x"]
[null,"SUCRE","MAJAGUAL",70429,"4","x","x","x","x","x","x","x","x","X","X","x",null,"x",null,"x","x","x","x","x",null,null,null,null,null,null,null,null,null,null,null,"",null,"","",null,null,null,null,null,null,null,null,null,null,null,null,null,null,null,null," "," "," "," ",null,null,null,null,null,null," "," "," "," ","X"," "," "," "," ",null,null,null,null," "," ","X","X","X","X",null,null,null,null,null,null,null,null,null,null,null,"X","X","X","X",null,null,null,null,"X",null,null,null,null,"x",null,null,null,null,null,null,null,null,null,null,null,"x","x",null,null,null,null,null,null,null,null,null,null,"x",null,null,null,null,null,null,null,null,null,null,"x",null,"x","x","x",null,null,null,null,"x","x"]
[null,"SUCRE","SAMPUES",70670,"4","x","x","x","x","x","x","x","x","X","X","x",null,"x",null,"x","x","x","x","x",null,null,null,null,null,null,null,null,null,null,null,"",null,"","",null,null,null,null,null,null,null,null,null,null,null,null,null,null,null,null," "," "," "," ",null,null,null,null,null,null," "," "," "," ","X"," "," "," "," ",null,null,null,null," "," ","X","X","X","X",null,null,null,null,null,null,null,null,null,null,null,"X","X","X","X",null,null,null,null,"X",null,null,null,null,"x",null,null,null,null,null,null,null,null,null,null,null,"x","x",null,null,null,null,null,null,null,null,null,null,"x",null,null,null,null,null,null,null,null,null,null,"x",null,"x","x","x",null,null,null,null,"x","x",null,null,null,null,null,null,null,null,null,null,null,null,null,"x"]
[null,"SUCRE","SAN JUAN DE BETULIA",70702,"Otros","x","x","x","x","x",null,null,"x","X","X",null,null,null,null,"x","x","x","x","x",null,null,null,null,null,null,null,null,null,null,null,"",null,"","",null,null,null,null,null,null,null,null,null,null,null,null,null,null,null,null," "," "," "," ","",null,null,null,null,null," "," "," "," ","X"," "," "," "," ",null,null,null,null," "," ","X","X","X","X",null,null,null,null,null,null,null,null,null,null,null,"X","X","X","X",null,null,null,null,"X",null,null,null,null,"x",null,null,null,null,null,null,null,null,null,null,null,"x","x",null,null,null,null,null,null,null,null,null,null,null,null,null,null,null,null,null,null,null,null,null,"x",null,"x","x","x"]
[null,"SUCRE","SUCRE",70771,"4","x","x","x","x","x","x","x",null,"X","X","x",null,"x",null,null,"x","x","x","x",null,null,null,null,null,null,null,null,null,null,null,"",null,"","",null,null,null,null,null,null,null,null,null,null,null,null,null,null,null,null," "," "," "," ",null,null,null,null,null,null," "," "," "," ","X"," "," "," "," ",null,null,null,null," "," ","X","X","X","X",null,null,null,null,null,null,null,null,null,null,null,"X","X","X","X",null,null,null,null,"X",null,null,null,null,"x",null,null,null,null,null,null,null,null,null,null,null,"x","x",null,null,null,null,null,null,null,null,null,null,"x",null,null,null,null,null,null,null,null,null,null,"x",null,"x","x"," ",null,null,null,null,"x","x"]
[null,"SUCRE","SANTIAGO DE TOLU",70820,"3","x","x","x","x","x","x","x","x","X","X","x",null,"x",null,"x","x","x","x","x",null,null,null,null,null,null,null,null,null,null,"X","X",null,"X","X",null,null,null,null,null,null,null,null,null,null,null,null,null,null,null,null,"X","X","X","X","X",null,null,null,null,null,"X","X","X","X","X","X","X","X","X",null,null,null,null,"X","X","X","X","X","X",null,null,null,null,null,null,null,null,null,null,null,"X","X","X","X",null,null,null,null,"X",null,null,null,null,"x",null,null,null,null,null,null,null,null,null,"X",null,"x","x",null,null,null,null,null,null,null,null,null,null,null,null,null,null,null,null,null,null,null,null,null,"x",null,"x","x"," ",null,null,null,null,null,null,null,null,null,null,null,null,null,null,null,null,null,null,null,"x"]
[null,"TOLIMA","ALPUJARRA",73024,"4","x","x","x","x","x","x","x","x","X","X","x",null,"x",null,"x","x","x","x","x",null,null,null,null,null,null,null,null,null,null,"X","",null,"X","X",null,null,null,null,null,null,null,null,null,null,null,null,null,null,null,null," "," "," "," ",null,null,null,null,null,null," "," "," "," ","X"," "," "," "," ",null,null,null,null," "," ","X","X","X","X",null,null,null,null,null,null,null,null,null,null,null,"X","X","X","X",null,null,null,null,"X",null,null,null,null,"x",null,null,null,null,null,null,null,null,null,null,null,"x","x",null,null,null,null,null,null,null,null,null,null,"x",null,null,null,null,null,null,null,null,null,null,"x",null,"x","x","x",null,null,null,null,"x","x"]
[null,"TOLIMA","ARMERO",73055,"4","x","x","x","x","x","x","x","x","X","X","x",null,"x",null,"x","x","x","x","x",null,null,null,null,null,null,null,null,null,null,"X","",null,"X","X",null,null,null,null,null,null,null,null,null,null,null,null,null,null,null,null," "," "," "," ",null,null,null,null,null,null," "," "," "," ","X"," "," "," "," ",null,null,null,null," "," ","X","X","X","X",null,null,null,null,null,null,null,null,null,null,null,"X","X","X","X",null,null,null,null,"X",null,null,null,null,"x",null,null,null,null,null,null,null,null,null,null,null,"x","x",null,null,null,null,null,null,null,null,null,null,"x",null,null,null,null,null,null,null,null,null,null,"x",null,"x","x"," ",null,null,null,null,"x","x"]
[null,"TOLIMA","CASABIANCA",73152,"4","x","x","x","x","x","x","x","x","X","X","x",null,"x",null,"x","x","x","x","x",null,null,null,null,null,null,null,null,null,null,"X","",null,"X","X",null,null,null,null,null,null,null,null,null,null,null,null,null,null,null,null," "," "," "," ",null,null,null,null,null,null," "," "," "," ","X"," "," "," "," ",null,null,null,null," "," ","X","X","X","X",null,null,null,null,null,null,null,null,null,null,null,"X","X","X","X",null,null,null,null,"X",null,null,null,null,"x",null,null,null,null,null,null,null,null,null,null,null,"x","x",null,null,null,null,null,null,null,null,null,null,"x",null,null,null,null,null,null,null,null,null,null,"x",null,"x","x","x",null,null,null,null,"x","x"]
[null,"TOLIMA","COYAIMA",73217,"4","x","x","x","x","x","x","x","x","X","X","x",null,"x",null,"x","x","x","x","x",null,null,null,null,null,null,null,null,null,null,"X","",null,"X","X",null,null,null,null,null,null,null,null,null,null,null,null,null,null,null,null," "," "," "," ",null,null,null,null,null,null," "," "," "," ","X"," "," "," "," ",null,null,null,null," "," ","X","X","X","X",null,null,null,null,null,null,null,null,null,null,null,"X","X","X","X",null,null,null,null,"X",null,null,null,null,"x",null,null,null,null,null,null,null,null,null,null,null,"x","x",null,null,null,null,null,null,null,null,null,null,"x",null,null,null,null,null,null,null,null,null,null,"x",null,"x","x","x",null,null,null,null,"x","x"]
[null,"TOLIMA","DOLORES",73236,"4","x","x","x","x","x","x","x","x","X","X","x",null,"x",null,"x","x","x","x","x",null,null,null,null,null,null,null,null,null,null,"X","",null,"X","X",null,null,null,null,null,null,null,null,null,null,null,null,null,null,null,null," "," "," "," ",null,null,null,null,null,null," "," "," "," ","X"," "," "," "," ",null,null,null,null," "," ","X","X","X","X",null,null,null,null,null,null,null,null,null,null,null,"X","X","X","X",null,null,null,null,"X",null,null,null,null,"x",null,null,null,null,null,null,null,null,null,null,null,"x","x",null,null,null,null,null,null,null,null,null,null,"x",null,null,null,null,null,null,null,null,null,null,"x",null,"x","x","x",null,null,null,null,"x","x"]
[null,"TOLIMA","HERVEO",73347,"4","x","x","x","x","x","x","x",null,"X","X","x",null,"x",null,null,"x","x","x","x",null,null,null,null,null,null,null,null,null,null,"X","",null,"X","X",null,null,null,null,null,null,null,null,null,null,null,null,null,null,null,null," "," "," "," ",null,null,null,null,null,null," "," "," "," ","X"," "," "," "," ",null,null,null,null," "," ","X","X","X","X",null,null,null,null,null,null,null,null,null,null,null,"X","X","X","X",null,null,null,null,"X",null,null,null,null,"x",null,null,null,null,null,null,null,null,null,null,null,"x","x",null,null,null,null,null,null,null,null,null,null,"x",null,null,null,null,null,null,null,null,null,null,"x",null,"x","x","x",null,null,null,null,"x","x"]
[null,"TOLIMA","LERIDA",73408,"Otros","x","x","x","x","x","x","x","x","X","X","x",null,"x",null,"x","x","x","x","x",null,null,null,null,null,null,null,null,null,null,"X","",null,"X","X",null,null,null,null,null,null,null,null,null,null,null,null,null,null,null,null," "," "," "," ","",null,null,null,null,null," "," "," "," ","X"," "," "," "," ",null,null,null,null," "," ","X","X","X","X",null,null,null,null,null,null,null,null,null,null,"X","X","X","X","X",null,null,null,null,"X",null,null,null,null,"x",null,null,null,null,null,null,null,null,null,null,null,"x","x",null,null,null,null,null,null,null,null,null,null,"x",null,null,null,null,null,null,null,null,null,null,"x",null,"x","x","x",null,null,null,null,"x","x"]
[null,"TOLIMA","LIBANO",73411,"3","x","x","x","x","x","x","x","x","X","X","x",null,"x",null,"x","x","x","x","x",null,null,null,null,null,null,null,"X","X",null,"X","X","X","X","X",null,null,null,null,null,null,null,null,null,null,null,null,null,null,null,null,"X","X","X","X","X",null,null,null,null,null,"X","X","X","X","X","X","X","X","X",null,null,null,null,"X","X","X","X","X","X",null,null,null,null,null,null,null,null,null,null,null,"X","X","X","X",null,null,null,null,"X",null,null,null,null,"x",null,null,null,null,null,null,null,null,null,"X",null,"x","x",null,null,null,null,null,null,null,null,null,null,"x",null,null,null,null,null,null,null,null,null,null,"x",null,"x","x","x",null,null,null,null,"x","x"]
[null,"TOLIMA","MURILLO",73461,"4","x","x","x","x","x","x","x",null,"X","X","x",null,"x",null,null,"x","x","x","x",null,null,null,null,null,null,null,null,null,null,"X","",null,"X","X",null,null,null,null,null,null,null,null,null,null,null,null,null,null,null,null," "," "," "," ",null,null,null,null,null,null," "," "," "," ","X"," "," "," "," ",null,null,null,null," "," ","X","X","X","X",null,null,null,null,null,null,null,null,null,null,null,"X","X","X","X",null,null,null,null,"X",null,null,null,null,"x",null,null,null,null,null,null,null,null,null,null,null,"x","x",null,null,null,null,null,null,null,null,null,null,"x",null,null,null,null,null,null,null,null,null,null,"x",null,"x","x"," ",null,null,null,null,"x","x"]
[null,"TOLIMA","PLANADAS",73555,"3","x","x","x","x","x","x","x","x","X","X","x",null,"x",null,"x","x","x","x","x",null,null,null,null,null,null,null,null,null,null,"X","",null,"X","X",null,null,null,null,null,null,null,null,null,null,null,null,null,null,null,null," "," "," "," ","",null,null,null,null,null," "," "," "," ","X"," "," "," "," ",null,null,null,null," "," ","X","X","X","X",null,null,null,null,null,null,null,null,null,null,null,"X","X","X","X",null,null,null,null,"X",null,null,null,null,"x",null,null,null,null,null,null,null,null,null,null,null,"x","x",null,null,null,null,null,null,null,null,null,null,"x",null,null,null,null,null,null,null,null,null,null,"x",null,"x","x","x",null,null,null,null,"x","x"]
[null,"TOLIMA","RIOBLANCO",73616,"4","x","x","x","x","x","x","x","x","X","X","x",null,"x",null,"x","x","x","x","x",null,null,null,null,null,null,null,null,null,null,"X","",null,"X","X",null,null,null,null,null,null,null,null,null,null,null,null,null,null,null,null," "," "," "," ",null,null,null,null,null,null," "," "," "," ","X"," "," "," "," ",null,null,null,null," "," ","X","X","X","X",null,null,null,null,null,null,null,null,null,null,null,"X","X","X","X",null,null,null,null,"X",null,null,null,null,"x",null,null,null,null,null,null,null,null,null,null,null,"x","x",null,null,null,null,null,null,null,null,null,null,"x",null,null,null,null,null,null,null,null,null,null,"x",null,"x","x","x",null,null,null,null,"x","x"]
[null,"TOLIMA","SALDAÑA",73671,"3","x","x","x","x","x","x","x","x","X","X","x",null,"x",null,"x","x","x","x","x",null,null,null,null,null,null,null,null,null,null,"X","",null,"X","X",null,null,null,null,null,null,null,null,null,null,null,null,null,null,null,null,"X","X","X","X","X",null,null,null,null,null,"X","X","X","X","X","X","X","X","X",null,null,null,null,"X","X","X","X","X","X",null,null,null,null,null,null,null,null,null,null,null,"X","X","X","X",null,null,null,null,"X",null,null,null,null,"x",null,null,null,null,null,null,null,null,null,null,null,"x","x",null,null,null,null,null,null,null,null,null,null,"x",null,null,null,null,null,null,null,null,null,null,"x",null,"x","x","x",null,null,null,null,"x","x"]
[null,"TOLIMA","SAN LUIS",73678,"4","x","x","x","x","x","x","x","x","X","X","x",null,"x",null,"x","x","x","x","x",null,null,null,null,null,null,null,null,null,null,"X","",null,"X","X",null,null,null,null,null,null,null,null,null,null,null,null,null,null,null,null," "," "," "," ",null,null,null,null,null,null," "," "," "," ","X"," "," "," "," ",null,null,null,null," "," ","X","X","X","X",null,null,null,null,null,null,null,null,null,null,null,"X","X","X","X",null,null,null,null,"X",null,null,null,null,"x",null,null,null,null,null,null,null,null,null,null,null,"x","x",null,null,null,null,null,null,null,null,null,null,"x",null,null,null,null,null,null,null,null,null,null,"x",null,"x","x"," ",null,null,null,null,"x","x"]
[null,"TOLIMA","VILLARRICA",73873,"4","x","x","x","x","x","x","x","x","X","X","x",null,"x",null,"x","x","x","x","x",null,null,null,null,null,null,null,null,null,null,"X","",null,"X","X",null,null,null,null,null,null,null,null,null,null,null,null,null,null,null,null," "," "," "," ",null,null,null,null,null,null," "," "," "," ","X"," "," "," "," ",null,null,null,null," "," ","X","X","X","X",null,null,null,null,null,null,null,null,null,null,null,"X","X","X","X",null,null,null,null,"X",null,null,null,null,"x",null,null,null,null,null,null,null,null,null,null,null,"x","x",null,null,null,null,null,null,null,null,null,null,"x",null,null,null,null,null,null,null,null,null,null,"x",null,"x","x"," ",null,null,null,null,"x","x"]
[null,"VALLE DEL CAUCA","ANDALUCIA",76036,"Otros","x","x","x","x","x",null,null,"x","X","X",null,null,null,null,"x","x","x","x","x",null,null,null,null,null,null,null,null,null,null,null,"",null,"","",null,null,null,null,null,null,null,null,null,null,null,null,null,null,null,null," "," "," "," ","X","X",null,null,null,null," "," "," "," ","X"," "," "," "," ",null,null,null,null," "," ","X","X","X","X",null,null,null,null,null,null,null,null,null,null,null,"X","X","X","X",null,null,null,null,"X",null,null,null,null,"x",null,null,null,null,null,null,null,null,null,null,null,"x","x",null,null,null,null,null,null,null,null,null,null,"x",null,null,null,null,null,null,null,null,null,null,"x",null,"x","x","x",null,null,null,null,"x","x",null,null,null,null,null,null,null,null,null,null,null,null,null,null,null,null,null,null,null,null,null,null,null,null,"x","x","x","x"]
[null,"VALLE DEL CAUCA","ANSERMANUEVO",76041,"4","x","x","x","x","x","x","x","x","X","X","x",null,"x",null,"x","x","x","x","x",null,null,null,null,null,null,null,null,null,null,null,"",null,"","",null,null,null,null,null,null,null,null,null,null,null,null,null,null,null,null," "," "," "," ",null,null,null,null,null,null," "," "," "," ","X"," "," "," "," ",null,null,null,null," "," ","X","X","X","X",null,null,null,null,null,null,null,null,null,null,null,"X","X","X","X",null,null,null,null,"X",null,null,null,null,"x",null,null,null,null,null,null,null,null,null,null,null,"x","x",null,null,null,null,null,null,null,null,null,null,"x",null,null,null,null,null,null,null,null,null,null,"x",null,"x","x","x",null,null,null,null,"x","x"]
[null,"VALLE DEL CAUCA","BUENAVENTURA",76109,"1","x","x","x","x","x","x","x","x","X","X","x",null,"x",null,"x","x","x","x","x",null,null,null,null,null,null,null,"X","X",null,"X","X","X","X","X",null,null,null,null,null,null,null,null,null,null,null,null,null,null,null,null,"X","X","X","X","X","X",null,null,null,null,"X","X","X","X","X","X","X","X","X",null,null,null,null,"X","X","X","X","X","X",null,null,null,null,null,null,null,null,null,null,"X","X","X","X","X",null,null,null,null,"X",null,"x","x","x","x",null,null,null,null,null,"x","x","x","x","X","x","x","x","x",null,null,null,null,null,null,"x","x","x","x",null,null,"x",null,null,null,"x","x","x","x","x",null,"x","x","x",null,null,null,null,"x","x","x","x","x","x",null,null,null,null,null,"x","x","x","x",null,null,null,null,null,null,null,null,null,null,null,"x","x","x","x"]
[null,"VALLE DEL CAUCA","CANDELARIA",76130,"2","x","x","x","x","x","x","x","x","X","X","x",null,"x",null,"x","x","x","x","x",null,null,null,null,null,null,null,null,null,null,"X","X",null,"X","X",null,null,null,null,null,null,null,null,null,null,null,null,null,null,null,null," "," "," "," ","X","X",null,null,null,null," "," "," "," ","X"," "," "," "," ",null,null,null,null," "," ","X","X","X","X",null,null,null,null,null,null,null,null,null,null,null,"X","X","X","X",null,null,null,null,"X",null,null,null,null,"x",null,null,null,null,null,null,null,null,null,null,null,"x","x",null,null,null,null,null,null,null,null,null,null,"x",null,null,null,null,null,null,null,null,null,null,"x",null,"x","x"," ",null,null,null,null,"x","x","x","x"]
[null,"VALLE DEL CAUCA","EL AGUILA",76243,"4","x","x","x","x","x","x","x","x","X","X","x",null,"x",null,"x","x","x","x","x",null,null,null,null,null,null,null,null,null,null,null,"",null,"","",null,null,null,null,null,null,null,null,null,null,null,null,null,null,null,null," "," "," "," ",null,null,null,null,null,null," "," "," "," ","X"," "," "," "," ",null,null,null,null," "," ","X","X","X","X",null,null,null,null,null,null,null,null,null,null,null,"X","X","X","X",null,null,null,null,"X",null,null,null,null,"x",null,null,null,null,null,null,null,null,null,null,null,"x","x",null,null,null,null,null,null,null,null,null,null,"x",null,null,null,null,null,null,null,null,null,null,"x",null,"x","x","x",null,null,null,null,"x","x"]
[null,"VALLE DEL CAUCA","GINEBRA",76306,"Otros","x","x","x","x","x",null,null,"x","X","X",null,null,null,null,"x","x","x","x","x",null,null,null,null,null,null,null,null,null,null,"X","X",null,"X","X",null,null,null,null,null,null,null,null,null,null,null,null,null,null,null,null," "," "," "," ","X","X",null,null,null,null," "," "," "," ","X"," "," "," "," ",null,null,null,null," "," ","X","X","X","X",null,null,null,null,null,null,null,null,null,null,null,"X","X","X","X",null,null,null,null,"X",null,null,null,null,"x",null,null,null,null,null,null,null,null,null,null,null,"x","x",null,null,null,null,null,null,null,null,null,null,"x",null,null,null,null,null,null,null,null,null,null,"x",null,"x","x","x",null,null,null,null,"x","x"]
[null,"VALLE DEL CAUCA","LA CUMBRE",76377,"4","x","x","x","x","x","x","x",null,"X","X","x",null,"x",null,null,"x","x","x","x",null,null,null,null,null,null,null,null,null,null,null,"",null,"","",null,null,null,null,null,null,null,null,null,null,null,null,null,null,null,null," "," "," "," ",null,null,null,null,null,null," "," "," "," ","X"," "," "," "," ",null,null,null,null," "," ","X","X","X","X",null,null,null,null,null,null,null,null,null,null,null,"X","X","X","X",null,null,null,null,"X",null,null,null,null,"x",null,null,null,null,null,null,null,null,null,null,null,"x","x",null,null,null,null,null,null,null,null,null,null,"x",null,null,null,null,null,null,null,null,null,null,"x",null,"x","x","x",null,null,null,null,"x","x"]
[null,"VALLE DEL CAUCA","OBANDO",76497,"Otros","x","x","x","x","x",null,null,"x","X","X",null,null,null,null,"x","x","x","x","x",null,null,null,null,null,null,null,"X","X",null,"X","X","X","X","X",null,null,null,null,null,null,null,null,null,null,null,null,null,null,null,null," "," "," "," ","",null,null,null,null,null," "," "," "," ","X"," "," "," "," ",null,null,null,null," "," ","X","X","X","X",null,null,null,null,null,null,null,null,null,null,null,"X","X","X","X",null,null,null,null,"X",null,null,null,null,"x",null,null,null,null,null,null,null,null,null,null,null,"x","x",null,null,null,null,null,null,null,null,null,null,"x",null,null,null,null,null,null,null,null,null,null,"x",null,"x","x","x",null,null,null,null,"x","x"]
[null,"VALLE DEL CAUCA","PALMIRA",76520,"1","x","x","x","x","x","x","x","x","X","X","x",null,"x",null,"x","x","x","x","x",null,null,null,null,null,null,null,"X","X",null,"X","X","X","X","X",null,null,null,null,null,null,null,null,null,null,null,null,null,null,null,null,"X","X","X","X","X","X",null,null,null,null,"X","X","X","X","X","X","X","X","X",null,null,null,null,"X","X","X","X","X","X",null,null,null,null,null,null,null,null,null,null,"X","X","X","X","X",null,null,null,null,"X",null,"x","x","x","x",null,null,null,null,null,"x","x","x","x","X","x","x","x","x",null,null,null,null,null,null,"x","x","x","x",null,null,"x",null,null,null,"x","x","x","x","x",null,"x","x","x",null,null,null,null,"x","x","x","x","x","x",null,null,null,null,null,"x","x","x","x",null,null,null,null,null,null,null,null,null,null,null,"x","x","x","x"]
[null,"VALLE DEL CAUCA","SEVILLA",76736,"3","x","x","x","x","x","x","x","x","X","X","x",null,"x",null,"x","x","x","x","x",null,null,null,null,null,null,null,"X","X",null,null,null,"X","","",null,null,null,null,null,null,null,null,null,null,null,null,null,null,null,null,"X","X","X","X","X",null,null,null,null,null,"X","X","X","X","X","X","X","X","X",null,null,null,null,"X","X","X","X","X","X",null,null,null,null,null,null,null,null,null,null,null,"X","X","X","X",null,null,null,null,"X",null,null,null,null,"x",null,null,null,null,null,null,null,null,null,null,null,"x","x",null,null,null,null,null,null,null,null,null,null,"x",null,null,null,null,null,null,null,null,null,null,"x",null,"x","x","x",null,null,null,null,"x","x"]
[null,"VALLE DEL CAUCA","TORO",76823,"4","x","x","x","x","x","x","x","x","X","X","x",null,"x",null,"x","x","x","x","x",null,null,null,null,null,null,null,null,null,null,null,"",null,"","",null,null,null,null,null,null,null,null,null,null,null,null,null,null,null,null," "," "," "," ",null,null,null,null,null,null," "," "," "," ","X"," "," "," "," ",null,null,null,null," "," ","X","X","X","X",null,null,null,null,null,null,null,null,null,null,null,"X","X","X","X",null,null,null,null,"X",null,null,null,null,"x",null,null,null,null,null,null,null,null,null,null,null,"x","x",null,null,null,null,null,null,null,null,null,null,"x",null,null,null,null,null,null,null,null,null,null,"x",null,"x","x","x",null,null,null,null,"x","x"]
[null,"VALLE DEL CAUCA","VERSALLES",76863,"Otros","x","x","x","x","x",null,null,"x","X","X",null,null,null,null,"x","x","x","x","x",null,null,null,null,null,null,null,"X","X",null,"X","X","X","X","X",null,null,null,null,null,null,null,null,null,null,null,null,null,null,null,null," "," "," "," ","",null,null,null,null,null," "," "," "," ","X"," "," "," "," ",null,null,null,null," "," ","X","X","X","X",null,null,null,null,null,null,null,null,null,null,null,"X","X","X","X",null,null,null,null,"X",null,null,null,null,"x",null,null,null,null,null,null,null,null,null,null,null,"x","x",null,null,null,null,null,null,null,null,null,null,"x",null,null,null,null,null,null,null,null,null,null,"x",null,"x","x","x",null,null,null,null,"x","x"]
[null,"VALLE DEL CAUCA","YUMBO",76892,"Otros","x","x","x","x","x","x",null,"x","X","X",null,null,null,null,"x","x","x","x","x",null,null,null,null,null,null,null,"X","X",null,"X","X","X","X","X",null,null,null,null,null,null,null,null,null,null,null,null,null,null,null,null,"X","X","X","X","X","X",null,null,null,null,"X","X","X","X","X","X","X","X","X",null,null,null,null,"X","X","X","X","X","X",null,null,null,null,null,null,null,null,null,null,"X","X","X","X","X",null,null,null,null,"X",null,"x","x","x","x",null,null,null,null,null,"x","x","x","x","X","x","x","x","x",null,null,null,null,null,null,"x","x","x","x",null,null,"x",null,null,null,"x","x","x","x","x",null,"x","x","x",null,null,null,null,"x","x","x","x","x","x",null,null,null,null,null,"x","x","x","x",null,null,null,null,null,null,null,null,null,null,null,"x","x","x","x"]
[null,"ARAUCA","FORTUL",81300,"4","x","x","x","x","x","x","x","x","X","X","x",null,"x",null,"x","x","x","x","x",null,null,null,null,null,null,null,null,null,null,null,"",null,"","",null,null,null,null,null,null,null,null,null,null,null,null,null,null,null,null," "," "," "," ",null,null,null,null,null,null," "," "," "," ","X"," "," "," "," ",null,null,null,null," "," ","X","X","X","X",null,null,null,null,null,null,null,null,null,null,null,"X","X","X","X",null,null,null,null,"X",null,null,null,null,"x",null,null,null,null,null,null,null,null,null,null,null,"x","x",null,null,null,null,null,null,null,null,null,null,"x",null,null,null,null,null,null,null,null,null,null,"x",null,"x","x","x",null,null,null,null,"x","x"]
[null,"ARAUCA","TAME",81794,"3","x","x","x","x","x","x","x","x","X","X","x",null,"x",null,"x","x","x","x","x",null,null,null,null,null,null,null,"X","X",null,"X","X","X","X","X",null,null,null,null,null,null,null,null,null,null,null,null,null,null,null,null," "," "," "," ","",null,null,null,null,null," "," "," "," ","X"," "," "," "," ",null,null,null,null," "," ","X","X","X","X",null,null,null,null,null,null,null,null,null,null,null,"X","X","X","X",null,null,null,null,"X",null,null,null,null,"x",null,null,null,null,null,null,null,null,null,null,null,"x","x",null,null,null,null,null,null,null,null,null,null,"x",null,null,null,null,null,null,null,null,null,null,"x",null,"x","x","x",null,null,null,null,"x","x"]
[null,"CASANARE","CHAMEZA",85015,"Otros","x","x","x","x","x",null,null,"x","X","X",null,null,null,null,"x","x","x","x","x",null,null,null,null,null,null,null,null,null,null,"X","",null,"X","X",null,null,null,null,null,null,null,null,null,null,null,null,null,null,null,null," "," "," "," ","",null,null,null,null,null," "," "," "," ","X"," "," "," "," ",null,null,null,null," "," ","X","X","X","X",null,null,null,null,null,null,null,null,null,null,null,"X","X","X","X",null,null,null,null,"X",null,null,null,null,"x",null,null,null,null,null,null,null,null,null,null,null,"x","x",null,null,null,null,null,null,null,null,null,null,null,null,null,null,null,null,null,null,null,null,null,"x",null,"x","x","x"]
[null,"CASANARE","MANI",85139,"2","x","x","x","x","x","x","x","x","X","X","x",null,"x",null,"x","x","x","x","x",null,null,null,null,null,null,null,null,null,null,"X","",null,"X","X",null,null,null,null,null,null,null,null,null,null,null,null,null,null,null,null,"X","X","X","X","X","X",null,null,null,null,"X","X","X","X","X","X","X","X","X",null,null,null,null,"X","X","X","X","X","X",null,null,null,null,null,null,null,null,null,null,null,"X","X","X","X",null,null,null,null,"X",null,null,null,null,"x",null,null,null,null,null,null,null,null,null,null,null,"x","x",null,null,null,null,null,null,null,null,null,null,"x",null,null,null,null,null,null,null,null,null,null,"x",null,"x","x","x",null,null,null,null,"x","x","x","x"]
[null,"CASANARE","NUNCHIA",85225,"4","x","x","x","x","x","x","x","x","X","X","x",null,"x",null,"x","x","x","x","x",null,null,null,null,null,null,null,null,null,null,"X","",null,"X","X",null,null,null,null,null,null,null,null,null,null,null,null,null,null,null,null," "," "," "," ",null,null,null,null,null,null," "," "," "," ","X"," "," "," "," ",null,null,null,null," "," ","X","X","X","X",null,null,null,null,null,null,null,null,null,null,null,"X","X","X","X",null,null,null,null,"X",null,null,null,null,"x",null,null,null,null,null,null,null,null,null,null,null,"x","x",null,null,null,null,null,null,null,null,null,null,"x",null,null,null,null,null,null,null,null,null,null,"x",null,"x","x","x",null,null,null,null,"x","x"]
[null,"CASANARE","OROCUE",85230,"3","x","x","x","x","x","x","x",null,"X","X","x",null,"x",null,null,"x","x","x","x",null,null,null,null,null,null,null,null,null,null,"X","",null,"X","X",null,null,null,null,null,null,null,null,null,null,null,null,null,null,null,null,"X","X","X","X","X",null,null,null,null,null,"X","X","X","X","X","X","X","X","X",null,null,null,null,"X","X","X","X","X","X",null,null,null,null,null,null,null,null,null,null,null,"X","X","X","X",null,null,null,null,"X",null,null,null,null,"x",null,null,null,null,null,null,null,null,null,null,null,"x","x",null,null,null,null,null,null,null,null,null,null,"x",null,null,null,null,null,null,null,null,null,null,"x",null,"x","x","x",null,null,null,null,"x","x"]
[null,"CASANARE","PAZ DE ARIPORO",85250,"3","x","x","x","x","x","x","x","x","X","X","x",null,"x",null,"x","x","x","x","x",null,null,null,null,null,null,null,null,null,null,"X","",null,"X","X",null,null,null,null,null,null,null,null,null,null,null,null,null,null,null,null,"X","X","X","X","X",null,null,null,null,null,"X","X","X","X","X","X","X","X","X",null,null,null,null,"X","X","X","X","X","X",null,null,null,null,null,null,null,null,null,null,null,"X","X","X","X",null,null,null,null,"X",null,null,null,null,"x",null,null,null,null,null,null,null,null,null,null,null,"x","x",null,null,null,null,null,null,null,null,null,null,"x",null,null,null,null,null,null,null,null,null,null,"x",null,"x","x","x",null,null,null,null,"x","x","x","x","x","x",null,null,null,null,null,"x","x","x","x"]
[null,"CASANARE","PORE",85263,"4","x","x","x","x","x","x","x","x","X","X","x",null,"x",null,"x","x","x","x","x",null,null,null,null,null,null,null,null,null,null,"X","",null,"X","X",null,null,null,null,null,null,null,null,null,null,null,null,null,null,null,null," "," "," "," ",null,null,null,null,null,null," "," "," "," ","X"," "," "," "," ",null,null,null,null," "," ","X","X","X","X",null,null,null,null,null,null,null,null,null,null,null,"X","X","X","X",null,null,null,null,"X",null,null,null,null,"x",null,null,null,null,null,null,null,null,null,null,null,"x","x",null,null,null,null,null,null,null,null,null,null,"x",null,null,null,null,null,null,null,null,null,null,"x",null,"x","x","x",null,null,null,null,"x","x"]
[null,"CASANARE","RECETOR",85279,"Otros","x","x","x","x","x",null,null,"x","X","X",null,null,null,null,"x","x","x","x","x",null,null,null,null,null,null,null,null,null,null,"X","",null,"X","X",null,null,null,null,null,null,null,null,null,null,null,null,null,null,null,null," "," "," "," ","",null,null,null,null,null," "," "," "," "," "," "," "," "," ",null,null,null,null," "," ","X","X","X","X",null,null,null,null,null,null,null,null,null,null,null,"X","X","X","X",null,null,null,null,"X",null,null,null,null,"x",null,null,null,null,null,null,null,null,null,null,null,"x","x",null,null,null,null,null,null,null,null,null,null,null,null,null,null,null,null,null,null,null,null,null,"x",null,"x","x"," "]
[null,"CASANARE","SABANALARGA",85300,"4","x","x","x","x","x","x","x",null,"X","X","x",null,"x",null,null,"x","x","x","x",null,null,null,null,null,null,null,null,null,null,"X","",null,"X","X",null,null,null,null,null,null,null,null,null,null,null,null,null,null,null,null," "," "," "," ",null,null,null,null,null,null," "," "," "," ","X"," "," "," "," ",null,null,null,null," "," ","X","X","X","X",null,null,null,null,null,null,null,null,null,null,null,"X","X","X","X",null,null,null,null,"X",null,null,null,null,"x",null,null,null,null,null,null,null,null,null,"X",null,"x","x",null,null,null,null,null,null,null,null,null,null,"x",null,null,null,null,null,null,null,null,null,null,"x",null,"x","x","x",null,null,null,null,"x","x","x","x","x","x",null,null,null,null,null,"x","x","x","x"]
[null,"CASANARE","SACAMA",85315,"Otros","x","x","x","x",null,null,null,null,"X","X",null,null,null,null,null,"x","x","x","x",null,null,null,null,null,null,null,null,null,null,"X","",null,"X","X",null,null,null,null,null,null,null,null,null,null,null,null,null,null,null,null," "," "," "," ","",null,null,null,null,null," "," "," "," ","X"," "," "," "," ",null,null,null,null," "," ","X","X","X","X",null,null,null,null,null,null,null,null,null,null,null,"X","X","X","X",null,null,null,null,"X",null,null,null,null,"x",null,null,null,null,null,null,null,null,null,null,null,"x","x",null,null,null,null,null,null,null,null,null,null,null,null,null,null,null,null,null,null,null,null,null,null,null,"x","x"," "]
[null,"CASANARE","SAN LUIS DE PALENQUE",85325,"4","x","x","x","x","x","x","x",null,"X","X","x",null,"x",null,null,"x","x","x","x",null,null,null,null,null,null,null,null,null,null,"X","",null,"X","X",null,null,null,null,null,null,null,null,null,null,null,null,null,null,null,null," "," "," "," ",null,null,null,null,null,null," "," "," "," ","X"," "," "," "," ",null,null,null,null," "," ","X","X","X","X",null,null,null,null,null,null,null,null,null,null,null,"X","X","X","X",null,null,null,null,"X",null,null,null,null,"x",null,null,null,null,null,null,null,null,null,null,null,"x","x",null,null,null,null,null,null,null,null,null,null,"x",null,null,null,null,null,null,null,null,null,null,"x",null,"x","x"," ",null,null,null,null,"x","x"]
[null,"CASANARE","TAMARA",85400,"4","x","x","x","x","x","x","x","x","X","X","x",null,"x",null,"x","x","x","x","x",null,null,null,null,null,null,null,null,null,null,"X","",null,"X","X",null,null,null,null,null,null,null,null,null,null,null,null,null,null,null,null," "," "," "," ",null,null,null,null,null,null," "," "," "," ","X"," "," "," "," ",null,null,null,null," "," ","X","X","X","X",null,null,null,null,null,null,null,null,null,null,null,"X","X","X","X",null,null,null,null,"X",null,null,null,null,"x",null,null,null,null,null,null,null,null,null,null,null,"x","x",null,null,null,null,null,null,null,null,null,null,"x",null,null,null,null,null,null,null,null,null,null,"x",null,"x","x","x",null,null,null,null,"x","x"]
[null,"CASANARE","TAURAMENA",85410,"4","x","x","x","x","x","x","x","x","X","X","x",null,"x",null,"x","x","x","x","x",null,null,null,null,null,null,null,"X","X",null,"X","X","X","X","X",null,null,null,null,null,null,null,null,null,null,null,null,null,null,null,null,"X","X","X","X",null,null,null,null,null,null,"X","X","X","X","X","X","X","X","X",null,null,null,null,"X","X","X","X","X","X",null,null,null,null,null,null,null,null,null,null,null,"X","X","X","X",null,null,null,null,"X",null,null,null,null,"x",null,null,null,null,null,null,null,null,null,null,null,"x","x",null,null,null,null,null,null,null,null,null,null,"x",null,null,null,null,null,null,null,null,null,null,"x",null,"x","x","x",null,null,null,null,"x","x","x","x","x","x",null,null,null,null,null,"x","x","x","x"]
[null,"CASANARE","TRINIDAD",85430,"4","x","x","x","x","x","x","x","x","X","X","x",null,"x",null,"x","x","x","x","x",null,null,null,null,null,null,null,null,null,null,"X","",null,"X","X",null,null,null,null,null,null,null,null,null,null,null,null,null,null,null,null," "," "," "," ",null,null,null,null,null,null," "," "," "," ","X"," "," "," "," ",null,null,null,null," "," ","X","X","X","X",null,null,null,null,null,null,null,null,null,null,null,"X","X","X","X",null,null,null,null,"X",null,null,null,null,"x",null,null,null,null,null,null,null,null,null,null,null,"x","x",null,null,null,null,null,null,null,null,null,null,"x",null,null,null,null,null,null,null,null,null,null,"x",null,"x","x","x",null,null,null,null,"x","x"]
[null,"CASANARE","VILLANUEVA",85440,"3","x","x","x","x","x","x","x","x","X","X","x",null,"x",null,"x","x","x","x","x",null,null,null,null,null,null,null,null,null,null,"X","",null,"X","X",null,null,null,null,null,null,null,null,null,null,null,null,null,null,null,null,"X","X","X","X","X",null,null,null,null,null,"X","X","X","X","X","X","X","X","X",null,null,null,null,"X","X","X","X","X","X",null,null,null,null,null,null,null,null,null,null,null,"X","X","X","X",null,null,null,null,"X",null,null,null,null,"x",null,null,null,null,null,null,null,null,null,null,null,"x","x",null,null,null,null,null,null,null,null,null,null,"x",null,null,null,null,null,null,null,null,null,null,"x",null,"x","x"," ",null,null,null,null,"x","x","x","x","x","x",null,null,null,null,null,"x","x","x","x"]
[null,"PUTUMAYO","MOCOA",86001,"3","x","x","x","x","x","x","x","x","X","X","x",null,"x",null,"x","x","x","x","x",null,null,null,null,null,null,null,null,null,null,"X","",null,"X","X",null,null,null,null,null,null,null,null,null,null,null,null,null,null,null,null,"X","X","X","X","X",null,null,null,null,null,"X","X","X","X","X","X","X","X","X",null,null,null,null,"X","X","X","X","X","X",null,null,null,null,null,null,null,null,null,null,null,"X","X","X","X",null,null,null,null,"X",null,null,null,null,"x",null,null,null,null,null,null,null,null,null,null,null,"x","x",null,null,null,null,null,null,null,"x","x","x","x",null,null,"x",null,null,null,"x","x","x","x","x",null,"x","x","x",null,null,null,null,"x","x","x","x","x","x",null,null,null,null,null,"x","x","x","x"]
[null,"PUTUMAYO","COLON",86219,"Otros","x","x","x","x","x",null,null,"x","X","X",null,null,null,null,"x","x","x","x","x",null,null,null,null,null,null,null,null,null,null,null,"",null,"","",null,null,null,null,null,null,null,null,null,null,null,null,null,null,null,null," "," "," "," ","",null,null,null,null,null," "," "," "," ","X"," "," "," "," ",null,null,null,null," "," ","X","X","X","X",null,null,null,null,null,null,null,null,null,null,null,"X","X","X","X",null,null,null,null,"X",null,null,null,null,"x",null,null,null,null,null,null,null,null,null,null,null,"x","x",null,null,null,null,null,null,null,null,null,null,null,null,null,null,null,null,null,null,null,null,null,"x",null,"x","x"," "]
[null,"PUTUMAYO","ORITO",86320,"3","x","x","x","x","x","x","x","x","X","X","x",null,"x",null,"x","x","x","x","x",null,null,null,null,null,null,null,null,null,null,"X","",null,"X","X",null,null,null,null,null,null,null,null,null,null,null,null,null,null,null,null," "," "," "," ","",null,null,null,null,null," "," "," "," ","X"," "," "," "," ",null,null,null,null," "," ","X","X","X","X",null,null,null,null,null,null,null,null,null,null,null,"X","X","X","X",null,null,null,null,"X",null,null,null,null,"x",null,null,null,null,null,null,null,null,null,null,null,"x","x",null,null,null,null,null,null,null,null,null,null,"x",null,null,null,null,null,null,null,null,null,null,"x",null,"x","x","x",null,null,null,null,"x","x","x","x","x","x",null,null,null,null,null,"x","x","x","x"]
[null,"PUTUMAYO","PUERTO ASIS",86568,"3","x","x","x","x","x","x","x","x","X","X","x",null,"x",null,"x","x","x","x","x",null,null,null,null,null,null,null,null,null,null,"X","",null,"X","X",null,null,null,null,null,null,null,null,null,null,null,null,null,null,null,null,"X","X","X","X","X",null,null,null,null,null,"X","X","X","X","X","X","X","X","X",null,null,null,null,"X","X","X","X","X","X",null,null,null,null,null,null,null,null,null,null,null,"X","X","X","X",null,null,null,null,"X",null,null,null,null,"x",null,null,null,null,null,null,null,null,null,null,null,"x","x",null,null,null,null,null,null,null,null,null,null,"x",null,null,null,null,null,null,null,null,null,null,"x",null,"x","x","x",null,null,null,null,"x","x","x","x","x","x",null,null,null,null,null,"x","x","x","x"]
[null,"PUTUMAYO","PUERTO CAICEDO",86569,"Otros","x","x","x","x","x",null,null,"x","X","X",null,null,null,null,"x","x","x","x","x",null,null,null,null,null,null,null,null,null,null,null,"",null,"","",null,null,null,null,null,null,null,null,null,null,null,null,null,null,null,null," "," "," "," ","",null,null,null,null,null," "," "," "," ","X"," "," "," "," ",null,null,null,null," "," ","X","X","X","X",null,null,null,null,null,null,null,null,null,null,null,"X","X","X","X",null,null,null,null,"X",null,null,null,null,"x",null,null,null,null,null,null,null,null,null,null,null,"x","x",null,null,null,null,null,null,null,null,null,null,null,null,null,null,null,null,null,null,null,null,null,"x",null,"x","x","x"]
[null,"PUTUMAYO","PUERTO GUZMAN",86571,"4","x","x","x","x","x","x","x","x","X","X","x",null,"x",null,"x","x","x","x","x",null,null,null,null,null,null,null,null,null,null,null,"",null,"","",null,null,null,null,null,null,null,null,null,null,null,null,null,null,null,null," "," "," "," ",null,null,null,null,null,null," "," "," "," ","X"," "," "," "," ",null,null,null,null," "," ","X","X","X","X",null,null,null,null,null,null,null,null,null,null,null,"X","X","X","X",null,null,null,null,"X",null,null,null,null,"x",null,null,null,null,null,null,null,null,null,null,null,"x","x",null,null,null,null,null,null,null,null,null,null,"x",null,null,null,null,null,null,null,null,null,null,"x",null,"x","x","x",null,null,null,null,"x","x"]
[null,"PUTUMAYO","LEGUIZAMO",86573,"3","x","x","x","x","x","x","x","x","X","X","x",null,"x",null,"x","x","x","x","x",null,null,null,null,null,null,null,null,null,null,null,"",null,"","",null,null,null,null,null,null,null,null,null,null,null,null,null,null,null,null," "," "," "," ","",null,null,null,null,null," "," "," "," "," "," "," "," "," ",null,null,null,null," "," ","X","X","X","X",null,null,null,null,null,null,null,null,null,null,null,"X","X","X","X",null,null,null,null,"X",null,null,null,null,"x",null,null,null,null,null,null,null,null,null,null,null,"x","x",null,null,null,null,null,null,null,"x","x","x",null,null,null,"x",null,null,null,"x","x","x","x","x",null,"x","x"," "]
[null,"PUTUMAYO","SIBUNDOY",86749,"3","x","x","x","x","x","x","x","x","X","X","x",null,"x",null,"x","x","x","x","x",null,null,null,null,null,null,null,null,null,null,null,"",null,"","",null,null,null,null,null,null,null,null,null,null,null,null,null,null,null,null," "," "," "," ","",null,null,null,null,null," "," "," "," ","X"," "," "," "," ",null,null,null,null," "," ","X","X","X","X",null,null,null,null,null,null,null,null,null,null,null,"X","X","X","X",null,null,null,null,"X",null,null,null,null,"x",null,null,null,null,null,null,null,null,null,null,null,"x","x",null,null,null,null,null,null,null,"x","x","x","x",null,null,"x",null,null,null,"x","x","x","x","x",null,"x","x","x",null,null,null,null,"x","x"]
[null,"PUTUMAYO","SAN FRANCISCO",86755,"Otros","x","x","x","x","x",null,null,"x","X","X",null,null,null,null,"x","x","x","x","x",null,null,null,null,null,null,null,null,null,null,null,"",null,"","",null,null,null,null,null,null,null,null,null,null,null,null,null,null,null,null," "," "," "," ","",null,null,null,null,null," "," "," "," ","X"," "," "," "," ",null,null,null,null," "," ","X","X","X","X",null,null,null,null,null,null,null,null,null,null,null,"X","X","X","X",null,null,null,null,"X",null,null,null,null,"x",null,null,null,null,null,null,null,null,null,null,null,"x","x",null,null,null,null,null,null,null,null,null,null,"x",null,null,null,null,null,null,null,null,null,null,"x",null,"x","x"," ",null,null,null,null,"x","x"]
[null,"PUTUMAYO","SAN MIGUEL",86757,"4","x","x","x","x","x","x","x","x","X","X","x",null,"x",null,"x","x","x","x","x",null,null,null,null,null,null,null,null,null,null,null,"",null,"","",null,null,null,null,null,null,null,null,null,null,null,null,null,null,null,null," "," "," "," ",null,null,null,null,null,null," "," "," "," ","X"," "," "," "," ",null,null,null,null," "," ","X","X","X","X",null,null,null,null,null,null,null,null,null,null,null,"X","X","X","X",null,null,null,null,"X",null,null,null,null,"x",null,null,null,null,null,null,null,null,null,null,null,"x","x",null,null,null,null,null,null,null,null,null,null,"x",null,null,null,null,null,null,null,null,null,null,"x",null,"x","x","x",null,null,null,null,"x","x"]
[null,"PUTUMAYO","SANTIAGO",86760,"Otros","x","x","x","x","x",null,null,"x","X","X",null,null,null,null,"x","x","x","x","x",null,null,null,null,null,null,null,null,null,null,null,"",null,"","",null,null,null,null,null,null,null,null,null,null,null,null,null,null,null,null," "," "," "," ","",null,null,null,null,null," "," "," "," "," "," "," "," "," ",null,null,null,null," "," ","X","X","X","X",null,null,null,null,null,null,null,null,null,null,null,"X","X","X","X",null,null,null,null,"X",null,null,null,null,"x",null,null,null,null,null,null,null,null,null,null,null,"x","x",null,null,null,null,null,null,null,null,null,null,null,null,null,null,null,null,null,null,null,null,null,"x",null,"x","x"," "]
[null,"PUTUMAYO","VALLE DEL GUAMUEZ",86865,"4","x","x","x","x","x","x","x","x","X","X","x",null,"x",null,"x","x","x","x","x",null,null,null,null,null,null,null,null,null,null,null,"",null,"","",null,null,null,null,null,null,null,null,null,null,null,null,null,null,null,null," "," "," "," ",null,null,null,null,null,null," "," "," "," ","X"," "," "," "," ",null,null,null,null," "," ","X","X","X","X",null,null,null,null,null,null,null,null,null,null,null,"X","X","X","X",null,null,null,null,"X",null,null,null,null,"x",null,null,null,null,null,null,null,null,null,null,null,"x","x",null,null,null,null,null,null,null,null,null,null,"x",null,null,null,null,null,null,null,null,null,null,"x",null,"x","x"," ",null,null,null,null,"x","x"]
[null,"PUTUMAYO","VILLAGARZON",86885,"3","x","x","x","x","x","x","x","x","X","X","x",null,"x",null,"x","x","x","x","x",null,null,null,null,null,null,null,null,null,null,"X","",null,"X","X",null,null,null,null,null,null,null,null,null,null,null,null,null,null,null,null," "," "," "," ","",null,null,null,null,null," "," "," "," ","X"," "," "," "," ",null,null,null,null," "," ","X","X","X","X",null,null,null,null,null,null,null,null,null,null,null,"X","X","X","X",null,null,null,null,"X",null,null,null,null,"x",null,null,null,null,null,null,null,null,null,null,null,"x","x",null,null,null,null,null,null,null,null,null,null,"x",null,null,null,null,null,null,null,null,null,null,"x",null,"x","x","x",null,null,null,null,"x","x","x","x","x","x",null,null,null,null,null,"x","x","x","x"]
[null,"SAN ANDRES","SAN ANDRES",88001,"4","x","x","x","x","x","x","x","x","X","X","x",null,"x",null,"x","x","x","x","x",null,null,null,null,null,null,null,"X","X",null,"X","X","X","X","X",null,null,null,null,null,null,null,null,null,null,null,null,null,null,null,null,"X","X","X","X",null,null,null,null,null,null,"X","X","X","X","X","X","X","X","X",null,null,null,null,"X","X","X","X","X","X",null,null,null,null,null,null,null,null,null,null,"X","X","X","X","X",null,null,null,null,"X",null,"x","x","x","x",null,null,null,null,null,"x","x","x","x",null,"x","x","x","x",null,null,null,null,null,null,"x","x","x","x",null,null,"x",null,null,null,"x","x","x","x","x",null,"x","x"," ",null,null,null,null,"x","x","x","x","x","x",null,null,null,null,null,"x","x","x","x",null,null,null,null,null,null,null,null,null,null,null,"x","x","x","x"]
[null,"SAN ANDRES","PROVIDENCIA",88564,"4","x","x","x","x","x","x","x",null,"X","X","x",null,"x",null,null,"x","x","x","x",null,null,null,null,null,null,null,null,null,null,null,"",null,"","",null,null,null,null,null,null,null,null,null,null,null,null,null,null,null,null," "," "," "," ",null,null,null,null,null,null," "," "," "," ","X"," "," "," "," ",null,null,null,null," "," ","X","X","X","X",null,null,null,null,null,null,null,null,null,null,null,"X","X","X","X",null,null,null,null,"X",null,null,null,null,"x",null,null,null,null,null,null,null,null,null,null,null,"x","x",null,null,null,null,null,null,null,null,null,null,"x",null,null,null,null,null,null,null,null,null,null,null,null,"x","x"," ",null,null,null,null,"x","x"]
[null,"AMAZONAS","LETICIA",91001,"1","x","x","x","x","x","x","x","x","X","X","x",null,"x",null,"x","x","x","x","x",null,null,null,null,null,null,null,null,null,null,"X","X",null,"X","X",null,null,null,null,null,null,null,null,null,null,null,null,null,null,null,null,"X","X","X","X",null,"X",null,null,null,null,"X","X","X","X","X","X","X","X","X",null,null,null,null,"X","X","X","X","X","X",null,null,null,null,null,null,null,null,null,null,null,"X","X","X","X",null,null,null,null,"X",null,null,null,null,"x",null,null,null,null,null,null,null,null,null,null,null,"x","x",null,null,null,null,null,null,null,"x","x","x","x",null,null,"x",null,null,null,"x","x","x","x","x",null,"x","x","x",null,null,null,null,"x","x","x","x","x","x",null,null,null,null,null,"x","x","x","x",null,null,null,null,null,null,null,null,null,null,null,"x","x","x","x"]
[null,"AMAZONAS","EL ENCANTO",91263,"Otros","x","x","x","x",null,null,null,null,null,null,null,null,null,null,null,"x","x","x","x",null,null,null,null,null,null,null,null,null,null,null,"",null,"","",null,null,null,null,null,null,null,null,null,null,null,null,null,null,null,null," "," "," "," ","",null,null,null,null,null," "," "," "," "," "," "," "," "," ",null,null,null,null," "," ","X","X","X","X",null,null,null,null,null,null,null,null,null,null,null,"X","X","X","X",null,null,null,null,"X",null,null,null,null,"x",null,null,null,null,null,null,null,null,null,null,null,"x","x",null,null,null,null,null,null,null,null,null,null,null,null,null,null,null,null,null,null,null,null,null,null,null,"x","x"," "]
[null,"AMAZONAS","LA CHORRERA",91405,"Otros","x","x","x","x",null,null,null,null,null,"X",null,null,null,null,null,"x","x","x","x",null,null,null,null,null,null,null,null,null,null,null,"",null,"","",null,null,null,null,null,null,null,null,null,null,null,null,null,null,null,null," "," "," "," ","",null,null,null,null,null," "," "," "," "," "," "," "," "," ",null,null,null,null," "," ","X","X","X","X",null,null,null,null,null,null,null,null,null,null,null,"X","X","X","X",null,null,null,null,"X",null,null,null,null,"x",null,null,null,null,null,null,null,null,null,null,null,"x","x",null,null,null,null,null,null,null,null,null,null,null,null,null,null,null,null,null,null,null,null,null,null,null,"x","x"," "]
[null,"AMAZONAS","LA PEDRERA",91407,"Otros","x","x","x","x",null,null,null,null,null,null,null,null,null,null,null,"x","x","x","x",null,null,null,null,null,null,null,null,null,null,null,"",null,"","",null,null,null,null,null,null,null,null,null,null,null,null,null,null,null,null," "," "," "," ","",null,null,null,null,null," "," "," "," "," "," "," "," "," ",null,null,null,null," "," ","X","X","X","X",null,null,null,null,null,null,null,null,null,null,null,"X","X","X","X",null,null,null,null,"X",null,null,null,null,"x",null,null,null,null,null,null,null,null,null,null,null,"x","x",null,null,null,null,null,null,null,null,null,null,null,null,null,null,null,null,null,null,null,null,null,null,null,"x","x"," "]
[null,"AMAZONAS","LA VICTORIA",91430,"Otros","x","x","x","x",null,null,null,null,null,null,null,null,null,null,null,"x","x","x","x",null,null,null,null,null,null,null,null,null,null,null,"",null,"","",null,null,null,null,null,null,null,null,null,null,null,null,null,null,null,null," "," "," "," ","",null,null,null,null,null," "," "," "," "," "," "," "," "," ",null,null,null,null," "," ","X","X","X","X",null,null,null,null,null,null,null,null,null,null,null,"X","X","X","X",null,null,null,null,"X",null,null,null,null,"x",null,null,null,null,null,null,null,null,null,null,null,"x","x",null,null,null,null,null,null,null,null,null,null,"x",null,null,null,null,null,null,null,null,null,null,null,null,"x","x"," ",null,null,null,null,"x","x"]
[null,"AMAZONAS","MIRITI - PARANA",91460,"Otros","x","x","x","x",null,null,null,null,null,null,null,null,null,null,null,"x","x","x","x",null,null,null,null,null,null,null,null,null,null,null,"",null,"","",null,null,null,null,null,null,null,null,null,null,null,null,null,null,null,null," "," "," "," ","",null,null,null,null,null," "," "," "," "," "," "," "," "," ",null,null,null,null," "," ","X","X","X","X",null,null,null,null,null,null,null,null,null,null,null,"X","X","X","X",null,null,null,null,"X",null,null,null,null,"x",null,null,null,null,null,null,null,null,null,null,null,"x","x",null,null,null,null,null,null,null,null,null,null,null,null,null,null,null,null,null,null,null,null,null,null,null,"x","x"," "]
[null,"AMAZONAS","PUERTO ALEGRIA",91530,"Otros","x","x","x","x",null,null,null,null,null,null,null,null,null,null,null,"x","x","x","x",null,null,null,null,null,null,null,null,null,null,null,"",null,"","",null,null,null,null,null,null,null,null,null,null,null,null,null,null,null,null," "," "," "," ","",null,null,null,null,null," "," "," "," "," "," "," "," "," ",null,null,null,null," "," ","X","X","X","X",null,null,null,null,null,null,null,null,null,null,null,"X","X","X","X",null,null,null,null,"X",null,null,null,null,"x",null,null,null,null,null,null,null,null,null,null,null,"x","x",null,null,null,null,null,null,null,null,null,null,null,null,null,null,null,null,null,null,null,null,null,null,null,"x","x"," "]
[null,"AMAZONAS","PUERTO ARICA",91536,"Otros","x","x","x","x",null,null,null,null,null,null,null,null,null,null,null,"x","x","x","x",null,null,null,null,null,null,null,null,null,null,null,"",null,"","",null,null,null,null,null,null,null,null,null,null,null,null,null,null,null,null," "," "," "," ","",null,null,null,null,null," "," "," "," "," "," "," "," "," ",null,null,null,null," "," ","X","X","X","X",null,null,null,null,null,null,null,null,null,null,null,"X","X","X","X",null,null,null,null,"X",null,null,null,null,"x",null,null,null,null,null,null,null,null,null,null,null,"x","x",null,null,null,null,null,null,null,null,null,null,null,null,null,null,null,null,null,null,null,null,null,null,null,"x","x"," "]
[null,"AMAZONAS","PUERTO NARIÑO",91540,"Otros","x","x","x","x",null,null,null,null,"X","X",null,null,null,null,null,"x","x","x","x",null,null,null,null,null,null,null,null,null,null,"X","",null,"X","X",null,null,null,null,null,null,null,null,null,null,null,null,null,null,null,null," "," "," "," ","",null,null,null,null,null," "," "," "," ","X"," "," "," "," ",null,null,null,null," "," ","X","X","X","X",null,null,null,null,null,null,null,null,null,null,null,"X","X","X","X",null,null,null,null,"X",null,null,null,null,"x",null,null,null,null,null,null,null,null,null,null,null,"x","x",null,null,null,null,null,null,null,null,null,null,null,null,null,null,null,null,null,null,null,null,null,"x",null,"x","x","x"]
[null,"AMAZONAS","PUERTO SANTANDER",91669,"Otros","x","x","x","x",null,null,null,null,null,null,null,null,null,null,null,"x","x","x","x",null,null,null,null,null,null,null,null,null,null,null,"",null,"","",null,null,null,null,null,null,null,null,null,null,null,null,null,null,null,null," "," "," "," ","",null,null,null,null,null," "," "," "," "," "," "," "," "," ",null,null,null,null," "," ","X","X","X","X",null,null,null,null,null,null,null,null,null,null,null,"X","X","X","X",null,null,null,null,"X",null,null,null,null,"x",null,null,null,null,null,null,null,null,null,null,null,"x","x",null,null,null,null,null,null,null,null,null,null,null,null,null,null,null,null,null,null,null,null,null,null,null,"x","x"," "]
[null,"AMAZONAS","TARAPACA",91798,"Otros","x","x","x","x",null,null,null,null,null,"X",null,null,null,null,null,"x","x","x","x",null,null,null,null,null,null,null,null,null,null,null,"",null,"","",null,null,null,null,null,null,null,null,null,null,null,null,null,null,null,null," "," "," "," ","",null,null,null,null,null," "," "," "," "," "," "," "," "," ",null,null,null,null," "," ","X","X","X","X",null,null,null,null,null,null,null,null,null,null,null,"X","X","X","X",null,null,null,null,"X",null,null,null,null,"x",null,null,null,null,null,null,null,null,null,null,null,"x","x",null,null,null,null,null,null,null,null,null,null,null,null,null,null,null,null,null,null,null,null,null,"x",null,"x","x"," "]
[null,"GUAINIA","INIRIDA",94001,"3","x","x","x","x","x","x","x",null,"X","X","x",null,"x",null,null,"x","x","x","x",null,null,null,null,null,null,null,null,null,null,"X","",null,"X","X",null,null,null,null,null,null,null,null,null,null,null,null,null,null,null,null,"X","X","X","X","X",null,null,null,null,null,"X","X","X","X","X","X","X","X","X",null,null,null,null,"X","X","X","X","X","X",null,null,null,null,null,null,null,null,null,null,null,"X","X","X","X",null,null,null,null,"X",null,null,null,null,"x",null,null,null,null,null,null,null,null,null,null,null,"x","x",null,null,null,null,null,null,null,null,null,null,"x",null,null,null,null,null,null,null,null,null,null,"x",null,"x","x"," ",null,null,null,null,"x","x"]
[null,"GUAINIA","BARRANCO MINAS",94343,"Otros","x","x","x","x",null,null,null,null,null,"X",null,null,null,null,null,"x","x","x","x",null,null,null,null,null,null,null,null,null,null,null,"",null,"","",null,null,null,null,null,null,null,null,null,null,null,null,null,null,null,null," "," "," "," ","",null,null,null,null,null," "," "," "," "," "," "," "," "," ",null,null,null,null," "," ","X","X","X","X",null,null,null,null,null,null,null,null,null,null,null,"X","X","X","X",null,null,null,null,"X",null,null,null,null,"x",null,null,null,null,null,null,null,null,null,null,null,"x","x",null,null,null,null,null,null,null,null,null,null,null,null,null,null,null,null,null,null,null,null,null,"x",null,"x","x"," "]
[null,"GUAINIA","MAPIRIPANA",94663,"Otros","x","x","x","x",null,null,null,null,null,null,null,null,null,null,null,"x","x","x","x",null,null,null,null,null,null,null,null,null,null,null,"",null,"","",null,null,null,null,null,null,null,null,null,null,null,null,null,null,null,null," "," "," "," ","",null,null,null,null,null," "," "," "," "," "," "," "," "," ",null,null,null,null," "," ","X","X","X","X",null,null,null,null,null,null,null,null,null,null,null,"X","X","X","X",null,null,null,null,"X",null,null,null,null,"x",null,null,null,null,null,null,null,null,null,null,null,"x","x",null,null,null,null,null,null,null,null,null,null,null,null,null,null,null,null,null,null,null,null,null,null,null,"x","x"," "]
[null,"GUAINIA","SAN FELIPE",94883,"Otros","x","x","x","x",null,null,null,null,null,null,null,null,null,null,null,"x","x","x","x",null,null,null,null,null,null,null,null,null,null,null,"",null,"","",null,null,null,null,null,null,null,null,null,null,null,null,null,null,null,null," "," "," "," ","",null,null,null,null,null," "," "," "," "," "," "," "," "," ",null,null,null,null," "," ","X","X","X","X",null,null,null,null,null,null,null,null,null,null,null,"X","X","X","X",null,null,null,null,"X",null,null,null,null,"x",null,null,null,null,null,null,null,null,null,null,null,"x","x",null,null,null,null,null,null,null,null,null,null,null,null,null,null,null,null,null,null,null,null,null,null,null,"x","x"," "]
[null,"GUAINIA","PUERTO COLOMBIA",94884,"Otros","x","x","x","x",null,null,null,null,null,null,null,null,null,null,null,"x","x","x","x",null,null,null,null,null,null,null,null,null,null,null,"",null,"","",null,null,null,null,null,null,null,null,null,null,null,null,null,null,null,null," "," "," "," ","",null,null,null,null,null," "," "," "," "," "," "," "," "," ",null,null,null,null," "," ","X","X","X","X",null,null,null,null,null,null,null,null,null,null,null,"X","X","X","X",null,null,null,null,"X",null,null,null,null,"x",null,null,null,null,null,null,null,null,null,null,null,"x","x",null,null,null,null,null,null,null,null,null,null,"x",null,null,null,null,null,null,null,null,null,null,null,null,"x","x","x",null,null,null,null,"x","x"]
[null,"GUAINIA","LA GUADALUPE",94885,"Otros","x","x","x","x",null,null,null,null,null,null,null,null,null,null,null,"x","x","x","x",null,null,null,null,null,null,null,null,null,null,null,"",null,"","",null,null,null,null,null,null,null,null,null,null,null,null,null,null,null,null," "," "," "," ","",null,null,null,null,null," "," "," "," "," "," "," "," "," ",null,null,null,null," "," ","X","X","X","X",null,null,null,null,null,null,null,null,null,null,null,"X","X","X","X",null,null,null,null,"X",null,null,null,null,"x",null,null,null,null,null,null,null,null,null,null,null,"x","x",null,null,null,null,null,null,null,null,null,null,null,null,null,null,null,null,null,null,null,null,null,null,null,"x","x"," "]
[null,"GUAINIA","CACAHUAL",94886,"Otros","x","x","x","x",null,null,null,null,null,null,null,null,null,null,null,"x","x","x","x",null,null,null,null,null,null,null,null,null,null,null,"",null,"","",null,null,null,null,null,null,null,null,null,null,null,null,null,null,null,null," "," "," "," ","",null,null,null,null,null," "," "," "," "," "," "," "," "," ",null,null,null,null," "," ","X","X","X","X",null,null,null,null,null,null,null,null,null,null,null,"X","X","X","X",null,null,null,null,"X",null,null,null,null,"x",null,null,null,null,null,null,null,null,null,null,null,"x","x",null,null,null,null,null,null,null,null,null,null,null,null,null,null,null,null,null,null,null,null,null,null,null,"x","x"," "]
[null,"GUAINIA","PANA PANA",94887,"Otros","x","x","x","x",null,null,null,null,null,null,null,null,null,null,null,"x","x","x","x",null,null,null,null,null,null,null,null,null,null,null,"",null,"","",null,null,null,null,null,null,null,null,null,null,null,null,null,null,null,null," "," "," "," ","",null,null,null,null,null," "," "," "," "," "," "," "," "," ",null,null,null,null," "," ","X","X","X","X",null,null,null,null,null,null,null,null,null,null,null,"X","X","X","X",null,null,null,null,"X",null,null,null,null,"x",null,null,null,null,null,null,null,null,null,null,null,"x","x",null,null,null,null,null,null,null,null,null,null,null,null,null,null,null,null,null,null,null,null,null,null,null,"x","x"," "]
[null,"GUAINIA","MORICHAL",94888,"Otros","x","x","x","x",null,null,null,null,null,"X",null,null,null,null,null,"x","x","x","x",null,null,null,null,null,null,null,null,null,null,null,"",null,"","",null,null,null,null,null,null,null,null,null,null,null,null,null,null,null,null," "," "," "," ","",null,null,null,null,null," "," "," "," "," "," "," "," "," ",null,null,null,null," "," ","X","X","X","X",null,null,null,null,null,null,null,null,null,null,null,"X","X","X","X",null,null,null,null,"X",null,null,null,null,"x",null,null,null,null,null,null,null,null,null,null,null,"x","x",null,null,null,null,null,null,null,null,null,null,null,null,null,null,null,null,null,null,null,null,null,null,null,"x","x"," "]
[null,"GUAVIARE","SAN JOSE DEL GUAVIARE",95001,"3","x","x","x","x","x","x","x","x","X","X","x",null,"x",null,"x","x","x","x","x",null,null,null,null,null,null,null,null,null,null,"X","",null,"X","X",null,null,null,null,null,null,null,null,null,null,null,null,null,null,null,null,"X","X","X","X","X",null,null,null,null,null,"X","X","X","X","X","X","X","X","X",null,null,null,null,"X","X","X","X","X","X",null,null,null,null,null,null,null,null,null,null,null,"X","X","X","X",null,null,null,null,"X",null,null,null,null,"x",null,null,null,null,null,null,null,null,null,null,null,"x","x",null,null,null,null,null,null,null,"x","x","x","x",null,null,"x",null,null,null,"x","x","x","x","x",null,"x","x","x",null,null,null,null,"x","x","x","x","x","x",null,null,null,null,null,"x","x","x","x"]
[null,"GUAVIARE","CALAMAR",95015,"Otros","x","x","x","x","x",null,null,"x","X","X",null,null,null,null,"x","x","x","x","x",null,null,null,null,null,null,null,null,null,null,null,"",null,"","",null,null,null,null,null,null,null,null,null,null,null,null,null,null,null,null," "," "," "," ","",null,null,null,null,null," "," "," "," ","X"," "," "," "," ",null,null,null,null," "," ","X","X","X","X",null,null,null,null,null,null,null,null,null,null,null,"X","X","X","X",null,null,null,null,"X",null,null,null,null,"x",null,null,null,null,null,null,null,null,null,null,null,"x","x",null,null,null,null,null,null,null,null,null,null,"x",null,null,null,null,null,null,null,null,null,null,"x",null,"x","x","x",null,null,null,null,"x","x"]
[null,"GUAVIARE","EL RETORNO",95025,"Otros","x","x","x","x","x",null,null,"x","X","X",null,null,null,null,"x","x","x","x","x",null,null,null,null,null,null,null,null,null,null,null,"",null,"","",null,null,null,null,null,null,null,null,null,null,null,null,null,null,null,null," "," "," "," ","",null,null,null,null,null," "," "," "," ","X"," "," "," "," ",null,null,null,null," "," ","X","X","X","X",null,null,null,null,null,null,null,null,null,null,null,"X","X","X","X",null,null,null,null,"X",null,null,null,null,"x",null,null,null,null,null,null,null,null,null,null,null,"x","x",null,null,null,null,null,null,null,null,null,null,null,null,null,null,null,null,null,null,null,null,null,"x",null,"x","x","x"]
[null,"GUAVIARE","MIRAFLORES",95200,"4","x","x","x","x","x",null,"x",null,"X","X","x",null,"x",null,null,"x","x","x","x",null,null,null,null,null,null,null,null,null,null,null,"",null,"","",null,null,null,null,null,null,null,null,null,null,null,null,null,null,null,null," "," "," "," ",null,null,null,null,null,null," "," "," "," "," "," "," "," "," ",null,null,null,null," "," ","X","X","X","X",null,null,null,null,null,null,null,null,null,null,null,"X","X","X","X",null,null,null,null,"X",null,null,null,null,"x",null,null,null,null,null,null,null,null,null,null,null,"x","x",null,null,null,null,null,null,null,null,null,null,"x",null,null,null,null,null,null,null,null,null,null,"x",null,"x","x"," ",null,null,null,null,"x","x"]
[null,"VAUPES","MITU",97001,"3","x","x","x","x","x","x","x",null,"X","X","x",null,"x",null,null,"x","x","x","x",null,null,null,null,null,null,null,null,null,null,null,"",null,"","",null,null,null,null,null,null,null,null,null,null,null,null,null,null,null,null," "," "," "," ","",null,null,null,null,null," "," "," "," ","X"," "," "," "," ",null,null,null,null," "," ","X","X","X","X",null,null,null,null,null,null,null,null,null,null,null,"X","X","X","X",null,null,null,null,"X",null,null,null,null,"x",null,null,null,null,null,null,null,null,null,null,null,"x","x",null,null,null,null,null,null,null,null,null,null,"x",null,null,null,null,null,null,null,null,null,null,"x",null,"x","x","x",null,null,null,null,"x","x"]
[null,"VAUPES","CARURU",97161,"Otros","x","x","x","x","x",null,null,"x","X","X",null,null,null,null,"x","x","x","x","x",null,null,null,null,null,null,null,null,null,null,null,"",null,"","",null,null,null,null,null,null,null,null,null,null,null,null,null,null,null,null," "," "," "," ","",null,null,null,null,null," "," "," "," ","X"," "," "," "," ",null,null,null,null," "," ","X","X","X","X",null,null,null,null,null,null,null,null,null,null,null,"X","X","X","X",null,null,null,null,"X",null,null,null,null,"x",null,null,null,null,null,null,null,null,null,null,null,"x","x",null,null,null,null,null,null,null,null,null,null,null,null,null,null,null,null,null,null,null,null,null,"x",null,"x","x"," "]
[null,"VAUPES","PACOA",97511,"Otros","x","x","x","x",null,null,null,null,null,null,null,null,null,null,null,"x","x","x","x",null,null,null,null,null,null,null,null,null,null,null,"",null,"x","",null,null,null,null,null,null,null,null,null,null,null,null,null,null,null,null," "," "," "," ","",null,null,null,null,null," "," "," "," "," "," "," "," "," ",null,null,null,null," "," ","X","X","X","X",null,null,null,null,null,null,null,null,null,null,null,"X","X","X","X",null,null,null,null,"X",null,null,null,null,"x",null,null,null,null,null,null,null,null,null,null,null,"x","x",null,null,null,null,null,null,null,null,null,null,null,null,null,null,null,null,null,null,null,null,null,null,null,"x","x"," "]
[null,"VAUPES","TARAIRA",97666,"Otros","x","x","x","x","x",null,null,"x","X","X",null,null,null,null,"x","x","x","x","x",null,null,null,null,null,null,null,null,null,null,null,"",null,"","",null,null,null,null,null,null,null,null,null,null,null,null,null,null,null,null," "," "," "," ","",null,null,null,null,null," "," "," "," "," "," "," "," "," ",null,null,null,null," "," ","X","X","X","X",null,null,null,null,null,null,null,null,null,null,null,"X","X","X","X",null,null,null,null,"X",null,null,null,null,"x",null,null,null,null,null,null,null,null,null,null,null,"x","x",null,null,null,null,null,null,null,null,null,null,null,null,null,null,null,null,null,null,null,null,null,null,null,"x","x"," "]
[null,"VAUPES","PAPUNAUA",97777,"Otros","x","x","x","x",null,null,null,null,null,null,null,null,null,null,null,"x","x","x","x",null,null,null,null,null,null,null,null,null,null,null,"",null,"","",null,null,null,null,null,null,null,null,null,null,null,null,null,null,null,null," "," "," "," ","",null,null,null,null,null," "," "," "," "," "," "," "," "," ",null,null,null,null," "," ","X","X","X","X",null,null,null,null,null,null,null,null,null,null,null,"X","X","X","X",null,null,null,null,"X",null,null,null,null,"x",null,null,null,null,null,null,null,null,null,null,null,"x","x",null,null,null,null,null,null,null,null,null,null,null,null,null,null,null,null,null,null,null,null,null,null,null,"x","x"," "]
[null,"VAUPES","YAVARATE",97889,"Otros","x","x","x","x",null,null,null,null,null,null,null,null,null,null,null,"x","x","x","x",null,null,null,null,null,null,null,null,null,null,null,"",null,"","",null,null,null,null,null,null,null,null,null,null,null,null,null,null,null,null," "," "," "," ","",null,null,null,null,null," "," "," "," "," "," "," "," "," ",null,null,null,null," "," ","X","X","X","X",null,null,null,null,null,null,null,null,null,null,null,"X","X","X","X",null,null,null,null,"X",null,null,null,null,"x",null,null,null,null,null,null,null,null,null,null,null,"x","x",null,null,null,null,null,null,null,null,null,null,null,null,null,null,null,null,null,null,null,null,null,null,null,"x","x"," "]
[null,"VICHADA","PUERTO CARREÑO",99001,"3","x","x","x","x","x","x","x","x","X","X","x",null,"x",null,"x","x","x","x","x",null,null,null,null,null,null,null,null,null,null,null,"",null,"","",null,null,null,null,null,null,null,null,null,null,null,null,null,null,null,null,"X","X","X","X",null,null,null,null,null,null,"X","X","X","X","X","X","X","X","X",null,null,null,null,"X","X","X","X","X","X",null,null,null,null,null,null,null,null,null,null,null,"X","X","X","X",null,null,null,null,"X",null,null,null,null,"x",null,null,null,null,null,null,null,null,null,null,null,"x","x",null,null,null,null,null,null,null,null,null,null,"x",null,null,null,null,null,null,null,null,null,null,"x",null,"x","x","x",null,null,null,null,"x","x","x","x","x","x",null,null,null,null,null,"x","x","x","x"]
[null,"VICHADA","LA PRIMAVERA",99524,"4","x","x","x","x","x","x","x","x","X","X","x",null,"x",null,"x","x","x","x","x",null,null,null,null,null,null,null,null,null,null,null,"",null,"","",null,null,null,null,null,null,null,null,null,null,null,null,null,null,null,null," "," "," "," ",null,null,null,null,null,null," "," "," "," ","X"," "," "," "," ",null,null,null,null," "," ","X","X","X","X",null,null,null,null,null,null,null,null,null,null,null,"X","X","X","X",null,null,null,null,"X",null,null,null,null,"x",null,null,null,null,null,null,null,null,null,null,null,"x","x",null,null,null,null,null,null,null,null,null,null,"x",null,null,null,null,null,null,null,null,null,null,"x",null,"x","x","x",null,null,null,null,"x","x"]
[null,"VICHADA","SANTA ROSALIA",99624,"4","x","x","x","x","x",null,"x",null,"X","X","x",null,"x",null,null,"x","x","x","x",null,null,null,null,null,null,null,null,null,null,null,"",null,"","",null,null,null,null,null,null,null,null,null,null,null,null,null,null,null,null," "," "," "," ",null,null,null,null,null,null," "," "," "," ","X"," "," "," "," ",null,null,null,null," "," ","X","X","X","X",null,null,null,null,null,null,null,null,null,null,null,"X","X","X","X",null,null,null,null,"X",null,null,null,null,"x",null,null,null,null,null,null,null,null,null,null,null,"x","x",null,null,null,null,null,null,null,null,null,null,null,null,null,null,null,null,null,null,null,null,null,"x",null,"x","x"," "]
[null,"VICHADA","CUMARIBO",99773,"4","x","x","x","x","x",null,"x",null,"X","X","x",null,"x",null,null,"x","x","x","x",null,null,null,null,null,null,null,null,null,null,null,"",null,"","",null,null,null,null,null,null,null,null,null,null,null,null,null,null,null,null," "," "," "," ",null,null,null,null,null,null," "," "," "," ","X"," "," "," "," ",null,null,null,null," "," ","X","X","X","X",null,null,null,null,null,null,null,null,null,null,null,"X","X","X","X",null,null,null,null,"X",null,null,null,null,"x",null,null,null,null,null,null,null,null,null,null,null,"x","x",null,null,null,null,null,null,null,null,null,null,"x",null,null,null,null,null,null,null,null,null,null,"x",null,"x","x","x",null,null,null,null,"x","x"]
[null,null,null,null,null,{"$f":"+COUNTA(F7:F1128)","v":1122},1122,1122,1122,null,734,745,858,1102,1106,745,0,745,0,858,1122,1122,1122,1122,0,0,0,0,0,0,0,188,188,0,null,1091,189,1122,1122,0,0,0,0,0,0,0,0,0,0,0,0,0,0,0,0,1122,1122,1122,1122,null,151,0,0,0,0,1122,1122,1122,1122,1122,1122,1122,1122,1122,0,0,0,0,1122,1122,{"$f":"COUNTIF(CC7:CC1128,\"x\")","v":1122},{"$f":"COUNTIF(CD7:CD1128,\"x\")","v":1122},1122,1122,null,203,206,91,0,0,91,91,91,91,96,1122,1122,1122,1122,0,0,0,0,1122,0,70,70,70,1122,0,0,0,0,0,70,70,70,70,118,70,1122,1122,70,0,0,0,0,0,0,98,98,98,846,null,0,98,0,0,0,98,98,98,98,1054,0,1122,1122,{"$f":"COUNTIF(ER7:ER1128,\"x\")","v":781},0,0,0,0,846,846,146,146,122,122,0,0,0,0,0,122,122,122,122,37,0,0,0,0,0,0,0,0,0,0,61,61,61,61,0,0,0,0,0,0,0,0,0,0,0,0,0,0,0,0,0,0,0,0]

{"sheet":"CSV","index":5,"n_rows":4,"n_cols":8,"rows_kept":4,"cut":false,"hidden":true,"merged":[]}
["Tipo (servicio o artÃ­culo)","Cantidad","CÃ³digo de unidad de medida*","PosiciÃ³n","Precio base","Divisa","DescripciÃ³n","MercancÃ­a"]
["item",100000,"Und",null,"\"0\"","COP","SF Tipo 4 - 5002 - ABEJORRAL - Beneficiarios: 500"]
["item",1,"Und",null,"\"0\"","COP","Total Servicios Adicionales"]
["item",1,"Und",null,"\"0\"","COP","IVA"]